Workbook

Sheet 1,1
AA1: Приложение № 1
AA2: к приказу Минэнерго России
AA3: от «__» _____ 2016 г. №___
A4: Форма 1. Перечни инвестиционных проектов
A5: на год 2021
A7: Инвестиционная программа АО "ВЭС"
A8: полное наименование субъекта электроэнергетики
A10: Год раскрытия информации: 2020 год
A12: Утвержденные плановые значения показателей приведены в соответствии с ______________________________________________________________________________
A13: реквизиты решения органа исполнительной власти, утвердившего инвестиционную программу
A15: Номер группы инвести-ционных проектов | B15: Наименование инвестиционного проекта (группы инвестиционных проектов) | C15: Идентифика-тор инвестицион-ного проекта | D15: Цели реализации инвестиционных проектов и плановые (фактические) значения количественных показателей, характеризующие достижение таких целей
D16: Развитие электрической сети/усиление существующей электрической сети, связанное с подключением новых потребителей | H16: Замещение (обновление) электрической сети/повышение экономической эффективности (мероприятия направленные на снижение эксплуатационных затрат) оказания услуг в сфере электроэнергетики | L16: Повышение надежности оказываемых услуг в сфере электроэнергетики | P16: Повышение качества оказываемых услуг в сфере электроэнергетики | T16: Выполнение требований законодательства Российской Федерации, предписаний органов исполнительной власти, регламентов рынков электрической энергии | X16: Обеспечение текущей деятельности в сфере электроэнергетики, в том числе развитие информационной инфраструктуры, хозяйственное обеспечение деятельности | AB16: Инвестиции, связанные с деятельностью, не относящейся к сфере электроэнергетики
D17: Показатель увеличения мощности силовых трансформаторов на подстанциях | F17: Показатель строительства линий электропередач | H17: Показатель замены силовых трансформаторов | J17: Показатель замены линий электропередач | L17: Показатель замены силовых трансформаторов | N17: Показатель замены линий электропередач | P17: Наименование количественного показателя, соответствующего цели | R17: Наименование количественного показателя, соответствующего цели | T17: Наименование количественного показателя, соответствующего цели | V17: Наименование количественного показателя, соответствующего цели | X17: Показатель объема финансовых потребностей | Z17: Наименование количественного показателя, соответствующего цели | AB17: Показатель объема финансовых потребностей | AD17: Наименование количественного показателя, соответствующего цели
D18: План | E18: факт | F18: План | G18: факт | H18: План | I18: факт | J18: План | K18: факт | L18: План | M18: факт | N18: План | O18: факт | P18: План | Q18: факт | R18: План | S18: факт | T18: План | U18: факт | V18: План | W18: факт | X18: План | Y18: факт | Z18: План | AA18: факт | AB18: План | AC18: факт | AD18: План | AE18: факт
A19: 1 | B19: 2 | C19: 3 | D19: 4.1 | E19: 4.2 | F19: 4.3 | G19: 4.4 | H19: 5.1 | I19: 5.2 | J19: 5.3 | K19: 5.4 | L19: 6.1 | M19: 6.2 | N19: 6.3 | O19: 6.4 | P19: 7.1 | Q19: 7.2 | R19: 7.3 | S19: 7.4 | T19: 8.1 | U19: 8.2 | V19: 8.3 | W19: 8.4 | X19: 9.1 | Y19: 9.2 | Z19: 9.3 | AA19: 9.4 | AB19: 10.1 | AC19: 10.2 | AD19: 10.3 | AE19: 10.4
A20: 0 | B20: ВСЕГО по инвестиционной программе, в том числе:
A21: 0.2 | B21: Реконструкция, модернизация, техническое перевооружение, всего
A22: 0.3 | B22: Инвестиционные проекты, реализация которых обуславливается схемами и программами перспективного развития электроэнергетики, всего
A23: 0.6 | B23: Прочие инвестиционные проекты, всего
A24: 1 | B24: Свердловская область
A25: 1.2 | B25: Реконструкция, модернизация, техническое перевооружение всего, в том числе:
A26: 1.2.1 | B26: Реконструкция, модернизация, техническое перевооружение трансформаторных и иных подстанций, распределительных пунктов, всего, в том числе:
A27: 1.2.1.1 | B27: Реконструкция трансформаторных и иных подстанций, всего, в том числе:
A28: 1.2.1.1 | B28: Реконструкция ТП-7011, ТП-1072, ТП-1017, ТП-1078, г. Верхняя Салда | H28: 1,6 МВА
A29: 1.2.1.2 | B29: Модернизация, техническое перевооружение трансформаторных и иных подстанций, распределительных пунктов, всего, в том числе:
A30: 1.2.2 | B30: Реконструкция, модернизация, техническое перевооружение линий электропередачи, всего, в том числе:
A31: 1.2.2.1 | B31: Реконструкция линий электропередачи, всего, в том числе:
A32: 1.2.2.1 | B32: Реконструкция ВЛ-6 кВ ПС Басьяновка, г. Верхняя Салда
A33: 1.2.3 | B33: Развитие и модернизация учета электрической энергии (мощности), всего, в том числе:
A34: 1.2.3.1 | B34: «Установка приборов учета, класс напряжения 0,22 (0,4) кВ, всего, в том числе:»
A35: 1.2.3.1 | B35: Развитие системы АИИСКУЭ в сетях 0,4 кВ, г. Верхняя Салда
A36: 1.6 | B36: Прочие инвестиционные проекты, всего, в том числе:
A37: 1.6 | B37: Развитие системы АИИСКУЭ в сетях 6/10 кВ, г. Верхняя Салда | X37: 2396,29 тыс.руб.
A38: 1.6 | B38: Установка реклоузеров, г. Верхняя Салда | X38: 1842,576 тыс.руб.

Sheet 1,2
AS1: Приложение № 1
AS2: к приказу Минэнерго России
AS3: от «__» _____ 2016 г. №___
A4: Форма 1. Перечни инвестиционных проектов
A5: на год 2022
A7: Инвестиционная программа АО "ВЭС"
A8: полное наименование субъекта электроэнергетики
A10: Год раскрытия информации: 2020 год
A12: Утвержденные плановые значения показателей приведены в соответствии с ______________________________________________________________________________
A13: реквизиты решения органа исполнительной власти, утвердившего инвестиционную программу
A15: Номер группы инвести-ционных проектов | B15: Наименование инвестиционного проекта (группы инвестиционных проектов) | C15: Идентифика-тор инвестицион-ного проекта | D15: Цели реализации инвестиционных проектов и плановые (фактические) значения количественных показателей, характеризующие достижение таких целей
D16: Развитие электрической сети/усиление существующей электрической сети, связанное с подключением новых потребителей | H16: Замещение (обновление) электрической сети/повышение экономической эффективности (мероприятия направленные на снижение эксплуатационных затрат) оказания услуг в сфере электроэнергетики | L16: Повышение надежности оказываемых услуг в сфере электроэнергетики | P16: Повышение качества оказываемых услуг в сфере электроэнергетики | T16: Выполнение требований законодательства Российской Федерации, предписаний органов исполнительной власти, регламентов рынков электрической энергии | X16: Обеспечение текущей деятельности в сфере электроэнергетики, в том числе развитие информационной инфраструктуры, хозяйственное обеспечение деятельности | AB16: Инвестиции, связанные с деятельностью, не относящейся к сфере электроэнергетики
D17: Показатель увеличения мощности силовых трансформаторов на подстанциях | F17: Показатель строительства линий электропередач | H17: Показатель замены силовых трансформаторов | J17: Показатель замены линий электропередач | L17: Показатель замены силовых трансформаторов | N17: Показатель замены линий электропередач | P17: Наименование количественного показателя, соответствующего цели | R17: Наименование количественного показателя, соответствующего цели | T17: Наименование количественного показателя, соответствующего цели | V17: Наименование количественного показателя, соответствующего цели | X17: Показатель объема финансовых потребностей | Z17: Наименование количественного показателя, соответствующего цели | AB17: Показатель объема финансовых потребностей | AD17: Наименование количественного показателя, соответствующего цели
D18: План | E18: факт | F18: План | G18: факт | H18: План | I18: факт | J18: План | K18: факт | L18: План | M18: факт | N18: План | O18: факт | P18: План | Q18: факт | R18: План | S18: факт | T18: План | U18: факт | V18: План | W18: факт | X18: План | Y18: факт | Z18: План | AA18: факт | AB18: План | AC18: факт | AD18: План | AE18: факт
A19: 1 | B19: 2 | C19: 3 | D19: 4.1 | E19: 4.2 | F19: 4.3 | G19: 4.4 | H19: 5.1 | I19: 5.2 | J19: 5.3 | K19: 5.4 | L19: 6.1 | M19: 6.2 | N19: 6.3 | O19: 6.4 | P19: 7.1 | Q19: 7.2 | R19: 7.3 | S19: 7.4 | T19: 8.1 | U19: 8.2 | V19: 8.3 | W19: 8.4 | X19: 9.1 | Y19: 9.2 | Z19: 9.3 | AA19: 9.4 | AB19: 10.1 | AC19: 10.2 | AD19: 10.3 | AE19: 10.4
A20: 0 | B20: ВСЕГО по инвестиционной программе, в том числе:
A21: 0.2 | B21: Реконструкция, модернизация, техническое перевооружение, всего
A22: 0.3 | B22: Инвестиционные проекты, реализация которых обуславливается схемами и программами перспективного развития электроэнергетики, всего
A23: 0.6 | B23: Прочие инвестиционные проекты, всего
A24: 1 | B24: Свердловская область
A25: 1.2 | B25: Реконструкция, модернизация, техническое перевооружение всего, в том числе:
A26: 1.2.1 | B26: Реконструкция, модернизация, техническое перевооружение трансформаторных и иных подстанций, распределительных пунктов, всего, в том числе:
A27: 1.2.1.1 | B27: Реконструкция трансформаторных и иных подстанций, всего, в том числе:
A28: 1.2.1.2 | B28: Модернизация, техническое перевооружение трансформаторных и иных подстанций, распределительных пунктов, всего, в том числе:
A29: 1.2.2 | B29: Реконструкция, модернизация, техническое перевооружение линий электропередачи, всего, в том числе:
A30: 1.2.2.1 | B30: Реконструкция линий электропередачи, всего, в том числе:
A31: 1.2.2.1 | B31: Реконструкция ВЛ-6 кВ ПС Басьяновка, г. Верхняя Салда | J31: 8 км
A32: 1.2.3 | B32: Развитие и модернизация учета электрической энергии (мощности), всего, в том числе:
A33: 1.2.3.1 | B33: «Установка приборов учета, класс напряжения 0,22 (0,4) кВ, всего, в том числе:»
A34: 1.2.3.1 | B34: Развитие системы АИИСКУЭ в сетях 0,4 кВ, г. Верхняя Салда
A35: 1.6 | B35: Прочие инвестиционные проекты, всего, в том числе:
A36: 1.6 | B36: Развитие системы АИИСКУЭ в сетях 6/10 кВ, г. Верхняя Салда | X36: 1198,145 тыс.руб.
A37: 1.6 | B37: Установка реклоузеров, г. Верхняя Салда | X37: 2763,864 тыс.руб.

Sheet 1,3
AS1: Приложение № 1
AS2: к приказу Минэнерго России
AS3: от «__» _____ 2016 г. №___
A4: Форма 1. Перечни инвестиционных проектов
A5: на год 2023
A7: Инвестиционная программа АО "ВЭС"
A8: полное наименование субъекта электроэнергетики
A10: Год раскрытия информации: 2020 год
A12: Утвержденные плановые значения показателей приведены в соответствии с ______________________________________________________________________________
A13: реквизиты решения органа исполнительной власти, утвердившего инвестиционную программу
A15: Номер группы инвести-ционных проектов | B15: Наименование инвестиционного проекта (группы инвестиционных проектов) | C15: Идентифика-тор инвестицион-ного проекта | D15: Цели реализации инвестиционных проектов и плановые (фактические) значения количественных показателей, характеризующие достижение таких целей
D16: Развитие электрической сети/усиление существующей электрической сети, связанное с подключением новых потребителей | H16: Замещение (обновление) электрической сети/повышение экономической эффективности (мероприятия направленные на снижение эксплуатационных затрат) оказания услуг в сфере электроэнергетики | L16: Повышение надежности оказываемых услуг в сфере электроэнергетики | P16: Повышение качества оказываемых услуг в сфере электроэнергетики | T16: Выполнение требований законодательства Российской Федерации, предписаний органов исполнительной власти, регламентов рынков электрической энергии | X16: Обеспечение текущей деятельности в сфере электроэнергетики, в том числе развитие информационной инфраструктуры, хозяйственное обеспечение деятельности | AB16: Инвестиции, связанные с деятельностью, не относящейся к сфере электроэнергетики
D17: Показатель увеличения мощности силовых трансформаторов на подстанциях | F17: Показатель строительства линий электропередач | H17: Показатель замены силовых трансформаторов | J17: Показатель замены линий электропередач | L17: Показатель замены силовых трансформаторов | N17: Показатель замены линий электропередач | P17: Наименование количественного показателя, соответствующего цели | R17: Наименование количественного показателя, соответствующего цели | T17: Наименование количественного показателя, соответствующего цели | V17: Наименование количественного показателя, соответствующего цели | X17: Показатель объема финансовых потребностей | Z17: Наименование количественного показателя, соответствующего цели | AB17: Показатель объема финансовых потребностей | AD17: Наименование количественного показателя, соответствующего цели
D18: План | E18: факт | F18: План | G18: факт | H18: План | I18: факт | J18: План | K18: факт | L18: План | M18: факт | N18: План | O18: факт | P18: План | Q18: факт | R18: План | S18: факт | T18: План | U18: факт | V18: План | W18: факт | X18: План | Y18: факт | Z18: План | AA18: факт | AB18: План | AC18: факт | AD18: План | AE18: факт
A19: 1 | B19: 2 | C19: 3 | D19: 4.1 | E19: 4.2 | F19: 4.3 | G19: 4.4 | H19: 5.1 | I19: 5.2 | J19: 5.3 | K19: 5.4 | L19: 6.1 | M19: 6.2 | N19: 6.3 | O19: 6.4 | P19: 7.1 | Q19: 7.2 | R19: 7.3 | S19: 7.4 | T19: 8.1 | U19: 8.2 | V19: 8.3 | W19: 8.4 | X19: 9.1 | Y19: 9.2 | Z19: 9.3 | AA19: 9.4 | AB19: 10.1 | AC19: 10.2 | AD19: 10.3 | AE19: 10.4
A20: 0 | B20: ВСЕГО по инвестиционной программе, в том числе:
A21: 0.2 | B21: Реконструкция, модернизация, техническое перевооружение, всего
A22: 0.3 | B22: Инвестиционные проекты, реализация которых обуславливается схемами и программами перспективного развития электроэнергетики, всего
A23: 0.6 | B23: Прочие инвестиционные проекты, всего
A24: 1 | B24: Свердловская область
A25: 1.2 | B25: Реконструкция, модернизация, техническое перевооружение всего, в том числе:
A26: 1.2.1 | B26: Реконструкция, модернизация, техническое перевооружение трансформаторных и иных подстанций, распределительных пунктов, всего, в том числе:
A27: 1.2.1.1 | B27: Реконструкция трансформаторных и иных подстанций, всего, в том числе:
A28: 1.2.1.2 | B28: Модернизация, техническое перевооружение трансформаторных и иных подстанций, распределительных пунктов, всего, в том числе:
A29: 1.2.2 | B29: Реконструкция, модернизация, техническое перевооружение линий электропередачи, всего, в том числе:
A30: 1.2.2.1 | B30: Реконструкция линий электропередачи, всего, в том числе:
A31: 1.2.3 | B31: Развитие и модернизация учета электрической энергии (мощности), всего, в том числе:
A32: 1.2.3.1 | B32: «Установка приборов учета, класс напряжения 0,22 (0,4) кВ, всего, в том числе:»
A33: 1.2.3.1 | B33: Развитие системы АИИСКУЭ в сетях 0,4 кВ, г. Верхняя Салда
A34: 1.6 | B34: Прочие инвестиционные проекты, всего, в том числе:
A35: 1.6 | B35: Развитие системы АИИСКУЭ в сетях 6/10 кВ, г. Верхняя Салда | X35: 1437,774 тыс.руб.
A36: 1.6 | B36: Приобретение передвижной электротехнической лаборатории | X36: 3982,797 тыс.руб.
A37: 1.6 | B37: Реконструкция кровли теплой автостоянки для строительно- эксплуатационной техники, г. Верхняя Салда | X37: 4186,220 тыс.руб.

Sheet 1,4
AS1: Приложение № 1
AS2: к приказу Минэнерго России
AS3: от «__» _____ 2016 г. №___
A4: Форма 1. Перечни инвестиционных проектов
A5: на год 2024
A7: Инвестиционная программа АО "ВЭС"
A8: полное наименование субъекта электроэнергетики
A10: Год раскрытия информации: 2020 год
A12: Утвержденные плановые значения показателей приведены в соответствии с ______________________________________________________________________________
A13: реквизиты решения органа исполнительной власти, утвердившего инвестиционную программу
A15: Номер группы инвести-ционных проектов | B15: Наименование инвестиционного проекта (группы инвестиционных проектов) | C15: Идентифика-тор инвестицион-ного проекта | D15: Цели реализации инвестиционных проектов и плановые (фактические) значения количественных показателей, характеризующие достижение таких целей
D16: Развитие электрической сети/усиление существующей электрической сети, связанное с подключением новых потребителей | H16: Замещение (обновление) электрической сети/повышение экономической эффективности (мероприятия направленные на снижение эксплуатационных затрат) оказания услуг в сфере электроэнергетики | L16: Повышение надежности оказываемых услуг в сфере электроэнергетики | P16: Повышение качества оказываемых услуг в сфере электроэнергетики | T16: Выполнение требований законодательства Российской Федерации, предписаний органов исполнительной власти, регламентов рынков электрической энергии | X16: Обеспечение текущей деятельности в сфере электроэнергетики, в том числе развитие информационной инфраструктуры, хозяйственное обеспечение деятельности | AB16: Инвестиции, связанные с деятельностью, не относящейся к сфере электроэнергетики
D17: Показатель увеличения мощности силовых трансформаторов на подстанциях | F17: Показатель строительства линий электропередач | H17: Показатель замены силовых трансформаторов | J17: Показатель замены линий электропередач | L17: Показатель замены силовых трансформаторов | N17: Показатель замены линий электропередач | P17: Наименование количественного показателя, соответствующего цели | R17: Наименование количественного показателя, соответствующего цели | T17: Наименование количественного показателя, соответствующего цели | V17: Наименование количественного показателя, соответствующего цели | X17: Показатель объема финансовых потребностей | Z17: Наименование количественного показателя, соответствующего цели | AB17: Показатель объема финансовых потребностей | AD17: Наименование количественного показателя, соответствующего цели
D18: План | E18: факт | F18: План | G18: факт | H18: План | I18: факт | J18: План | K18: факт | L18: План | M18: факт | N18: План | O18: факт | P18: План | Q18: факт | R18: План | S18: факт | T18: План | U18: факт | V18: План | W18: факт | X18: План | Y18: факт | Z18: План | AA18: факт | AB18: План | AC18: факт | AD18: План | AE18: факт
A19: 1 | B19: 2 | C19: 3 | D19: 4.1 | E19: 4.2 | F19: 4.3 | G19: 4.4 | H19: 5.1 | I19: 5.2 | J19: 5.3 | K19: 5.4 | L19: 6.1 | M19: 6.2 | N19: 6.3 | O19: 6.4 | P19: 7.1 | Q19: 7.2 | R19: 7.3 | S19: 7.4 | T19: 8.1 | U19: 8.2 | V19: 8.3 | W19: 8.4 | X19: 9.1 | Y19: 9.2 | Z19: 9.3 | AA19: 9.4 | AB19: 10.1 | AC19: 10.2 | AD19: 10.3 | AE19: 10.4
A20: 0 | B20: ВСЕГО по инвестиционной программе, в том числе:
A21: 0.2 | B21: Реконструкция, модернизация, техническое перевооружение, всего
A22: 0.3 | B22: Инвестиционные проекты, реализация которых обуславливается схемами и программами перспективного развития электроэнергетики, всего
A23: 0.6 | B23: Прочие инвестиционные проекты, всего
A24: 1 | B24: Свердловская область
A25: 1.2 | B25: Реконструкция, модернизация, техническое перевооружение всего, в том числе:
A26: 1.2.1 | B26: Реконструкция, модернизация, техническое перевооружение трансформаторных и иных подстанций, распределительных пунктов, всего, в том числе:
A27: 1.2.1.1 | B27: Реконструкция трансформаторных и иных подстанций, всего, в том числе:
A28: 1.2.1.1 | B28: Установка КТПн 250кВА в п. Тагильский | H28: 0,25 МВА
A29: 1.2.1.1 | B29: Установка КТПн 400кВА в г. Верхняя Салда | H29: 0,4 МВА
A30: 1.2.1.2 | B30: Модернизация, техническое перевооружение трансформаторных и иных подстанций, распределительных пунктов, всего, в том числе:
A31: 1.2.1.2 | B31: Ретрофит ячеек 6-10 кВ в РП, ТП, г. Верхняя Салда
A32: 1.2.2 | B32: Реконструкция, модернизация, техническое перевооружение линий электропередачи, всего, в том числе:
A33: 1.2.2.1 | B33: Реконструкция линий электропередачи, всего, в том числе:
A34: 1.2.3 | B34: Развитие и модернизация учета электрической энергии (мощности), всего, в том числе:
A35: 1.2.3.1 | B35: «Установка приборов учета, класс напряжения 0,22 (0,4) кВ, всего, в том числе:»
A36: 1.2.3.1 | B36: Развитие системы АИИСКУЭ в сетях 6/10 кВ, г. Верхняя Салда
A37: 1.6 | B37: Прочие инвестиционные проекты, всего, в том числе:

Sheet 2
S1: Приложение № 2
S2: к приказу Минэнерго России
S3: от «__» _____ 2016 г. №___
A4: Форма 2. План финансирования капитальных вложений по инвестиционным проектам
A6: Инвестиционная программа АО "ВЭС"
A7: полное наименование субъекта электроэнергетики
A9: Год раскрытия информации: 2020 год
A11: Утвержденные плановые значения показателей приведены в соответствии с ______________________________________________________________________________
A12: реквизиты решения органа исполнительной власти, утвердившего инвестиционную программу
A14: Номер группы инвести-ционных проектов | B14: Наименование инвестиционного проекта (группы инвестиционных проектов) | C14: Идентификатор инвестицион-ного проекта | D14: Текущая стадия реализации инвестиционного проекта | E14: Год начала реализации инвестиционного проекта | F14: Год окончания реализации инвестицион-ного проекта | G14: Полная сметная стоимость инвестиционного проекта в соответствии с утвержденной проектной документацией | J14: Размер платы за технологическое присоединение (подключение), млн рублей | K14: Фактический объем финансирования на 01.01.2020 года, млн рублей (с НДС) | L14: Оценка полной стоимости инвестиционного проекта в соответствии с укрупненными нормативами цены типовых технологических решений капитального строительства объектов электроэнергетики | N14: Оценка полной стоимости инвестиционного проекта в прогнозных ценах соответствующих лет, млн рублей (с НДС) | O14: Финансирование капитальных вложений 2020 года в прогнозных ценах, млн рублей (с НДС) | T14: Финансирование капитальных вложений в прогнозных ценах соответствующих лет, млн рублей (с НДС) | AS14: Краткое обоснование корректировки утвержденного плана
G15: План | L15: План | O15: План | T15: План 2021 года | Y15: План 2022 года | AD15: План 2023 года | AI15: План 2024 года | AN15: Итого план
F16: План | G16: в базисном уровне цен, млн рублей (с НДС) | H16: в ценах, сложившихся ко времени составления сметной документации, млн рублей (с НДС) | I16: месяц и год составления сметной документации | L16: в текущих ценах, млн рублей (с НДС) | M16: в прогнозных ценах соответствующих лет, млн рублей (с НДС) | N16: План | O16: Общий объем финансирования, в том числе за счет: | P16: федерального бюджета | Q16: бюджетов субъектов Российской Федерации и муниципальных образований | R16: средств, полученных от оказания услуг, реализации товаров по регулируемым государством ценам (тарифам) | S16: иных источников финансирования | T16: Общий объем финансирования, в том числе за счет: | U16: федерального бюджета | V16: бюджетов субъектов Российской Федерации и муниципальных образований | W16: средств, полученных от оказания услуг, реализации товаров по регулируемым государством ценам (тарифам) | X16: иных источников финансирования | Y16: Общий объем финансирования, в том числе за счет: | Z16: федерального бюджета | AA16: бюджетов субъектов Российской Федерации и муниципальных образований | AB16: средств, полученных от оказания услуг, реализации товаров по регулируемым государством ценам (тарифам) | AC16: иных источников финансирования | AD16: Общий объем финансирования, в том числе за счет: | AE16: федерального бюджета | AF16: бюджетов субъектов Российской Федерации и муниципальных образований | AG16: средств, полученных от оказания услуг, реализации товаров по регулируемым государством ценам (тарифам) | AH16: иных источников финансирования | AI16: Общий объем финансирования, в том числе за счет: | AJ16: федерального бюджета | AK16: бюджетов субъектов Российской Федерации и муниципальных образований | AL16: средств, полученных от оказания услуг, реализации товаров по регулируемым государством ценам (тарифам) | AM16: иных источников финансирования | AN16: Общий объем финансирования, в том числе за счет: | AO16: федерального бюджета | AP16: бюджетов субъектов Российской Федерации и муниципальных образований | AQ16: средств, полученных от оказания услуг, реализации товаров по регулируемым государством ценам (тарифам) | AR16: иных источников финансирования
A17: 1 | B17: 2 | C17: 3 | D17: 4 | E17: 5 | F17: 6 | G17: 8 | H17: 9 | I17: 10 | J17: 14 | K17: 15 | L17: 16.1 | M17: 16.2 | N17: 17 | O17: 22 | P17: 23 | Q17: 24 | R17: 25 | S17: 26 | T17: 32.1 | U17: 32.2 | V17: 32.3 | W17: 32.4 | X17: 32.5 | Y17: 32.6 | Z17: 32.7 | AA17: 32.8 | AB17: 32.9 | AC17: 32.10 | AD17: 32.11 | AE17: 32.12 | AF17: 32.13 | AG17: 32.14 | AH17: 32.15 | AI17: 32.16 | AJ17: 32.17 | AK17: 32.18 | AL17: 32.19 | AM17: 32.20 | AN17: 33 | AO17: 34 | AP17: 35 | AQ17: 36 | AR17: 37 | AS17: 43
A18: 0 | B18: ВСЕГО по инвестиционной программе, в том числе: | G18: =G19+G20+G21 -> 0 | H18: =H19+H20+H21 -> 77.137 | I18: 0 | J18: 0 | K18: 0 | L18: 0 | M18: 0 | N18: 0 | O18: 0 | P18: 0 | Q18: 0 | R18: =R19+R20+R21 -> 0 | S18: 0 | T18: 19.299 | U18: 0 | V18: 0 | W18: 19.299 | X18: 0 | Y18: 19.285 | Z18: 0 | AA18: 0 | AB18: 19.285 | AC18: 0 | AD18: 19.282 | AE18: 0 | AF18: 0 | AG18: 19.282 | AH18: 0 | AI18: 19.271 | AJ18: 0 | AK18: 0 | AL18: 19.271 | AM18: 0 | AN18: =H18 -> 77.137 | AO18: 0 | AP18: 0 | AQ18: =AN18 -> 77.137 | AR18: 0
A19: 0.2 | B19: Реконструкция, модернизация, техническое перевооружение, всего | G19: =G23 -> 0 | H19: =H23 -> 55.768 | I19: 0 | J19: 0 | K19: 0 | L19: 0 | M19: 0 | N19: 0 | O19: 0 | P19: 0 | Q19: 0 | R19: 0 | S19: 0 | T19: 14.212 | U19: 0 | V19: 0 | W19: 14.212 | X19: 0 | Y19: 14.53 | Z19: 0 | AA19: 0 | AB19: 14.53 | AC19: 0 | AD19: 7.755 | AE19: 0 | AF19: 0 | AG19: 7.755 | AH19: 0 | AI19: 19.271 | AJ19: 0 | AK19: 0 | AL19: 19.271 | AM19: 0 | AN19: =H19 -> 55.768 | AO19: 0 | AP19: 0 | AQ19: =AN19 -> 55.768 | AR19: 0
A20: 0.3 | B20: Инвестиционные проекты, реализация которых обуславливается схемами и программами перспективного развития электроэнергетики, всего | AN20: 0 | AQ20: 0
A21: 0.6 | B21: Прочие инвестиционные проекты, всего | G21: =G41 -> 0 | H21: =H41 -> 21.369 | I21: 0 | J21: 0 | K21: 0 | L21: 0 | M21: 0 | N21: 0 | O21: 0 | P21: 0 | Q21: 0 | R21: 0 | S21: 0 | T21: 5.087 | U21: 0 | V21: 0 | W21: 5.087 | X21: 0 | Y21: 4.755 | Z21: 0 | AA21: 0 | AB21: 4.755 | AC21: 0 | AD21: 11.527 | AE21: 0 | AF21: 0 | AG21: 11.527 | AH21: 0 | AI21: 0 | AJ21: 0 | AK21: 0 | AL21: 0 | AM21: 0 | AN21: 21.369 | AO21: 0 | AP21: 0 | AQ21: 21.369 | AR21: 0
A22: 1 | B22: Свердловская область | G22: =G23+G41 -> 0 | H22: 77.137 | I22: 0 | J22: 0 | K22: 0 | L22: 0 | M22: 0 | N22: 0 | O22: 0 | P22: 0 | Q22: 0 | R22: 0 | S22: 0 | T22: 19.299 | U22: 0 | V22: 0 | W22: 19.299 | X22: 0 | Y22: 19.285 | Z22: 0 | AA22: 0 | AB22: 19.285 | AC22: 0 | AD22: 19.282 | AE22: 0 | AF22: 0 | AG22: 19.282 | AH22: 0 | AI22: 19.271 | AJ22: 0 | AK22: 0 | AL22: 19.271 | AM22: 0 | AN22: =H22 -> 77.137 | AO22: 0 | AP22: 0 | AQ22: =AN22 -> 77.137 | AR22: 0
A23: 1.2 | B23: Реконструкция, модернизация, техническое перевооружение всего, в том числе: | G23: =G24+G31+G35 -> 0 | H23: 55.768 | I23: 0 | J23: 0 | K23: 0 | L23: 0 | M23: 0 | N23: 0 | O23: 0 | P23: 0 | Q23: 0 | R23: 0 | S23: 0 | T23: 14.212 | U23: 0 | V23: 0 | W23: 14.212 | X23: 0 | Y23: 14.53 | Z23: 0 | AA23: 0 | AB23: 14.53 | AC23: 0 | AD23: 7.755 | AE23: 0 | AF23: 0 | AG23: 7.755 | AH23: 0 | AI23: 19.271 | AJ23: 0 | AK23: 0 | AL23: 19.271 | AM23: 0 | AN23: =H23 -> 55.768 | AO23: 0 | AP23: 0 | AQ23: =AN23 -> 55.768 | AR23: 0
A24: 1.2.1 | B24: Реконструкция, модернизация, техническое перевооружение трансформаторных и иных подстанций, распределительных пунктов, всего, в том числе: | G24: =G25+G29 -> 0 | H24: 12.191 | I24: 0 | J24: 0 | K24: 0 | L24: 0 | M24: 0 | N24: 0 | O24: 0 | P24: 0 | Q24: 0 | R24: 0 | S24: 0 | T24: 2.887 | U24: 0 | V24: 0 | W24: 2.887 | X24: 0 | Y24: 0 | Z24: 0 | AA24: 0 | AB24: 0 | AC24: 0 | AD24: 0 | AE24: 0 | AF24: 0 | AG24: 0 | AH24: 0 | AI24: 9.304 | AJ24: 0 | AK24: 0 | AL24: 9.304 | AM24: 0 | AN24: =H24 -> 12.191 | AO24: 0 | AP24: 0 | AQ24: =AN24 -> 12.191 | AR24: 0
A25: 1.2.1.1 | B25: Реконструкция трансформаторных и иных подстанций, всего, в том числе: | G25: =SUMIF(OFFSET($A25,1,0):$A710,$A25,OFFSET(G25,1,0):G710) -> 0 | H25: =SUMIF(OFFSET($A25,1,0):$A710,$A25,OFFSET(H25,1,0):H710) -> 4.983 | K25: =SUMIF(OFFSET($A25,1,0):$A710,$A25,OFFSET(K25,1,0):K710) -> 0 | L25: =SUMIF(OFFSET($A25,1,0):$A710,$A25,OFFSET(L25,1,0):L710) -> 0 | M25: =SUMIF(OFFSET($A25,1,0):$A710,$A25,OFFSET(M25,1,0):M710) -> 0 | N25: =SUMIF(OFFSET($A25,1,0):$A710,$A25,OFFSET(N25,1,0):N710) -> 0 | O25: =SUMIF(OFFSET($A25,1,0):$A710,$A25,OFFSET(O25,1,0):O710) -> 0 | P25: =SUMIF(OFFSET($A25,1,0):$A710,$A25,OFFSET(P25,1,0):P710) -> 0 | Q25: =SUMIF(OFFSET($A25,1,0):$A710,$A25,OFFSET(Q25,1,0):Q710) -> 0 | R25: =SUMIF(OFFSET($A25,1,0):$A710,$A25,OFFSET(R25,1,0):R710) -> 0 | S25: =SUMIF(OFFSET($A25,1,0):$A710,$A25,OFFSET(S25,1,0):S710) -> 0 | T25: =SUMIF(OFFSET($A25,1,0):$A710,$A25,OFFSET(T25,1,0):T710) -> 2.887 | U25: =SUMIF(OFFSET($A25,1,0):$A710,$A25,OFFSET(U25,1,0):U710) -> 0 | V25: =SUMIF(OFFSET($A25,1,0):$A710,$A25,OFFSET(V25,1,0):V710) -> 0 | W25: =SUMIF(OFFSET($A25,1,0):$A710,$A25,OFFSET(W25,1,0):W710) -> 2.887 | X25: =SUMIF(OFFSET($A25,1,0):$A710,$A25,OFFSET(X25,1,0):X710) -> 0 | Y25: =SUMIF(OFFSET($A25,1,0):$A710,$A25,OFFSET(Y25,1,0):Y710) -> 0 | Z25: =SUMIF(OFFSET($A25,1,0):$A710,$A25,OFFSET(Z25,1,0):Z710) -> 0 | AA25: =SUMIF(OFFSET($A25,1,0):$A710,$A25,OFFSET(AA25,1,0):AA710) -> 0 | AB25: =SUMIF(OFFSET($A25,1,0):$A710,$A25,OFFSET(AB25,1,0):AB710) -> 0 | AC25: =SUMIF(OFFSET($A25,1,0):$A710,$A25,OFFSET(AC25,1,0):AC710) -> 0 | AD25: =SUMIF(OFFSET($A25,1,0):$A710,$A25,OFFSET(AD25,1,0):AD710) -> 0 | AE25: =SUMIF(OFFSET($A25,1,0):$A710,$A25,OFFSET(AE25,1,0):AE710) -> 0 | AF25: =SUMIF(OFFSET($A25,1,0):$A710,$A25,OFFSET(AF25,1,0):AF710) -> 0 | AG25: =SUMIF(OFFSET($A25,1,0):$A710,$A25,OFFSET(AG25,1,0):AG710) -> 0 | AH25: =SUMIF(OFFSET($A25,1,0):$A710,$A25,OFFSET(AH25,1,0):AH710) -> 0 | AI25: =SUMIF(OFFSET($A25,1,0):$A710,$A25,OFFSET(AI25,1,0):AI710) -> 2.096 | AJ25: =SUMIF(OFFSET($A25,1,0):$A710,$A25,OFFSET(AJ25,1,0):AJ710) -> 0 | AK25: =SUMIF(OFFSET($A25,1,0):$A710,$A25,OFFSET(AK25,1,0):AK710) -> 0 | AL25: =SUMIF(OFFSET($A25,1,0):$A710,$A25,OFFSET(AL25,1,0):AL710) -> 2.096 | AM25: =SUMIF(OFFSET($A25,1,0):$A710,$A25,OFFSET(AM25,1,0):AM710) -> 0 | AN25: =H25 -> 4.983 | AO25: =SUMIF(OFFSET($A25,1,0):$A710,$A25,OFFSET(AO25,1,0):AO710) -> 0 | AP25: =SUMIF(OFFSET($A25,1,0):$A710,$A25,OFFSET(AP25,1,0):AP710) -> 0 | AQ25: =AN25 -> 4.983 | AR25: =SUMIF(OFFSET($A25,1,0):$A710,$A25,OFFSET(AR25,1,0):AR710) -> 0
A26: 1.2.1.1 | B26: Реконструкция ТП-7011, ТП-1072, ТП-1017, ТП-1078, г. Верхняя Салда | D26: С | E26: 2021 | F26: 2021 | H26: 2.887 | I26: 2019-12-01 | K26: =L26 -> 0 | T26: 2.887 | W26: 2.887 | Y26: =SUM(Z26:AC26) -> 0 | AB26: 0 | AD26: =SUM(AE26:AH26) -> 0 | AG26: 0 | AI26: =SUM(AJ26:AM26) -> 0 | AL26: 0 | AN26: =H26 -> 2.887 | AQ26: =AN26 -> 2.887
A27: 1.2.1.1 | B27: Установка КТПн 250кВА в п. Тагильский | D27: С | E27: 2024 | F27: 2024 | H27: 1.048 | I27: 2019-12-01 | K27: =L27 -> 0 | O27: =SUM(P27:S27) -> 0 | T27: =SUM(U27:X27) -> 0 | W27: 0 | Y27: =SUM(Z27:AC27) -> 0 | AB27: 0 | AI27: =SUM(AJ27:AM27) -> 1.048 | AL27: 1.048 | AN27: 1.048 | AQ27: 1.048
A28: 1.2.1.1 | B28: Установка КТПн 400кВА в г. Верхняя Салда | D28: С | E28: 2024 | F28: 2024 | H28: 1.048 | I28: 2019-12-01 | K28: =L28 -> 0 | T28: =SUM(U28:X28) -> 0 | W28: 0 | Y28: =SUM(Z28:AC28) -> 0 | AB28: 0 | AD28: =SUM(AE28:AH28) -> 0 | AG28: 0 | AI28: =SUM(AJ28:AM28) -> 1.048 | AL28: 1.048 | AN28: 1.048 | AQ28: 1.048
A29: 1.2.1.2 | B29: Модернизация, техническое перевооружение трансформаторных и иных подстанций, распределительных пунктов, всего, в том числе: | G29: =SUMIF(OFFSET($A29,1,0):$A847,$A29,OFFSET(G29,1,0):G847) -> 0 | H29: =SUMIF(OFFSET($A29,1,0):$A847,$A29,OFFSET(H29,1,0):H847) -> 7.208 | K29: =SUMIF(OFFSET($A29,1,0):$A847,$A29,OFFSET(K29,1,0):K847) -> 0 | L29: =SUMIF(OFFSET($A29,1,0):$A847,$A29,OFFSET(L29,1,0):L847) -> 0 | M29: =SUMIF(OFFSET($A29,1,0):$A847,$A29,OFFSET(M29,1,0):M847) -> 0 | N29: =SUMIF(OFFSET($A29,1,0):$A847,$A29,OFFSET(N29,1,0):N847) -> 0 | O29: =SUMIF(OFFSET($A29,1,0):$A847,$A29,OFFSET(O29,1,0):O847) -> 0 | P29: =SUMIF(OFFSET($A29,1,0):$A847,$A29,OFFSET(P29,1,0):P847) -> 0 | Q29: =SUMIF(OFFSET($A29,1,0):$A847,$A29,OFFSET(Q29,1,0):Q847) -> 0 | R29: =SUMIF(OFFSET($A29,1,0):$A847,$A29,OFFSET(R29,1,0):R847) -> 0 | S29: =SUMIF(OFFSET($A29,1,0):$A847,$A29,OFFSET(S29,1,0):S847) -> 0 | T29: =SUMIF(OFFSET($A29,1,0):$A847,$A29,OFFSET(T29,1,0):T847) -> 0 | U29: =SUMIF(OFFSET($A29,1,0):$A847,$A29,OFFSET(U29,1,0):U847) -> 0 | V29: =SUMIF(OFFSET($A29,1,0):$A847,$A29,OFFSET(V29,1,0):V847) -> 0 | W29: =SUMIF(OFFSET($A29,1,0):$A847,$A29,OFFSET(W29,1,0):W847) -> 0 | X29: =SUMIF(OFFSET($A29,1,0):$A847,$A29,OFFSET(X29,1,0):X847) -> 0 | Y29: =SUMIF(OFFSET($A29,1,0):$A847,$A29,OFFSET(Y29,1,0):Y847) -> 0 | Z29: =SUMIF(OFFSET($A29,1,0):$A847,$A29,OFFSET(Z29,1,0):Z847) -> 0 | AA29: =SUMIF(OFFSET($A29,1,0):$A847,$A29,OFFSET(AA29,1,0):AA847) -> 0 | AB29: =SUMIF(OFFSET($A29,1,0):$A847,$A29,OFFSET(AB29,1,0):AB847) -> 0 | AC29: =SUMIF(OFFSET($A29,1,0):$A847,$A29,OFFSET(AC29,1,0):AC847) -> 0 | AD29: =SUMIF(OFFSET($A29,1,0):$A847,$A29,OFFSET(AD29,1,0):AD847) -> 0 | AE29: =SUMIF(OFFSET($A29,1,0):$A847,$A29,OFFSET(AE29,1,0):AE847) -> 0 | AF29: =SUMIF(OFFSET($A29,1,0):$A847,$A29,OFFSET(AF29,1,0):AF847) -> 0 | AG29: =SUMIF(OFFSET($A29,1,0):$A847,$A29,OFFSET(AG29,1,0):AG847) -> 0 | AH29: =SUMIF(OFFSET($A29,1,0):$A847,$A29,OFFSET(AH29,1,0):AH847) -> 0 | AI29: =SUMIF(OFFSET($A29,1,0):$A847,$A29,OFFSET(AI29,1,0):AI847) -> 7.208 | AJ29: =SUMIF(OFFSET($A29,1,0):$A847,$A29,OFFSET(AJ29,1,0):AJ847) -> 0 | AK29: =SUMIF(OFFSET($A29,1,0):$A847,$A29,OFFSET(AK29,1,0):AK847) -> 0 | AL29: =SUMIF(OFFSET($A29,1,0):$A847,$A29,OFFSET(AL29,1,0):AL847) -> 7.208 | AM29: =SUMIF(OFFSET($A29,1,0):$A847,$A29,OFFSET(AM29,1,0):AM847) -> 0 | AN29: 7.208 | AO29: =SUMIF(OFFSET($A29,1,0):$A847,$A29,OFFSET(AO29,1,0):AO847) -> 0 | AP29: =SUMIF(OFFSET($A29,1,0):$A847,$A29,OFFSET(AP29,1,0):AP847) -> 0 | AQ29: =SUMIF(OFFSET($A29,1,0):$A847,$A29,OFFSET(AQ29,1,0):AQ847) -> 7.208
A30: 1.2.1.2 | B30: Ретрофит ячеек 6-10 кВ в РП, ТП, г. Верхняя Салда | D30: С | E30: 2024 | F30: 2024 | G30: 0 | H30: 7.208 | I30: 2019-12-01 | K30: =L30 -> 0 | M30: 0 | T30: =SUM(U30:X30) -> 0 | W30: 0 | Y30: =SUM(Z30:AC30) -> 0 | AB30: 0 | AD30: =SUM(AE30:AH30) -> 0 | AG30: 0 | AI30: 7.208 | AL30: 7.208 | AN30: 7.208 | AQ30: =AL30+AG30+AB30+W30+R30 -> 7.208
A31: 1.2.2 | B31: Реконструкция, модернизация, техническое перевооружение линий электропередачи, всего, в том числе: | G31: =G32 -> 0 | H31: =H32 -> 7.767 | I31: 0 | J31: 0 | K31: 0 | L31: 0 | M31: 0 | N31: 0 | O31: 0 | P31: 0 | Q31: 0 | R31: 0 | S31: 0 | T31: 0.992 | U31: 0 | V31: 0 | W31: 0.992 | X31: 0 | Y31: 6.775 | Z31: 0 | AA31: 0 | AB31: 6.775 | AC31: 0 | AD31: 0 | AE31: 0 | AF31: 0 | AG31: 0 | AH31: 0 | AI31: 0 | AJ31: 0 | AK31: 0 | AL31: 0 | AM31: 0 | AN31: 7.767 | AO31: 0 | AP31: 0 | AQ31: 7.767
A32: 1.2.2.1 | B32: Реконструкция линий электропередачи, всего, в том числе: | G32: =SUMIF(OFFSET($A32,1,0):$A872,$A32,OFFSET(G32,1,0):G872) -> 0 | H32: =SUMIF(OFFSET($A32,1,0):$A872,$A32,OFFSET(H32,1,0):H872) -> 7.767 | J32: =SUMIF(OFFSET($A32,1,0):$A872,$A32,OFFSET(J32,1,0):J872) -> 0 | K32: =SUMIF(OFFSET($A32,1,0):$A872,$A32,OFFSET(K32,1,0):K872) -> 0 | L32: =SUMIF(OFFSET($A32,1,0):$A872,$A32,OFFSET(L32,1,0):L872) -> 0 | M32: =SUMIF(OFFSET($A32,1,0):$A872,$A32,OFFSET(M32,1,0):M872) -> 0 | N32: =SUMIF(OFFSET($A32,1,0):$A872,$A32,OFFSET(N32,1,0):N872) -> 0 | O32: =SUMIF(OFFSET($A32,1,0):$A872,$A32,OFFSET(O32,1,0):O872) -> 0 | P32: =SUMIF(OFFSET($A32,1,0):$A872,$A32,OFFSET(P32,1,0):P872) -> 0 | Q32: =SUMIF(OFFSET($A32,1,0):$A872,$A32,OFFSET(Q32,1,0):Q872) -> 0 | R32: =SUMIF(OFFSET($A32,1,0):$A872,$A32,OFFSET(R32,1,0):R872) -> 0 | S32: =SUMIF(OFFSET($A32,1,0):$A872,$A32,OFFSET(S32,1,0):S872) -> 0 | T32: =SUMIF(OFFSET($A32,1,0):$A872,$A32,OFFSET(T32,1,0):T872) -> 0.992 | U32: =SUMIF(OFFSET($A32,1,0):$A872,$A32,OFFSET(U32,1,0):U872) -> 0 | V32: =SUMIF(OFFSET($A32,1,0):$A872,$A32,OFFSET(V32,1,0):V872) -> 0 | W32: =SUMIF(OFFSET($A32,1,0):$A872,$A32,OFFSET(W32,1,0):W872) -> 0.992 | X32: =SUMIF(OFFSET($A32,1,0):$A872,$A32,OFFSET(X32,1,0):X872) -> 0 | Y32: =SUMIF(OFFSET($A32,1,0):$A872,$A32,OFFSET(Y32,1,0):Y872) -> 6.775 | Z32: =SUMIF(OFFSET($A32,1,0):$A872,$A32,OFFSET(Z32,1,0):Z872) -> 0 | AA32: =SUMIF(OFFSET($A32,1,0):$A872,$A32,OFFSET(AA32,1,0):AA872) -> 0 | AB32: =SUMIF(OFFSET($A32,1,0):$A872,$A32,OFFSET(AB32,1,0):AB872) -> 6.775 | AC32: =SUMIF(OFFSET($A32,1,0):$A872,$A32,OFFSET(AC32,1,0):AC872) -> 0 | AD32: =SUMIF(OFFSET($A32,1,0):$A872,$A32,OFFSET(AD32,1,0):AD872) -> 0 | AE32: =SUMIF(OFFSET($A32,1,0):$A872,$A32,OFFSET(AE32,1,0):AE872) -> 0 | AF32: =SUMIF(OFFSET($A32,1,0):$A872,$A32,OFFSET(AF32,1,0):AF872) -> 0 | AG32: =SUMIF(OFFSET($A32,1,0):$A872,$A32,OFFSET(AG32,1,0):AG872) -> 0 | AH32: =SUMIF(OFFSET($A32,1,0):$A872,$A32,OFFSET(AH32,1,0):AH872) -> 0 | AI32: =SUMIF(OFFSET($A32,1,0):$A872,$A32,OFFSET(AI32,1,0):AI872) -> 0 | AJ32: =SUMIF(OFFSET($A32,1,0):$A872,$A32,OFFSET(AJ32,1,0):AJ872) -> 0 | AK32: =SUMIF(OFFSET($A32,1,0):$A872,$A32,OFFSET(AK32,1,0):AK872) -> 0 | AL32: =SUMIF(OFFSET($A32,1,0):$A872,$A32,OFFSET(AL32,1,0):AL872) -> 0 | AM32: =SUMIF(OFFSET($A32,1,0):$A872,$A32,OFFSET(AM32,1,0):AM872) -> 0 | AN32: 7.767 | AO32: =SUMIF(OFFSET($A32,1,0):$A872,$A32,OFFSET(AO32,1,0):AO872) -> 0 | AP32: =SUMIF(OFFSET($A32,1,0):$A872,$A32,OFFSET(AP32,1,0):AP872) -> 0 | AQ32: =SUMIF(OFFSET($A32,1,0):$A872,$A32,OFFSET(AQ32,1,0):AQ872) -> 7.767
A33: 1.2.2.1 | B33: Реконструкция ВЛ-6 кВ ПС Басьяновка, г. Верхняя Салда | D33: П | E33: 2021 | F33: 2021 | H33: 0.992 | I33: 2019-12-01 | K33: =L33 -> 0 | O33: =SUM(P33:S33) -> 0 | R33: 0 | T33: 0.992 | W33: 0.992 | Y33: =SUM(Z33:AC33) -> 0 | AB33: 0 | AD33: =SUM(AE33:AH33) -> 0 | AG33: 0 | AI33: =SUM(AJ33:AM33) -> 0 | AL33: 0 | AN33: 0.992 | AQ33: =AL33+AG33+AB33+W33+R33 -> 0.992
A34: 1.2.2.1 | B34: Реконструкция ВЛ-6 кВ ПС Басьяновка, г. Верхняя Салда | D34: С | E34: 2022 | F34: 2022 | H34: 6.775 | I34: 2019-12-01 | K34: =L34 -> 0 | O34: =SUM(P34:S34) -> 0 | R34: 0 | Y34: =SUM(Z34:AC34) -> 6.775 | AB34: 6.775 | AD34: =SUM(AE34:AH34) -> 0 | AG34: 0 | AI34: =SUM(AJ34:AM34) -> 0 | AL34: 0 | AN34: 6.775 | AQ34: =AL34+AG34+AB34+W34+R34 -> 6.775
A35: 1.2.3 | B35: Развитие и модернизация учета электрической энергии (мощности), всего, в том числе: | H35: =H36 -> 35.81 | I35: =I36 -> 0 | J35: 0 | K35: 0 | L35: 0 | M35: 0 | N35: 0 | O35: 0 | P35: 0 | Q35: 0 | R35: 0 | S35: 0 | T35: 10.333 | U35: 0 | V35: 0 | W35: 10.333 | X35: 0 | Y35: 7.55 | Z35: 0 | AA35: 0 | AB35: 7.755 | AC35: 0 | AD35: 7.755 | AE35: 0 | AF35: 0 | AG35: 7.755 | AH35: 0 | AI35: 9.967 | AJ35: 0 | AK35: 0 | AL35: 9.967 | AM35: 0 | AN35: 35.81 | AO35: 0 | AP35: 0 | AQ35: =AN35 -> 35.81
A36: 1.2.3.1 | B36: «Установка приборов учета, класс напряжения 0,22 (0,4) кВ, всего, в том числе:» | G36: =SUMIF(OFFSET($A36,1,0):$A1018,$A36,OFFSET(G36,1,0):G1018) -> 0 | H36: =SUMIF(OFFSET($A36,1,0):$A1018,$A36,OFFSET(H36,1,0):H1018) -> 35.81 | J36: =SUMIF(OFFSET($A36,1,0):$A1018,$A36,OFFSET(J36,1,0):J1018) -> 0 | K36: =SUMIF(OFFSET($A36,1,0):$A1018,$A36,OFFSET(K36,1,0):K1018) -> 0 | L36: =SUMIF(OFFSET($A36,1,0):$A1018,$A36,OFFSET(L36,1,0):L1018) -> 0 | M36: =SUMIF(OFFSET($A36,1,0):$A1018,$A36,OFFSET(M36,1,0):M1018) -> 0 | N36: =SUMIF(OFFSET($A36,1,0):$A1018,$A36,OFFSET(N36,1,0):N1018) -> 0 | O36: =SUMIF(OFFSET($A36,1,0):$A1018,$A36,OFFSET(O36,1,0):O1018) -> 0 | P36: =SUMIF(OFFSET($A36,1,0):$A1018,$A36,OFFSET(P36,1,0):P1018) -> 0 | Q36: =SUMIF(OFFSET($A36,1,0):$A1018,$A36,OFFSET(Q36,1,0):Q1018) -> 0 | R36: =SUMIF(OFFSET($A36,1,0):$A1018,$A36,OFFSET(R36,1,0):R1018) -> 0 | S36: =SUMIF(OFFSET($A36,1,0):$A1018,$A36,OFFSET(S36,1,0):S1018) -> 0 | T36: =SUMIF(OFFSET($A36,1,0):$A1018,$A36,OFFSET(T36,1,0):T1018) -> 10.333 | U36: =SUMIF(OFFSET($A36,1,0):$A1018,$A36,OFFSET(U36,1,0):U1018) -> 0 | V36: =SUMIF(OFFSET($A36,1,0):$A1018,$A36,OFFSET(V36,1,0):V1018) -> 0 | W36: =SUMIF(OFFSET($A36,1,0):$A1018,$A36,OFFSET(W36,1,0):W1018) -> 10.333 | X36: =SUMIF(OFFSET($A36,1,0):$A1018,$A36,OFFSET(X36,1,0):X1018) -> 0 | Y36: =SUMIF(OFFSET($A36,1,0):$A1018,$A36,OFFSET(Y36,1,0):Y1018) -> 7.55 | Z36: =SUMIF(OFFSET($A36,1,0):$A1018,$A36,OFFSET(Z36,1,0):Z1018) -> 0 | AA36: =SUMIF(OFFSET($A36,1,0):$A1018,$A36,OFFSET(AA36,1,0):AA1018) -> 0 | AB36: =SUMIF(OFFSET($A36,1,0):$A1018,$A36,OFFSET(AB36,1,0):AB1018) -> 7.755 | AC36: =SUMIF(OFFSET($A36,1,0):$A1018,$A36,OFFSET(AC36,1,0):AC1018) -> 0 | AD36: 7.755 | AE36: =SUMIF(OFFSET($A36,1,0):$A1018,$A36,OFFSET(AE36,1,0):AE1018) -> 0 | AF36: =SUMIF(OFFSET($A36,1,0):$A1018,$A36,OFFSET(AF36,1,0):AF1018) -> 0 | AG36: =SUMIF(OFFSET($A36,1,0):$A1018,$A36,OFFSET(AG36,1,0):AG1018) -> 7.755 | AH36: =SUMIF(OFFSET($A36,1,0):$A1018,$A36,OFFSET(AH36,1,0):AH1018) -> 0 | AI36: 9.967 | AJ36: =SUMIF(OFFSET($A36,1,0):$A1018,$A36,OFFSET(AJ36,1,0):AJ1018) -> 0 | AK36: =SUMIF(OFFSET($A36,1,0):$A1018,$A36,OFFSET(AK36,1,0):AK1018) -> 0 | AL36: =SUMIF(OFFSET($A36,1,0):$A1018,$A36,OFFSET(AL36,1,0):AL1018) -> 9.967 | AM36: =SUMIF(OFFSET($A36,1,0):$A1018,$A36,OFFSET(AM36,1,0):AM1018) -> 0 | AN36: 35.81 | AO36: =SUMIF(OFFSET($A36,1,0):$A1018,$A36,OFFSET(AO36,1,0):AO1018) -> 0 | AP36: =SUMIF(OFFSET($A36,1,0):$A1018,$A36,OFFSET(AP36,1,0):AP1018) -> 0 | AQ36: =AN36 -> 35.81
A37: 1.2.3.1 | B37: Развитие системы АИИСКУЭ в сетях 0,4 кВ, г. Верхняя Салда | D37: С | E37: 2021 | F37: 2021 | H37: 10.333 | I37: 2019-12-01 | K37: =L37 -> 0 | M37: 0 | T37: 10.333 | W37: 10.333 | AN37: 10.333 | AQ37: =AN37 -> 10.333
A38: 1.2.3.1 | B38: Развитие системы АИИСКУЭ в сетях 0,4 кВ, г. Верхняя Салда | D38: С | E38: 2022 | F38: 2022 | H38: 7.755 | I38: 2019-12-01 | K38: =L38 -> 0 | M38: 0 | O38: =SUM(P38:S38) -> 0 | R38: 0 | T38: =SUM(U38:X38) -> 0 | W38: 0 | Y38: 7.55 | AB38: 7.755 | AN38: 7.755 | AQ38: =AN38 -> 7.755
A39: 1.2.3.1 | B39: Развитие системы АИИСКУЭ в сетях 0,4 кВ, г. Верхняя Салда | D39: С | E39: 2023 | F39: 2023 | H39: 7.755 | I39: 2019-12-01 | K39: =L39 -> 0 | M39: 0 | O39: =SUM(P39:S39) -> 0 | R39: 0 | T39: =SUM(U39:X39) -> 0 | W39: 0 | AD39: 7.755 | AG39: 7.755 | AN39: 7.755 | AQ39: 7.755
A40: 1.2.3.1 | B40: Развитие системы АИИСКУЭ в сетях 0,4 кВ, г. Верхняя Салда | D40: С | E40: 2024 | F40: 2024 | G40: 0 | H40: 9.967 | I40: 2019-12-01 | K40: =L40 -> 0 | M40: 0 | O40: =SUM(P40:S40) -> 0 | R40: 0 | T40: =SUM(U40:X40) -> 0 | W40: 0 | AI40: 9.967 | AL40: 9.967 | AN40: 9.967 | AQ40: 9.967
A41: 1.6 | B41: Прочие инвестиционные проекты, всего, в том числе: | G41: =SUMIF(OFFSET($A41,1,0):$A1020,$A41,OFFSET(G41,1,0):G1020) -> 0 | H41: =SUMIF(OFFSET($A41,1,0):$A1020,$A41,OFFSET(H41,1,0):H1020) -> 21.369 | J41: =SUMIF(OFFSET($A41,1,0):$A1020,$A41,OFFSET(J41,1,0):J1020) -> 0 | K41: =SUMIF(OFFSET($A41,1,0):$A1020,$A41,OFFSET(K41,1,0):K1020) -> 0 | L41: =SUMIF(OFFSET($A41,1,0):$A1020,$A41,OFFSET(L41,1,0):L1020) -> 0 | M41: =SUMIF(OFFSET($A41,1,0):$A1020,$A41,OFFSET(M41,1,0):M1020) -> 0 | N41: =SUMIF(OFFSET($A41,1,0):$A1020,$A41,OFFSET(N41,1,0):N1020) -> 0 | O41: =SUMIF(OFFSET($A41,1,0):$A1020,$A41,OFFSET(O41,1,0):O1020) -> 0 | P41: =SUMIF(OFFSET($A41,1,0):$A1020,$A41,OFFSET(P41,1,0):P1020) -> 0 | Q41: =SUMIF(OFFSET($A41,1,0):$A1020,$A41,OFFSET(Q41,1,0):Q1020) -> 0 | R41: =SUMIF(OFFSET($A41,1,0):$A1020,$A41,OFFSET(R41,1,0):R1020) -> 0 | S41: =SUMIF(OFFSET($A41,1,0):$A1020,$A41,OFFSET(S41,1,0):S1020) -> 0 | T41: =SUMIF(OFFSET($A41,1,0):$A1020,$A41,OFFSET(T41,1,0):T1020) -> 5.087 | U41: =SUMIF(OFFSET($A41,1,0):$A1020,$A41,OFFSET(U41,1,0):U1020) -> 0 | V41: =SUMIF(OFFSET($A41,1,0):$A1020,$A41,OFFSET(V41,1,0):V1020) -> 0 | W41: =SUMIF(OFFSET($A41,1,0):$A1020,$A41,OFFSET(W41,1,0):W1020) -> 5.087 | X41: =SUMIF(OFFSET($A41,1,0):$A1020,$A41,OFFSET(X41,1,0):X1020) -> 0 | Y41: =SUMIF(OFFSET($A41,1,0):$A1020,$A41,OFFSET(Y41,1,0):Y1020) -> 4.755 | Z41: =SUMIF(OFFSET($A41,1,0):$A1020,$A41,OFFSET(Z41,1,0):Z1020) -> 0 | AA41: =SUMIF(OFFSET($A41,1,0):$A1020,$A41,OFFSET(AA41,1,0):AA1020) -> 0 | AB41: =SUMIF(OFFSET($A41,1,0):$A1020,$A41,OFFSET(AB41,1,0):AB1020) -> 4.755 | AC41: =SUMIF(OFFSET($A41,1,0):$A1020,$A41,OFFSET(AC41,1,0):AC1020) -> 0 | AD41: =SUMIF(OFFSET($A41,1,0):$A1020,$A41,OFFSET(AD41,1,0):AD1020) -> 11.527 | AE41: =SUMIF(OFFSET($A41,1,0):$A1020,$A41,OFFSET(AE41,1,0):AE1020) -> 0 | AF41: =SUMIF(OFFSET($A41,1,0):$A1020,$A41,OFFSET(AF41,1,0):AF1020) -> 0 | AG41: =SUMIF(OFFSET($A41,1,0):$A1020,$A41,OFFSET(AG41,1,0):AG1020) -> 11.527 | AH41: =SUMIF(OFFSET($A41,1,0):$A1020,$A41,OFFSET(AH41,1,0):AH1020) -> 0 | AI41: =SUMIF(OFFSET($A41,1,0):$A1020,$A41,OFFSET(AI41,1,0):AI1020) -> 0 | AJ41: =SUMIF(OFFSET($A41,1,0):$A1020,$A41,OFFSET(AJ41,1,0):AJ1020) -> 0 | AK41: =SUMIF(OFFSET($A41,1,0):$A1020,$A41,OFFSET(AK41,1,0):AK1020) -> 0 | AL41: =SUMIF(OFFSET($A41,1,0):$A1020,$A41,OFFSET(AL41,1,0):AL1020) -> 0 | AM41: =SUMIF(OFFSET($A41,1,0):$A1020,$A41,OFFSET(AM41,1,0):AM1020) -> 0 | AN41: =H41 -> 21.369 | AO41: =SUMIF(OFFSET($A41,1,0):$A1020,$A41,OFFSET(AO41,1,0):AO1020) -> 0 | AP41: =SUMIF(OFFSET($A41,1,0):$A1020,$A41,OFFSET(AP41,1,0):AP1020) -> 0 | AQ41: =SUMIF(OFFSET($A41,1,0):$A1020,$A41,OFFSET(AQ41,1,0):AQ1020) -> 21.369 | AR41: =SUMIF(OFFSET($A41,1,0):$A1020,$A41,OFFSET(AR41,1,0):AR1020) -> 0
A42: 1.6 | B42: Развитие системы АИИСКУЭ в сетях 6/10 кВ, г. Верхняя Салда | D42: С | E42: 2021 | F42: 2021 | G42: 0 | H42: 2.876 | I42: 2019-12-01 | K42: =L42 -> 0 | M42: 0 | T42: 2.876 | W42: 2.876 | Y42: =SUM(Z42:AC42) -> 0 | AB42: 0 | AD42: =SUM(AE42:AH42) -> 0 | AG42: 0 | AI42: =SUM(AJ42:AM42) -> 0 | AL42: 0 | AN42: =H42 -> 2.876 | AQ42: =AN42 -> 2.876
A43: 1.6 | B43: Развитие системы АИИСКУЭ в сетях 6/10 кВ, г. Верхняя Салда | D43: С | E43: 2022 | F43: 2022 | G43: 0 | H43: 1.438 | I43: 2019-12-01 | K43: =L43 -> 0 | M43: 0 | Y43: =SUM(Z43:AC43) -> 1.438 | AB43: 1.438 | AD43: =SUM(AE43:AH43) -> 0 | AG43: 0 | AI43: =SUM(AJ43:AM43) -> 0 | AL43: 0 | AN43: =H43 -> 1.438 | AQ43: =AN43 -> 1.438
A44: 1.6 | B44: Развитие системы АИИСКУЭ в сетях 6/10 кВ, г. Верхняя Салда | D44: С | E44: 2023 | F44: 2023 | H44: 1.725 | I44: 2019-12-01 | AD44: 1.725 | AG44: 1.725 | AN44: 1.725 | AQ44: 1.725
A45: 1.6 | B45: Установка реклоузеров, г. Верхняя Салда | D45: С | E45: 2021 | F45: 2021 | H45: 2.211 | I45: 2019-12-01 | T45: 2.211 | W45: 2.211 | AN45: 2.211 | AQ45: 2.211
A46: 1.6 | B46: Установка реклоузеров, г. Верхняя Салда | D46: С | E46: 2022 | F46: 2022 | H46: 3.317 | I46: 2019-12-01 | Y46: 3.317 | AB46: 3.317 | AN46: 3.317 | AQ46: 3.317
A47: 1.6 | B47: Приобретение передвижной электротехнической лаборатории | D47: С | E47: 2023 | F47: 2023 | H47: 4.779 | I47: 2019-12-01 | AD47: 4.779 | AG47: 4.779 | AN47: 4.779 | AQ47: 4.779
A48: 1.6 | B48: Реконструкция кровли теплой автостоянки для строительно- эксплуатационной техники, г. Верхняя Салда | D48: С | E48: 2023 | F48: 2023 | G48: 0 | H48: 5.023 | I48: 2019-12-01 | M48: 0 | AD48: 5.023 | AG48: 5.023 | AN48: 5.023 | AQ48: 5.023

Sheet 3
AF1: Приложение № 3
AF2: к приказу Минэнерго России
AF3: от «__» _____ 2016 г. №___
A4: Форма 3. План освоения капитальных вложений по инвестиционным проектам
A6: Инвестиционная программа АО "ВЭС"
A7: полное наименование субъекта электроэнергетики
A9: Год раскрытия информации: 2019 год
A11: Утвержденные плановые значения показателей приведены в соответствии с ______________________________________________________________________________
A12: реквизиты решения органа исполнительной власти, утвердившего инвестиционную программу
A14: Номер группы инвести-ционных проектов | B14: Наименование инвестиционного проекта (группы инвестиционных проектов) | C14: Идентифика-тор инвестицион-ного проекта | D14: Текущая стадия реализации инвестиционного проекта | E14: Год начала реализации инвестиционного проекта | F14: Год окончания реализации инвестиционного проекта | G14: Полная сметная стоимость инвестиционного проекта в соответствии с утвержденной проектной документацией в базисном уровне цен, млн рублей (без НДС) | H14: Фактический объем финансирования на 01.01.2019 года, млн рублей | I14: Оценка полной стоимости в прогнозных ценах соответствующих лет, млн рублей (без НДС) | N14: Остаток освоения капитальных вложений, млн рублей (без НДС) | T14: Освоение капитальных вложений 2018 года в прогнозных ценах соответствующих лет, млн рублей (без НДС) | V14: Освоение капитальных вложений в прогнозных ценах соответствующих лет, млн рублей (без НДС) | AF14: Краткое обоснование корректировки утвержденного плана
I15: План | N15: План на 01.01.2019 года | P15: План на 01.01.2020 года | R15: Предложение по корректировке утвержденного плана на 01.01.года X | V15: 2021 год | X15: 2022 год | Z15: 2023 год | AB15: 2024 год | AD15: Итого за период реализации инвестиционной программы, план | AE15: Итого за период реализации инвестиционной программы
F16: План | G16: План | I16: Всего, в т.ч.: | J16: проектно-изыскательские работы | K16: строительные работы, реконструкция, монтаж оборудования | L16: оборудование | M16: прочие затраты | N16: в базисном уровне цен | O16: в прогнозных ценах соответствующих лет | P16: в базисном уровне цен | Q16: в прогнозных ценах соответствующих лет | R16: в базисном уровне цен | S16: в прогнозных ценах соответствующих лет | T16: План | U16: Факт | V16: План | W16: Факт | X16: План | Y16: Факт | Z16: План | AA16: Факт | AB16: План | AC16: Факт
A17: 1 | B17: 2 | C17: 3 | D17: 4 | E17: 5 | F17: 6 | G17: 8 | H17: 10 | I17: 11 | J17: 12 | K17: 13 | L17: 14 | M17: 15 | N17: 21 | O17: 22 | P17: 23 | Q17: 24 | R17: 25 | S17: 26 | T17: 27 | U17: 28 | V17: 29.1 | W17: 29.2 | X17: 29.3 | Y17: 29.4 | Z17: 29.5 | AA17: 29.6 | AB17: 29.7 | AC17: 29.8 | AD17: 30 | AE17: 31 | AF17: 32
A18: 0 | B18: ВСЕГО по инвестиционной программе, в том числе: | G18: =G19+G20+G21 ->  | M18: =M19+M20+M21 -> 0 | N18: 0 | O18: 0 | Q18: 64.282 | R18: =R19+R20+R21 -> 0 | S18: =S19+S20+S21 -> 0 | T18: =T19+T20+T21 -> 0 | U18: 0 | V18: =V19+V20+V21 -> 16.907 | W18: =W19+W20+W21 -> 0 | X18: 16.07 | Y18: =Y19+Y20+Y21 -> 0 | Z18: 16.07 | AA18: =AA19+AA20+AA21 -> 0 | AB18: 16.059 | AC18: =AC19+AC20+AC21 -> 0 | AD18: 64.282 | AE18: =AE19+AE20+AE21 -> 0
A19: 0.2 | B19: Реконструкция, модернизация, техническое перевооружение, всего | G19: =G23 ->  | M19: =M23 -> 0 | N19: 0 | O19: 0 | Q19: 46.472 | R19: =R23 -> 0 | S19: =S23 -> 0 | T19: =T23 -> 0 | U19: 0 | V19: 12.669 | W19: =W23 -> 0 | X19: 12.108 | Y19: =Y23 -> 0 | Z19: 6.463 | AA19: =AA23 -> 0 | AB19: =SUM(AB20,AB32) -> 16.059 | AC19: =AC23 -> 0 | AD19: 46.472 | AE19: =AE23 -> 0
A20: 0.3 | B20: Инвестиционные проекты, реализация которых обуславливается схемами и программами перспективного развития электроэнергетики, всего | AB20: =SUM(AB21,AB25) -> 7.753
A21: 0.6 | B21: Прочие инвестиционные проекты, всего | G21: =SUMIF(OFFSET($B21,1,0):$B976,"Прочие инвестиционные проекты, всего, в том числе:",OFFSET(G21,1,0):G976) -> 0.02757 | H21: =SUMIF(OFFSET($B21,1,0):$B976,"Прочие инвестиционные проекты, всего, в том числе:",OFFSET(H21,1,0):H976) ->  | I21: =SUMIF(OFFSET($B21,1,0):$B976,"Прочие инвестиционные проекты, всего, в том числе:",OFFSET(I21,1,0):I976) -> 0.620802 | J21: =SUMIF(OFFSET($B21,1,0):$B976,"Прочие инвестиционные проекты, всего, в том числе:",OFFSET(J21,1,0):J976) -> 0.046385 | K21: =SUMIF(OFFSET($B21,1,0):$B976,"Прочие инвестиционные проекты, всего, в том числе:",OFFSET(K21,1,0):K976) -> 0.4936 | L21: =SUMIF(OFFSET($B21,1,0):$B976,"Прочие инвестиционные проекты, всего, в том числе:",OFFSET(L21,1,0):L976) -> 0.080817 | M21: =SUMIF(OFFSET($B21,1,0):$B976,"Прочие инвестиционные проекты, всего, в том числе:",OFFSET(M21,1,0):M976) -> 0 | N21: =SUMIF(OFFSET($B21,1,0):$B976,"Прочие инвестиционные проекты, всего, в том числе:",OFFSET(N21,1,0):N976) -> 0 | O21: =SUMIF(OFFSET($B21,1,0):$B976,"Прочие инвестиционные проекты, всего, в том числе:",OFFSET(O21,1,0):O976) -> 0 | P21: =SUMIF(OFFSET($B21,1,0):$B976,"Прочие инвестиционные проекты, всего, в том числе:",OFFSET(P21,1,0):P976) -> 0.02757 | Q21: 17.807 | R21: =SUMIF(OFFSET($B21,1,0):$B976,"Прочие инвестиционные проекты, всего, в том числе:",OFFSET(R21,1,0):R976) -> 0 | S21: =SUMIF(OFFSET($B21,1,0):$B976,"Прочие инвестиционные проекты, всего, в том числе:",OFFSET(S21,1,0):S976) -> 0 | T21: =SUMIF(OFFSET($B21,1,0):$B976,"Прочие инвестиционные проекты, всего, в том числе:",OFFSET(T21,1,0):T976) -> 0 | U21: =SUMIF(OFFSET($B21,1,0):$B976,"Прочие инвестиционные проекты, всего, в том числе:",OFFSET(U21,1,0):U976) -> 0 | V21: 4.238 | W21: =SUMIF(OFFSET($B21,1,0):$B976,"Прочие инвестиционные проекты, всего, в том числе:",OFFSET(W21,1,0):W976) -> 0 | X21: 3.962 | Y21: =SUMIF(OFFSET($B21,1,0):$B976,"Прочие инвестиционные проекты, всего, в том числе:",OFFSET(Y21,1,0):Y976) -> 0 | Z21: 9.607 | AA21: =SUMIF(OFFSET($B21,1,0):$B976,"Прочие инвестиционные проекты, всего, в том числе:",OFFSET(AA21,1,0):AA976) -> 0 | AB21: =SUM(AB24,AB23) -> 1.746 | AC21: =SUMIF(OFFSET($B21,1,0):$B976,"Прочие инвестиционные проекты, всего, в том числе:",OFFSET(AC21,1,0):AC976) -> 0 | AD21: 17.807 | AE21: =SUMIF(OFFSET($B21,1,0):$B976,"Прочие инвестиционные проекты, всего, в том числе:",OFFSET(AE21,1,0):AE976) -> 0
A22: 1 | B22: Свердловская область | G22: =G23+#REF! ->  | H22: =H23+#REF! ->  | I22: =I23+#REF! ->  | J22: =J23+#REF! ->  | K22: =K23+#REF! ->  | L22: =L23+#REF! ->  | M22: 0 | N22: 0 | O22: 0 | P22: =P23+#REF! ->  | Q22: 64.282 | R22: 0 | S22: 0 | T22: 0 | U22: 0 | V22: 16.907 | W22: 0 | X22: 16.07 | Y22: 0 | Z22: 16.07 | AA22: 0 | AB22: 0 | AC22: 0 | AD22: 64.282 | AE22: 0
A23: 1.2 | B23: Реконструкция, модернизация, техническое перевооружение всего, в том числе: | G23: =G24+#REF!+#REF! ->  | H23: =H24+#REF!+#REF! ->  | I23: =I24+#REF!+#REF! ->  | J23: =J24+#REF!+#REF! ->  | K23: =K24+#REF!+#REF! ->  | L23: =L24+#REF!+#REF! ->  | M23: 0 | N23: 0 | O23: 0 | P23: =P24+#REF!+#REF! ->  | Q23: =SUM(Q24,Q31,Q35) -> 46.472448 | R23: 0 | S23: 0 | T23: 0 | U23: 0 | V23: =SUM(V24,V31,V35) -> 12.669 | W23: 0 | X23: =SUM(X31,X35) -> 12.108 | Y23: 0 | Z23: 6.463 | AA23: 0 | AB23: 0.873 | AC23: 0 | AD23: =SUM(AD24,AD31,AD35) -> 46.472448 | AE23: 0
A24: 1.2.1 | B24: Реконструкция, модернизация, техническое перевооружение трансформаторных и иных подстанций, распределительных пунктов, всего, в том числе: | G24: =G25+#REF! ->  | H24: =H25+#REF! ->  | I24: =I25+#REF! ->  | J24: =J25+#REF! ->  | K24: =K25+#REF! ->  | L24: =L25+#REF! ->  | M24: 0 | N24: 0 | O24: 0 | P24: =P25+#REF! ->  | Q24: =SUM(Q25,Q29) -> 10.159 | R24: 0 | S24: 0 | T24: 0 | U24: 0 | V24: =SUM(V25,V31) -> 3.232 | W24: 0 | X24: 0 | Y24: 0 | Z24: 0 | AA24: 0 | AB24: 0.873 | AC24: 0 | AD24: =SUM(AD25,AD29) -> 10.159 | AE24: 0
A25: 1.2.1.1 | B25: Реконструкция трансформаторных и иных подстанций, всего, в том числе: | G25: =SUMIF(OFFSET($A25,1,0):$A980,$A25,OFFSET(G25,1,0):G980) -> 0.3693996 | H25: =SUMIF(OFFSET($A25,1,0):$A980,$A25,OFFSET(H25,1,0):H980) ->  | I25: =SUMIF(OFFSET($A25,1,0):$A980,$A25,OFFSET(I25,1,0):I980) -> 4.618813356 | J25: =SUMIF(OFFSET($A25,1,0):$A980,$A25,OFFSET(J25,1,0):J980) -> 0.09277 | K25: =SUMIF(OFFSET($A25,1,0):$A980,$A25,OFFSET(K25,1,0):K980) -> 3.876787527 | L25: =SUMIF(OFFSET($A25,1,0):$A980,$A25,OFFSET(L25,1,0):L980) -> 0.6492558287 | M25: =SUMIF(OFFSET($A25,1,0):$A980,$A25,OFFSET(M25,1,0):M980) -> 0 | N25: =SUMIF(OFFSET($A25,1,0):$A980,$A25,OFFSET(N25,1,0):N980) -> 0 | O25: =SUMIF(OFFSET($A25,1,0):$A980,$A25,OFFSET(O25,1,0):O980) -> 0 | P25: =SUMIF(OFFSET($A25,1,0):$A980,$A25,OFFSET(P25,1,0):P980) -> 0.3693996 | Q25: =SUM(Q26:Q28) -> 4.152 | R25: =SUMIF(OFFSET($A25,1,0):$A980,$A25,OFFSET(R25,1,0):R980) -> 0 | S25: =SUMIF(OFFSET($A25,1,0):$A980,$A25,OFFSET(S25,1,0):S980) -> 0 | T25: =SUMIF(OFFSET($A25,1,0):$A980,$A25,OFFSET(T25,1,0):T980) -> 0 | U25: =SUMIF(OFFSET($A25,1,0):$A980,$A25,OFFSET(U25,1,0):U980) -> 0 | V25: 2.406 | W25: =SUMIF(OFFSET($A25,1,0):$A980,$A25,OFFSET(W25,1,0):W980) -> 0 | X25: 0 | Y25: =SUMIF(OFFSET($A25,1,0):$A980,$A25,OFFSET(Y25,1,0):Y980) -> 0 | Z25: 0 | AA25: =SUMIF(OFFSET($A25,1,0):$A980,$A25,OFFSET(AA25,1,0):AA980) -> 0 | AB25: 6.007 | AC25: =SUMIF(OFFSET($A25,1,0):$A980,$A25,OFFSET(AC25,1,0):AC980) -> 0 | AD25: =SUM(AD26:AD28) -> 4.152 | AE25: =SUMIF(OFFSET($A25,1,0):$A980,$A25,OFFSET(AE25,1,0):AE980) -> 0
A26: 1.2.1.1 | B26: Реконструкция ТП-7011, ТП-1072, ТП-1017, ТП-1078, г. Верхняя Салда | D26: С | E26: 2021 | F26: 2021 | G26: 0.0067464 | H26: =(VLOOKUP(C26,'2'!C:H,6,FALSE))/1000 ->  | I26: =SUM(J26:M26) -> 1.748387 | J26: 0 | K26: 1.508429341 | L26: 0.2399576593 | M26: 0 | N26: 0 | O26: 0 | P26: =G26 -> 0.0067464 | Q26: 2.406 | R26: 0 | S26: 0 | T26: 0 | U26: 0 | V26: 2.406 | W26: 0 | X26: 0 | Y26: 0 | Z26: 0 | AA26: 0 | AB26: 6.007 | AC26: 0 | AD26: 2.406 | AE26: 0
A27: 1.2.1.1 | B27: Установка КТПн 250кВА в п. Тагильский | D27: С | E27: 2024 | F27: 2024 | G27: 0.3308796 | H27: =(VLOOKUP(C27,'2'!C:H,6,FALSE))/1000 ->  | I27: =SUM(J27:M27) -> 2.009884356 | J27: 0.046385 | K27: 1.662358187 | L27: 0.3011411694 | M27: 0 | N27: 0 | O27: 0 | P27: 0.3308796 | Q27: 0.873 | R27: 0 | S27: 0 | T27: 0 | U27: 0 | V27: 0 | W27: 0 | X27: 0 | Y27: 0 | Z27: 0 | AA27: 0 | AB27: 0 | AC27: 0 | AD27: 0.873 | AE27: 0
A28: 1.2.1.1 | B28: Установка КТПн 400кВА в г. Верхняя Салда | D28: С | E28: 2024 | F28: 2024 | G28: 0.0317736 | H28: =(VLOOKUP(C28,'2'!C:H,6,FALSE))/1000 ->  | I28: =SUM(J28:M28) -> 0.860542 | J28: 0.046385 | K28: 0.706 | L28: 0.108157 | M28: 0 | N28: 0 | O28: 0 | P28: 0.0317736 | Q28: 0.873 | R28: 0 | S28: 0 | T28: 0 | U28: 0 | V28: 0 | W28: 0 | X28: 0 | Y28: 0 | Z28: 0 | AA28: 0 | AB28: 0 | AC28: 0 | AD28: 0.873 | AE28: 0
A29: 1.2.1.2 | B29: Модернизация, техническое перевооружение трансформаторных и иных подстанций, распределительных пунктов, всего, в том числе: | G29: 0.02757 | H29: =(VLOOKUP(C29,'2'!C:H,6,FALSE))/1000 ->  | I29: 0.545202 | J29: 0.046385 | K29: 0.418 | L29: 0.080817 | M29: 0 | N29: 0 | O29: 0 | P29: 0.02757 | Q29: 6.007 | R29: 0 | S29: 0 | T29: 0 | U29: 0 | V29: 0 | W29: 0 | X29: 0 | Y29: 0 | Z29: 0 | AA29: 0 | AB29: 0 | AC29: 0 | AD29: 6.007 | AE29: 0
A30: 1.2.1.2 | B30: Ретрофит ячеек 6-10 кВ в РП, ТП, г. Верхняя Салда | D30: С | E30: 2024 | F30: 2024 | G30: 0.02757 | H30: =(VLOOKUP(C30,'2'!C:H,6,FALSE))/1000 ->  | I30: 0.620802 | J30: 0.046385 | K30: 0.4936 | L30: 0.080817 | M30: 0 | N30: 0 | O30: 0 | P30: 0.02757 | Q30: 6.007 | R30: 0 | S30: 0 | T30: 0 | U30: 0 | V30: 0 | W30: 0 | X30: 0 | Y30: 0 | Z30: 0 | AA30: 0 | AB30: 0 | AC30: 0 | AD30: 6.007 | AE30: 0
A31: 1.2.2 | B31: Реконструкция, модернизация, техническое перевооружение линий электропередачи, всего, в том числе: | G31: 0 | H31: =(VLOOKUP(C31,'2'!C:H,6,FALSE))/1000 ->  | I31: 0.8378 | J31: 0 | K31: 0.8378 | L31: 0 | M31: 0 | N31: 0 | O31: 0 | P31: 0 | Q31: =SUM(Q33:Q34) -> 6.471 | R31: 0 | S31: 0 | T31: 0 | U31: 0 | V31: 0.826 | W31: 0 | X31: 5.645 | Y31: 0 | Z31: 0 | AA31: 0 | AB31: 8.306 | AC31: 0 | AD31: =SUM(AD33:AD34) -> 6.471 | AE31: 0
A32: 1.2.2.1 | B32: Реконструкция линий электропередачи, всего, в том числе: | G32: 0.0333456 | H32: =(VLOOKUP(C32,'2'!C:H,6,FALSE))/1000 ->  | I32: 0.756518 | J32: 0.031958 | K32: 0.58 | L32: 0.14456 | M32: 0 | N32: 0 | O32: 0 | P32: 0.0333456 | Q32: 6.471 | R32: 0 | S32: 0 | T32: 0 | U32: 0 | V32: 0.826 | W32: 0 | X32: 5.645 | Y32: 0 | Z32: 0 | AA32: 0 | AB32: 8.306 | AC32: 0 | AD32: 6.471 | AE32: 0
A33: 1.2.2.1 | B33: Реконструкция ВЛ-6 кВ ПС Басьяновка, г. Верхняя Салда | D33: П | E33: 2021 | F33: 2021 | G33: 0.02757 | H33: =(VLOOKUP(C33,'2'!C:H,6,FALSE))/1000 ->  | I33: 0.620802 | J33: 0.046385 | K33: 0.4936 | L33: 0.080817 | M33: 0 | N33: 0 | O33: 0 | P33: 0.02757 | Q33: 0.826 | R33: 0 | S33: 0 | T33: 0 | U33: 0 | V33: 0.826 | W33: 0 | X33: 0 | Y33: 0 | Z33: 0 | AA33: 0 | AB33: 0 | AC33: 0 | AD33: 0.826 | AE33: 0
A34: 1.2.2.1 | B34: Реконструкция ВЛ-6 кВ ПС Басьяновка, г. Верхняя Салда | D34: С | E34: 2021 | F34: 2021 | G34: 0.0317736 | H34: =(VLOOKUP(C34,'2'!C:H,6,FALSE))/1000 ->  | I34: 0.860542 | J34: 0.046385 | K34: 0.706 | L34: 0.108157 | M34: 0 | N34: 0 | O34: 0 | P34: 0.0317736 | Q34: 5.645 | R34: 0 | S34: 0 | T34: 0 | U34: 0 | V34: 0 | W34: 0 | X34: 5.645 | Y34: 0 | Z34: 0 | AA34: 0 | AB34: 0 | AC34: 0 | AD34: 5.645 | AE34: 0
A35: 1.2.3 | B35: Развитие и модернизация учета электрической энергии (мощности), всего, в том числе: | G35: 0.02757 | H35: =(VLOOKUP(C35,'2'!C:H,6,FALSE))/1000 ->  | I35: 0.620802 | J35: 0.046385 | K35: 0.4936 | L35: 0.080817 | M35: 0 | N35: 0 | O35: 0 | P35: 0.02757 | Q35: =SUM(Q37:Q40) -> 29.842448 | R35: 0 | S35: 0 | T35: 0 | U35: 0 | V35: 8.611 | W35: 0 | X35: 6.463 | Y35: 0 | Z35: 6.463 | AA35: 0 | AB35: 0 | AC35: 0 | AD35: =SUM(AD37:AD40) -> 29.842448 | AE35: 0
A36: 1.2.3.1 | B36: «Установка приборов учета, класс напряжения 0,22 (0,4) кВ, всего, в том числе:» | G36: 0.02757 | H36: =(VLOOKUP(C36,'2'!C:H,6,FALSE))/1000 ->  | I36: 0.620802 | J36: 0.046385 | K36: 0.4936 | L36: 0.080817 | M36: 0 | N36: 0 | O36: 0 | P36: 0.02757 | Q36: =SUM(Q37:Q40) -> 29.842448 | R36: 0 | S36: 0 | T36: 0 | U36: 0 | V36: 8.611 | W36: 0 | X36: 6.463 | Y36: 0 | Z36: 6.463 | AA36: 0 | AB36: 8.306 | AC36: 0 | AD36: =SUM(AD37:AD40) -> 29.842448 | AE36: 0
A37: 1.2.3.1 | B37: Развитие системы АИИСКУЭ в сетях 0,4 кВ, г. Верхняя Салда | D37: С | E37: 2021 | F37: 2021 | G37: 0.02757 | H37: =(VLOOKUP(C37,'2'!C:H,6,FALSE))/1000 ->  | I37: 0.620802 | J37: 0.046385 | K37: 0.4936 | L37: 0.080817 | M37: 0 | N37: 0 | O37: 0 | P37: 0.02757 | Q37: 8.611 | R37: 0 | S37: 0 | T37: 0 | U37: 0 | V37: 8.611 | W37: 0 | X37: 0 | Y37: 0 | Z37: 0 | AA37: 0 | AB37: 0 | AC37: 0 | AD37: 8.611 | AE37: 0
A38: 1.2.3.1 | B38: Развитие системы АИИСКУЭ в сетях 0,4 кВ, г. Верхняя Салда | D38: С | E38: 2022 | F38: 2022 | G38: 0.02757 | H38: =(VLOOKUP(C38,'2'!C:H,6,FALSE))/1000 ->  | I38: 0.620802 | J38: 0.046385 | K38: 0.4936 | L38: 0.080817 | M38: 0 | N38: 0 | O38: 0 | P38: 0.02757 | Q38: 6.463 | R38: 0 | S38: 0 | T38: 0 | U38: 0 | V38: 0 | W38: 0 | X38: 6.463 | Y38: 0 | Z38: 0 | AA38: 0 | AB38: 0 | AC38: 0 | AD38: 6.463 | AE38: 0
A39: 1.2.3.1 | B39: Развитие системы АИИСКУЭ в сетях 0,4 кВ, г. Верхняя Салда | D39: С | E39: 2023 | F39: 2023 | G39: 0.02757 | H39: =(VLOOKUP(C39,'2'!C:H,6,FALSE))/1000 ->  | I39: 0.620802 | J39: 0.046385 | K39: 0.4936 | L39: 0.080817 | M39: 0 | N39: 0 | O39: 0 | P39: 0.02757 | Q39: 6.462781 | R39: 0 | S39: 0 | T39: 0 | U39: 0 | V39: 0 | W39: 0 | X39: 0 | Y39: 0 | Z39: 6.463 | AA39: 0 | AB39: 0 | AC39: 0 | AD39: 6.462781 | AE39: 0
A40: 1.2.3.1 | B40: Развитие системы АИИСКУЭ в сетях 0,4 кВ, г. Верхняя Салда | D40: С | E40: 2024 | F40: 2024 | G40: 0.0296292 | H40: =(VLOOKUP(C40,'2'!C:H,6,FALSE))/1000 ->  | I40: 0.821623 | J40: 0.046385 | K40: 0.6796 | L40: 0.095638 | M40: 0 | N40: 0 | O40: 0 | P40: 0.0296292 | Q40: 8.305667 | R40: 0 | S40: 0 | T40: 0 | U40: 0 | V40: 0 | W40: 0 | X40: 0 | Y40: 0 | Z40: 0 | AA40: 0 | AB40: 0 | AC40: 0 | AD40: 8.305667 | AE40: 0
A41: 1.6 | B41: Прочие инвестиционные проекты, всего, в том числе: | G41: 0.02757 | H41: =(VLOOKUP(C41,'2'!C:H,6,FALSE))/1000 ->  | I41: 0.620802 | J41: 0.046385 | K41: 0.4936 | L41: 0.080817 | M41: 0 | N41: 0 | O41: 0 | P41: 0.02757 | Q41: =SUM(Q42:Q48) -> 17.807 | R41: 0 | S41: 0 | T41: 0 | U41: 0 | V41: =SUM(V45,V42) -> 4.238 | W41: 0 | X41: =SUM(X46,X43) -> 3.962 | Y41: 0 | Z41: =SUM(Z48,Z47,Z44) -> 9.607 | AA41: 0 | AB41: 0 | AC41: 0 | AD41: =SUM(AD42:AD48) -> 17.807 | AE41: 0
A42: 1.6 | B42: Развитие системы АИИСКУЭ в сетях 6/10 кВ, г. Верхняя Салда | D42: С | E42: 2021 | F42: 2021 | G42: 0.0296292 | H42: =(VLOOKUP(C42,'2'!C:H,6,FALSE))/1000 ->  | I42: 0.821623 | J42: 0.046385 | K42: 0.6796 | L42: 0.095638 | M42: 0 | N42: 0 | O42: 0 | P42: 0.0296292 | Q42: 2.396 | R42: 0 | S42: 0 | T42: 0 | U42: 0 | V42: 2.396 | W42: 0 | X42: 0 | Y42: 0 | Z42: 0 | AA42: 0 | AB42: 0 | AC42: 0 | AD42: 2.396 | AE42: 0
A43: 1.6 | B43: Развитие системы АИИСКУЭ в сетях 6/10 кВ, г. Верхняя Салда | D43: С | E43: 2022 | F43: 2022 | G43: 0.02757 | H43: =(VLOOKUP(C43,'2'!C:H,6,FALSE))/1000 ->  | I43: 0.496002 | J43: 0.046385 | K43: 0.3688 | L43: 0.080817 | M43: 0 | N43: 0 | O43: 0 | P43: 0.02757 | Q43: 1.198 | R43: 0 | S43: 0 | T43: 0 | U43: 0 | V43: 0 | W43: 0 | X43: 1.198 | Y43: 0 | Z43: 0 | AA43: 0 | AB43: 0 | AC43: 0 | AD43: 1.198 | AE43: 0
A44: 1.6 | B44: Развитие системы АИИСКУЭ в сетях 6/10 кВ, г. Верхняя Салда | D44: С | E44: 2023 | F44: 2023 | G44: 0.0333456 | H44: =(VLOOKUP(C44,'2'!C:H,6,FALSE))/1000 ->  | I44: 1.428318 | J44: 0.046385 | K44: 1.291189207 | L44: 0.09074379291 | M44: 0 | N44: 0 | O44: 0 | P44: 0.0333456 | Q44: 1.438 | R44: 0 | S44: 0 | T44: 0 | U44: 0 | V44: 0 | W44: 0 | X44: 0 | Y44: 0 | Z44: 1.438 | AA44: 0 | AB44: 0 | AC44: 0 | AD44: 1.438 | AE44: 0
A45: 1.6 | B45: Установка реклоузеров, г. Верхняя Салда | D45: С | E45: 2021 | F45: 2021 | G45: 0.02757 | H45: =(VLOOKUP(C45,'2'!C:H,6,FALSE))/1000 ->  | I45: 0.496002 | J45: 0.046385 | K45: 0.3688 | L45: 0.080817 | M45: 0 | N45: 0 | O45: 0 | P45: 0.02757 | Q45: 1.842 | R45: 0 | S45: 0 | T45: 0 | U45: 0 | V45: 1.842 | W45: 0 | X45: 0 | Y45: 0 | Z45: 0 | AA45: 0 | AB45: 0 | AC45: 0 | AD45: 1.842 | AE45: 0
A46: 1.6 | B46: Установка реклоузеров, г. Верхняя Салда | D46: С | E46: 2022 | F46: 2022 | G46: 0.0296292 | H46: =(VLOOKUP(C46,'2'!C:H,6,FALSE))/1000 ->  | I46: 0.821623 | J46: 0.046385 | K46: 0.6796 | L46: 0.095638 | M46: 0 | N46: 0 | O46: 0 | P46: 0.0296292 | Q46: 2.764 | R46: 0 | S46: 0 | T46: 0 | U46: 0 | V46: 0 | W46: 0 | X46: 2.764 | Y46: 0 | Z46: 0 | AA46: 0 | AB46: 0 | AC46: 0 | AD46: 2.764 | AE46: 0
A47: 1.6 | B47: Приобретение передвижной электротехнической лаборатории | D47: С | E47: 2023 | F47: 2023 | G47: 0.0296292 | H47: =(VLOOKUP(C47,'2'!C:H,6,FALSE))/1000 ->  | I47: 0.821623 | J47: 0.046385 | K47: 0.6796 | L47: 0.095638 | M47: 0 | N47: 0 | O47: 0 | P47: 0.0296292 | Q47: 3.983 | R47: 0 | S47: 0 | T47: 0 | U47: 0 | V47: 0 | W47: 0 | X47: 0 | Y47: 0 | Z47: 3.983 | AA47: 0 | AB47: 0 | AC47: 0 | AD47: 3.983 | AE47: 0
A48: 1.6 | B48: Реконструкция кровли теплой автостоянки для строительно- эксплуатационной техники, г. Верхняя Салда | D48: С | E48: 2023 | F48: 2023 | G48: 0.0296292 | H48: =(VLOOKUP(C48,'2'!C:H,6,FALSE))/1000 ->  | I48: 0.821623 | J48: 0.046385 | K48: 0.6796 | L48: 0.095638 | M48: 0 | N48: 0 | O48: 0 | P48: 0.0296292 | Q48: 4.186 | R48: 0 | S48: 0 | T48: 0 | U48: 0 | V48: 0 | W48: 0 | X48: 0 | Y48: 0 | Z48: 4.186 | AA48: 0 | AB48: 0 | AC48: 0 | AD48: 4.186 | AE48: 0

Sheet 4
AG1: Приложение № 4
AG2: к приказу Минэнерго России
AG3: от «__» _____ 2016 г. №___
A4: Форма 4. План ввода основных средств
A6: Инвестиционная программа АО "ВЭС"
A7: полное наименование субъекта электроэнергетики
A9: Год раскрытия информации: 2020 год
A11: Утвержденные плановые значения показателей приведены в соответствии с ______________________________________________________________________________
A12: реквизиты решения органа исполнительной власти, утвердившего инвестиционную программу
A14: Номер группы инвести-ционных проектов | B14: Наименование инвестиционного проекта (группы инвестиционных проектов) | C14: Идентифика-тор инвестицион-ного проекта | D14: Первоначальная стоимость принимаемых к учету основных средств и нематериальных активов, млн рублей (без НДС) | F14: Принятие основных средств и нематериальных активов к бухгалтерскому учету в 2021 году | T14: Принятие основных средств и нематериальных активов к бухгалтерскому учету | AH14: Принятие основных средств и нематериальных активов к бухгалтерскому учету | CL14: Краткое обоснование корректировки утвержденного плана
T15: 2022 году | AH15: 2023 году | AV15: 2024 году | BJ15: 2024 году | BX15: Итого за период реализации инвестиционной программы
F16: План | M16: Факт | T16: План | AA16: Факт | AH16: План | AO16: Факт | AV16: План | BC16: Факт | BJ16: План | BQ16: Факт | BX16: План | CE16: Предложение по корректировке утвержденного плана
D17: План | E17: Предложение по корректировке утвержденного плана | F17: нематериальные активы | G17: основные средства | M17: нематериальные активы | N17: основные средства | T17: нематериальные активы | U17: основные средства | AA17: нематериальные активы | AB17: основные средства | AH17: нематериальные активы | AI17: основные средства | AO17: нематериальные активы | AP17: основные средства | AV17: нематериальные активы | AW17: основные средства | BC17: нематериальные активы | BD17: основные средства | BJ17: нематериальные активы | BK17: основные средства | BQ17: нематериальные активы | BR17: основные средства | BX17: нематериальные активы | BY17: основные средства | CE17: нематериальные активы | CF17: основные средства
F18: млн рублей (без НДС) | G18: млн рублей (без НДС) | H18: МВ×А | I18: Мвар | J18: км ЛЭП | K18: МВт | L18: Другое | M18: млн рублей (без НДС) | N18: млн рублей (без НДС) | O18: МВ×А | P18: Мвар | Q18: км ЛЭП | R18: МВт | S18: Другое | T18: млн рублей (без НДС) | U18: млн рублей (без НДС) | V18: МВ×А | W18: Мвар | X18: км ЛЭП | Y18: МВт | Z18: Другое | AA18: млн рублей (без НДС) | AB18: млн рублей (без НДС) | AC18: МВ×А | AD18: Мвар | AE18: км ЛЭП | AF18: МВт | AG18: Другое | AH18: млн рублей (без НДС) | AI18: млн рублей (без НДС) | AJ18: МВ×А | AK18: Мвар | AL18: км ЛЭП | AM18: МВт | AN18: Другое | AO18: млн рублей (без НДС) | AP18: млн рублей (без НДС) | AQ18: МВ×А | AR18: Мвар | AS18: км ЛЭП | AT18: МВт | AU18: Другое | AV18: млн рублей (без НДС) | AW18: млн рублей (без НДС) | AX18: МВ×А | AY18: Мвар | AZ18: км ЛЭП | BA18: МВт | BB18: Другое | BC18: млн рублей (без НДС) | BD18: млн рублей (без НДС) | BE18: МВ×А | BF18: Мвар | BG18: км ЛЭП | BH18: МВт | BI18: Другое | BJ18: млн рублей (без НДС) | BK18: млн рублей (без НДС) | BL18: МВ×А | BM18: Мвар | BN18: км ЛЭП | BO18: МВт | BP18: Другое | BQ18: млн рублей (без НДС) | BR18: млн рублей (без НДС) | BS18: МВ×А | BT18: Мвар | BU18: км ЛЭП | BV18: МВт | BX18: млн рублей (без НДС) | BY18: млн рублей (без НДС) | BZ18: МВ×А | CA18: Мвар | CB18: км ЛЭП | CC18: МВт | CD18: Другое | CE18: млн рублей (без НДС) | CF18: млн рублей (без НДС) | CG18: МВ×А | CH18: Мвар | CI18: км ЛЭП | CJ18: МВт | CK18: Другое
A19: 1 | B19: 2 | C19: 3 | D19: 4 | E19: 5 | F19: 6.1.1 | G19: 6.1.2 | H19: 6.1.3 | I19: 6.1.4 | J19: 6.1.5 | K19: 6.1.6 | L19: 6.1.7 | M19: 6.2.1 | N19: 6.2.2 | O19: 6.2.3 | P19: 6.2.4 | Q19: 6.2.5 | R19: 6.2.6 | S19: 6.2.7 | T19: 7.1.1 | U19: 7.1.2 | V19: 7.1.3 | W19: 7.1.4 | X19: 7.1.5 | Y19: 7.1.6 | Z19: 7.1.7 | AA19: 7.2.1 | AB19: 7.2.2 | AC19: 7.2.3 | AD19: 7.2.4 | AE19: 7.2.5 | AF19: 7.2.6 | AG19: 7.2.7 | AH19: 7.3.1 | AI19: 7.3.2 | AJ19: 7.3.3 | AK19: 7.3.4 | AL19: 7.3.5 | AM19: 7.3.6 | AN19: 7.3.7 | AO19: 7.4.1 | AP19: 7.4.2 | AQ19: 7.4.3 | AR19: 7.4.4 | AS19: 7.4.5 | AT19: 7.4.6 | AU19: 7.4.7 | AV19: 7.5.1 | AW19: 7.5.2 | AX19: 7.5.3 | AY19: 7.5.4 | AZ19: 7.5.5 | BA19: 7.5.6 | BB19: 7.5.7 | BC19: 7.6.1 | BD19: 7.6.2 | BE19: 7.6.3 | BF19: 7.6.4 | BG19: 7.6.5 | BH19: 7.6.6 | BI19: 7.6.7 | BJ19: 7.5.1 | BK19: 7.5.2 | BL19: 7.5.3 | BM19: 7.5.4 | BN19: 7.5.5 | BO19: 7.5.6 | BP19: 7.5.7 | BQ19: 7.6.1 | BR19: 7.6.2 | BS19: 7.6.3 | BT19: 7.6.4 | BU19: 7.6.5 | BV19: 7.6.6 | BW19: 7.6.7 | BX19: 8.1.1 | BY19: 8.1.2 | BZ19: 8.1.3 | CA19: 8.1.4 | CB19: 8.1.5 | CC19: 8.1.6 | CD19: 8.1.7 | CE19: 8.2.1 | CF19: 8.2.2 | CG19: 8.2.3 | CH19: 8.2.4 | CI19: 8.2.5 | CJ19: 8.2.6 | CK19: 8.2.7 | CL19: 9
A20: 0 | B20: ВСЕГО по инвестиционной программе, в том числе: | D20: 64.282 | E20: 0 | F20: =F21+F22+F23 -> 0 | G20: =G21+G22+G23 -> 16.081 | H20: 1.6 | I20: 0 | J20: 0 | K20: 0 | L20: 410 | M20: 0 | N20: 0 | O20: 0 | P20: 0 | Q20: 0 | R20: 0 | S20: 0 | T20: 0 | U20: 16.07 | V20: 0 | W20: 0 | X20: 9 | Y20: 0 | Z20: 307 | AA20: 0 | AB20: 0 | AC20: 0 | AD20: 0 | AE20: 0 | AF20: 0 | AG20: =AG24 -> 0 | AH20: 0 | AI20: 16.07 | AJ20: 0 | AK20: 0 | AL20: 0 | AM20: 0 | AN20: 304 | AO20: 0 | AP20: 0 | AQ20: 0 | AR20: 0 | AS20: 0 | AT20: 0 | AU20: 0 | AV20: 0 | AW20: 16.059 | AX20: 0 | AY20: 0 | AZ20: 0 | BA20: 0 | BB20: 391 | BC20: 0 | BD20: 0 | BE20: 0 | BF20: 0 | BG20: 0 | BH20: 0 | BI20: 0 | BK20: 0 | BN20: 0 | BP20: =BP21+BP22+BP23 -> 0 | BY20: 64.282 | BZ20: 2.25 | CA20: 0 | CB20: 9 | CC20: 0 | CD20: 1411 | CE20: 0 | CF20: 0 | CG20: 0 | CH20: 0 | CI20: 0 | CJ20: 0 | CK20: 0
A21: 0.2 | B21: Реконструкция, модернизация, техническое перевооружение, всего | D21: 46.472 | E21: =E25 -> 0 | F21: 0 | G21: 11.843 | H21: 1.6 | I21: 0 | J21: 0 | K21: 0 | L21: 396 | M21: 0 | N21: 0 | O21: 0 | P21: 0 | Q21: 0 | R21: 0 | S21: 0 | T21: 0 | U21: 12.108 | V21: 0 | W21: 0 | X21: 9 | Y21: 0 | Z21: 296 | AA21: 0 | AB21: 0 | AC21: 0 | AD21: 0 | AE21: 0 | AF21: 0 | AG21: =AG25 -> 0 | AH21: 0 | AI21: 6.463 | AJ21: 0 | AK21: 0 | AL21: 0 | AM21: 0 | AN21: 296 | AO21: 0 | AP21: 0 | AQ21: 0 | AR21: 0 | AS21: 0 | AT21: 0 | AU21: 0 | AV21: 0 | AW21: 16.059 | AX21: 0 | AY21: 0 | AZ21: 0 | BA21: 0 | BB21: 391 | BC21: 0 | BD21: 0 | BE21: 0 | BF21: 0 | BG21: 0 | BH21: 0 | BI21: 0 | BK21: 0 | BN21: 0 | BP21: =BP25 -> 0 | BY21: 46.472 | BZ21: 2.25 | CA21: 0 | CB21: 9 | CC21: 0 | CD21: 1378 | CE21: 0 | CF21: 0 | CG21: 0 | CH21: 0 | CI21: 0 | CJ21: 0 | CK21: 0
A22: 0.3 | B22: Инвестиционные проекты, реализация которых обуславливается схемами и программами перспективного развития электроэнергетики, всего | E22: 0 | AG22: =AG26 -> 0
A23: 0.6 | B23: Прочие инвестиционные проекты, всего | D23: 17.807 | E23: =SUMIF(OFFSET($B23,1,0):$B708,"Прочие инвестиционные проекты, всего, в том числе:",OFFSET(E23,1,0):E708) -> 0 | F23: =SUMIF(OFFSET($B23,1,0):$B708,"Прочие инвестиционные проекты, всего, в том числе:",OFFSET(F23,1,0):F708) -> 0 | G23: 4.238 | H23: =SUMIF(OFFSET($B23,1,0):$B708,"Прочие инвестиционные проекты, всего, в том числе:",OFFSET(H23,1,0):H708) -> 0 | I23: =SUMIF(OFFSET($B23,1,0):$B708,"Прочие инвестиционные проекты, всего, в том числе:",OFFSET(I23,1,0):I708) -> 0 | J23: =SUMIF(OFFSET($B23,1,0):$B708,"Прочие инвестиционные проекты, всего, в том числе:",OFFSET(J23,1,0):J708) -> 0 | K23: =SUMIF(OFFSET($B23,1,0):$B708,"Прочие инвестиционные проекты, всего, в том числе:",OFFSET(K23,1,0):K708) -> 0 | L23: 14 | M23: =SUMIF(OFFSET($B23,1,0):$B708,"Прочие инвестиционные проекты, всего, в том числе:",OFFSET(M23,1,0):M708) -> 0 | N23: =SUMIF(OFFSET($B23,1,0):$B708,"Прочие инвестиционные проекты, всего, в том числе:",OFFSET(N23,1,0):N708) -> 0 | O23: =SUMIF(OFFSET($B23,1,0):$B708,"Прочие инвестиционные проекты, всего, в том числе:",OFFSET(O23,1,0):O708) -> 0 | P23: =SUMIF(OFFSET($B23,1,0):$B708,"Прочие инвестиционные проекты, всего, в том числе:",OFFSET(P23,1,0):P708) -> 0 | Q23: =SUMIF(OFFSET($B23,1,0):$B708,"Прочие инвестиционные проекты, всего, в том числе:",OFFSET(Q23,1,0):Q708) -> 0 | R23: =SUMIF(OFFSET($B23,1,0):$B708,"Прочие инвестиционные проекты, всего, в том числе:",OFFSET(R23,1,0):R708) -> 0 | S23: =SUMIF(OFFSET($B23,1,0):$B708,"Прочие инвестиционные проекты, всего, в том числе:",OFFSET(S23,1,0):S708) -> 0 | T23: =SUMIF(OFFSET($B23,1,0):$B708,"Прочие инвестиционные проекты, всего, в том числе:",OFFSET(T23,1,0):T708) -> 0 | U23: 3.962 | V23: =SUMIF(OFFSET($B23,1,0):$B708,"Прочие инвестиционные проекты, всего, в том числе:",OFFSET(V23,1,0):V708) -> 0 | W23: =SUMIF(OFFSET($B23,1,0):$B708,"Прочие инвестиционные проекты, всего, в том числе:",OFFSET(W23,1,0):W708) -> 0 | X23: =SUMIF(OFFSET($B23,1,0):$B708,"Прочие инвестиционные проекты, всего, в том числе:",OFFSET(X23,1,0):X708) -> 0 | Y23: =SUMIF(OFFSET($B23,1,0):$B708,"Прочие инвестиционные проекты, всего, в том числе:",OFFSET(Y23,1,0):Y708) -> 0 | Z23: 11 | AA23: =SUMIF(OFFSET($B23,1,0):$B708,"Прочие инвестиционные проекты, всего, в том числе:",OFFSET(AA23,1,0):AA708) -> 0 | AB23: =SUMIF(OFFSET($B23,1,0):$B708,"Прочие инвестиционные проекты, всего, в том числе:",OFFSET(AB23,1,0):AB708) -> 0 | AC23: =SUMIF(OFFSET($B23,1,0):$B708,"Прочие инвестиционные проекты, всего, в том числе:",OFFSET(AC23,1,0):AC708) -> 0 | AD23: =SUMIF(OFFSET($B23,1,0):$B708,"Прочие инвестиционные проекты, всего, в том числе:",OFFSET(AD23,1,0):AD708) -> 0 | AE23: =SUMIF(OFFSET($B23,1,0):$B708,"Прочие инвестиционные проекты, всего, в том числе:",OFFSET(AE23,1,0):AE708) -> 0 | AF23: =SUMIF(OFFSET($B23,1,0):$B708,"Прочие инвестиционные проекты, всего, в том числе:",OFFSET(AF23,1,0):AF708) -> 0 | AG23: =AG27 -> 0 | AH23: =SUMIF(OFFSET($B23,1,0):$B708,"Прочие инвестиционные проекты, всего, в том числе:",OFFSET(AH23,1,0):AH708) -> 0 | AI23: 9.607 | AJ23: =SUMIF(OFFSET($B23,1,0):$B708,"Прочие инвестиционные проекты, всего, в том числе:",OFFSET(AJ23,1,0):AJ708) -> 0 | AK23: =SUMIF(OFFSET($B23,1,0):$B708,"Прочие инвестиционные проекты, всего, в том числе:",OFFSET(AK23,1,0):AK708) -> 0 | AL23: =SUMIF(OFFSET($B23,1,0):$B708,"Прочие инвестиционные проекты, всего, в том числе:",OFFSET(AL23,1,0):AL708) -> 0 | AM23: =SUMIF(OFFSET($B23,1,0):$B708,"Прочие инвестиционные проекты, всего, в том числе:",OFFSET(AM23,1,0):AM708) -> 0 | AN23: 8 | AO23: =SUMIF(OFFSET($B23,1,0):$B708,"Прочие инвестиционные проекты, всего, в том числе:",OFFSET(AO23,1,0):AO708) -> 0 | AP23: =SUMIF(OFFSET($B23,1,0):$B708,"Прочие инвестиционные проекты, всего, в том числе:",OFFSET(AP23,1,0):AP708) -> 0 | AQ23: =SUMIF(OFFSET($B23,1,0):$B708,"Прочие инвестиционные проекты, всего, в том числе:",OFFSET(AQ23,1,0):AQ708) -> 0 | AR23: =SUMIF(OFFSET($B23,1,0):$B708,"Прочие инвестиционные проекты, всего, в том числе:",OFFSET(AR23,1,0):AR708) -> 0 | AS23: =SUMIF(OFFSET($B23,1,0):$B708,"Прочие инвестиционные проекты, всего, в том числе:",OFFSET(AS23,1,0):AS708) -> 0 | AT23: =SUMIF(OFFSET($B23,1,0):$B708,"Прочие инвестиционные проекты, всего, в том числе:",OFFSET(AT23,1,0):AT708) -> 0 | AU23: =SUMIF(OFFSET($B23,1,0):$B708,"Прочие инвестиционные проекты, всего, в том числе:",OFFSET(AU23,1,0):AU708) -> 0 | AV23: =SUMIF(OFFSET($B23,1,0):$B708,"Прочие инвестиционные проекты, всего, в том числе:",OFFSET(AV23,1,0):AV708) -> 0 | AW23: 0 | AX23: =SUMIF(OFFSET($B23,1,0):$B708,"Прочие инвестиционные проекты, всего, в том числе:",OFFSET(AX23,1,0):AX708) -> 0 | AY23: =SUMIF(OFFSET($B23,1,0):$B708,"Прочие инвестиционные проекты, всего, в том числе:",OFFSET(AY23,1,0):AY708) -> 0 | AZ23: =SUMIF(OFFSET($B23,1,0):$B708,"Прочие инвестиционные проекты, всего, в том числе:",OFFSET(AZ23,1,0):AZ708) -> 0 | BA23: =SUMIF(OFFSET($B23,1,0):$B708,"Прочие инвестиционные проекты, всего, в том числе:",OFFSET(BA23,1,0):BA708) -> 0 | BB23: 0 | BC23: =SUMIF(OFFSET($B23,1,0):$B708,"Прочие инвестиционные проекты, всего, в том числе:",OFFSET(BC23,1,0):BC708) -> 0 | BD23: =SUMIF(OFFSET($B23,1,0):$B708,"Прочие инвестиционные проекты, всего, в том числе:",OFFSET(BD23,1,0):BD708) -> 0 | BE23: =SUMIF(OFFSET($B23,1,0):$B708,"Прочие инвестиционные проекты, всего, в том числе:",OFFSET(BE23,1,0):BE708) -> 0 | BF23: =SUMIF(OFFSET($B23,1,0):$B708,"Прочие инвестиционные проекты, всего, в том числе:",OFFSET(BF23,1,0):BF708) -> 0 | BG23: =SUMIF(OFFSET($B23,1,0):$B708,"Прочие инвестиционные проекты, всего, в том числе:",OFFSET(BG23,1,0):BG708) -> 0 | BH23: =SUMIF(OFFSET($B23,1,0):$B708,"Прочие инвестиционные проекты, всего, в том числе:",OFFSET(BH23,1,0):BH708) -> 0 | BI23: =SUMIF(OFFSET($B23,1,0):$B708,"Прочие инвестиционные проекты, всего, в том числе:",OFFSET(BI23,1,0):BI708) -> 0 | BJ23: =SUMIF(OFFSET($B23,1,0):$B708,"Прочие инвестиционные проекты, всего, в том числе:",OFFSET(BJ23,1,0):BJ708) -> 0 | BK23: 0 | BL23: =SUMIF(OFFSET($B23,1,0):$B708,"Прочие инвестиционные проекты, всего, в том числе:",OFFSET(BL23,1,0):BL708) -> 0 | BM23: =SUMIF(OFFSET($B23,1,0):$B708,"Прочие инвестиционные проекты, всего, в том числе:",OFFSET(BM23,1,0):BM708) -> 0 | BN23: =SUMIF(OFFSET($B23,1,0):$B708,"Прочие инвестиционные проекты, всего, в том числе:",OFFSET(BN23,1,0):BN708) -> 0 | BO23: =SUMIF(OFFSET($B23,1,0):$B708,"Прочие инвестиционные проекты, всего, в том числе:",OFFSET(BO23,1,0):BO708) -> 0 | BP23: 0 | BQ23: =SUMIF(OFFSET($B23,1,0):$B708,"Прочие инвестиционные проекты, всего, в том числе:",OFFSET(BQ23,1,0):BQ708) -> 0 | BR23: =SUMIF(OFFSET($B23,1,0):$B708,"Прочие инвестиционные проекты, всего, в том числе:",OFFSET(BR23,1,0):BR708) -> 0 | BS23: =SUMIF(OFFSET($B23,1,0):$B708,"Прочие инвестиционные проекты, всего, в том числе:",OFFSET(BS23,1,0):BS708) -> 0 | BT23: =SUMIF(OFFSET($B23,1,0):$B708,"Прочие инвестиционные проекты, всего, в том числе:",OFFSET(BT23,1,0):BT708) -> 0 | BU23: =SUMIF(OFFSET($B23,1,0):$B708,"Прочие инвестиционные проекты, всего, в том числе:",OFFSET(BU23,1,0):BU708) -> 0 | BV23: =SUMIF(OFFSET($B23,1,0):$B708,"Прочие инвестиционные проекты, всего, в том числе:",OFFSET(BV23,1,0):BV708) -> 0 | BW23: =SUMIF(OFFSET($B23,1,0):$B708,"Прочие инвестиционные проекты, всего, в том числе:",OFFSET(BW23,1,0):BW708) -> 0 | BX23: =SUMIF(OFFSET($B23,1,0):$B708,"Прочие инвестиционные проекты, всего, в том числе:",OFFSET(BX23,1,0):BX708) -> 0 | BY23: 17.807 | BZ23: =SUMIF(OFFSET($B23,1,0):$B708,"Прочие инвестиционные проекты, всего, в том числе:",OFFSET(BZ23,1,0):BZ708) -> 0 | CA23: =SUMIF(OFFSET($B23,1,0):$B708,"Прочие инвестиционные проекты, всего, в том числе:",OFFSET(CA23,1,0):CA708) -> 0 | CB23: =SUMIF(OFFSET($B23,1,0):$B708,"Прочие инвестиционные проекты, всего, в том числе:",OFFSET(CB23,1,0):CB708) -> 0 | CC23: =SUMIF(OFFSET($B23,1,0):$B708,"Прочие инвестиционные проекты, всего, в том числе:",OFFSET(CC23,1,0):CC708) -> 0 | CD23: 33 | CE23: =SUMIF(OFFSET($B23,1,0):$B708,"Прочие инвестиционные проекты, всего, в том числе:",OFFSET(CE23,1,0):CE708) -> 0 | CF23: =SUMIF(OFFSET($B23,1,0):$B708,"Прочие инвестиционные проекты, всего, в том числе:",OFFSET(CF23,1,0):CF708) -> 0 | CG23: =SUMIF(OFFSET($B23,1,0):$B708,"Прочие инвестиционные проекты, всего, в том числе:",OFFSET(CG23,1,0):CG708) -> 0 | CH23: =SUMIF(OFFSET($B23,1,0):$B708,"Прочие инвестиционные проекты, всего, в том числе:",OFFSET(CH23,1,0):CH708) -> 0 | CI23: =SUMIF(OFFSET($B23,1,0):$B708,"Прочие инвестиционные проекты, всего, в том числе:",OFFSET(CI23,1,0):CI708) -> 0 | CJ23: =SUMIF(OFFSET($B23,1,0):$B708,"Прочие инвестиционные проекты, всего, в том числе:",OFFSET(CJ23,1,0):CJ708) -> 0 | CK23: =SUMIF(OFFSET($B23,1,0):$B708,"Прочие инвестиционные проекты, всего, в том числе:",OFFSET(CK23,1,0):CK708) -> 0
A24: 1 | B24: Свердловская область | D24: 64.282 | E24: 0 | F24: 0 | G24: 16.907 | H24: 1.6 | I24: 0 | J24: 0 | K24: 0 | L24: 396 | M24: 0 | N24: 0 | O24: 0 | P24: 0 | Q24: 0 | R24: 0 | S24: 0 | T24: 0 | U24: 16.07 | V24: 0 | W24: 0 | X24: 9 | Y24: 0 | Z24: 307 | AA24: 0 | AB24: 0 | AC24: 0 | AD24: 0 | AE24: 0 | AF24: 0 | AG24: =AG28 -> 0 | AH24: 0 | AI24: 16.07 | AJ24: 0 | AK24: 0 | AL24: 0 | AM24: 0 | AN24: 304 | AO24: 0 | AP24: 0 | AQ24: 0 | AR24: 0 | AS24: 0 | AT24: 0 | AU24: 0 | AV24: 0 | AW24: 16.059 | AX24: 0 | AY24: 0 | AZ24: 0 | BA24: 0 | BB24: 391 | BC24: 0 | BD24: 0 | BE24: 0 | BF24: 0 | BG24: 0 | BH24: 0 | BI24: 0 | BJ24: =BJ25+#REF! ->  | BK24: 0 | BL24: =BL25+#REF! ->  | BM24: =BM25+#REF! ->  | BN24: 0 | BO24: =BO25+#REF! ->  | BP24: 0 | BQ24: =BQ25+#REF! ->  | BR24: =BR25+#REF! ->  | BS24: =BS25+#REF! ->  | BT24: =BT25+#REF! ->  | BU24: =BU25+#REF! ->  | BV24: =BV25+#REF! ->  | BW24: =BW25+#REF! ->  | BX24: =BX25+#REF! ->  | BY24: 64.282 | CD24: =SUM(CD25,CD43) -> 1411 | CE24: 0 | CF24: 0 | CG24: 0 | CH24: 0 | CI24: 0 | CJ24: 0 | CK24: 0
A25: 1.2 | B25: Реконструкция, модернизация, техническое перевооружение всего, в том числе: | D25: =SUM(D26,D33,D37) -> 46.472448 | E25: 0 | F25: 0 | G25: =SUM(G26,G33,G37) -> 11.843 | H25: 1.6 | I25: 0 | J25: 0 | K25: 0 | L25: 396 | M25: 0 | N25: 0 | O25: 0 | P25: 0 | Q25: 0 | R25: 0 | S25: 0 | T25: 0 | U25: =SUM(U33,U37) -> 12.108 | V25: 0 | W25: 0 | X25: 9 | Y25: 0 | Z25: 296 | AA25: 0 | AB25: 0 | AC25: 0 | AD25: 0 | AE25: 0 | AF25: 0 | AG25: =AG29 -> 0 | AH25: 0 | AI25: 6.463 | AJ25: 0 | AK25: 0 | AL25: 0 | AM25: 0 | AN25: 296 | AO25: 0 | AP25: 0 | AQ25: 0 | AR25: 0 | AS25: 0 | AT25: 0 | AU25: 0 | AV25: 0 | AW25: =SUM(AW26,AW38) -> 16.059 | AX25: 0 | AY25: 0 | AZ25: 0 | BA25: 0 | BB25: =SUM(BB26,BB31,BB37) -> 391 | BC25: 0 | BD25: 0 | BE25: 0 | BF25: 0 | BG25: 0 | BH25: 0 | BI25: 0 | BJ25: =BJ26+#REF!+#REF! ->  | BK25: 0 | BL25: =BL26+#REF!+#REF! ->  | BM25: =BM26+#REF!+#REF! ->  | BN25: 0 | BO25: =BO26+#REF!+#REF! ->  | BP25: 0 | BQ25: =BQ26+#REF!+#REF! ->  | BR25: =BR26+#REF!+#REF! ->  | BS25: =BS26+#REF!+#REF! ->  | BT25: =BT26+#REF!+#REF! ->  | BU25: =BU26+#REF!+#REF! ->  | BV25: =BV26+#REF!+#REF! ->  | BW25: =BW26+#REF!+#REF! ->  | BX25: =BX26+#REF!+#REF! ->  | BY25: =SUM(BY26,BY33,BY37) -> 46.472448 | CB25: 9 | CD25: =SUM(CD26,CD37) -> 1378 | CE25: 0 | CF25: 0 | CG25: 0 | CH25: 0 | CI25: 0 | CJ25: 0 | CK25: 0
A26: 1.2.1 | B26: Реконструкция, модернизация, техническое перевооружение трансформаторных и иных подстанций, распределительных пунктов, всего, в том числе: | D26: =SUM(D27,D31) -> 10.159 | E26: 0 | F26: 0 | G26: 2.406 | H26: 1.6 | I26: 0 | J26: 0 | K26: 0 | L26: 396 | M26: 0 | N26: 0 | O26: 0 | P26: 0 | Q26: 0 | R26: 0 | S26: 0 | T26: 0 | U26: 0 | V26: 0 | W26: 0 | X26: 0 | Y26: 0 | Z26: 0 | AA26: 0 | AB26: 0 | AC26: 0 | AD26: 0 | AE26: 0 | AF26: 0 | AG26: =AG30 -> 0 | AH26: 0 | AI26: 0 | AJ26: 0 | AK26: 0 | AL26: 0 | AM26: 0 | AN26: 0 | AO26: 0 | AP26: 0 | AQ26: 0 | AR26: 0 | AS26: 0 | AT26: 0 | AU26: 0 | AV26: 0 | AW26: =SUM(AW27,AW31) -> 7.753 | AX26: 0.65 | AY26: 0 | AZ26: 0 | BA26: 0 | BB26: 0 | BC26: 0 | BD26: 0 | BE26: 0 | BF26: 0 | BG26: 0 | BH26: 0 | BI26: 0 | BJ26: =BJ27+#REF! ->  | BK26: 0 | BL26: =BL27+#REF! ->  | BM26: =BM27+#REF! ->  | BN26: =BN27+#REF! ->  | BO26: =BO27+#REF! ->  | BP26: 0 | BQ26: =BQ27+#REF! ->  | BR26: =BR27+#REF! ->  | BS26: =BS27+#REF! ->  | BT26: =BT27+#REF! ->  | BU26: =BU27+#REF! ->  | BV26: =BV27+#REF! ->  | BW26: =BW27+#REF! ->  | BX26: =BX27+#REF! ->  | BY26: =SUM(BY27,BY31) -> 10.159 | CD26: 11 | CE26: 0 | CF26: 0 | CG26: 0 | CH26: 0 | CI26: 0 | CJ26: 0 | CK26: 0
A27: 1.2.1.1 | B27: Реконструкция трансформаторных и иных подстанций, всего, в том числе: | D27: =SUM(D28:D30) -> 4.152 | E27: =SUMIF(OFFSET($A27,1,0):$A712,$A27,OFFSET(E27,1,0):E712) -> 0 | F27: =SUMIF(OFFSET($A27,1,0):$A712,$A27,OFFSET(F27,1,0):F712) -> 0 | G27: 2.406 | H27: 1.6 | I27: =SUMIF(OFFSET($A27,1,0):$A712,$A27,OFFSET(I27,1,0):I712) -> 0 | J27: =SUMIF(OFFSET($A27,1,0):$A712,$A27,OFFSET(J27,1,0):J712) -> 0 | K27: =SUMIF(OFFSET($A27,1,0):$A712,$A27,OFFSET(K27,1,0):K712) -> 0 | L27: 0 | M27: =SUMIF(OFFSET($A27,1,0):$A712,$A27,OFFSET(M27,1,0):M712) -> 0 | N27: =SUMIF(OFFSET($A27,1,0):$A712,$A27,OFFSET(N27,1,0):N712) -> 0 | O27: =SUMIF(OFFSET($A27,1,0):$A712,$A27,OFFSET(O27,1,0):O712) -> 0 | P27: =SUMIF(OFFSET($A27,1,0):$A712,$A27,OFFSET(P27,1,0):P712) -> 0 | Q27: =SUMIF(OFFSET($A27,1,0):$A712,$A27,OFFSET(Q27,1,0):Q712) -> 0 | R27: =SUMIF(OFFSET($A27,1,0):$A712,$A27,OFFSET(R27,1,0):R712) -> 0 | S27: =SUMIF(OFFSET($A27,1,0):$A712,$A27,OFFSET(S27,1,0):S712) -> 0 | T27: =SUMIF(OFFSET($A27,1,0):$A712,$A27,OFFSET(T27,1,0):T712) -> 0 | U27: 0 | V27: 0 | W27: =SUMIF(OFFSET($A27,1,0):$A712,$A27,OFFSET(W27,1,0):W712) -> 0 | X27: =SUMIF(OFFSET($A27,1,0):$A712,$A27,OFFSET(X27,1,0):X712) -> 0 | Y27: =SUMIF(OFFSET($A27,1,0):$A712,$A27,OFFSET(Y27,1,0):Y712) -> 0 | Z27: 0 | AA27: =SUMIF(OFFSET($A27,1,0):$A712,$A27,OFFSET(AA27,1,0):AA712) -> 0 | AB27: =SUMIF(OFFSET($A27,1,0):$A712,$A27,OFFSET(AB27,1,0):AB712) -> 0 | AC27: =SUMIF(OFFSET($A27,1,0):$A712,$A27,OFFSET(AC27,1,0):AC712) -> 0 | AD27: =SUMIF(OFFSET($A27,1,0):$A712,$A27,OFFSET(AD27,1,0):AD712) -> 0 | AE27: =SUMIF(OFFSET($A27,1,0):$A712,$A27,OFFSET(AE27,1,0):AE712) -> 0 | AF27: =SUMIF(OFFSET($A27,1,0):$A712,$A27,OFFSET(AF27,1,0):AF712) -> 0 | AG27: =AG31 -> 0 | AH27: =SUMIF(OFFSET($A27,1,0):$A712,$A27,OFFSET(AH27,1,0):AH712) -> 0 | AI27: 0 | AJ27: 0 | AK27: =SUMIF(OFFSET($A27,1,0):$A712,$A27,OFFSET(AK27,1,0):AK712) -> 0 | AL27: =SUMIF(OFFSET($A27,1,0):$A712,$A27,OFFSET(AL27,1,0):AL712) -> 0 | AM27: =SUMIF(OFFSET($A27,1,0):$A712,$A27,OFFSET(AM27,1,0):AM712) -> 0 | AN27: 0 | AO27: =SUMIF(OFFSET($A27,1,0):$A712,$A27,OFFSET(AO27,1,0):AO712) -> 0 | AP27: =SUMIF(OFFSET($A27,1,0):$A712,$A27,OFFSET(AP27,1,0):AP712) -> 0 | AQ27: =SUMIF(OFFSET($A27,1,0):$A712,$A27,OFFSET(AQ27,1,0):AQ712) -> 0 | AR27: =SUMIF(OFFSET($A27,1,0):$A712,$A27,OFFSET(AR27,1,0):AR712) -> 0 | AS27: =SUMIF(OFFSET($A27,1,0):$A712,$A27,OFFSET(AS27,1,0):AS712) -> 0 | AT27: =SUMIF(OFFSET($A27,1,0):$A712,$A27,OFFSET(AT27,1,0):AT712) -> 0 | AU27: =SUMIF(OFFSET($A27,1,0):$A712,$A27,OFFSET(AU27,1,0):AU712) -> 0 | AV27: =SUMIF(OFFSET($A27,1,0):$A712,$A27,OFFSET(AV27,1,0):AV712) -> 0 | AW27: =SUM(AW30,AW29) -> 1.746 | AX27: 0.65 | AY27: =SUMIF(OFFSET($A27,1,0):$A712,$A27,OFFSET(AY27,1,0):AY712) -> 0 | AZ27: =SUMIF(OFFSET($A27,1,0):$A712,$A27,OFFSET(AZ27,1,0):AZ712) -> 0 | BA27: =SUMIF(OFFSET($A27,1,0):$A712,$A27,OFFSET(BA27,1,0):BA712) -> 0 | BB27: 0 | BC27: =SUMIF(OFFSET($A27,1,0):$A712,$A27,OFFSET(BC27,1,0):BC712) -> 0 | BD27: =SUMIF(OFFSET($A27,1,0):$A712,$A27,OFFSET(BD27,1,0):BD712) -> 0 | BE27: =SUMIF(OFFSET($A27,1,0):$A712,$A27,OFFSET(BE27,1,0):BE712) -> 0 | BF27: =SUMIF(OFFSET($A27,1,0):$A712,$A27,OFFSET(BF27,1,0):BF712) -> 0 | BG27: =SUMIF(OFFSET($A27,1,0):$A712,$A27,OFFSET(BG27,1,0):BG712) -> 0 | BH27: =SUMIF(OFFSET($A27,1,0):$A712,$A27,OFFSET(BH27,1,0):BH712) -> 0 | BI27: =SUMIF(OFFSET($A27,1,0):$A712,$A27,OFFSET(BI27,1,0):BI712) -> 0 | BJ27: =SUMIF(OFFSET($A27,1,0):$A712,$A27,OFFSET(BJ27,1,0):BJ712) -> 0 | BK27: 0 | BL27: 0 | BM27: =SUMIF(OFFSET($A27,1,0):$A712,$A27,OFFSET(BM27,1,0):BM712) -> 0 | BN27: =SUMIF(OFFSET($A27,1,0):$A712,$A27,OFFSET(BN27,1,0):BN712) -> 0 | BO27: =SUMIF(OFFSET($A27,1,0):$A712,$A27,OFFSET(BO27,1,0):BO712) -> 0 | BP27: 0 | BQ27: =SUMIF(OFFSET($A27,1,0):$A712,$A27,OFFSET(BQ27,1,0):BQ712) -> 0 | BR27: =SUMIF(OFFSET($A27,1,0):$A712,$A27,OFFSET(BR27,1,0):BR712) -> 0 | BS27: =SUMIF(OFFSET($A27,1,0):$A712,$A27,OFFSET(BS27,1,0):BS712) -> 0 | BT27: =SUMIF(OFFSET($A27,1,0):$A712,$A27,OFFSET(BT27,1,0):BT712) -> 0 | BU27: =SUMIF(OFFSET($A27,1,0):$A712,$A27,OFFSET(BU27,1,0):BU712) -> 0 | BV27: =SUMIF(OFFSET($A27,1,0):$A712,$A27,OFFSET(BV27,1,0):BV712) -> 0 | BW27: =SUMIF(OFFSET($A27,1,0):$A712,$A27,OFFSET(BW27,1,0):BW712) -> 0 | BX27: =SUMIF(OFFSET($A27,1,0):$A712,$A27,OFFSET(BX27,1,0):BX712) -> 0 | BY27: =SUM(BY28:BY30) -> 4.152 | BZ27: 2.25 | CA27: =SUMIF(OFFSET($A27,1,0):$A712,$A27,OFFSET(CA27,1,0):CA712) -> 0 | CB27: =SUMIF(OFFSET($A27,1,0):$A712,$A27,OFFSET(CB27,1,0):CB712) -> 0 | CC27: =SUMIF(OFFSET($A27,1,0):$A712,$A27,OFFSET(CC27,1,0):CC712) -> 0 | CD27: 11 | CE27: =SUMIF(OFFSET($A27,1,0):$A712,$A27,OFFSET(CE27,1,0):CE712) -> 0 | CF27: =SUMIF(OFFSET($A27,1,0):$A712,$A27,OFFSET(CF27,1,0):CF712) -> 0 | CG27: =SUMIF(OFFSET($A27,1,0):$A712,$A27,OFFSET(CG27,1,0):CG712) -> 0 | CH27: =SUMIF(OFFSET($A27,1,0):$A712,$A27,OFFSET(CH27,1,0):CH712) -> 0 | CI27: =SUMIF(OFFSET($A27,1,0):$A712,$A27,OFFSET(CI27,1,0):CI712) -> 0 | CJ27: =SUMIF(OFFSET($A27,1,0):$A712,$A27,OFFSET(CJ27,1,0):CJ712) -> 0 | CK27: =SUMIF(OFFSET($A27,1,0):$A712,$A27,OFFSET(CK27,1,0):CK712) -> 0
A28: 1.2.1.1 | B28: Реконструкция ТП-7011, ТП-1072, ТП-1017, ТП-1078, г. Верхняя Салда | D28: 2.406 | E28: =SUMIF(OFFSET($A28,1,0):$A713,$A28,OFFSET(E28,1,0):E713) -> 0 | F28: =SUMIF(OFFSET($A28,1,0):$A713,$A28,OFFSET(F28,1,0):F713) -> 0 | G28: 2.406 | H28: 1.6 | J28: 0 | L28: 0 | U28: 0 | V28: 0 | X28: 0 | Z28: 0 | AI28: 0 | AJ28: 0 | AL28: 0 | AN28: 0 | AW28: 0 | AX28: 0 | AZ28: 0 | BB28: 0 | BK28: 0 | BL28: 0 | BN28: 0 | BP28: 0 | BX28: =SUM(F28,T28,AH28,AV28,BJ28) -> 0 | BY28: 2.406 | BZ28: =SUM(H28,V28,AJ28,AX28,BL28) -> 1.6 | CA28: =SUM(I28,W28,AK28,AY28,BM28) -> 0 | CB28: =SUM(J28,X28,AL28,AZ28,BN28) -> 0 | CC28: =SUM(K28,Y28,AM28,BA28,BO28) -> 0 | CD28: =SUM(L28,Z28,AN28,BB28,BP28) -> 0
A29: 1.2.1.1 | B29: Установка КТПн 250кВА в п. Тагильский | D29: 0.873 | E29: =SUMIF(OFFSET($A29,1,0):$A714,$A29,OFFSET(E29,1,0):E714) -> 0 | F29: =SUMIF(OFFSET($A29,1,0):$A714,$A29,OFFSET(F29,1,0):F714) -> 0 | G29: 0 | H29: 0 | J29: 0 | L29: 0 | U29: 0 | V29: 0 | X29: 0 | Z29: 0 | AI29: 0 | AJ29: 0 | AL29: 0 | AN29: 0 | AW29: 0.873 | AX29: 0.25 | AZ29: 0 | BA29: 0 | BB29: 0 | BL29: 0 | BN29: 0 | BP29: 0 | BX29: 0 | BY29: 0.873 | BZ29: 0.25 | CA29: 0 | CB29: 0 | CC29: 0 | CD29: 0
A30: 1.2.1.1 | B30: Установка КТПн 400кВА в г. Верхняя Салда | D30: 0.873 | E30: =SUMIF(OFFSET($A30,1,0):$A715,$A30,OFFSET(E30,1,0):E715) -> 0 | F30: =SUMIF(OFFSET($A30,1,0):$A715,$A30,OFFSET(F30,1,0):F715) -> 0 | G30: 0 | H30: 0 | J30: 0 | L30: 0 | U30: 0 | V30: 0 | X30: 0 | Z30: 0 | AI30: 0 | AJ30: 0 | AL30: 0 | AN30: 0 | AW30: 0.873 | AX30: 0.4 | AZ30: 0 | BA30: 0 | BB30: 0 | BL30: 0 | BN30: 0 | BP30: 0 | BX30: 0 | BY30: 0.873 | BZ30: 0.4 | CA30: 0 | CB30: 0 | CC30: 0 | CD30: 0
A31: 1.2.1.2 | B31: Модернизация, техническое перевооружение трансформаторных и иных подстанций, распределительных пунктов, всего, в том числе: | D31: 6.007 | E31: =SUMIF(OFFSET($A31,1,0):$A716,$A31,OFFSET(E31,1,0):E716) -> 0 | F31: =SUMIF(OFFSET($A31,1,0):$A716,$A31,OFFSET(F31,1,0):F716) -> 0 | G31: 0 | H31: 0 | J31: 0 | L31: 0 | U31: 0 | V31: 0 | X31: 0 | Z31: 0 | AI31: 0 | AJ31: 0 | AL31: 0 | AN31: 0 | AW31: 6.007 | AX31: 0 | AZ31: 0 | BB31: 11 | BK31: 0 | BL31: 0 | BN31: 0 | BP31: 0 | BX31: 0 | BY31: 6.007 | BZ31: 0 | CA31: 0 | CB31: 0 | CC31: 0 | CD31: 11
A32: 1.2.1.2 | B32: Ретрофит ячеек 6-10 кВ в РП, ТП, г. Верхняя Салда | D32: 6.007 | E32: =SUMIF(OFFSET($A32,1,0):$A717,$A32,OFFSET(E32,1,0):E717) -> 0 | F32: =SUMIF(OFFSET($A32,1,0):$A717,$A32,OFFSET(F32,1,0):F717) -> 0 | G32: 0 | H32: 0 | J32: 0 | L32: 0 | U32: 0 | V32: 0 | X32: 0 | Z32: 0 | AI32: 0 | AJ32: 0 | AL32: 0 | AN32: 0 | AW32: 6.007 | AX32: 0 | AZ32: 0 | BB32: 11 | BK32: 0 | BL32: 0 | BN32: 0 | BP32: 0 | BX32: 0 | BY32: 6.007 | BZ32: 0 | CA32: 0 | CB32: 0 | CC32: 0 | CD32: 11
A33: 1.2.2 | B33: Реконструкция, модернизация, техническое перевооружение линий электропередачи, всего, в том числе: | D33: =SUM(D35:D36) -> 6.471 | E33: =SUMIF(OFFSET($A33,1,0):$A718,$A33,OFFSET(E33,1,0):E718) -> 0 | F33: =SUMIF(OFFSET($A33,1,0):$A718,$A33,OFFSET(F33,1,0):F718) -> 0 | G33: 0.826 | H33: 0 | J33: 0 | L33: 0 | U33: 5.645 | V33: 0 | X33: 0 | Z33: 0 | AI33: 0 | AJ33: 0 | AL33: 0 | AN33: 0 | AW33: 0 | AX33: 0 | AZ33: 0 | BB33: 0 | BK33: 0 | BL33: 0 | BN33: 0 | BP33: 0 | BX33: 0 | BY33: =SUM(BY35:BY36) -> 6.471 | BZ33: 0 | CA33: 0 | CB33: 0 | CC33: 0 | CD33: 1
A34: 1.2.2.1 | B34: Реконструкция линий электропередачи, всего, в том числе: | D34: 6.471 | E34: =SUMIF(OFFSET($A34,1,0):$A719,$A34,OFFSET(E34,1,0):E719) -> 0 | F34: =SUMIF(OFFSET($A34,1,0):$A719,$A34,OFFSET(F34,1,0):F719) -> 0 | G34: 0.826 | H34: 0 | J34: 0 | L34: 0 | U34: 5.645 | V34: 0 | X34: 0 | Z34: 0 | AI34: 0 | AJ34: 0 | AL34: 0 | AN34: 0 | AW34: 0 | AX34: 0 | AZ34: 0 | BB34: 0 | BK34: 0 | BL34: 0 | BN34: 0 | BP34: 0 | BX34: 0 | BY34: 6.471 | BZ34: 0 | CA34: 0 | CB34: 0 | CC34: 0 | CD34: 1
A35: 1.2.2.1 | B35: Реконструкция ВЛ-6 кВ ПС Басьяновка, г. Верхняя Салда | D35: 0.826 | E35: =SUMIF(OFFSET($A35,1,0):$A720,$A35,OFFSET(E35,1,0):E720) -> 0 | F35: =SUMIF(OFFSET($A35,1,0):$A720,$A35,OFFSET(F35,1,0):F720) -> 0 | G35: 0.826 | H35: 0 | J35: 0 | L35: 1 | U35: 0 | V35: 0 | X35: 0 | Z35: 0 | AI35: 0 | AJ35: 0 | AL35: 0 | AN35: 0 | AW35: 0 | AX35: 0 | AZ35: 0 | BB35: 0 | BK35: 0 | BL35: 0 | BN35: 0 | BP35: 0 | BX35: 0 | BY35: 0.826 | BZ35: 0 | CA35: 0 | CB35: 0 | CC35: 0 | CD35: 1
A36: 1.2.2.1 | B36: Реконструкция ВЛ-6 кВ ПС Басьяновка, г. Верхняя Салда | D36: 5.645 | E36: =SUMIF(OFFSET($A36,1,0):$A721,$A36,OFFSET(E36,1,0):E721) -> 0 | F36: =SUMIF(OFFSET($A36,1,0):$A721,$A36,OFFSET(F36,1,0):F721) -> 0 | G36: 0 | H36: 0 | J36: 0 | L36: 0 | U36: 5.645 | V36: 0 | X36: 9 | Z36: 0 | AI36: 0 | AJ36: 0 | AL36: 0 | AN36: 0 | AW36: 0 | AX36: 0 | AZ36: 0 | BB36: 0 | BK36: 0 | BL36: 0 | BN36: 0 | BP36: 0 | BX36: 0 | BY36: 5.645 | BZ36: 0 | CA36: 0 | CB36: 9 | CC36: 0 | CD36: 0
A37: 1.2.3 | B37: Развитие и модернизация учета электрической энергии (мощности), всего, в том числе: | D37: =SUM(D39:D42) -> 29.842448 | E37: =SUMIF(OFFSET($A37,1,0):$A722,$A37,OFFSET(E37,1,0):E722) -> 0 | F37: =SUMIF(OFFSET($A37,1,0):$A722,$A37,OFFSET(F37,1,0):F722) -> 0 | G37: 8.611 | H37: 0 | J37: 0 | L37: 0 | U37: 6.463 | V37: 0 | X37: 0 | Z37: 0 | AI37: 6.463 | AJ37: 0 | AL37: 0 | AN37: 0 | AW37: 8.306 | AX37: 0 | AZ37: 0 | BB37: 380 | BK37: 0 | BL37: 0 | BN37: 0 | BP37: 0 | BX37: 0 | BY37: =SUM(BY39:BY42) -> 29.842448 | BZ37: 0 | CA37: 0 | CB37: 0 | CC37: 0 | CD37: =SUM(CD42,CD41,CD40,CD39) -> 1367
A38: 1.2.3.1 | B38: «Установка приборов учета, класс напряжения 0,22 (0,4) кВ, всего, в том числе:» | D38: =SUM(D39:D42) -> 29.842448 | E38: =SUMIF(OFFSET($A38,1,0):$A723,$A38,OFFSET(E38,1,0):E723) -> 0 | F38: =SUMIF(OFFSET($A38,1,0):$A723,$A38,OFFSET(F38,1,0):F723) -> 0 | G38: 8.611 | H38: 0 | J38: 0 | L38: 0 | U38: 6.463 | V38: 0 | X38: 0 | Z38: 0 | AI38: 6.463 | AJ38: 0 | AL38: 0 | AN38: 0 | AW38: 8.306 | AX38: 0 | AZ38: 0 | BB38: 380 | BK38: 0 | BL38: 0 | BN38: 0 | BP38: 0 | BX38: 0 | BY38: =SUM(BY39:BY42) -> 29.842448 | BZ38: 0 | CA38: 0 | CB38: 0 | CC38: 0 | CD38: 1367
A39: 1.2.3.1 | B39: Развитие системы АИИСКУЭ в сетях 0,4 кВ, г. Верхняя Салда | D39: 8.611 | E39: =SUMIF(OFFSET($A39,1,0):$A724,$A39,OFFSET(E39,1,0):E724) -> 0 | F39: =SUMIF(OFFSET($A39,1,0):$A724,$A39,OFFSET(F39,1,0):F724) -> 0 | G39: 8.611 | H39: 0 | J39: 0 | L39: 395 | U39: 0 | V39: 0 | X39: 0 | Z39: 0 | AI39: 0 | AJ39: 0 | AL39: 0 | AW39: 0 | AX39: 0 | AZ39: 0 | BB39: 0 | BK39: 0 | BL39: 0 | BN39: 0 | BP39: 0 | BX39: 0 | BY39: 8.611 | BZ39: 0 | CA39: 0 | CB39: 0 | CC39: 0 | CD39: 395
A40: 1.2.3.1 | B40: Развитие системы АИИСКУЭ в сетях 0,4 кВ, г. Верхняя Салда | D40: 6.463 | E40: =SUMIF(OFFSET($A40,1,0):$A725,$A40,OFFSET(E40,1,0):E725) -> 0 | F40: =SUMIF(OFFSET($A40,1,0):$A725,$A40,OFFSET(F40,1,0):F725) -> 0 | G40: 0 | H40: 0 | J40: 0 | L40: 0 | U40: 6.463 | V40: 0 | X40: 0 | Z40: 296 | AI40: 0 | AJ40: 0 | AL40: 0 | AN40: 0 | AW40: 0 | AX40: 0 | AZ40: 0 | BB40: 0 | BK40: 0 | BL40: 0 | BN40: 0 | BP40: 0 | BX40: 0 | BY40: 6.463 | BZ40: 0 | CA40: 0 | CB40: 0 | CC40: 0 | CD40: 296
A41: 1.2.3.1 | B41: Развитие системы АИИСКУЭ в сетях 0,4 кВ, г. Верхняя Салда | D41: 6.462781 | E41: =SUMIF(OFFSET($A41,1,0):$A726,$A41,OFFSET(E41,1,0):E726) -> 0 | F41: =SUMIF(OFFSET($A41,1,0):$A726,$A41,OFFSET(F41,1,0):F726) -> 0 | G41: 0 | H41: 0 | J41: 0 | L41: 0 | U41: 0 | V41: 0 | X41: 0 | Z41: 0 | AI41: 6.463 | AJ41: 0 | AL41: 0 | AN41: 296 | AW41: 0 | AX41: 0 | AZ41: 0 | BB41: 0 | BK41: 0 | BL41: 0 | BN41: 0 | BP41: 0 | BX41: 0 | BY41: 6.462781 | BZ41: 0 | CA41: 0 | CB41: 0 | CC41: 0 | CD41: 296
A42: 1.2.3.1 | B42: Развитие системы АИИСКУЭ в сетях 0,4 кВ, г. Верхняя Салда | D42: 8.305667 | E42: =SUMIF(OFFSET($A42,1,0):$A727,$A42,OFFSET(E42,1,0):E727) -> 0 | F42: =SUMIF(OFFSET($A42,1,0):$A727,$A42,OFFSET(F42,1,0):F727) -> 0 | G42: 0 | H42: 0 | J42: 0 | L42: 0 | U42: 0 | V42: 0 | X42: 0 | Z42: 0 | AI42: 0 | AJ42: 0 | AL42: 0 | AN42: 0 | AW42: 8.306 | AX42: 0 | AZ42: 0 | BB42: 380 | BK42: 0 | BL42: 0 | BN42: 0 | BP42: 0 | BX42: 0 | BY42: 8.305667 | BZ42: 0 | CA42: 0 | CB42: 0 | CC42: 0 | CD42: 380
A43: 1.6 | B43: Прочие инвестиционные проекты, всего, в том числе: | D43: =SUM(D44:D50) -> 17.807 | E43: =SUMIF(OFFSET($A43,1,0):$A728,$A43,OFFSET(E43,1,0):E728) -> 0 | F43: =SUMIF(OFFSET($A43,1,0):$A728,$A43,OFFSET(F43,1,0):F728) -> 0 | G43: =SUM(G47,G44) -> 4.238 | H43: 0 | J43: 0 | L43: 0 | U43: =SUM(U48,U45) -> 3.962 | V43: 0 | X43: 0 | Z43: 0 | AI43: =SUM(AI50,AI49,AI46) -> 9.607 | AJ43: 0 | AL43: 0 | AN43: 0 | AW43: 0 | AX43: 0 | AZ43: 0 | BB43: 0 | BK43: 0 | BL43: 0 | BN43: 0 | BP43: 0 | BX43: 0 | BY43: =SUM(BY44:BY50) -> 17.807 | BZ43: 0 | CA43: 0 | CB43: 0 | CC43: 0 | CD43: =SUM(CD45,CD44,CD46,CD47,CD48,CD50,CD49) -> 33
A44: 1.6 | B44: Развитие системы АИИСКУЭ в сетях 6/10 кВ, г. Верхняя Салда | D44: 2.396 | E44: =SUMIF(OFFSET($A44,1,0):$A729,$A44,OFFSET(E44,1,0):E729) -> 0 | F44: =SUMIF(OFFSET($A44,1,0):$A729,$A44,OFFSET(F44,1,0):F729) -> 0 | G44: 2.396 | H44: 0 | J44: 0 | L44: 10 | U44: 0 | V44: 0 | X44: 0 | Z44: 0 | AI44: 0 | AJ44: 0 | AL44: 0 | AN44: 0 | AW44: 0 | AX44: 0 | AZ44: 0 | BB44: 0 | BK44: 0 | BL44: 0 | BN44: 0 | BP44: 0 | BX44: 0 | BY44: 2.396 | BZ44: 0 | CA44: 0 | CB44: 0 | CC44: 0 | CD44: 10
A45: 1.6 | B45: Развитие системы АИИСКУЭ в сетях 6/10 кВ, г. Верхняя Салда | D45: 1.198 | E45: =SUMIF(OFFSET($A45,1,0):$A730,$A45,OFFSET(E45,1,0):E730) -> 0 | F45: =SUMIF(OFFSET($A45,1,0):$A730,$A45,OFFSET(F45,1,0):F730) -> 0 | G45: 0 | H45: 0 | J45: 0 | L45: 0 | U45: 1.198 | V45: 0 | X45: 0 | Z45: 5 | AI45: 0 | AJ45: 0 | AL45: 0 | AN45: 0 | AW45: 0 | AX45: 0 | AZ45: 0 | BB45: 0 | BK45: 0 | BL45: 0 | BN45: 0 | BP45: 0 | BX45: 0 | BY45: 1.198 | BZ45: 0 | CA45: 0 | CB45: 0 | CC45: 0 | CD45: 5
A46: 1.6 | B46: Развитие системы АИИСКУЭ в сетях 6/10 кВ, г. Верхняя Салда | D46: 1.438 | E46: =SUMIF(OFFSET($A46,1,0):$A731,$A46,OFFSET(E46,1,0):E731) -> 0 | F46: =SUMIF(OFFSET($A46,1,0):$A731,$A46,OFFSET(F46,1,0):F731) -> 0 | G46: 0 | H46: 0 | J46: 0 | L46: 0 | U46: 0 | V46: 0 | X46: 0 | Z46: 0 | AI46: 1.438 | AJ46: 0 | AL46: 0 | AN46: 6 | AW46: 0 | AX46: 0 | AZ46: 0 | BB46: 0 | BK46: 0 | BL46: 0 | BN46: 0 | BP46: 0 | BX46: 0 | BY46: 1.438 | BZ46: 0 | CA46: 0 | CB46: 0 | CC46: 0 | CD46: 6
A47: 1.6 | B47: Установка реклоузеров, г. Верхняя Салда | D47: 1.842 | E47: =SUMIF(OFFSET($A47,1,0):$A732,$A47,OFFSET(E47,1,0):E732) -> 0 | F47: =SUMIF(OFFSET($A47,1,0):$A732,$A47,OFFSET(F47,1,0):F732) -> 0 | G47: 1.842 | H47: 0 | J47: 0 | L47: 4 | U47: 0 | V47: 0 | X47: 0 | Z47: 0 | AI47: 0 | AJ47: 0 | AL47: 0 | AN47: 0 | AW47: 0 | AX47: 0 | AZ47: 0 | BB47: 0 | BK47: 0 | BL47: 0 | BN47: 0 | BP47: 0 | BX47: 0 | BY47: 1.842 | BZ47: 0 | CA47: 0 | CB47: 0 | CC47: 0 | CD47: 4
A48: 1.6 | B48: Установка реклоузеров, г. Верхняя Салда | D48: 2.764 | E48: =SUMIF(OFFSET($A48,1,0):$A733,$A48,OFFSET(E48,1,0):E733) -> 0 | F48: =SUMIF(OFFSET($A48,1,0):$A733,$A48,OFFSET(F48,1,0):F733) -> 0 | G48: 0 | H48: 0 | J48: 0 | L48: 0 | U48: 2.764 | V48: 0 | X48: 0 | Z48: 6 | AI48: 0 | AJ48: 0 | AL48: 0 | AN48: 0 | AW48: 0 | AX48: 0 | AZ48: 0 | BB48: 0 | BK48: 0 | BL48: 0 | BN48: 0 | BP48: 0 | BX48: 0 | BY48: 2.764 | BZ48: 0 | CA48: 0 | CB48: 0 | CC48: 0 | CD48: 6
A49: 1.6 | B49: Приобретение передвижной электротехнической лаборатории | D49: 3.983 | E49: =SUMIF(OFFSET($A49,1,0):$A734,$A49,OFFSET(E49,1,0):E734) -> 0 | F49: =SUMIF(OFFSET($A49,1,0):$A734,$A49,OFFSET(F49,1,0):F734) -> 0 | G49: 0 | H49: 0 | J49: 0 | L49: 0 | U49: 0 | V49: 0 | X49: 0 | Z49: 0 | AI49: 3.983 | AJ49: 0 | AL49: 0 | AN49: 1 | AW49: 0 | AX49: 0 | AZ49: 0 | BB49: 0 | BK49: 0 | BL49: 0 | BN49: 0 | BP49: 0 | BX49: 0 | BY49: 3.983 | BZ49: 0 | CA49: 0 | CB49: 0 | CC49: 0 | CD49: 1
A50: 1.6 | B50: Реконструкция кровли теплой автостоянки для строительно- эксплуатационной техники, г. Верхняя Салда | D50: 4.186 | E50: =SUMIF(OFFSET($A50,1,0):$A735,$A50,OFFSET(E50,1,0):E735) -> 0 | F50: =SUMIF(OFFSET($A50,1,0):$A735,$A50,OFFSET(F50,1,0):F735) -> 0 | G50: 0 | H50: 0 | J50: 0 | L50: 0 | U50: 0 | V50: 0 | X50: 0 | Z50: 0 | AI50: 4.186 | AJ50: 0 | AL50: 0 | AN50: 1 | AW50: 0 | AX50: 0 | AZ50: 0 | BB50: 0 | BK50: 0 | BL50: 0 | BN50: 0 | BP50: 0 | BX50: 0 | BY50: 4.186 | BZ50: 0 | CA50: 0 | CB50: 0 | CC50: 0 | CD50: 1

Sheet 5.1
AL1: Приложение № 5
AL2: к приказу Минэнерго России
AL3: от «__» _____ 2016 г. №___
A4: Форма 5. План ввода основных средств (с распределением по кварталам)
A5: на 2021 год
A7: Инвестиционная программа АО "Облкоммунэнерго"
A8: полное наименование субъекта электроэнергетики
A10: Год раскрытия информации: 2020 год
A12: Утвержденные плановые значения показателей приведены в соответствии с ______________________________________________________________________________
A13: реквизиты решения органа исполнительной власти, утвердившего инвестиционную программу
A15: Номер группы инвести-ционных проектов | B15: Наименование инвестиционного проекта (группы инвестиционных проектов) | C15: Идентифика-тор инвестицион-ного проекта | D15: План принятия основных средств и нематериальных активов к бухгалтерскому учету на год
D16: I кв. | K16: II кв. | R16: III кв. | Y16: IV кв. | AF16: Итого план за год
D17: нематериальные активы | E17: основные средства | K17: нематериальные активы | L17: основные средства | R17: нематериальные активы | S17: основные средства | Y17: нематериальные активы | Z17: основные средства | AF17: нематериальные активы | AG17: основные средства
D18: млн рублей (без НДС) | E18: млн рублей (без НДС) | F18: МВ×А | G18: Мвар | H18: км ЛЭП | I18: МВт | J18: Другое | K18: млн рублей (без НДС) | L18: млн рублей (без НДС) | M18: МВ×А | N18: Мвар | O18: км ЛЭП | P18: МВт | Q18: Другое | R18: млн рублей (без НДС) | S18: млн рублей (без НДС) | T18: МВ×А | U18: Мвар | V18: км ЛЭП | W18: МВт | X18: Другое | Y18: млн рублей (без НДС) | Z18: млн рублей (без НДС) | AA18: МВ×А | AB18: Мвар | AC18: км ЛЭП | AD18: МВт | AE18: Другое | AF18: млн рублей (без НДС) | AG18: млн рублей (без НДС) | AH18: МВ×А | AI18: Мвар | AJ18: км ЛЭП | AK18: МВт | AL18: Другое
A19: 1 | B19: 2 | C19: 3 | D19: 4.1.1 | E19: 4.1.2 | F19: 4.1.3 | G19: 4.1.4 | H19: 4.1.5 | I19: 4.1.6 | J19: 4.1.7 | K19: 4.2.1 | L19: 4.2.2 | M19: 4.2.3 | N19: 4.2.4 | O19: 4.2.5 | P19: 4.2.6 | Q19: 4.2.7 | R19: 4.3.1 | S19: 4.3.2 | T19: 4.3.3 | U19: 4.3.4 | V19: 4.3.5 | W19: 4.3.6 | X19: 4.3.7 | Y19: 4.4.1 | Z19: 4.4.2 | AA19: 4.4.3 | AB19: 4.4.4 | AC19: 4.4.5 | AD19: 4.4.6 | AE19: 4.4.7 | AF19: 5 | AG19: 6 | AH19: 7 | AI19: 8 | AJ19: 9 | AK19: 10 | AL19: 11
A20: 0 | B20: ВСЕГО по инвестиционной программе, в том числе: | C20: =SUMIF(OFFSET($A20,1,0):$A901,$A20,OFFSET(C20,1,0):C901) -> 0 | D20: =D21+D22+D23 -> 0 | E20: 0 | F20: =F21+F22+F23 -> 0 | G20: 0 | H20: 0 | I20: 0 | J20: 0 | K20: 0 | L20: =L21+L22+L23 -> 2.668 | M20: 0 | N20: 0 | O20: 0 | P20: 0 | Q20: 5 | R20: 0 | S20: 8.611 | T20: 0 | U20: 0 | V20: 0 | W20: 0 | X20: 395 | Y20: 0 | Z20: 4.802 | AA20: 1.6 | AB20: 0 | AC20: 0 | AD20: 0 | AE20: 10 | AF20: 0 | AG20: =SUM(L20,S20,Z20) -> 16.081 | AH20: 1.6 | AI20: =AI21+AI22+AI23 -> 0 | AJ20: 0 | AK20: 0 | AL20: =SUM(Q20,X20,AE20) -> 410
A21: 0.2 | B21: Реконструкция, модернизация, техническое перевооружение, всего | C21: 0 | D21: =D25 -> 0 | E21: 0 | F21: =F25 -> 0 | G21: 0 | H21: 0 | I21: 0 | J21: 0 | K21: 0 | L21: =L25 -> 0.826 | M21: 0 | N21: 0 | O21: 0 | P21: 0 | Q21: 1 | R21: 0 | S21: 8.611 | T21: 0 | U21: 0 | V21: 0 | W21: 0 | X21: 395 | Y21: 0 | Z21: 2.406 | AA21: 1.6 | AB21: 0 | AC21: 0 | AD21: 0 | AE21: 0 | AF21: 0 | AG21: =SUM(L21,S21,Z21) -> 11.843 | AH21: 1.6 | AI21: =AI25 -> 0 | AJ21: 0 | AK21: 0 | AL21: 396
A22: 0.3 | B22: Инвестиционные проекты, реализация которых обуславливается схемами и программами перспективного развития электроэнергетики, всего | C22: 0 | D22: 0 | E22: 0 | F22: 0 | G22: 0 | H22: 0 | I22: 0 | J22: 0 | K22: 0 | L22: 0 | M22: 0 | N22: 0 | O22: 0 | P22: 0 | Q22: 0 | R22: 0 | S22: 0 | T22: 0 | U22: 0 | V22: 0 | W22: 0 | X22: 0 | Y22: 0 | Z22: 0 | AA22: 0 | AB22: 0 | AC22: 0 | AD22: 0 | AE22: 0 | AF22: 0 | AG22: 0 | AH22: 0 | AI22: 0 | AJ22: 0 | AK22: 0 | AL22: 0
A23: 0.6 | B23: Прочие инвестиционные проекты, всего | C23: 0 | D23: =SUMIF(OFFSET($B23,1,0):$B904,"Прочие инвестиционные проекты, всего, в том числе:",OFFSET(D23,1,0):D904) -> 0 | E23: =SUMIF(OFFSET($B23,1,0):$B904,"Прочие инвестиционные проекты, всего, в том числе:",OFFSET(E23,1,0):E904) -> 0 | F23: =SUMIF(OFFSET($B23,1,0):$B904,"Прочие инвестиционные проекты, всего, в том числе:",OFFSET(F23,1,0):F904) -> 0 | G23: =SUMIF(OFFSET($B23,1,0):$B904,"Прочие инвестиционные проекты, всего, в том числе:",OFFSET(G23,1,0):G904) -> 0 | H23: =SUMIF(OFFSET($B23,1,0):$B904,"Прочие инвестиционные проекты, всего, в том числе:",OFFSET(H23,1,0):H904) -> 0 | I23: =SUMIF(OFFSET($B23,1,0):$B904,"Прочие инвестиционные проекты, всего, в том числе:",OFFSET(I23,1,0):I904) -> 0 | J23: =SUMIF(OFFSET($B23,1,0):$B904,"Прочие инвестиционные проекты, всего, в том числе:",OFFSET(J23,1,0):J904) -> 0 | K23: =SUMIF(OFFSET($B23,1,0):$B904,"Прочие инвестиционные проекты, всего, в том числе:",OFFSET(K23,1,0):K904) -> 0 | L23: =SUMIF(OFFSET($B23,1,0):$B904,"Прочие инвестиционные проекты, всего, в том числе:",OFFSET(L23,1,0):L904) -> 1.842 | M23: =SUMIF(OFFSET($B23,1,0):$B904,"Прочие инвестиционные проекты, всего, в том числе:",OFFSET(M23,1,0):M904) -> 0 | N23: =SUMIF(OFFSET($B23,1,0):$B904,"Прочие инвестиционные проекты, всего, в том числе:",OFFSET(N23,1,0):N904) -> 0 | O23: =SUMIF(OFFSET($B23,1,0):$B904,"Прочие инвестиционные проекты, всего, в том числе:",OFFSET(O23,1,0):O904) -> 0 | P23: =SUMIF(OFFSET($B23,1,0):$B904,"Прочие инвестиционные проекты, всего, в том числе:",OFFSET(P23,1,0):P904) -> 0 | Q23: 4 | R23: =SUMIF(OFFSET($B23,1,0):$B904,"Прочие инвестиционные проекты, всего, в том числе:",OFFSET(R23,1,0):R904) -> 0 | S23: =SUMIF(OFFSET($B23,1,0):$B904,"Прочие инвестиционные проекты, всего, в том числе:",OFFSET(S23,1,0):S904) -> 0 | T23: =SUMIF(OFFSET($B23,1,0):$B904,"Прочие инвестиционные проекты, всего, в том числе:",OFFSET(T23,1,0):T904) -> 0 | U23: =SUMIF(OFFSET($B23,1,0):$B904,"Прочие инвестиционные проекты, всего, в том числе:",OFFSET(U23,1,0):U904) -> 0 | V23: =SUMIF(OFFSET($B23,1,0):$B904,"Прочие инвестиционные проекты, всего, в том числе:",OFFSET(V23,1,0):V904) -> 0 | W23: =SUMIF(OFFSET($B23,1,0):$B904,"Прочие инвестиционные проекты, всего, в том числе:",OFFSET(W23,1,0):W904) -> 0 | X23: =SUMIF(OFFSET($B23,1,0):$B904,"Прочие инвестиционные проекты, всего, в том числе:",OFFSET(X23,1,0):X904) -> 0 | Y23: =SUMIF(OFFSET($B23,1,0):$B904,"Прочие инвестиционные проекты, всего, в том числе:",OFFSET(Y23,1,0):Y904) -> 0 | Z23: 2.396 | AA23: =SUMIF(OFFSET($B23,1,0):$B904,"Прочие инвестиционные проекты, всего, в том числе:",OFFSET(AA23,1,0):AA904) -> 0 | AB23: =SUMIF(OFFSET($B23,1,0):$B904,"Прочие инвестиционные проекты, всего, в том числе:",OFFSET(AB23,1,0):AB904) -> 0 | AC23: =SUMIF(OFFSET($B23,1,0):$B904,"Прочие инвестиционные проекты, всего, в том числе:",OFFSET(AC23,1,0):AC904) -> 0 | AD23: =SUMIF(OFFSET($B23,1,0):$B904,"Прочие инвестиционные проекты, всего, в том числе:",OFFSET(AD23,1,0):AD904) -> 0 | AE23: =SUMIF(OFFSET($B23,1,0):$B904,"Прочие инвестиционные проекты, всего, в том числе:",OFFSET(AE23,1,0):AE904) -> 10 | AF23: =SUMIF(OFFSET($B23,1,0):$B904,"Прочие инвестиционные проекты, всего, в том числе:",OFFSET(AF23,1,0):AF904) -> 0 | AG23: =SUM(L23,Z23) -> 4.238 | AH23: 0 | AI23: =SUMIF(OFFSET($B23,1,0):$B904,"Прочие инвестиционные проекты, всего, в том числе:",OFFSET(AI23,1,0):AI904) -> 0 | AJ23: =SUMIF(OFFSET($B23,1,0):$B904,"Прочие инвестиционные проекты, всего, в том числе:",OFFSET(AJ23,1,0):AJ904) -> 0 | AK23: =SUMIF(OFFSET($B23,1,0):$B904,"Прочие инвестиционные проекты, всего, в том числе:",OFFSET(AK23,1,0):AK904) -> 0 | AL23: 14
A24: 1 | B24: Свердловская область | C24: 0 | D24: 0 | E24: 0 | F24: 0 | G24: 0 | H24: 0 | I24: 0 | J24: 0 | K24: 0 | L24: 2.668 | M24: 0 | N24: 0 | O24: 0 | P24: 0 | Q24: 5 | R24: 0 | S24: 8.611 | T24: 0 | U24: 0 | V24: 0 | W24: 0 | X24: 395 | Y24: 0 | Z24: 4.802 | AA24: 1.6 | AB24: 0 | AC24: 0 | AD24: 0 | AE24: 0 | AF24: 0 | AG24: =SUM(L24,S24,Z24) -> 16.081 | AH24: 1.6 | AI24: 0 | AJ24: 0 | AK24: 0 | AL24: 410
A25: 1.2 | B25: Реконструкция, модернизация, техническое перевооружение всего, в том числе: | C25: 0 | D25: 0 | E25: 0 | F25: 0 | G25: 0 | H25: 0 | I25: 0 | J25: 0 | K25: 0 | L25: 0.826 | M25: 0 | N25: 0 | O25: 0 | P25: 0 | Q25: 1 | R25: 0 | S25: 8.611 | T25: 0 | U25: 0 | V25: 0 | W25: 0 | X25: 395 | Y25: 0 | Z25: 2.406 | AA25: 1.6 | AB25: 0 | AC25: 0 | AD25: 0 | AE25: 0 | AF25: 0 | AG25: =SUM(L25,S25,Z25) -> 11.843 | AH25: 1.6 | AI25: 0 | AJ25: 0 | AK25: 0 | AL25: 396
A26: 1.2.1 | B26: Реконструкция, модернизация, техническое перевооружение трансформаторных и иных подстанций, распределительных пунктов, всего, в том числе: | C26: =SUMIF(OFFSET($A26,1,0):$A907,$A26,OFFSET(C26,1,0):C907) -> 0 | D26: 0 | E26: 0 | F26: 0 | G26: 0 | H26: 0 | I26: 0 | J26: 0 | K26: 0 | L26: 0 | M26: 0 | N26: 0 | O26: 0 | P26: 0 | Q26: 0 | R26: 0 | T26: 0 | U26: 0 | V26: 0 | W26: 0 | X26: 0 | Y26: 0 | Z26: 2.406 | AA26: 1.6 | AB26: 0 | AC26: 0 | AD26: 0 | AE26: 0 | AF26: 0 | AG26: 2.406 | AH26: 1.6 | AI26: 0 | AJ26: 0 | AK26: 0 | AL26: 0
A27: 1.2.1.1 | B27: Реконструкция трансформаторных и иных подстанций, всего, в том числе: | C27: 0 | D27: =SUMIF(OFFSET($A27,1,0):$A908,$A27,OFFSET(D27,1,0):D908) -> 0 | E27: =SUMIF(OFFSET($A27,1,0):$A908,$A27,OFFSET(E27,1,0):E908) -> 0 | F27: =SUMIF(OFFSET($A27,1,0):$A908,$A27,OFFSET(F27,1,0):F908) -> 0 | G27: =SUMIF(OFFSET($A27,1,0):$A908,$A27,OFFSET(G27,1,0):G908) -> 0 | H27: =SUMIF(OFFSET($A27,1,0):$A908,$A27,OFFSET(H27,1,0):H908) -> 0 | I27: =SUMIF(OFFSET($A27,1,0):$A908,$A27,OFFSET(I27,1,0):I908) -> 0 | J27: =SUMIF(OFFSET($A27,1,0):$A908,$A27,OFFSET(J27,1,0):J908) -> 0 | K27: =SUMIF(OFFSET($A27,1,0):$A908,$A27,OFFSET(K27,1,0):K908) -> 0 | L27: =SUMIF(OFFSET($A27,1,0):$A908,$A27,OFFSET(L27,1,0):L908) -> 0 | M27: 0 | N27: =SUMIF(OFFSET($A27,1,0):$A908,$A27,OFFSET(N27,1,0):N908) -> 0 | O27: =SUMIF(OFFSET($A27,1,0):$A908,$A27,OFFSET(O27,1,0):O908) -> 0 | P27: =SUMIF(OFFSET($A27,1,0):$A908,$A27,OFFSET(P27,1,0):P908) -> 0 | Q27: =SUMIF(OFFSET($A27,1,0):$A908,$A27,OFFSET(Q27,1,0):Q908) -> 0 | R27: =SUMIF(OFFSET($A27,1,0):$A908,$A27,OFFSET(R27,1,0):R908) -> 0 | S27: 0 | T27: 0 | U27: =SUMIF(OFFSET($A27,1,0):$A908,$A27,OFFSET(U27,1,0):U908) -> 0 | W27: =SUMIF(OFFSET($A27,1,0):$A908,$A27,OFFSET(W27,1,0):W908) -> 0 | X27: =SUMIF(OFFSET($A27,1,0):$A908,$A27,OFFSET(X27,1,0):X908) -> 0 | Y27: =SUMIF(OFFSET($A27,1,0):$A908,$A27,OFFSET(Y27,1,0):Y908) -> 0 | Z27: =SUMIF(OFFSET($A27,1,0):$A908,$A27,OFFSET(Z27,1,0):Z908) -> 2.406 | AA27: =SUMIF(OFFSET($A27,1,0):$A908,$A27,OFFSET(AA27,1,0):AA908) -> 1.6 | AB27: =SUMIF(OFFSET($A27,1,0):$A908,$A27,OFFSET(AB27,1,0):AB908) -> 0 | AC27: =SUMIF(OFFSET($A27,1,0):$A908,$A27,OFFSET(AC27,1,0):AC908) -> 0 | AD27: =SUMIF(OFFSET($A27,1,0):$A908,$A27,OFFSET(AD27,1,0):AD908) -> 0 | AE27: =SUMIF(OFFSET($A27,1,0):$A908,$A27,OFFSET(AE27,1,0):AE908) -> 0 | AF27: =SUMIF(OFFSET($A27,1,0):$A908,$A27,OFFSET(AF27,1,0):AF908) -> 0 | AG27: 2.406 | AH27: 1.6 | AI27: =SUMIF(OFFSET($A27,1,0):$A908,$A27,OFFSET(AI27,1,0):AI908) -> 0 | AJ27: =SUMIF(OFFSET($A27,1,0):$A908,$A27,OFFSET(AJ27,1,0):AJ908) -> 0 | AK27: =SUMIF(OFFSET($A27,1,0):$A908,$A27,OFFSET(AK27,1,0):AK908) -> 0 | AL27: 0
A28: 1.2.1.1 | B28: Реконструкция ТП-7011, ТП-1072, ТП-1017, ТП-1078, г. Верхняя Салда | E28: 0 | F28: 0 | G28: 0 | H28: 0 | I28: 0 | J28: 0 | L28: 0 | M28: 0 | N28: 0 | O28: 0 | P28: 0 | Q28: 0 | S28: 0 | T28: 0 | U28: 0 | W28: 0 | X28: 0 | Z28: 2.406 | AA28: 1.6 | AB28: 0 | AC28: 0 | AE28: 0 | AG28: 2.406 | AH28: 1.6 | AI28: 0 | AJ28: 0 | AK28: 0 | AL28: 0 | AM28: =IF(E28>0,1,IF(L28>0,2,IF(S28>0,3,IF(Z28>0,4,"")))) -> 4
A29: 1.2.2 | B29: Реконструкция, модернизация, техническое перевооружение линий электропередачи, всего, в том числе: | C29: 0 | E29: 0 | F29: 0 | G29: 0 | H29: 0 | I29: 0 | J29: 0 | L29: 0.826 | M29: 0 | N29: 0 | O29: 0 | P29: 0 | Q29: 1 | S29: 0 | T29: 0 | U29: 0 | V29: 0 | W29: 0 | X29: 0 | Z29: 0 | AA29: 0 | AB29: 0 | AC29: 0 | AE29: 0 | AG29: 0.826 | AH29: 0 | AI29: 0 | AJ29: 0 | AK29: 0 | AL29: 1 | AM29: =IF(E29>0,1,IF(L29>0,2,IF(S29>0,3,IF(Z29>0,4,"")))) -> 2
A30: 1.2.2.1 | B30: Реконструкция линий электропередачи, всего, в том числе: | C30: 0 | E30: 0 | F30: 0 | G30: 0 | H30: 0 | I30: 0 | J30: 0 | L30: 0.826 | M30: 0 | N30: 0 | O30: 0 | P30: 0 | Q30: 1 | S30: 0 | T30: 0 | U30: 0 | V30: 0 | W30: 0 | X30: 0 | Z30: 0 | AA30: 0 | AB30: 0 | AC30: 0 | AE30: 0 | AG30: 0.826 | AH30: 0 | AI30: 0 | AJ30: 0 | AK30: 0 | AL30: 1 | AM30: 2
A31: 1.2.2.1 | B31: Реконструкция ВЛ-6 кВ ПС Басьяновка, г. Верхняя Салда | E31: 0 | F31: 0 | G31: 0 | H31: 0 | I31: 0 | J31: 0 | L31: 0.826 | M31: 0 | N31: 0 | O31: 0 | P31: 0 | Q31: 1 | S31: 0 | T31: 0 | U31: 0 | V31: 0 | W31: 0 | X31: 0 | Z31: 0 | AA31: 0 | AB31: 0 | AC31: 0 | AE31: 0 | AG31: 0.826 | AH31: 0 | AI31: 0 | AJ31: 0 | AK31: 0 | AL31: 1 | AM31: 2
A32: 1.2.3 | B32: Развитие и модернизация учета электрической энергии (мощности), всего, в том числе: | C32: 0 | E32: 0 | F32: 0 | G32: 0 | H32: 0 | I32: 0 | J32: 0 | L32: 0 | M32: 0 | N32: 0 | O32: 0 | P32: 0 | Q32: 0 | S32: 8.611 | T32: 0 | U32: 0 | V32: 0 | W32: 0 | X32: 395 | Z32: 0 | AA32: 0 | AB32: 0 | AC32: 0 | AE32: 0 | AG32: 8.611 | AH32: 0 | AI32: 0 | AJ32: 0 | AK32: 0 | AL32: 395 | AM32: 3
A33: 1.2.3.1 | B33: «Установка приборов учета, класс напряжения 0,22 (0,4) кВ, всего, в том числе:» | C33: 0 | E33: 0 | F33: 0 | G33: 0 | H33: 0 | I33: 0 | J33: 0 | L33: 0 | M33: 0 | N33: 0 | O33: 0 | P33: 0 | Q33: 0 | S33: 8.611 | T33: 0 | U33: 0 | V33: 0 | W33: 0 | X33: 395 | Z33: 0 | AA33: 0 | AB33: 0 | AC33: 0 | AE33: 0 | AG33: 8.611 | AH33: 0 | AI33: 0 | AJ33: 0 | AK33: 0 | AL33: 395 | AM33: 3
A34: 1.2.3.1 | B34: Развитие системы АИИСКУЭ в сетях 0,4 кВ, г. Верхняя Салда | E34: 0 | F34: 0 | G34: 0 | H34: 0 | I34: 0 | J34: 0 | L34: 0 | M34: 0 | N34: 0 | O34: 0 | P34: 0 | Q34: 0 | S34: 8.611 | T34: 0 | U34: 0 | V34: 0 | W34: 0 | X34: 395 | Z34: 0 | AA34: 0 | AB34: 0 | AC34: 0 | AE34: 0 | AG34: 8.611 | AH34: 0 | AI34: 0 | AJ34: 0 | AK34: 0 | AL34: 395 | AM34: 3
A35: 1.6 | B35: Прочие инвестиционные проекты, всего, в том числе: | C35: 0 | E35: 0 | F35: 0 | G35: 0 | H35: 0 | I35: 0 | J35: 0 | L35: 1.842 | M35: 0 | N35: 0 | O35: 0 | P35: 0 | Q35: 0 | S35: 0 | T35: 0 | U35: 0 | V35: 0 | W35: 0 | X35: 0 | Z35: 2.396 | AA35: 0 | AB35: 0 | AC35: 0 | AE35: 10 | AG35: =SUM(L35,Z35) -> 4.238 | AH35: 0 | AI35: 0 | AJ35: 0 | AK35: 0 | AL35: 14 | AM35: 2
A36: 1.6 | B36: Развитие системы АИИСКУЭ в сетях 6/10 кВ, г. Верхняя Салда | E36: 0 | F36: 0 | G36: 0 | H36: 0 | I36: 0 | J36: 0 | L36: 0 | M36: 0 | N36: 0 | O36: 0 | P36: 0 | Q36: 0 | S36: 0 | T36: 0 | U36: 0 | V36: 0 | W36: 0 | X36: 0 | Z36: 2.396 | AA36: 0 | AB36: 0 | AC36: 0 | AE36: 10 | AG36: 2.396 | AH36: 0 | AI36: 0 | AJ36: 0 | AK36: 0 | AL36: 10 | AM36: 4
A37: 1.6 | B37: Установка реклоузеров, г. Верхняя Салда | E37: 0 | F37: 0 | G37: 0 | H37: 0 | I37: 0 | J37: 0 | L37: 1.842 | M37: 0 | N37: 0 | O37: 0 | P37: 0 | Q37: 4 | S37: 0 | T37: 0 | U37: 0 | V37: 0 | W37: 0 | X37: 0 | Z37: 0 | AA37: 0 | AB37: 0 | AC37: 0 | AE37: 0 | AG37: 1.842 | AH37: 0 | AI37: 0 | AJ37: 0 | AK37: 0 | AL37: 4 | AM37: 2
AM38: =IF(#REF!>0,1,IF(#REF!>0,2,IF(#REF!>0,3,IF(#REF!>0,4,"")))) -> 
AM39: =IF(#REF!>0,1,IF(#REF!>0,2,IF(#REF!>0,3,IF(#REF!>0,4,"")))) -> 
AM40: =IF(#REF!>0,1,IF(#REF!>0,2,IF(#REF!>0,3,IF(#REF!>0,4,"")))) -> 
AM41: =IF(#REF!>0,1,IF(#REF!>0,2,IF(#REF!>0,3,IF(#REF!>0,4,"")))) -> 
AM42: =IF(#REF!>0,1,IF(#REF!>0,2,IF(#REF!>0,3,IF(#REF!>0,4,"")))) -> 
AM43: =IF(#REF!>0,1,IF(#REF!>0,2,IF(#REF!>0,3,IF(#REF!>0,4,"")))) -> 
AM45: =IF(#REF!>0,1,IF(#REF!>0,2,IF(#REF!>0,3,IF(#REF!>0,4,"")))) -> 
AM46: =IF(#REF!>0,1,IF(#REF!>0,2,IF(#REF!>0,3,IF(#REF!>0,4,"")))) -> 
AM47: =IF(#REF!>0,1,IF(#REF!>0,2,IF(#REF!>0,3,IF(#REF!>0,4,"")))) -> 
AM50: =IF(#REF!>0,1,IF(#REF!>0,2,IF(#REF!>0,3,IF(#REF!>0,4,"херня какая то")))) -> 
AM51: =IF(#REF!>0,1,IF(#REF!>0,2,IF(#REF!>0,3,IF(#REF!>0,4,"")))) -> 
AM52: =IF(#REF!>0,1,IF(#REF!>0,2,IF(#REF!>0,3,IF(#REF!>0,4,"")))) -> 
AM53: =IF(#REF!>0,1,IF(#REF!>0,2,IF(#REF!>0,3,IF(#REF!>0,4,"")))) -> 
AM54: =IF(#REF!>0,1,IF(#REF!>0,2,IF(#REF!>0,3,IF(#REF!>0,4,"")))) -> 
AM55: =IF(#REF!>0,1,IF(#REF!>0,2,IF(#REF!>0,3,IF(#REF!>0,4,"")))) -> 
AM56: =IF(#REF!>0,1,IF(#REF!>0,2,IF(#REF!>0,3,IF(#REF!>0,4,"")))) -> 
AM57: =IF(#REF!>0,1,IF(#REF!>0,2,IF(#REF!>0,3,IF(#REF!>0,4,"")))) -> 
AM58: =IF(#REF!>0,1,IF(#REF!>0,2,IF(#REF!>0,3,IF(#REF!>0,4,"")))) -> 
AM59: =IF(#REF!>0,1,IF(#REF!>0,2,IF(#REF!>0,3,IF(#REF!>0,4,"")))) -> 
AM60: =IF(#REF!>0,1,IF(#REF!>0,2,IF(#REF!>0,3,IF(#REF!>0,4,"")))) -> 
AM61: =IF(#REF!>0,1,IF(#REF!>0,2,IF(#REF!>0,3,IF(#REF!>0,4,"")))) -> 
AM62: =IF(#REF!>0,1,IF(#REF!>0,2,IF(#REF!>0,3,IF(#REF!>0,4,"")))) -> 
AM63: =IF(#REF!>0,1,IF(#REF!>0,2,IF(#REF!>0,3,IF(#REF!>0,4,"")))) -> 
AM64: =IF(#REF!>0,1,IF(#REF!>0,2,IF(#REF!>0,3,IF(#REF!>0,4,"")))) -> 
AM65: =IF(#REF!>0,1,IF(#REF!>0,2,IF(#REF!>0,3,IF(#REF!>0,4,"")))) -> 
AM66: =IF(#REF!>0,1,IF(#REF!>0,2,IF(#REF!>0,3,IF(#REF!>0,4,"")))) -> 
AM67: =IF(#REF!>0,1,IF(#REF!>0,2,IF(#REF!>0,3,IF(#REF!>0,4,"")))) -> 
AM68: =IF(#REF!>0,1,IF(#REF!>0,2,IF(#REF!>0,3,IF(#REF!>0,4,"")))) -> 
AM69: =IF(#REF!>0,1,IF(#REF!>0,2,IF(#REF!>0,3,IF(#REF!>0,4,"")))) -> 
AM70: =IF(#REF!>0,1,IF(#REF!>0,2,IF(#REF!>0,3,IF(#REF!>0,4,"")))) -> 
AM71: =IF(#REF!>0,1,IF(#REF!>0,2,IF(#REF!>0,3,IF(#REF!>0,4,"")))) -> 
AM72: =IF(#REF!>0,1,IF(#REF!>0,2,IF(#REF!>0,3,IF(#REF!>0,4,"")))) -> 
AM73: =IF(#REF!>0,1,IF(#REF!>0,2,IF(#REF!>0,3,IF(#REF!>0,4,"")))) -> 
AM74: =IF(#REF!>0,1,IF(#REF!>0,2,IF(#REF!>0,3,IF(#REF!>0,4,"")))) -> 
AM75: =IF(#REF!>0,1,IF(#REF!>0,2,IF(#REF!>0,3,IF(#REF!>0,4,"")))) -> 
AM76: =IF(#REF!>0,1,IF(#REF!>0,2,IF(#REF!>0,3,IF(#REF!>0,4,"")))) -> 
AM77: =IF(#REF!>0,1,IF(#REF!>0,2,IF(#REF!>0,3,IF(#REF!>0,4,"")))) -> 
AM78: =IF(#REF!>0,1,IF(#REF!>0,2,IF(#REF!>0,3,IF(#REF!>0,4,"")))) -> 
AM79: =IF(#REF!>0,1,IF(#REF!>0,2,IF(#REF!>0,3,IF(#REF!>0,4,"")))) -> 
AM80: =IF(#REF!>0,1,IF(#REF!>0,2,IF(#REF!>0,3,IF(#REF!>0,4,"")))) -> 
AM81: =IF(#REF!>0,1,IF(#REF!>0,2,IF(#REF!>0,3,IF(#REF!>0,4,"")))) -> 
AM82: =IF(#REF!>0,1,IF(#REF!>0,2,IF(#REF!>0,3,IF(#REF!>0,4,"")))) -> 
AM83: =IF(#REF!>0,1,IF(#REF!>0,2,IF(#REF!>0,3,IF(#REF!>0,4,"")))) -> 
AM84: =IF(#REF!>0,1,IF(#REF!>0,2,IF(#REF!>0,3,IF(#REF!>0,4,"")))) -> 
AM85: =IF(#REF!>0,1,IF(#REF!>0,2,IF(#REF!>0,3,IF(#REF!>0,4,"")))) -> 
AM86: =IF(#REF!>0,1,IF(#REF!>0,2,IF(#REF!>0,3,IF(#REF!>0,4,"")))) -> 
AM87: =IF(#REF!>0,1,IF(#REF!>0,2,IF(#REF!>0,3,IF(#REF!>0,4,"")))) -> 
AM88: =IF(#REF!>0,1,IF(#REF!>0,2,IF(#REF!>0,3,IF(#REF!>0,4,"")))) -> 
AM89: =IF(#REF!>0,1,IF(#REF!>0,2,IF(#REF!>0,3,IF(#REF!>0,4,"")))) -> 
AM90: =IF(#REF!>0,1,IF(#REF!>0,2,IF(#REF!>0,3,IF(#REF!>0,4,"")))) -> 
AM91: =IF(#REF!>0,1,IF(#REF!>0,2,IF(#REF!>0,3,IF(#REF!>0,4,"")))) -> 
AM94: =IF(#REF!>0,1,IF(#REF!>0,2,IF(#REF!>0,3,IF(#REF!>0,4,"")))) -> 
AM96: =IF(#REF!>0,1,IF(#REF!>0,2,IF(#REF!>0,3,IF(#REF!>0,4,"")))) -> 
AM97: =IF(#REF!>0,1,IF(#REF!>0,2,IF(#REF!>0,3,IF(#REF!>0,4,"")))) -> 
AM98: =IF(#REF!>0,1,IF(#REF!>0,2,IF(#REF!>0,3,IF(#REF!>0,4,"")))) -> 

Sheet 5.2
AL1: Приложение № 5
AL2: к приказу Минэнерго России
AL3: от «__» _____ 2016 г. №___
A4: Форма 5. План ввода основных средств (с распределением по кварталам)
A5: на 2021 год
A7: Инвестиционная программа АО "Облкоммунэнерго"
A8: полное наименование субъекта электроэнергетики
A10: Год раскрытия информации: 2019 год
A12: Утвержденные плановые значения показателей приведены в соответствии с ______________________________________________________________________________
A13: реквизиты решения органа исполнительной власти, утвердившего инвестиционную программу
A15: Номер группы инвести-ционных проектов | B15: Наименование инвестиционного проекта (группы инвестиционных проектов) | C15: Идентифика-тор инвестицион-ного проекта | D15: План принятия основных средств и нематериальных активов к бухгалтерскому учету на год
D16: I кв. | K16: II кв. | R16: III кв. | Y16: IV кв. | AF16: Итого план (утвержденный план) за год
D17: нематериальные активы | E17: основные средства | K17: нематериальные активы | L17: основные средства | R17: нематериальные активы | S17: основные средства | Y17: нематериальные активы | Z17: основные средства | AF17: нематериальные активы | AG17: основные средства
D18: млн рублей (без НДС) | E18: млн рублей (без НДС) | F18: МВ×А | G18: Мвар | H18: км ЛЭП | I18: МВт | J18: Другое | K18: млн рублей (без НДС) | L18: млн рублей (без НДС) | M18: МВ×А | N18: Мвар | O18: км ЛЭП | P18: МВт | Q18: Другое | R18: млн рублей (без НДС) | S18: млн рублей (без НДС) | T18: МВ×А | U18: Мвар | V18: км ЛЭП | W18: МВт | X18: Другое | Y18: млн рублей (без НДС) | Z18: млн рублей (без НДС) | AA18: МВ×А | AB18: Мвар | AC18: км ЛЭП | AD18: МВт | AE18: Другое | AF18: млн рублей (без НДС) | AG18: млн рублей (без НДС) | AH18: МВ×А | AI18: Мвар | AJ18: км ЛЭП | AK18: МВт | AL18: Другое
A19: 1 | B19: 2 | C19: 3 | D19: 4.1.1 | E19: 4.1.2 | F19: 4.1.3 | G19: 4.1.4 | H19: 4.1.5 | I19: 4.1.6 | J19: 4.1.7 | K19: 4.2.1 | L19: 4.2.2 | M19: 4.2.3 | N19: 4.2.4 | O19: 4.2.5 | P19: 4.2.6 | Q19: 4.2.7 | R19: 4.3.1 | S19: 4.3.2 | T19: 4.3.3 | U19: 4.3.4 | V19: 4.3.5 | W19: 4.3.6 | X19: 4.3.7 | Y19: 4.4.1 | Z19: 4.4.2 | AA19: 4.4.3 | AB19: 4.4.4 | AC19: 4.4.5 | AD19: 4.4.6 | AE19: 4.4.7 | AF19: 5 | AG19: 6 | AH19: 7 | AI19: 8 | AJ19: 9 | AK19: 10 | AL19: 11
A20: 0 | B20: ВСЕГО по инвестиционной программе, в том числе: | D20: =D21+D22+D23 -> 0 | E20: 0 | F20: 0 | G20: 0 | H20: 0 | I20: 0 | J20: 0 | K20: 0 | L20: 1.198 | M20: =M21+M22+M23 -> 0 | N20: 0 | O20: 0 | P20: 0 | Q20: 5 | R20: 0 | S20: 6.463 | T20: 0 | U20: 0 | V20: 0 | W20: 0 | X20: 296 | Y20: 0 | Z20: 8.409 | AA20: 0 | AB20: 0 | AC20: 9 | AD20: 0 | AE20: 6 | AF20: 0 | AG20: =SUM(L20,S20,Z20) -> 16.07 | AH20: 0 | AI20: =AI21+AI22+AI23 -> 0 | AJ20: 0 | AK20: 0 | AL20: 0
A21: 0.2 | B21: Реконструкция, модернизация, техническое перевооружение, всего | D21: =D25 -> 0 | E21: 0 | F21: 0 | G21: 0 | H21: 0 | I21: 0 | J21: 0 | K21: 0 | L21: 0 | M21: =M25 -> 0 | N21: 0 | O21: 0 | P21: 0 | Q21: 0 | R21: 0 | S21: 6.463 | T21: 0 | U21: 0 | V21: 0 | W21: 0 | X21: 296 | Y21: 0 | Z21: 5.645 | AA21: 0 | AB21: 0 | AC21: 9 | AD21: 0 | AE21: 0 | AF21: 0 | AG21: =SUM(S21,Z21) -> 12.108 | AH21: 0 | AI21: =AI25 -> 0 | AJ21: 0 | AK21: 0 | AL21: 0
A22: 0.3 | B22: Инвестиционные проекты, реализация которых обуславливается схемами и программами перспективного развития электроэнергетики, всего | D22: 0 | E22: 0 | F22: 0 | G22: 0 | H22: 0 | I22: 0 | J22: 0 | K22: 0 | L22: 0 | M22: 0 | N22: 0 | O22: 0 | P22: 0 | Q22: 0 | R22: 0 | S22: 0 | T22: 0 | U22: 0 | V22: 0 | W22: 0 | X22: 0 | Y22: 0 | Z22: 0 | AA22: 0 | AB22: 0 | AC22: 0 | AD22: 0 | AE22: 0 | AF22: 0 | AG22: 0 | AH22: 0 | AI22: 0 | AJ22: 0 | AK22: 0 | AL22: 0
A23: 0.6 | B23: Прочие инвестиционные проекты, всего | D23: =SUMIF(OFFSET($B23,1,0):$B926,"Прочие инвестиционные проекты, всего, в том числе:",OFFSET(D23,1,0):D926) -> 0 | E23: =SUMIF(OFFSET($B23,1,0):$B926,"Прочие инвестиционные проекты, всего, в том числе:",OFFSET(E23,1,0):E926) -> 0 | F23: =SUMIF(OFFSET($B23,1,0):$B926,"Прочие инвестиционные проекты, всего, в том числе:",OFFSET(F23,1,0):F926) -> 0 | G23: =SUMIF(OFFSET($B23,1,0):$B926,"Прочие инвестиционные проекты, всего, в том числе:",OFFSET(G23,1,0):G926) -> 0 | H23: =SUMIF(OFFSET($B23,1,0):$B926,"Прочие инвестиционные проекты, всего, в том числе:",OFFSET(H23,1,0):H926) -> 0 | I23: =SUMIF(OFFSET($B23,1,0):$B926,"Прочие инвестиционные проекты, всего, в том числе:",OFFSET(I23,1,0):I926) -> 0 | J23: =SUMIF(OFFSET($B23,1,0):$B926,"Прочие инвестиционные проекты, всего, в том числе:",OFFSET(J23,1,0):J926) -> 0 | K23: =SUMIF(OFFSET($B23,1,0):$B926,"Прочие инвестиционные проекты, всего, в том числе:",OFFSET(K23,1,0):K926) -> 0 | L23: 1.198 | M23: =SUMIF(OFFSET($B23,1,0):$B926,"Прочие инвестиционные проекты, всего, в том числе:",OFFSET(M23,1,0):M926) -> 0 | N23: =SUMIF(OFFSET($B23,1,0):$B926,"Прочие инвестиционные проекты, всего, в том числе:",OFFSET(N23,1,0):N926) -> 0 | O23: =SUMIF(OFFSET($B23,1,0):$B926,"Прочие инвестиционные проекты, всего, в том числе:",OFFSET(O23,1,0):O926) -> 0 | P23: =SUMIF(OFFSET($B23,1,0):$B926,"Прочие инвестиционные проекты, всего, в том числе:",OFFSET(P23,1,0):P926) -> 0 | Q23: 5 | R23: =SUMIF(OFFSET($B23,1,0):$B926,"Прочие инвестиционные проекты, всего, в том числе:",OFFSET(R23,1,0):R926) -> 0 | S23: =SUMIF(OFFSET($B23,1,0):$B926,"Прочие инвестиционные проекты, всего, в том числе:",OFFSET(S23,1,0):S926) -> 0 | T23: =SUMIF(OFFSET($B23,1,0):$B926,"Прочие инвестиционные проекты, всего, в том числе:",OFFSET(T23,1,0):T926) -> 0 | U23: =SUMIF(OFFSET($B23,1,0):$B926,"Прочие инвестиционные проекты, всего, в том числе:",OFFSET(U23,1,0):U926) -> 0 | V23: =SUMIF(OFFSET($B23,1,0):$B926,"Прочие инвестиционные проекты, всего, в том числе:",OFFSET(V23,1,0):V926) -> 0 | W23: =SUMIF(OFFSET($B23,1,0):$B926,"Прочие инвестиционные проекты, всего, в том числе:",OFFSET(W23,1,0):W926) -> 0 | X23: =SUMIF(OFFSET($B23,1,0):$B926,"Прочие инвестиционные проекты, всего, в том числе:",OFFSET(X23,1,0):X926) -> 0 | Y23: =SUMIF(OFFSET($B23,1,0):$B926,"Прочие инвестиционные проекты, всего, в том числе:",OFFSET(Y23,1,0):Y926) -> 0 | Z23: =SUMIF(OFFSET($B23,1,0):$B926,"Прочие инвестиционные проекты, всего, в том числе:",OFFSET(Z23,1,0):Z926) -> 2.764 | AA23: =SUMIF(OFFSET($B23,1,0):$B926,"Прочие инвестиционные проекты, всего, в том числе:",OFFSET(AA23,1,0):AA926) -> 0 | AB23: =SUMIF(OFFSET($B23,1,0):$B926,"Прочие инвестиционные проекты, всего, в том числе:",OFFSET(AB23,1,0):AB926) -> 0 | AC23: =SUMIF(OFFSET($B23,1,0):$B926,"Прочие инвестиционные проекты, всего, в том числе:",OFFSET(AC23,1,0):AC926) -> 0 | AD23: =SUMIF(OFFSET($B23,1,0):$B926,"Прочие инвестиционные проекты, всего, в том числе:",OFFSET(AD23,1,0):AD926) -> 0 | AE23: =SUMIF(OFFSET($B23,1,0):$B926,"Прочие инвестиционные проекты, всего, в том числе:",OFFSET(AE23,1,0):AE926) -> 6 | AF23: =SUMIF(OFFSET($B23,1,0):$B926,"Прочие инвестиционные проекты, всего, в том числе:",OFFSET(AF23,1,0):AF926) -> 0 | AG23: =SUM(L23,Z23) -> 3.962 | AH23: 0 | AI23: =SUMIF(OFFSET($B23,1,0):$B926,"Прочие инвестиционные проекты, всего, в том числе:",OFFSET(AI23,1,0):AI926) -> 0 | AJ23: =SUMIF(OFFSET($B23,1,0):$B926,"Прочие инвестиционные проекты, всего, в том числе:",OFFSET(AJ23,1,0):AJ926) -> 0 | AK23: =SUMIF(OFFSET($B23,1,0):$B926,"Прочие инвестиционные проекты, всего, в том числе:",OFFSET(AK23,1,0):AK926) -> 0 | AL23: =SUMIF(OFFSET($B23,1,0):$B926,"Прочие инвестиционные проекты, всего, в том числе:",OFFSET(AL23,1,0):AL926) -> 0
A24: 1 | B24: Свердловская область | D24: 0 | E24: =E25+E56 -> 0 | F24: =F25+F56 -> 0 | G24: 0 | H24: =H25+H56 -> 0 | I24: 0 | J24: =J25+J56 -> 0 | K24: 0 | L24: 0 | M24: =M25+M56 -> 0 | N24: =N25+N56 -> 0 | O24: =O25+O56 -> 0 | P24: =P25+P56 -> 0 | Q24: 0 | R24: 0 | S24: 6.463 | T24: =T25+T56 -> 0 | U24: =U25+U56 -> 0 | V24: =V25+V56 -> 0 | W24: =W25+W56 -> 0 | X24: 296 | Y24: =Y25+Y56 -> 0 | Z24: 5.645 | AA24: 0 | AB24: 0 | AC24: 9 | AD24: 0 | AE24: 0 | AF24: 0 | AG24: 16.07 | AH24: 0 | AI24: 0 | AJ24: 0 | AK24: 0 | AL24: 0
A25: 1.2 | B25: Реконструкция, модернизация, техническое перевооружение всего, в том числе: | D25: 0 | E25: 0 | F25: 0 | G25: 0 | H25: 0 | I25: 0 | J25: 0 | K25: 0 | L25: 0 | M25: 0 | N25: 0 | O25: 0 | P25: 0 | Q25: 0 | R25: 0 | S25: 6.463 | T25: 0 | U25: 0 | V25: 0 | W25: 0 | X25: 296 | Y25: 0 | Z25: 5.645 | AA25: 0 | AB25: 0 | AC25: 9 | AD25: 0 | AE25: 0 | AF25: 0 | AG25: =SUM(S25,Z25) -> 12.108 | AH25: 0 | AI25: 0 | AJ25: 0 | AK25: 0 | AL25: 0 | AM25: =AM26+AM53 -> 0
A26: 1.2.1 | B26: Реконструкция, модернизация, техническое перевооружение трансформаторных и иных подстанций, распределительных пунктов, всего, в том числе: | D26: 0 | E26: 0 | F26: 0 | G26: 0 | H26: 0 | I26: 0 | J26: 0 | K26: 0 | L26: 0 | M26: 0 | N26: 0 | O26: 0 | P26: 0 | Q26: 0 | R26: 0 | S26: 0 | T26: 0 | U26: 0 | V26: 0 | W26: 0 | X26: 0 | Y26: 0 | Z26: 0 | AA26: 0 | AB26: 0 | AC26: 0 | AD26: 0 | AE26: 0 | AF26: 0 | AG26: 0 | AH26: 0 | AI26: 0 | AJ26: 0 | AK26: 0 | AL26: 0
A27: 1.2.1.1 | B27: Реконструкция трансформаторных и иных подстанций, всего, в том числе: | D27: =SUMIF(OFFSET($A27,1,0):$A930,$A27,OFFSET(D27,1,0):D930) -> 0 | E27: =SUMIF(OFFSET($A27,1,0):$A930,$A27,OFFSET(E27,1,0):E930) -> 0 | F27: =SUMIF(OFFSET($A27,1,0):$A930,$A27,OFFSET(F27,1,0):F930) -> 0 | G27: =SUMIF(OFFSET($A27,1,0):$A930,$A27,OFFSET(G27,1,0):G930) -> 0 | H27: =SUMIF(OFFSET($A27,1,0):$A930,$A27,OFFSET(H27,1,0):H930) -> 0 | I27: =SUMIF(OFFSET($A27,1,0):$A930,$A27,OFFSET(I27,1,0):I930) -> 0 | J27: =SUMIF(OFFSET($A27,1,0):$A930,$A27,OFFSET(J27,1,0):J930) -> 0 | K27: =SUMIF(OFFSET($A27,1,0):$A930,$A27,OFFSET(K27,1,0):K930) -> 0 | L27: =SUMIF(OFFSET($A27,1,0):$A930,$A27,OFFSET(L27,1,0):L930) -> 0 | M27: =SUMIF(OFFSET($A27,1,0):$A930,$A27,OFFSET(M27,1,0):M930) -> 0 | N27: =SUMIF(OFFSET($A27,1,0):$A930,$A27,OFFSET(N27,1,0):N930) -> 0 | O27: =SUMIF(OFFSET($A27,1,0):$A930,$A27,OFFSET(O27,1,0):O930) -> 0 | P27: =SUMIF(OFFSET($A27,1,0):$A930,$A27,OFFSET(P27,1,0):P930) -> 0 | Q27: =SUMIF(OFFSET($A27,1,0):$A930,$A27,OFFSET(Q27,1,0):Q930) -> 0 | R27: =SUMIF(OFFSET($A27,1,0):$A930,$A27,OFFSET(R27,1,0):R930) -> 0 | S27: 0 | T27: =SUMIF(OFFSET($A27,1,0):$A930,$A27,OFFSET(T27,1,0):T930) -> 0 | U27: =SUMIF(OFFSET($A27,1,0):$A930,$A27,OFFSET(U27,1,0):U930) -> 0 | V27: =SUMIF(OFFSET($A27,1,0):$A930,$A27,OFFSET(V27,1,0):V930) -> 0 | W27: =SUMIF(OFFSET($A27,1,0):$A930,$A27,OFFSET(W27,1,0):W930) -> 0 | X27: =SUMIF(OFFSET($A27,1,0):$A930,$A27,OFFSET(X27,1,0):X930) -> 0 | Y27: =SUMIF(OFFSET($A27,1,0):$A930,$A27,OFFSET(Y27,1,0):Y930) -> 0 | Z27: =SUMIF(OFFSET($A27,1,0):$A930,$A27,OFFSET(Z27,1,0):Z930) -> 0 | AA27: =SUMIF(OFFSET($A27,1,0):$A930,$A27,OFFSET(AA27,1,0):AA930) -> 0 | AB27: =SUMIF(OFFSET($A27,1,0):$A930,$A27,OFFSET(AB27,1,0):AB930) -> 0 | AC27: =SUMIF(OFFSET($A27,1,0):$A930,$A27,OFFSET(AC27,1,0):AC930) -> 0 | AD27: =SUMIF(OFFSET($A27,1,0):$A930,$A27,OFFSET(AD27,1,0):AD930) -> 0 | AE27: =SUMIF(OFFSET($A27,1,0):$A930,$A27,OFFSET(AE27,1,0):AE930) -> 0 | AF27: =SUMIF(OFFSET($A27,1,0):$A930,$A27,OFFSET(AF27,1,0):AF930) -> 0 | AG27: 0 | AH27: 0 | AI27: =SUMIF(OFFSET($A27,1,0):$A930,$A27,OFFSET(AI27,1,0):AI930) -> 0 | AJ27: =SUMIF(OFFSET($A27,1,0):$A930,$A27,OFFSET(AJ27,1,0):AJ930) -> 0 | AK27: =SUMIF(OFFSET($A27,1,0):$A930,$A27,OFFSET(AK27,1,0):AK930) -> 0 | AL27: =SUMIF(OFFSET($A27,1,0):$A930,$A27,OFFSET(AL27,1,0):AL930) -> 0
A28: 1.2.1.2 | B28: Модернизация, техническое перевооружение трансформаторных и иных подстанций, распределительных пунктов, всего, в том числе: | E28: 0 | F28: 0 | G28: 0 | H28: 0 | I28: 0 | J28: 0 | L28: 0 | M28: 0 | N28: 0 | O28: 0 | P28: 0 | Q28: 0 | S28: 0 | T28: 0 | U28: 0 | V28: 0 | W28: 0 | X28: 0 | Y28: 0 | Z28: 0 | AA28: 0 | AB28: 0 | AC28: 0 | AD28: 0 | AE28: 0 | AG28: 0 | AH28: 0 | AI28: 0 | AJ28: 0 | AK28: 0 | AL28: 0 | AM28: =IF(E28>0,1,IF(L28>0,2,IF(S28>0,3,IF(Z28>0,4,"херня какая то")))) -> херня какая то
A29: 1.2.2 | B29: Реконструкция, модернизация, техническое перевооружение линий электропередачи, всего, в том числе: | E29: 0 | F29: 0 | G29: 0 | H29: 0 | I29: 0 | J29: 0 | L29: 0 | M29: 0 | N29: 0 | O29: 0 | P29: 0 | Q29: 0 | S29: 0 | T29: 0 | U29: 0 | V29: 0 | W29: 0 | X29: 0 | Y29: 0 | Z29: 5.645 | AA29: 0 | AB29: 0 | AC29: 9 | AD29: 0 | AE29: 0 | AG29: 5.645 | AH29: 0 | AI29: 0 | AJ29: 9 | AK29: 0 | AL29: 0 | AM29: 4
A30: 1.2.2.1 | B30: Реконструкция линий электропередачи, всего, в том числе: | E30: 0 | F30: 0 | G30: 0 | H30: 0 | I30: 0 | J30: 0 | L30: 0 | M30: 0 | N30: 0 | O30: 0 | P30: 0 | Q30: 0 | S30: 0 | T30: 0 | U30: 0 | V30: 0 | W30: 0 | X30: 0 | Y30: 0 | Z30: 5.645 | AA30: 0 | AB30: 0 | AC30: 9 | AD30: 0 | AE30: 0 | AG30: 5.645 | AH30: 0 | AI30: 0 | AJ30: 9 | AK30: 0 | AL30: 0 | AM30: 4
A31: 1.2.2.1 | B31: Реконструкция ВЛ-6 кВ ПС Басьяновка, г. Верхняя Салда | E31: 0 | F31: 0 | G31: 0 | H31: 0 | I31: 0 | J31: 0 | L31: 0 | M31: 0 | N31: 0 | O31: 0 | P31: 0 | Q31: 0 | S31: 0 | T31: 0 | U31: 0 | V31: 0 | W31: 0 | X31: 0 | Y31: 0 | Z31: 5.645 | AA31: 0 | AB31: 0 | AC31: 9 | AD31: 0 | AE31: 0 | AG31: 5.645 | AH31: 0 | AI31: 0 | AJ31: 9 | AK31: 0 | AL31: 0 | AM31: 4
A32: 1.2.3 | B32: Развитие и модернизация учета электрической энергии (мощности), всего, в том числе: | E32: 0 | F32: 0 | G32: 0 | H32: 0 | I32: 0 | J32: 0 | L32: 0 | M32: 0 | N32: 0 | O32: 0 | P32: 0 | Q32: 0 | S32: 6.463 | T32: 0 | U32: 0 | V32: 0 | W32: 0 | X32: 296 | Y32: 0 | Z32: 0 | AA32: 0 | AB32: 0 | AC32: 0 | AD32: 0 | AE32: 0 | AG32: 6.463 | AH32: 0 | AI32: 0 | AJ32: 0 | AK32: 0 | AL32: 296 | AM32: 3
A33: 1.2.3.1 | B33: «Установка приборов учета, класс напряжения 0,22 (0,4) кВ, всего, в том числе:» | E33: 0 | F33: 0 | G33: 0 | H33: 0 | I33: 0 | J33: 0 | L33: 0 | M33: 0 | N33: 0 | O33: 0 | P33: 0 | Q33: 0 | S33: 6.463 | T33: 0 | U33: 0 | V33: 0 | W33: 0 | X33: 296 | Y33: 0 | Z33: 0 | AA33: 0 | AB33: 0 | AC33: 0 | AD33: 0 | AE33: 0 | AG33: 6.463 | AH33: 0 | AI33: 0 | AJ33: 0 | AK33: 0 | AL33: 296 | AM33: 3
A34: 1.2.3.1 | B34: Развитие системы АИИСКУЭ в сетях 0,4 кВ, г. Верхняя Салда | E34: 0 | F34: 0 | G34: 0 | H34: 0 | I34: 0 | J34: 0 | L34: 0 | M34: 0 | N34: 0 | O34: 0 | P34: 0 | Q34: 0 | S34: 6.463 | T34: 0 | U34: 0 | V34: 0 | W34: 0 | X34: 296 | Y34: 0 | Z34: 0 | AA34: 0 | AB34: 0 | AC34: 0 | AD34: 0 | AE34: 0 | AG34: 6.463 | AH34: 0 | AI34: 0 | AJ34: 0 | AK34: 0 | AL34: 296 | AM34: 3
A35: 1.6 | B35: Прочие инвестиционные проекты, всего, в том числе: | E35: 0 | F35: 0 | G35: 0 | H35: 0 | I35: 0 | J35: 0 | L35: 0 | M35: 0 | N35: 0 | O35: 0 | P35: 0 | Q35: 0 | S35: 0 | T35: 0 | U35: 0 | V35: 0 | W35: 0 | X35: 0 | Y35: 0 | Z35: 2.764 | AA35: 0 | AB35: 0 | AC35: 0 | AD35: 0 | AE35: 6 | AG35: =SUM(AG36,AG37) -> 3.962 | AH35: 0 | AI35: 0 | AJ35: 0 | AK35: 0 | AL35: 0 | AM35: 4
A36: 1.6 | B36: Развитие системы АИИСКУЭ в сетях 6/10 кВ, г. Верхняя Салда | E36: 0 | F36: 0 | G36: 0 | H36: 0 | I36: 0 | J36: 0 | L36: 1.198 | M36: 0 | N36: 0 | O36: 0 | P36: 0 | Q36: 5 | S36: 0 | T36: 0 | U36: 0 | V36: 0 | W36: 0 | X36: 0 | Y36: 0 | Z36: 0 | AA36: 0 | AB36: 0 | AC36: 0 | AD36: 0 | AE36: 0 | AG36: 1.198 | AH36: 0 | AI36: 0 | AJ36: 0 | AK36: 0 | AL36: 5 | AM36: 2
A37: 1.6 | B37: Установка реклоузеров, г. Верхняя Салда | E37: 0 | F37: 0 | G37: 0 | H37: 0 | I37: 0 | J37: 0 | L37: 0 | M37: 0 | N37: 0 | O37: 0 | P37: 0 | Q37: 0 | S37: 0 | T37: 0 | U37: 0 | V37: 0 | W37: 0 | X37: 0 | Y37: 0 | Z37: 2.764 | AA37: 0 | AB37: 0 | AC37: 0 | AD37: 0 | AE37: 6 | AG37: 2.764 | AH37: 0 | AI37: 0 | AJ37: 0 | AK37: 0 | AL37: 6 | AM37: 4
AM38: =IF(#REF!>0,1,IF(#REF!>0,2,IF(#REF!>0,3,IF(#REF!>0,4,"херня какая то")))) -> 
AM39: =IF(#REF!>0,1,IF(#REF!>0,2,IF(#REF!>0,3,IF(#REF!>0,4,"херня какая то")))) -> 
AM40: =IF(#REF!>0,1,IF(#REF!>0,2,IF(#REF!>0,3,IF(#REF!>0,4,"херня какая то")))) -> 
AM41: =IF(#REF!>0,1,IF(#REF!>0,2,IF(#REF!>0,3,IF(#REF!>0,4,"херня какая то")))) -> 
AM42: =IF(#REF!>0,1,IF(#REF!>0,2,IF(#REF!>0,3,IF(#REF!>0,4,"херня какая то")))) -> 
AM43: =IF(#REF!>0,1,IF(#REF!>0,2,IF(#REF!>0,3,IF(#REF!>0,4,"херня какая то")))) -> 
AM45: =IF(#REF!>0,1,IF(#REF!>0,2,IF(#REF!>0,3,IF(#REF!>0,4,"херня какая то")))) -> 
AM46: =IF(#REF!>0,1,IF(#REF!>0,2,IF(#REF!>0,3,IF(#REF!>0,4,"херня какая то")))) -> 
AM47: =IF(#REF!>0,1,IF(#REF!>0,2,IF(#REF!>0,3,IF(#REF!>0,4,"херня какая то")))) -> 
AM48: =IF(#REF!>0,1,IF(#REF!>0,2,IF(#REF!>0,3,IF(#REF!>0,4,"херня какая то")))) -> 
AM49: =IF(#REF!>0,1,IF(#REF!>0,2,IF(#REF!>0,3,IF(#REF!>0,4,"херня какая то")))) -> 
AM50: =IF(#REF!>0,1,IF(#REF!>0,2,IF(#REF!>0,3,IF(#REF!>0,4,"херня какая то")))) -> 
AM51: =IF(#REF!>0,1,IF(#REF!>0,2,IF(#REF!>0,3,IF(#REF!>0,4,"херня какая то")))) -> 
AM52: =IF(#REF!>0,1,IF(#REF!>0,2,IF(#REF!>0,3,IF(#REF!>0,4,"херня какая то")))) -> 
AM55: =IF(#REF!>0,1,IF(#REF!>0,2,IF(#REF!>0,3,IF(#REF!>0,4,"херня какая то")))) -> 
AM56: =IF(#REF!>0,1,IF(#REF!>0,2,IF(#REF!>0,3,IF(#REF!>0,4,"херня какая то")))) -> 
AM57: =IF(#REF!>0,1,IF(#REF!>0,2,IF(#REF!>0,3,IF(#REF!>0,4,"херня какая то")))) -> 
AM58: =IF(#REF!>0,1,IF(#REF!>0,2,IF(#REF!>0,3,IF(#REF!>0,4,"херня какая то")))) -> 
AM59: =IF(#REF!>0,1,IF(#REF!>0,2,IF(#REF!>0,3,IF(#REF!>0,4,"херня какая то")))) -> 
AM60: =IF(#REF!>0,1,IF(#REF!>0,2,IF(#REF!>0,3,IF(#REF!>0,4,"херня какая то")))) -> 
AM61: =IF(#REF!>0,1,IF(#REF!>0,2,IF(#REF!>0,3,IF(#REF!>0,4,"херня какая то")))) -> 
AM62: =IF(#REF!>0,1,IF(#REF!>0,2,IF(#REF!>0,3,IF(#REF!>0,4,"херня какая то")))) -> 
AM63: =IF(#REF!>0,1,IF(#REF!>0,2,IF(#REF!>0,3,IF(#REF!>0,4,"херня какая то")))) -> 
AM64: =IF(#REF!>0,1,IF(#REF!>0,2,IF(#REF!>0,3,IF(#REF!>0,4,"херня какая то")))) -> 
AM65: =IF(#REF!>0,1,IF(#REF!>0,2,IF(#REF!>0,3,IF(#REF!>0,4,"херня какая то")))) -> 
AM66: =IF(#REF!>0,1,IF(#REF!>0,2,IF(#REF!>0,3,IF(#REF!>0,4,"херня какая то")))) -> 
AM67: =IF(#REF!>0,1,IF(#REF!>0,2,IF(#REF!>0,3,IF(#REF!>0,4,"херня какая то")))) -> 
AM68: =IF(#REF!>0,1,IF(#REF!>0,2,IF(#REF!>0,3,IF(#REF!>0,4,"херня какая то")))) -> 
AM69: =IF(#REF!>0,1,IF(#REF!>0,2,IF(#REF!>0,3,IF(#REF!>0,4,"херня какая то")))) -> 
AM70: =IF(#REF!>0,1,IF(#REF!>0,2,IF(#REF!>0,3,IF(#REF!>0,4,"херня какая то")))) -> 
AM71: =IF(#REF!>0,1,IF(#REF!>0,2,IF(#REF!>0,3,IF(#REF!>0,4,"херня какая то")))) -> 
AM72: =IF(#REF!>0,1,IF(#REF!>0,2,IF(#REF!>0,3,IF(#REF!>0,4,"херня какая то")))) -> 
AM73: =IF(#REF!>0,1,IF(#REF!>0,2,IF(#REF!>0,3,IF(#REF!>0,4,"херня какая то")))) -> 
AM74: =IF(#REF!>0,1,IF(#REF!>0,2,IF(#REF!>0,3,IF(#REF!>0,4,"херня какая то")))) -> 
AM75: =IF(#REF!>0,1,IF(#REF!>0,2,IF(#REF!>0,3,IF(#REF!>0,4,"херня какая то")))) -> 
AM76: =IF(#REF!>0,1,IF(#REF!>0,2,IF(#REF!>0,3,IF(#REF!>0,4,"херня какая то")))) -> 
AM77: =IF(#REF!>0,1,IF(#REF!>0,2,IF(#REF!>0,3,IF(#REF!>0,4,"херня какая то")))) -> 
AM78: =IF(#REF!>0,1,IF(#REF!>0,2,IF(#REF!>0,3,IF(#REF!>0,4,"херня какая то")))) -> 
AM79: =IF(#REF!>0,1,IF(#REF!>0,2,IF(#REF!>0,3,IF(#REF!>0,4,"херня какая то")))) -> 
AM80: =IF(#REF!>0,1,IF(#REF!>0,2,IF(#REF!>0,3,IF(#REF!>0,4,"херня какая то")))) -> 
AM81: =IF(#REF!>0,1,IF(#REF!>0,2,IF(#REF!>0,3,IF(#REF!>0,4,"херня какая то")))) -> 
AM82: =IF(#REF!>0,1,IF(#REF!>0,2,IF(#REF!>0,3,IF(#REF!>0,4,"херня какая то")))) -> 
AM83: =IF(#REF!>0,1,IF(#REF!>0,2,IF(#REF!>0,3,IF(#REF!>0,4,"херня какая то")))) -> 
AM84: =IF(#REF!>0,1,IF(#REF!>0,2,IF(#REF!>0,3,IF(#REF!>0,4,"херня какая то")))) -> 
AM85: =IF(#REF!>0,1,IF(#REF!>0,2,IF(#REF!>0,3,IF(#REF!>0,4,"херня какая то")))) -> 
AM86: =IF(#REF!>0,1,IF(#REF!>0,2,IF(#REF!>0,3,IF(#REF!>0,4,"херня какая то")))) -> 
AM87: =IF(#REF!>0,1,IF(#REF!>0,2,IF(#REF!>0,3,IF(#REF!>0,4,"херня какая то")))) -> 
AM88: =IF(#REF!>0,1,IF(#REF!>0,2,IF(#REF!>0,3,IF(#REF!>0,4,"херня какая то")))) -> 
AM90: =IF(#REF!>0,1,IF(#REF!>0,2,IF(#REF!>0,3,IF(#REF!>0,4,"херня какая то")))) -> 

Sheet 5.3
AL1: Приложение № 5
AL2: к приказу Минэнерго России
AL3: от «__» _____ 2016 г. №___
A4: Форма 5. План ввода основных средств (с распределением по кварталам)
A5: на 2023 год
A7: Инвестиционная программа АО "ВЭС"
A8: полное наименование субъекта электроэнергетики
A10: Год раскрытия информации: 2020 год
A12: Утвержденные плановые значения показателей приведены в соответствии с ______________________________________________________________________________
A13: реквизиты решения органа исполнительной власти, утвердившего инвестиционную программу
A15: Номер группы инвести-ционных проектов | B15: Наименование инвестиционного проекта (группы инвестиционных проектов) | C15: Идентифика-тор инвестицион-ного проекта | D15: План принятия основных средств и нематериальных активов к бухгалтерскому учету на год
D16: I кв. | K16: II кв. | R16: III кв. | Y16: IV кв. | AF16: Итого план (утвержденный план) за год
D17: нематериальные активы | E17: основные средства | K17: нематериальные активы | L17: основные средства | R17: нематериальные активы | S17: основные средства | Y17: нематериальные активы | Z17: основные средства | AF17: нематериальные активы | AG17: основные средства
D18: млн рублей (без НДС) | E18: млн рублей (без НДС) | F18: МВ×А | G18: Мвар | H18: км ЛЭП | I18: МВт | J18: Другое | K18: млн рублей (без НДС) | L18: млн рублей (без НДС) | M18: МВ×А | N18: Мвар | O18: км ЛЭП | P18: МВт | Q18: Другое | R18: млн рублей (без НДС) | S18: млн рублей (без НДС) | T18: МВ×А | U18: Мвар | V18: км ЛЭП | W18: МВт | X18: Другое | Y18: млн рублей (без НДС) | Z18: млн рублей (без НДС) | AA18: МВ×А | AB18: Мвар | AC18: км ЛЭП | AD18: МВт | AE18: Другое | AF18: млн рублей (без НДС) | AG18: млн рублей (без НДС) | AH18: МВ×А | AI18: Мвар | AJ18: км ЛЭП | AK18: МВт | AL18: Другое
A19: 1 | B19: 2 | C19: 3 | D19: 4.1.1 | E19: 4.1.2 | F19: 4.1.3 | G19: 4.1.4 | H19: 4.1.5 | I19: 4.1.6 | J19: 4.1.7 | K19: 4.2.1 | L19: 4.2.2 | M19: 4.2.3 | N19: 4.2.4 | O19: 4.2.5 | P19: 4.2.6 | Q19: 4.2.7 | R19: 4.3.1 | S19: 4.3.2 | T19: 4.3.3 | U19: 4.3.4 | V19: 4.3.5 | W19: 4.3.6 | X19: 4.3.7 | Y19: 4.4.1 | Z19: 4.4.2 | AA19: 4.4.3 | AB19: 4.4.4 | AC19: 4.4.5 | AD19: 4.4.6 | AE19: 4.4.7 | AF19: 5 | AG19: 6 | AH19: 7 | AI19: 8 | AJ19: 9 | AK19: 10 | AL19: 11
A20: 0 | B20: ВСЕГО по инвестиционной программе, в том числе: | D20: =D21+D22+D23 -> 0 | E20: 0 | F20: =F21+F22+F23 -> 0 | G20: 0 | H20: 0 | I20: 0 | J20: 0 | K20: 0 | L20: 1.438 | M20: 0 | N20: 0 | O20: 0 | P20: 0 | Q20: 6 | R20: 0 | S20: 6.463 | T20: 0 | U20: 0 | V20: 0 | W20: 0 | X20: 296 | Y20: 0 | Z20: 8.168 | AA20: 0 | AB20: 0 | AC20: 0 | AD20: 0 | AE20: 2 | AF20: 0 | AG20: =SUM(Z20,S20,L20) -> 16.069 | AH20: =AH21+AH22+AH23 -> 0 | AI20: 0 | AJ20: 0 | AK20: 0 | AL20: 304 | AM20: 0
A21: 0.2 | B21: Реконструкция, модернизация, техническое перевооружение, всего | D21: =D25 -> 0 | E21: =E25 -> 0 | F21: =F25 -> 0 | G21: 0 | H21: 0 | I21: 0 | J21: 0 | K21: 0 | L21: 0 | M21: 0 | N21: 0 | O21: 0 | P21: 0 | Q21: 0 | R21: 0 | S21: 6.463 | T21: 0 | U21: 0 | V21: 0 | W21: 0 | X21: 296 | Y21: 0 | Z21: 0 | AA21: 0 | AB21: 0 | AC21: 0 | AD21: 0 | AE21: 0 | AF21: 0 | AG21: 6.463 | AH21: =AH25 -> 0 | AI21: 0 | AJ21: 0 | AK21: 0 | AL21: 296 | AM21: 0
A22: 0.3 | B22: Инвестиционные проекты, реализация которых обуславливается схемами и программами перспективного развития электроэнергетики, всего
A23: 0.6 | B23: Прочие инвестиционные проекты, всего | D23: =SUMIF(OFFSET($B23,1,0):$B955,"Прочие инвестиционные проекты, всего, в том числе:",OFFSET(D23,1,0):D955) -> 0 | E23: =SUMIF(OFFSET($B23,1,0):$B955,"Прочие инвестиционные проекты, всего, в том числе:",OFFSET(E23,1,0):E955) -> 0 | F23: =SUMIF(OFFSET($B23,1,0):$B955,"Прочие инвестиционные проекты, всего, в том числе:",OFFSET(F23,1,0):F955) -> 0 | G23: =SUMIF(OFFSET($B23,1,0):$B955,"Прочие инвестиционные проекты, всего, в том числе:",OFFSET(G23,1,0):G955) -> 0 | H23: =SUMIF(OFFSET($B23,1,0):$B955,"Прочие инвестиционные проекты, всего, в том числе:",OFFSET(H23,1,0):H955) -> 0 | I23: =SUMIF(OFFSET($B23,1,0):$B955,"Прочие инвестиционные проекты, всего, в том числе:",OFFSET(I23,1,0):I955) -> 0 | J23: =SUMIF(OFFSET($B23,1,0):$B955,"Прочие инвестиционные проекты, всего, в том числе:",OFFSET(J23,1,0):J955) -> 0 | K23: =SUMIF(OFFSET($B23,1,0):$B955,"Прочие инвестиционные проекты, всего, в том числе:",OFFSET(K23,1,0):K955) -> 0 | L23: =SUMIF(OFFSET($B23,1,0):$B955,"Прочие инвестиционные проекты, всего, в том числе:",OFFSET(L23,1,0):L955) -> 1.438 | M23: =SUMIF(OFFSET($B23,1,0):$B955,"Прочие инвестиционные проекты, всего, в том числе:",OFFSET(M23,1,0):M955) -> 0 | N23: =SUMIF(OFFSET($B23,1,0):$B955,"Прочие инвестиционные проекты, всего, в том числе:",OFFSET(N23,1,0):N955) -> 0 | O23: =SUMIF(OFFSET($B23,1,0):$B955,"Прочие инвестиционные проекты, всего, в том числе:",OFFSET(O23,1,0):O955) -> 0 | P23: =SUMIF(OFFSET($B23,1,0):$B955,"Прочие инвестиционные проекты, всего, в том числе:",OFFSET(P23,1,0):P955) -> 0 | Q23: =SUMIF(OFFSET($B23,1,0):$B955,"Прочие инвестиционные проекты, всего, в том числе:",OFFSET(Q23,1,0):Q955) -> 6 | R23: =SUMIF(OFFSET($B23,1,0):$B955,"Прочие инвестиционные проекты, всего, в том числе:",OFFSET(R23,1,0):R955) -> 0 | S23: =SUMIF(OFFSET($B23,1,0):$B955,"Прочие инвестиционные проекты, всего, в том числе:",OFFSET(S23,1,0):S955) -> 0 | T23: =SUMIF(OFFSET($B23,1,0):$B955,"Прочие инвестиционные проекты, всего, в том числе:",OFFSET(T23,1,0):T955) -> 0 | U23: =SUMIF(OFFSET($B23,1,0):$B955,"Прочие инвестиционные проекты, всего, в том числе:",OFFSET(U23,1,0):U955) -> 0 | V23: =SUMIF(OFFSET($B23,1,0):$B955,"Прочие инвестиционные проекты, всего, в том числе:",OFFSET(V23,1,0):V955) -> 0 | W23: =SUMIF(OFFSET($B23,1,0):$B955,"Прочие инвестиционные проекты, всего, в том числе:",OFFSET(W23,1,0):W955) -> 0 | X23: =SUMIF(OFFSET($B23,1,0):$B955,"Прочие инвестиционные проекты, всего, в том числе:",OFFSET(X23,1,0):X955) -> 0 | Y23: =SUMIF(OFFSET($B23,1,0):$B955,"Прочие инвестиционные проекты, всего, в том числе:",OFFSET(Y23,1,0):Y955) -> 0 | Z23: =SUMIF(OFFSET($B23,1,0):$B955,"Прочие инвестиционные проекты, всего, в том числе:",OFFSET(Z23,1,0):Z955) -> 8.168 | AA23: =SUMIF(OFFSET($B23,1,0):$B955,"Прочие инвестиционные проекты, всего, в том числе:",OFFSET(AA23,1,0):AA955) -> 0 | AB23: =SUMIF(OFFSET($B23,1,0):$B955,"Прочие инвестиционные проекты, всего, в том числе:",OFFSET(AB23,1,0):AB955) -> 0 | AC23: =SUMIF(OFFSET($B23,1,0):$B955,"Прочие инвестиционные проекты, всего, в том числе:",OFFSET(AC23,1,0):AC955) -> 0 | AD23: =SUMIF(OFFSET($B23,1,0):$B955,"Прочие инвестиционные проекты, всего, в том числе:",OFFSET(AD23,1,0):AD955) -> 0 | AE23: 2 | AF23: =SUMIF(OFFSET($B23,1,0):$B955,"Прочие инвестиционные проекты, всего, в том числе:",OFFSET(AF23,1,0):AF955) -> 0 | AG23: =SUM(Z23,L23) -> 9.606 | AH23: =SUMIF(OFFSET($B23,1,0):$B955,"Прочие инвестиционные проекты, всего, в том числе:",OFFSET(AH23,1,0):AH955) -> 0 | AI23: =SUMIF(OFFSET($B23,1,0):$B955,"Прочие инвестиционные проекты, всего, в том числе:",OFFSET(AI23,1,0):AI955) -> 0 | AJ23: =SUMIF(OFFSET($B23,1,0):$B955,"Прочие инвестиционные проекты, всего, в том числе:",OFFSET(AJ23,1,0):AJ955) -> 0 | AK23: =SUMIF(OFFSET($B23,1,0):$B955,"Прочие инвестиционные проекты, всего, в том числе:",OFFSET(AK23,1,0):AK955) -> 0 | AL23: 8 | AM23: =SUMIF(OFFSET($B23,1,0):$B955,"Прочие инвестиционные проекты, всего, в том числе:",OFFSET(AM23,1,0):AM955) -> 0
A24: 1 | B24: Свердловская область | D24: 0 | E24: 0 | F24: 0 | G24: 0 | H24: 0 | I24: 0 | J24: 0 | K24: 0 | L24: 1.438 | M24: 0 | N24: 0 | O24: 0 | P24: 0 | Q24: 0 | R24: 0 | S24: =S25+S294 -> 6.463 | T24: =T25+T294 -> 0 | U24: 0 | V24: =V25+V294 -> 0 | W24: 0 | X24: =X25+X294 -> 296 | Y24: =Y25+Y294 -> 0 | Z24: 8.168 | AA24: 0 | AB24: 0 | AC24: 0 | AD24: 0 | AE24: =AE25+AE294 -> 0 | AF24: 0 | AG24: =SUM(Z24,S24,L24) -> 16.069 | AH24: 0 | AI24: 0 | AJ24: 0 | AK24: 0 | AL24: 304 | AM24: 0
A25: 1.2 | B25: Реконструкция, модернизация, техническое перевооружение всего, в том числе: | D25: 0 | E25: 0 | F25: 0 | G25: 0 | H25: 0 | I25: 0 | J25: 0 | K25: 0 | L25: 0 | M25: 0 | N25: 0 | O25: 0 | P25: 0 | Q25: 0 | R25: 0 | S25: 6.463 | T25: 0 | U25: 0 | V25: 0 | W25: 0 | X25: 296 | Y25: 0 | Z25: 0 | AA25: 0 | AB25: 0 | AC25: 0 | AD25: 0 | AE25: 0 | AF25: 0 | AG25: 6.463 | AH25: 0 | AI25: 0 | AJ25: 0 | AK25: 0 | AL25: 296 | AM25: 0
A26: 1.2.1 | B26: Реконструкция, модернизация, техническое перевооружение трансформаторных и иных подстанций, распределительных пунктов, всего, в том числе: | D26: 0 | E26: 0 | F26: 0 | G26: 0 | H26: 0 | I26: 0 | J26: 0 | K26: 0 | L26: 0 | M26: 0 | N26: 0 | O26: 0 | P26: 0 | Q26: 0 | R26: 0 | S26: 0 | T26: 0 | U26: 0 | V26: 0 | W26: 0 | X26: 0 | Y26: 0 | Z26: 0 | AA26: 0 | AB26: 0 | AC26: 0 | AD26: 0 | AE26: 0 | AF26: 0 | AG26: 0 | AH26: 0 | AI26: 0 | AJ26: 0 | AK26: 0 | AL26: 0 | AM26: 0
A27: 1.2.1.1 | B27: Реконструкция трансформаторных и иных подстанций, всего, в том числе: | D27: =SUMIF(OFFSET($A27,1,0):$A959,$A27,OFFSET(D27,1,0):D959) -> 0 | E27: =SUMIF(OFFSET($A27,1,0):$A959,$A27,OFFSET(E27,1,0):E959) -> 0 | F27: =SUMIF(OFFSET($A27,1,0):$A959,$A27,OFFSET(F27,1,0):F959) -> 0 | G27: =SUMIF(OFFSET($A27,1,0):$A959,$A27,OFFSET(G27,1,0):G959) -> 0 | H27: =SUMIF(OFFSET($A27,1,0):$A959,$A27,OFFSET(H27,1,0):H959) -> 0 | I27: =SUMIF(OFFSET($A27,1,0):$A959,$A27,OFFSET(I27,1,0):I959) -> 0 | J27: =SUMIF(OFFSET($A27,1,0):$A959,$A27,OFFSET(J27,1,0):J959) -> 0 | K27: =SUMIF(OFFSET($A27,1,0):$A959,$A27,OFFSET(K27,1,0):K959) -> 0 | L27: =SUMIF(OFFSET($A27,1,0):$A959,$A27,OFFSET(L27,1,0):L959) -> 0 | M27: =SUMIF(OFFSET($A27,1,0):$A959,$A27,OFFSET(M27,1,0):M959) -> 0 | N27: =SUMIF(OFFSET($A27,1,0):$A959,$A27,OFFSET(N27,1,0):N959) -> 0 | O27: =SUMIF(OFFSET($A27,1,0):$A959,$A27,OFFSET(O27,1,0):O959) -> 0 | P27: =SUMIF(OFFSET($A27,1,0):$A959,$A27,OFFSET(P27,1,0):P959) -> 0 | Q27: =SUMIF(OFFSET($A27,1,0):$A959,$A27,OFFSET(Q27,1,0):Q959) -> 0 | R27: =SUMIF(OFFSET($A27,1,0):$A959,$A27,OFFSET(R27,1,0):R959) -> 0 | S27: =SUMIF(OFFSET($A27,1,0):$A959,$A27,OFFSET(S27,1,0):S959) -> 0 | T27: =SUMIF(OFFSET($A27,1,0):$A959,$A27,OFFSET(T27,1,0):T959) -> 0 | U27: =SUMIF(OFFSET($A27,1,0):$A959,$A27,OFFSET(U27,1,0):U959) -> 0 | V27: =SUMIF(OFFSET($A27,1,0):$A959,$A27,OFFSET(V27,1,0):V959) -> 0 | W27: =SUMIF(OFFSET($A27,1,0):$A959,$A27,OFFSET(W27,1,0):W959) -> 0 | X27: =SUMIF(OFFSET($A27,1,0):$A959,$A27,OFFSET(X27,1,0):X959) -> 0 | Y27: =SUMIF(OFFSET($A27,1,0):$A959,$A27,OFFSET(Y27,1,0):Y959) -> 0 | Z27: =SUMIF(OFFSET($A27,1,0):$A959,$A27,OFFSET(Z27,1,0):Z959) -> 0 | AA27: =SUMIF(OFFSET($A27,1,0):$A959,$A27,OFFSET(AA27,1,0):AA959) -> 0 | AB27: =SUMIF(OFFSET($A27,1,0):$A959,$A27,OFFSET(AB27,1,0):AB959) -> 0 | AC27: =SUMIF(OFFSET($A27,1,0):$A959,$A27,OFFSET(AC27,1,0):AC959) -> 0 | AD27: =SUMIF(OFFSET($A27,1,0):$A959,$A27,OFFSET(AD27,1,0):AD959) -> 0 | AE27: =SUMIF(OFFSET($A27,1,0):$A959,$A27,OFFSET(AE27,1,0):AE959) -> 0 | AF27: =SUMIF(OFFSET($A27,1,0):$A959,$A27,OFFSET(AF27,1,0):AF959) -> 0 | AG27: =SUMIF(OFFSET($A27,1,0):$A959,$A27,OFFSET(AG27,1,0):AG959) -> 0 | AH27: =SUMIF(OFFSET($A27,1,0):$A959,$A27,OFFSET(AH27,1,0):AH959) -> 0 | AI27: =SUMIF(OFFSET($A27,1,0):$A959,$A27,OFFSET(AI27,1,0):AI959) -> 0 | AJ27: =SUMIF(OFFSET($A27,1,0):$A959,$A27,OFFSET(AJ27,1,0):AJ959) -> 0 | AK27: =SUMIF(OFFSET($A27,1,0):$A959,$A27,OFFSET(AK27,1,0):AK959) -> 0 | AL27: =SUMIF(OFFSET($A27,1,0):$A959,$A27,OFFSET(AL27,1,0):AL959) -> 0 | AM27: =SUMIF(OFFSET($A27,1,0):$A959,$A27,OFFSET(AM27,1,0):AM959) -> 0
A28: 1.2.1.2 | B28: Модернизация, техническое перевооружение трансформаторных и иных подстанций, распределительных пунктов, всего, в том числе: | E28: 0 | F28: 0 | G28: 0 | H28: 0 | I28: 0 | J28: 0 | K28: 0 | L28: 0 | M28: =IF(L28>0,$AH28,0) -> 0 | N28: =IF(L28>0,$AI28,0) -> 0 | O28: =IF(L28>0,$AJ28,0) -> 0 | P28: =IF(L28>0,$AK28,0) -> 0 | Q28: =IF(L28>0,$AL28,0) -> 0 | S28: 0 | T28: 0 | U28: =IF(S28>0,$AI28,0) -> 0 | V28: =IF(S28>0,$AJ28,0) -> 0 | W28: =IF(S28>0,$AK28,0) -> 0 | X28: =IF(S28>0,$AL28,0) -> 0 | Z28: 0 | AA28: =IF(Z28>0,$AH28,0) -> 0 | AB28: =IF(Z28>0,$AI28,0) -> 0 | AC28: =IF(Z28>0,$AJ28,0) -> 0 | AD28: =IF(Z28>0,$AK28,0) -> 0 | AE28: =IF(Z28>0,$AL28,0) -> 0 | AG28: 0 | AH28: =IF(AE28>0,$AJ28,0) -> 0 | AI28: 0 | AJ28: =IF(AG28>0,$AJ28,0) -> 0 | AK28: =IF(AH28>0,$AJ28,0) -> 0 | AL28: =IF(AI28>0,$AJ28,0) -> 0 | AM28: =IF(AJ28>0,$AJ28,0) -> 0
A29: 1.2.2 | B29: Реконструкция, модернизация, техническое перевооружение линий электропередачи, всего, в том числе: | E29: 0 | F29: 0 | G29: 0 | H29: 0 | I29: 0 | J29: 0 | K29: 0 | L29: 0 | M29: 0 | N29: 0 | O29: 0 | P29: 0 | Q29: 0 | S29: 0 | T29: =IF(S29>0,$AH29,0) -> 0 | U29: 0 | V29: 0 | W29: 0 | X29: 0 | Z29: 0 | AA29: 0 | AB29: 0 | AC29: 0 | AD29: 0 | AE29: 0 | AG29: 0 | AH29: 0 | AI29: 0 | AJ29: 0 | AK29: 0 | AL29: 0 | AM29: 0
A30: 1.2.2.1 | B30: Реконструкция линий электропередачи, всего, в том числе: | E30: 0 | F30: 0 | G30: 0 | H30: 0 | I30: 0 | J30: 0 | K30: 0 | L30: 0 | M30: 0 | N30: 0 | O30: 0 | P30: 0 | Q30: 0 | S30: 0 | T30: 0 | U30: 0 | V30: 0 | W30: 0 | X30: 0 | Z30: 0 | AA30: 0 | AB30: 0 | AC30: 0 | AD30: 0 | AE30: 0 | AG30: 0 | AH30: 0 | AI30: 0 | AJ30: 0 | AK30: 0 | AL30: 0 | AM30: 0
A31: 1.2.3 | B31: Развитие и модернизация учета электрической энергии (мощности), всего, в том числе: | E31: 0 | F31: 0 | G31: 0 | H31: 0 | I31: 0 | J31: 0 | K31: 0 | L31: 0 | M31: 0 | N31: 0 | O31: 0 | P31: 0 | Q31: 0 | S31: 6.463 | T31: 0 | U31: 0 | V31: 0 | W31: 0 | X31: 296 | Z31: 0 | AA31: 0 | AB31: 0 | AC31: 0 | AD31: 0 | AE31: 0 | AG31: 6.463 | AH31: 0 | AI31: 0 | AJ31: 0 | AK31: 0 | AL31: 296 | AM31: 0
A32: 1.2.3.1 | B32: «Установка приборов учета, класс напряжения 0,22 (0,4) кВ, всего, в том числе:» | E32: 0 | F32: 0 | G32: 0 | H32: 0 | I32: 0 | J32: 0 | K32: 0 | L32: 0 | M32: 0 | N32: 0 | O32: 0 | P32: 0 | Q32: 0 | S32: 6.463 | T32: 0 | U32: 0 | V32: 0 | W32: 0 | X32: 296 | Z32: 0 | AA32: 0 | AB32: 0 | AC32: 0 | AD32: 0 | AE32: 0 | AG32: 6.463 | AH32: 0 | AI32: 0 | AJ32: 0 | AK32: 0 | AL32: 296 | AM32: 0
A33: 1.2.3.1 | B33: Развитие системы АИИСКУЭ в сетях 0,4 кВ, г. Верхняя Салда | E33: 0 | F33: 0 | G33: 0 | H33: 0 | I33: 0 | J33: 0 | K33: 0 | L33: 0 | M33: 0 | N33: 0 | O33: 0 | P33: 0 | Q33: 0 | S33: 6.463 | T33: 0 | U33: 0 | V33: 0 | W33: 0 | X33: 296 | Z33: 0 | AA33: 0 | AB33: 0 | AC33: 0 | AD33: 0 | AE33: 0 | AG33: 6.463 | AH33: 0 | AI33: 0 | AJ33: 0 | AK33: 0 | AL33: 296 | AM33: 0
A34: 1.6 | B34: Прочие инвестиционные проекты, всего, в том числе: | E34: 0 | F34: 0 | G34: 0 | H34: 0 | I34: 0 | J34: 0 | K34: 0 | L34: 1.438 | M34: 0 | N34: 0 | O34: 0 | P34: 0 | Q34: 6 | S34: 0 | T34: 0 | U34: 0 | V34: 0 | W34: 0 | X34: 0 | Z34: =SUM(Z36,Z37) -> 8.168 | AA34: 0 | AB34: 0 | AC34: 0 | AD34: 0 | AE34: 2 | AG34: 8.168 | AH34: 0 | AI34: 0 | AJ34: 0 | AK34: 0 | AL34: 0 | AM34: 0
A35: 1.6 | B35: Развитие системы АИИСКУЭ в сетях 6/10 кВ, г. Верхняя Салда | E35: 0 | F35: 0 | G35: 0 | H35: 0 | I35: 0 | J35: 0 | K35: 0 | L35: 1.438 | M35: 0 | N35: 0 | O35: 0 | P35: 0 | Q35: 6 | S35: 0 | T35: 0 | U35: 0 | V35: 0 | W35: 0 | X35: 0 | Z35: 0 | AA35: 0 | AB35: 0 | AC35: 0 | AD35: 0 | AE35: 0 | AG35: 1.438 | AH35: 0 | AI35: 0 | AJ35: 0 | AK35: 0 | AL35: 6 | AM35: 0
A36: 1.6 | B36: Приобретение передвижной электротехнической лаборатории | E36: 0 | F36: 0 | G36: 0 | H36: 0 | I36: 0 | J36: 0 | K36: 0 | L36: 0 | M36: 0 | N36: 0 | O36: 0 | P36: 0 | Q36: 0 | S36: 0 | T36: 0 | U36: 0 | V36: 0 | W36: 0 | X36: 0 | Z36: 3.982 | AA36: 0 | AB36: 0 | AC36: 0 | AD36: 0 | AE36: 1 | AG36: 3.982 | AH36: 0 | AI36: 0 | AJ36: 0 | AK36: 0 | AL36: 1 | AM36: 0
A37: 1.6 | B37: Реконструкция кровли теплой автостоянки для строительно- эксплуатационной техники, г. Верхняя Салда | E37: 0 | F37: 0 | G37: 0 | H37: 0 | I37: 0 | J37: 0 | K37: 0 | L37: 0 | M37: 0 | N37: 0 | O37: 0 | P37: 0 | Q37: 0 | S37: 0 | T37: 0 | U37: 0 | V37: 0 | W37: 0 | X37: 0 | Z37: 4.186 | AA37: 0 | AB37: 0 | AC37: 0 | AD37: 0 | AE37: 1 | AG37: 4.186 | AH37: 0 | AI37: 0 | AJ37: 0 | AK37: 0 | AL37: 1 | AM37: 0
AM38: =IF(#REF!>0,1,IF(#REF!>0,2,IF(#REF!>0,3,IF(#REF!>0,4,"херня какая то")))) -> 
AM39: =IF(#REF!>0,1,IF(#REF!>0,2,IF(#REF!>0,3,IF(#REF!>0,4,"херня какая то")))) -> 
AM40: =IF(#REF!>0,1,IF(#REF!>0,2,IF(#REF!>0,3,IF(#REF!>0,4,"херня какая то")))) -> 
AM41: =IF(#REF!>0,1,IF(#REF!>0,2,IF(#REF!>0,3,IF(#REF!>0,4,"херня какая то")))) -> 
AM42: =IF(#REF!>0,1,IF(#REF!>0,2,IF(#REF!>0,3,IF(#REF!>0,4,"херня какая то")))) -> 
AM44: =IF(#REF!>0,1,IF(#REF!>0,2,IF(#REF!>0,3,IF(#REF!>0,4,"херня какая то")))) -> 
AM45: =IF(#REF!>0,1,IF(#REF!>0,2,IF(#REF!>0,3,IF(#REF!>0,4,"херня какая то")))) -> 
AM48: =IF(#REF!>0,1,IF(#REF!>0,2,IF(#REF!>0,3,IF(#REF!>0,4,"херня какая то")))) -> 
AM49: =IF(#REF!>0,1,IF(#REF!>0,2,IF(#REF!>0,3,IF(#REF!>0,4,"херня какая то")))) -> 
AM50: =IF(#REF!>0,1,IF(#REF!>0,2,IF(#REF!>0,3,IF(#REF!>0,4,"херня какая то")))) -> 
AM51: =IF(#REF!>0,1,IF(#REF!>0,2,IF(#REF!>0,3,IF(#REF!>0,4,"херня какая то")))) -> 
AM52: =IF(#REF!>0,1,IF(#REF!>0,2,IF(#REF!>0,3,IF(#REF!>0,4,"херня какая то")))) -> 
AM53: =IF(#REF!>0,1,IF(#REF!>0,2,IF(#REF!>0,3,IF(#REF!>0,4,"херня какая то")))) -> 
AM54: =IF(#REF!>0,1,IF(#REF!>0,2,IF(#REF!>0,3,IF(#REF!>0,4,"херня какая то")))) -> 
AM55: =IF(#REF!>0,1,IF(#REF!>0,2,IF(#REF!>0,3,IF(#REF!>0,4,"херня какая то")))) -> 
AM56: =IF(#REF!>0,1,IF(#REF!>0,2,IF(#REF!>0,3,IF(#REF!>0,4,"херня какая то")))) -> 
AM57: =IF(#REF!>0,1,IF(#REF!>0,2,IF(#REF!>0,3,IF(#REF!>0,4,"херня какая то")))) -> 
AM58: =IF(#REF!>0,1,IF(#REF!>0,2,IF(#REF!>0,3,IF(#REF!>0,4,"херня какая то")))) -> 
AM59: =IF(#REF!>0,1,IF(#REF!>0,2,IF(#REF!>0,3,IF(#REF!>0,4,"херня какая то")))) -> 
AM60: =IF(#REF!>0,1,IF(#REF!>0,2,IF(#REF!>0,3,IF(#REF!>0,4,"херня какая то")))) -> 
AM61: =IF(#REF!>0,1,IF(#REF!>0,2,IF(#REF!>0,3,IF(#REF!>0,4,"херня какая то")))) -> 
AM62: =IF(#REF!>0,1,IF(#REF!>0,2,IF(#REF!>0,3,IF(#REF!>0,4,"херня какая то")))) -> 
AM65: =IF(#REF!>0,1,IF(#REF!>0,2,IF(#REF!>0,3,IF(#REF!>0,4,"херня какая то")))) -> 
AM67: =IF(#REF!>0,1,IF(#REF!>0,2,IF(#REF!>0,3,IF(#REF!>0,4,"херня какая то")))) -> 

Sheet 5.4
AL1: Приложение № 5
AL2: к приказу Минэнерго России
AL3: от «__» _____ 2016 г. №___
A4: Форма 5. План ввода основных средств (с распределением по кварталам)
A5: на 2024 год
A7: Инвестиционная программа АО "ВЭС"
A8: полное наименование субъекта электроэнергетики
A10: Год раскрытия информации: 2020 год
A12: Утвержденные плановые значения показателей приведены в соответствии с ______________________________________________________________________________
A13: реквизиты решения органа исполнительной власти, утвердившего инвестиционную программу
A15: Номер группы инвести-ционных проектов | B15: Наименование инвестиционного проекта (группы инвестиционных проектов) | C15: Идентифика-тор инвестицион-ного проекта | D15: План принятия основных средств и нематериальных активов к бухгалтерскому учету на год
D16: I кв. | K16: II кв. | R16: III кв. | Y16: IV кв. | AF16: Итого план (утвержденный план) за год
D17: нематериальные активы | E17: основные средства | K17: нематериальные активы | L17: основные средства | R17: нематериальные активы | S17: основные средства | Y17: нематериальные активы | Z17: основные средства | AF17: нематериальные активы | AG17: основные средства
D18: млн рублей (без НДС) | E18: млн рублей (без НДС) | F18: МВ×А | G18: Мвар | H18: км ЛЭП | I18: МВт | J18: Другое | K18: млн рублей (без НДС) | L18: млн рублей (без НДС) | M18: МВ×А | N18: Мвар | O18: км ЛЭП | P18: МВт | Q18: Другое | R18: млн рублей (без НДС) | S18: млн рублей (без НДС) | T18: МВ×А | U18: Мвар | V18: км ЛЭП | W18: МВт | X18: Другое | Y18: млн рублей (без НДС) | Z18: млн рублей (без НДС) | AA18: МВ×А | AB18: Мвар | AC18: км ЛЭП | AD18: МВт | AE18: Другое | AF18: млн рублей (без НДС) | AG18: млн рублей (без НДС) | AH18: МВ×А | AI18: Мвар | AJ18: км ЛЭП | AK18: МВт | AL18: Другое
A19: 1 | B19: 2 | C19: 3 | D19: 4.1.1 | E19: 4.1.2 | F19: 4.1.3 | G19: 4.1.4 | H19: 4.1.5 | I19: 4.1.6 | J19: 4.1.7 | K19: 4.2.1 | L19: 4.2.2 | M19: 4.2.3 | N19: 4.2.4 | O19: 4.2.5 | P19: 4.2.6 | Q19: 4.2.7 | R19: 4.3.1 | S19: 4.3.2 | T19: 4.3.3 | U19: 4.3.4 | V19: 4.3.5 | W19: 4.3.6 | X19: 4.3.7 | Y19: 4.4.1 | Z19: 4.4.2 | AA19: 4.4.3 | AB19: 4.4.4 | AC19: 4.4.5 | AD19: 4.4.6 | AE19: 4.4.7 | AF19: 5 | AG19: 6 | AH19: 7 | AI19: 8 | AJ19: 9 | AK19: 10 | AL19: 11
A20: 0 | B20: ВСЕГО по инвестиционной программе, в том числе: | C20: 0 | D20: =D21+D22+D23 -> 0 | E20: =E21+E22+E23 -> 0 | F20: 0 | G20: 0 | H20: 0 | I20: 0 | J20: 0 | K20: 0 | L20: 1.75 | M20: 0 | N20: 0 | O20: 0 | P20: 0 | Q20: 2 | R20: 0 | S20: 6.007 | T20: 0 | U20: 0 | V20: 0 | W20: 0 | X20: 11 | Y20: 0 | Z20: 8.306 | AA20: 0 | AB20: 0 | AC20: 0 | AD20: 0 | AE20: 380 | AF20: 0 | AG20: =SUM(Z20,L20,S20) -> 16.063 | AH20: 0 | AI20: 0 | AJ20: 0 | AK20: 0 | AL20: 393
A21: 0.2 | B21: Реконструкция, модернизация, техническое перевооружение, всего | C21: 0 | D21: =D25 -> 0 | E21: =E25 -> 0 | F21: 0 | G21: 0 | H21: 0 | I21: 0 | J21: 0 | K21: 0 | L21: 1.75 | M21: 0 | N21: 0 | O21: 0 | P21: 0 | Q21: 2 | R21: 0 | S21: 6.007 | T21: 0 | U21: 0 | V21: 0 | W21: 0 | X21: 11 | Y21: 0 | Z21: 8.306 | AA21: 0 | AB21: 0 | AC21: 0 | AD21: 0 | AE21: 380 | AF21: 0 | AG21: =SUM(Z21,L21) -> 10.056 | AH21: 0 | AI21: 0 | AJ21: 0 | AK21: 0 | AL21: 393
A22: 0.3 | B22: Инвестиционные проекты, реализация которых обуславливается схемами и программами перспективного развития электроэнергетики, всего | C22: 0
A23: 0.6 | B23: Прочие инвестиционные проекты, всего | C23: 0 | D23: =SUMIF(OFFSET($B23,1,0):$B945,"Прочие инвестиционные проекты, всего, в том числе:",OFFSET(D23,1,0):D945) -> 0 | E23: =SUMIF(OFFSET($B23,1,0):$B945,"Прочие инвестиционные проекты, всего, в том числе:",OFFSET(E23,1,0):E945) -> 0 | F23: =SUMIF(OFFSET($B23,1,0):$B945,"Прочие инвестиционные проекты, всего, в том числе:",OFFSET(F23,1,0):F945) -> 0 | G23: =SUMIF(OFFSET($B23,1,0):$B945,"Прочие инвестиционные проекты, всего, в том числе:",OFFSET(G23,1,0):G945) -> 0 | H23: =SUMIF(OFFSET($B23,1,0):$B945,"Прочие инвестиционные проекты, всего, в том числе:",OFFSET(H23,1,0):H945) -> 0 | I23: =SUMIF(OFFSET($B23,1,0):$B945,"Прочие инвестиционные проекты, всего, в том числе:",OFFSET(I23,1,0):I945) -> 0 | J23: =SUMIF(OFFSET($B23,1,0):$B945,"Прочие инвестиционные проекты, всего, в том числе:",OFFSET(J23,1,0):J945) -> 0 | K23: =SUMIF(OFFSET($B23,1,0):$B945,"Прочие инвестиционные проекты, всего, в том числе:",OFFSET(K23,1,0):K945) -> 0 | L23: =SUMIF(OFFSET($B23,1,0):$B945,"Прочие инвестиционные проекты, всего, в том числе:",OFFSET(L23,1,0):L945) -> 0 | M23: =SUMIF(OFFSET($B23,1,0):$B945,"Прочие инвестиционные проекты, всего, в том числе:",OFFSET(M23,1,0):M945) -> 0 | N23: =SUMIF(OFFSET($B23,1,0):$B945,"Прочие инвестиционные проекты, всего, в том числе:",OFFSET(N23,1,0):N945) -> 0 | O23: =SUMIF(OFFSET($B23,1,0):$B945,"Прочие инвестиционные проекты, всего, в том числе:",OFFSET(O23,1,0):O945) -> 0 | P23: =SUMIF(OFFSET($B23,1,0):$B945,"Прочие инвестиционные проекты, всего, в том числе:",OFFSET(P23,1,0):P945) -> 0 | Q23: =SUMIF(OFFSET($B23,1,0):$B945,"Прочие инвестиционные проекты, всего, в том числе:",OFFSET(Q23,1,0):Q945) -> 0 | R23: =SUMIF(OFFSET($B23,1,0):$B945,"Прочие инвестиционные проекты, всего, в том числе:",OFFSET(R23,1,0):R945) -> 0 | S23: =SUMIF(OFFSET($B23,1,0):$B945,"Прочие инвестиционные проекты, всего, в том числе:",OFFSET(S23,1,0):S945) -> 0 | T23: =SUMIF(OFFSET($B23,1,0):$B945,"Прочие инвестиционные проекты, всего, в том числе:",OFFSET(T23,1,0):T945) -> 0 | U23: =SUMIF(OFFSET($B23,1,0):$B945,"Прочие инвестиционные проекты, всего, в том числе:",OFFSET(U23,1,0):U945) -> 0 | V23: =SUMIF(OFFSET($B23,1,0):$B945,"Прочие инвестиционные проекты, всего, в том числе:",OFFSET(V23,1,0):V945) -> 0 | W23: =SUMIF(OFFSET($B23,1,0):$B945,"Прочие инвестиционные проекты, всего, в том числе:",OFFSET(W23,1,0):W945) -> 0 | X23: =SUMIF(OFFSET($B23,1,0):$B945,"Прочие инвестиционные проекты, всего, в том числе:",OFFSET(X23,1,0):X945) -> 0 | Y23: =SUMIF(OFFSET($B23,1,0):$B945,"Прочие инвестиционные проекты, всего, в том числе:",OFFSET(Y23,1,0):Y945) -> 0 | Z23: =SUMIF(OFFSET($B23,1,0):$B945,"Прочие инвестиционные проекты, всего, в том числе:",OFFSET(Z23,1,0):Z945) -> 0 | AA23: =SUMIF(OFFSET($B23,1,0):$B945,"Прочие инвестиционные проекты, всего, в том числе:",OFFSET(AA23,1,0):AA945) -> 0 | AB23: =SUMIF(OFFSET($B23,1,0):$B945,"Прочие инвестиционные проекты, всего, в том числе:",OFFSET(AB23,1,0):AB945) -> 0 | AC23: =SUMIF(OFFSET($B23,1,0):$B945,"Прочие инвестиционные проекты, всего, в том числе:",OFFSET(AC23,1,0):AC945) -> 0 | AD23: =SUMIF(OFFSET($B23,1,0):$B945,"Прочие инвестиционные проекты, всего, в том числе:",OFFSET(AD23,1,0):AD945) -> 0 | AE23: =SUMIF(OFFSET($B23,1,0):$B945,"Прочие инвестиционные проекты, всего, в том числе:",OFFSET(AE23,1,0):AE945) -> 0 | AF23: =SUMIF(OFFSET($B23,1,0):$B945,"Прочие инвестиционные проекты, всего, в том числе:",OFFSET(AF23,1,0):AF945) -> 0 | AG23: =SUMIF(OFFSET($B23,1,0):$B945,"Прочие инвестиционные проекты, всего, в том числе:",OFFSET(AG23,1,0):AG945) -> 0 | AH23: =SUMIF(OFFSET($B23,1,0):$B945,"Прочие инвестиционные проекты, всего, в том числе:",OFFSET(AH23,1,0):AH945) -> 0 | AI23: =SUMIF(OFFSET($B23,1,0):$B945,"Прочие инвестиционные проекты, всего, в том числе:",OFFSET(AI23,1,0):AI945) -> 0 | AJ23: =SUMIF(OFFSET($B23,1,0):$B945,"Прочие инвестиционные проекты, всего, в том числе:",OFFSET(AJ23,1,0):AJ945) -> 0 | AK23: =SUMIF(OFFSET($B23,1,0):$B945,"Прочие инвестиционные проекты, всего, в том числе:",OFFSET(AK23,1,0):AK945) -> 0 | AL23: =SUMIF(OFFSET($B23,1,0):$B945,"Прочие инвестиционные проекты, всего, в том числе:",OFFSET(AL23,1,0):AL945) -> 0
A24: 1 | B24: Свердловская область | C24: 0 | D24: =D25+D284 -> 0 | E24: =E25+E284 -> 0 | F24: 0 | G24: 0 | H24: 0 | I24: 0 | J24: 0 | K24: 0 | L24: =L25+L284 -> 1.75 | M24: =M25+M284 -> 0 | N24: 0 | O24: 0 | P24: 0 | Q24: 2 | R24: 0 | S24: 6.007 | T24: 0 | U24: 0 | V24: 0 | W24: 0 | X24: 11 | Y24: 0 | Z24: 8.306 | AA24: 0 | AB24: 0 | AC24: 0 | AD24: 0 | AE24: 380 | AF24: 0 | AG24: =SUM(Z24,S24,L24) -> 16.063 | AH24: 0 | AI24: 0 | AJ24: 0 | AK24: 0 | AL24: 14
A25: 1.2 | B25: Реконструкция, модернизация, техническое перевооружение всего, в том числе: | C25: 0 | D25: 0 | E25: 0 | F25: 0 | G25: 0 | H25: 0 | I25: 0 | J25: 0 | K25: 0 | L25: 1.75 | M25: 0 | N25: 0 | O25: 0 | P25: 0 | Q25: 2 | R25: 0 | S25: 6.007 | T25: 0 | U25: 0 | V25: 0 | W25: 0 | X25: 11 | Y25: 0 | Z25: 8.306 | AA25: 0 | AB25: 0 | AC25: 0 | AD25: 0 | AE25: 380 | AF25: 0 | AG25: =SUM(S26,L26) -> 7.757 | AH25: 0 | AI25: 0 | AJ25: 0 | AK25: 0 | AL25: =SUM(AL26,AL30,AL35) -> 393
A26: 1.2.1 | B26: Реконструкция, модернизация, техническое перевооружение трансформаторных и иных подстанций, распределительных пунктов, всего, в том числе: | C26: 0 | D26: 0 | E26: 0 | F26: 0 | G26: 0 | H26: 0 | I26: 0 | J26: 0 | K26: 0 | L26: 1.75 | M26: 0 | N26: 0 | O26: 0 | P26: 0 | Q26: 2 | R26: 0 | S26: 6.007 | T26: 0 | U26: 0 | V26: 0 | W26: 0 | X26: 11 | Y26: 0 | Z26: 0 | AA26: 0 | AB26: 0 | AC26: 0 | AD26: 0 | AE26: 0 | AF26: 0 | AG26: 7.76 | AH26: 0 | AI26: 0 | AJ26: 0 | AK26: 0 | AL26: 2
A27: 1.2.1.1 | B27: Реконструкция трансформаторных и иных подстанций, всего, в том числе: | C27: 0 | D27: =SUMIF(OFFSET($A27,1,0):$A949,$A27,OFFSET(D27,1,0):D949) -> 0 | E27: =SUMIF(OFFSET($A27,1,0):$A949,$A27,OFFSET(E27,1,0):E949) -> 0 | F27: =SUMIF(OFFSET($A27,1,0):$A949,$A27,OFFSET(F27,1,0):F949) -> 0 | G27: =SUMIF(OFFSET($A27,1,0):$A949,$A27,OFFSET(G27,1,0):G949) -> 0 | H27: =SUMIF(OFFSET($A27,1,0):$A949,$A27,OFFSET(H27,1,0):H949) -> 0 | I27: =SUMIF(OFFSET($A27,1,0):$A949,$A27,OFFSET(I27,1,0):I949) -> 0 | J27: =SUMIF(OFFSET($A27,1,0):$A949,$A27,OFFSET(J27,1,0):J949) -> 0 | K27: =SUMIF(OFFSET($A27,1,0):$A949,$A27,OFFSET(K27,1,0):K949) -> 0 | L27: =SUMIF(OFFSET($A27,1,0):$A949,$A27,OFFSET(L27,1,0):L949) -> 1.746 | M27: =SUMIF(OFFSET($A27,1,0):$A949,$A27,OFFSET(M27,1,0):M949) -> 0 | N27: =SUMIF(OFFSET($A27,1,0):$A949,$A27,OFFSET(N27,1,0):N949) -> 0 | O27: =SUMIF(OFFSET($A27,1,0):$A949,$A27,OFFSET(O27,1,0):O949) -> 0 | P27: =SUMIF(OFFSET($A27,1,0):$A949,$A27,OFFSET(P27,1,0):P949) -> 0 | Q27: =SUMIF(OFFSET($A27,1,0):$A949,$A27,OFFSET(Q27,1,0):Q949) -> 2 | R27: =SUMIF(OFFSET($A27,1,0):$A949,$A27,OFFSET(R27,1,0):R949) -> 0 | S27: =SUMIF(OFFSET($A27,1,0):$A949,$A27,OFFSET(S27,1,0):S949) -> 0 | T27: =SUMIF(OFFSET($A27,1,0):$A949,$A27,OFFSET(T27,1,0):T949) -> 0 | U27: =SUMIF(OFFSET($A27,1,0):$A949,$A27,OFFSET(U27,1,0):U949) -> 0 | V27: =SUMIF(OFFSET($A27,1,0):$A949,$A27,OFFSET(V27,1,0):V949) -> 0 | W27: =SUMIF(OFFSET($A27,1,0):$A949,$A27,OFFSET(W27,1,0):W949) -> 0 | X27: =SUMIF(OFFSET($A27,1,0):$A949,$A27,OFFSET(X27,1,0):X949) -> 0 | Y27: =SUMIF(OFFSET($A27,1,0):$A949,$A27,OFFSET(Y27,1,0):Y949) -> 0 | Z27: =SUMIF(OFFSET($A27,1,0):$A949,$A27,OFFSET(Z27,1,0):Z949) -> 0 | AA27: =SUMIF(OFFSET($A27,1,0):$A949,$A27,OFFSET(AA27,1,0):AA949) -> 0 | AB27: =SUMIF(OFFSET($A27,1,0):$A949,$A27,OFFSET(AB27,1,0):AB949) -> 0 | AC27: =SUMIF(OFFSET($A27,1,0):$A949,$A27,OFFSET(AC27,1,0):AC949) -> 0 | AD27: =SUMIF(OFFSET($A27,1,0):$A949,$A27,OFFSET(AD27,1,0):AD949) -> 0 | AE27: =SUMIF(OFFSET($A27,1,0):$A949,$A27,OFFSET(AE27,1,0):AE949) -> 0 | AF27: =SUMIF(OFFSET($A27,1,0):$A949,$A27,OFFSET(AF27,1,0):AF949) -> 0 | AG27: =SUM(AG28,AG29) -> 1.746 | AH27: =SUMIF(OFFSET($A27,1,0):$A949,$A27,OFFSET(AH27,1,0):AH949) -> 0 | AI27: =SUMIF(OFFSET($A27,1,0):$A949,$A27,OFFSET(AI27,1,0):AI949) -> 0 | AJ27: =SUMIF(OFFSET($A27,1,0):$A949,$A27,OFFSET(AJ27,1,0):AJ949) -> 0 | AK27: =SUMIF(OFFSET($A27,1,0):$A949,$A27,OFFSET(AK27,1,0):AK949) -> 0 | AL27: =SUM(AL28,AL29) -> 2
A28: 1.2.1.1 | B28: Установка КТПн 250кВА в п. Тагильский | C28: 0 | D28: 0 | E28: 0 | F28: 0 | G28: 0 | H28: 0 | I28: 0 | J28: 0 | K28: 0 | L28: 0.873 | M28: 0 | N28: 0 | O28: 0 | P28: 0 | Q28: 1 | R28: 0 | T28: 0 | U28: 0 | V28: 0 | W28: 0 | Y28: 0 | Z28: 0 | AA28: 0 | AB28: 0 | AC28: 0 | AD28: 0 | AE28: 0 | AF28: 0 | AG28: 0.873 | AH28: 0 | AI28: 0 | AJ28: 0 | AK28: 0 | AL28: 1 | AM28: =IF(E28>0,1,IF(L28>0,2,IF(S28>0,3,IF(Z28>0,4,"херня какая то")))) -> 2
A29: 1.2.1.1 | B29: Установка КТПн 400кВА в г. Верхняя Салда | C29: 0 | D29: 0 | E29: 0 | F29: 0 | G29: 0 | H29: 0 | I29: 0 | J29: 0 | K29: 0 | L29: 0.873 | M29: 0 | N29: 0 | O29: 0 | P29: 0 | Q29: 1 | R29: 0 | T29: 0 | U29: 0 | V29: 0 | W29: 0 | Y29: 0 | Z29: 0 | AA29: 0 | AB29: 0 | AC29: 0 | AD29: 0 | AE29: 0 | AF29: 0 | AG29: 0.873 | AI29: 0 | AJ29: 0 | AK29: 0 | AL29: 1 | AM29: 2
A30: 1.2.1.2 | B30: Модернизация, техническое перевооружение трансформаторных и иных подстанций, распределительных пунктов, всего, в том числе: | C30: 0 | D30: 0 | E30: 0 | F30: 0 | G30: 0 | H30: 0 | I30: 0 | J30: 0 | K30: 0 | M30: 0 | N30: 0 | O30: 0 | P30: 0 | R30: 0 | S30: 6.007 | T30: 0 | U30: 0 | V30: 0 | W30: 0 | X30: 11 | Y30: 0 | Z30: 0 | AA30: 0 | AB30: 0 | AC30: 0 | AD30: 0 | AE30: 0 | AF30: 0 | AG30: 6.007 | AH30: 0 | AI30: 0 | AJ30: 0 | AK30: 0 | AL30: 11 | AM30: 3
A31: 1.2.1.2 | B31: Ретрофит ячеек 6-10 кВ в РП, ТП, г. Верхняя Салда | C31: 0 | D31: 0 | E31: 0 | F31: 0 | G31: 0 | H31: 0 | I31: 0 | J31: 0 | K31: 0 | M31: 0 | N31: 0 | O31: 0 | P31: 0 | R31: 0 | S31: 6.007 | T31: 0 | U31: 0 | V31: 0 | W31: 0 | X31: 11 | Y31: 0 | Z31: 0 | AA31: 0 | AB31: 0 | AC31: 0 | AD31: 0 | AE31: 0 | AF31: 0 | AG31: 6.007 | AH31: 0 | AI31: 0 | AJ31: 0 | AK31: 0 | AL31: 11 | AM31: 3
A32: 1.2.2 | B32: Реконструкция, модернизация, техническое перевооружение линий электропередачи, всего, в том числе: | C32: 0 | D32: 0 | E32: 0 | F32: 0 | G32: 0 | H32: 0 | I32: 0 | J32: 0 | K32: 0 | L32: 0 | M32: 0 | N32: 0 | O32: 0 | P32: 0 | Q32: 0 | R32: 0 | S32: 0 | T32: 0 | U32: 0 | V32: 0 | W32: 0 | X32: 0 | Y32: 0 | Z32: 0 | AA32: 0 | AB32: 0 | AC32: 0 | AD32: 0 | AE32: 0 | AF32: 0 | AG32: 0 | AH32: 0 | AI32: 0 | AJ32: 0 | AK32: 0 | AL32: 0 | AM32: херня какая то
A33: 1.2.2.1 | B33: Реконструкция линий электропередачи, всего, в том числе: | C33: 0 | D33: 0 | E33: 0 | F33: 0 | G33: 0 | H33: 0 | I33: 0 | J33: 0 | K33: 0 | L33: 0 | M33: 0 | N33: 0 | O33: 0 | P33: 0 | Q33: 0 | R33: 0 | S33: 0 | T33: 0 | U33: 0 | V33: 0 | W33: 0 | X33: 0 | Y33: 0 | Z33: 0 | AA33: 0 | AB33: 0 | AC33: 0 | AD33: 0 | AE33: 0 | AF33: 0 | AG33: 0 | AH33: 0 | AI33: 0 | AJ33: 0 | AK33: 0 | AL33: 0 | AM33: херня какая то
A34: 1.2.3 | B34: Развитие и модернизация учета электрической энергии (мощности), всего, в том числе: | C34: 0 | D34: 0 | E34: 0 | F34: 0 | G34: 0 | H34: 0 | I34: 0 | J34: 0 | K34: 0 | L34: 0 | M34: 0 | N34: 0 | O34: 0 | P34: 0 | Q34: 0 | R34: 0 | S34: 0 | T34: 0 | U34: 0 | V34: 0 | W34: 0 | X34: 0 | Y34: 0 | Z34: 0 | AA34: 0 | AB34: 0 | AC34: 0 | AD34: 0 | AE34: 0 | AF34: 0 | AG34: 0 | AH34: 0 | AI34: 0 | AJ34: 0 | AK34: 0 | AL34: 0 | AM34: херня какая то
A35: 1.2.3.1 | B35: «Установка приборов учета, класс напряжения 0,22 (0,4) кВ, всего, в том числе:» | C35: 0 | D35: 0 | E35: 0 | F35: 0 | G35: 0 | H35: 0 | I35: 0 | J35: 0 | K35: 0 | L35: 0 | M35: 0 | N35: 0 | O35: 0 | P35: 0 | Q35: 0 | R35: 0 | S35: 0 | T35: 0 | U35: 0 | V35: 0 | W35: 0 | X35: 0 | Y35: 0 | Z35: 8.306 | AA35: 0 | AB35: 0 | AC35: 0 | AD35: 0 | AE35: 380 | AF35: 0 | AG35: 8.306 | AH35: 0 | AI35: 0 | AJ35: 0 | AK35: 0 | AL35: 380 | AM35: 4
A36: 1.2.3.1 | B36: Развитие системы АИИСКУЭ в сетях 0,4 кВ, г. Верхняя Салда | C36: 0 | D36: 0 | E36: 0 | F36: 0 | G36: 0 | H36: 0 | I36: 0 | J36: 0 | K36: 0 | L36: 0 | M36: 0 | N36: 0 | O36: 0 | P36: 0 | Q36: 0 | R36: 0 | S36: 0 | T36: 0 | U36: 0 | V36: 0 | W36: 0 | X36: 0 | Y36: 0 | Z36: 8.306 | AA36: 0 | AB36: 0 | AC36: 0 | AD36: 0 | AE36: 380 | AF36: 0 | AG36: 8.306 | AH36: 0 | AI36: 0 | AJ36: 0 | AK36: 0 | AL36: 380 | AM36: 4
A37: 1.6 | B37: Прочие инвестиционные проекты, всего, в том числе: | C37: 0 | D37: 0 | E37: 0 | F37: 0 | G37: 0 | H37: 0 | I37: 0 | J37: 0 | K37: 0 | L37: 0 | M37: 0 | N37: 0 | O37: 0 | P37: 0 | Q37: 0 | R37: 0 | S37: 0 | T37: 0 | U37: 0 | V37: 0 | W37: 0 | X37: 0 | Y37: 0 | Z37: 0 | AA37: 0 | AB37: 0 | AC37: 0 | AD37: 0 | AE37: 0 | AF37: 0 | AG37: 0 | AH37: 0 | AI37: 0 | AJ37: 0 | AK37: 0 | AL37: 0 | AM37: херня какая то
AM38: =IF(#REF!>0,1,IF(#REF!>0,2,IF(#REF!>0,3,IF(#REF!>0,4,"херня какая то")))) -> 
AM40: =IF(#REF!>0,1,IF(#REF!>0,2,IF(#REF!>0,3,IF(#REF!>0,4,"херня какая то")))) -> 
AM41: =IF(#REF!>0,1,IF(#REF!>0,2,IF(#REF!>0,3,IF(#REF!>0,4,"херня какая то")))) -> 
AM42: =IF(#REF!>0,1,IF(#REF!>0,2,IF(#REF!>0,3,IF(#REF!>0,4,"херня какая то")))) -> 
AM43: =IF(#REF!>0,1,IF(#REF!>0,2,IF(#REF!>0,3,IF(#REF!>0,4,"херня какая то")))) -> 
AM44: =IF(#REF!>0,1,IF(#REF!>0,2,IF(#REF!>0,3,IF(#REF!>0,4,"херня какая то")))) -> 
AM45: =IF(#REF!>0,1,IF(#REF!>0,2,IF(#REF!>0,3,IF(#REF!>0,4,"херня какая то")))) -> 
AM46: =IF(#REF!>0,1,IF(#REF!>0,2,IF(#REF!>0,3,IF(#REF!>0,4,"херня какая то")))) -> 
AM49: =IF(#REF!>0,1,IF(#REF!>0,2,IF(#REF!>0,3,IF(#REF!>0,4,"херня какая то")))) -> 
AM50: =IF(#REF!>0,1,IF(#REF!>0,2,IF(#REF!>0,3,IF(#REF!>0,4,"херня какая то")))) -> 
AM51: =IF(#REF!>0,1,IF(#REF!>0,2,IF(#REF!>0,3,IF(#REF!>0,4,"херня какая то")))) -> 
AM52: =IF(#REF!>0,1,IF(#REF!>0,2,IF(#REF!>0,3,IF(#REF!>0,4,"херня какая то")))) -> 
AM53: =IF(#REF!>0,1,IF(#REF!>0,2,IF(#REF!>0,3,IF(#REF!>0,4,"херня какая то")))) -> 
AM54: =IF(#REF!>0,1,IF(#REF!>0,2,IF(#REF!>0,3,IF(#REF!>0,4,"херня какая то")))) -> 
AM55: =IF(#REF!>0,1,IF(#REF!>0,2,IF(#REF!>0,3,IF(#REF!>0,4,"херня какая то")))) -> 
AM56: =IF(#REF!>0,1,IF(#REF!>0,2,IF(#REF!>0,3,IF(#REF!>0,4,"херня какая то")))) -> 
AM57: =IF(#REF!>0,1,IF(#REF!>0,2,IF(#REF!>0,3,IF(#REF!>0,4,"херня какая то")))) -> 
AM58: =IF(#REF!>0,1,IF(#REF!>0,2,IF(#REF!>0,3,IF(#REF!>0,4,"херня какая то")))) -> 
AM59: =IF(#REF!>0,1,IF(#REF!>0,2,IF(#REF!>0,3,IF(#REF!>0,4,"херня какая то")))) -> 
AM60: =IF(#REF!>0,1,IF(#REF!>0,2,IF(#REF!>0,3,IF(#REF!>0,4,"херня какая то")))) -> 
AM61: =IF(#REF!>0,1,IF(#REF!>0,2,IF(#REF!>0,3,IF(#REF!>0,4,"херня какая то")))) -> 
AM62: =IF(#REF!>0,1,IF(#REF!>0,2,IF(#REF!>0,3,IF(#REF!>0,4,"херня какая то")))) -> 
AM63: =IF(#REF!>0,1,IF(#REF!>0,2,IF(#REF!>0,3,IF(#REF!>0,4,"херня какая то")))) -> 
AM64: =IF(#REF!>0,1,IF(#REF!>0,2,IF(#REF!>0,3,IF(#REF!>0,4,"херня какая то")))) -> 
AM65: =IF(#REF!>0,1,IF(#REF!>0,2,IF(#REF!>0,3,IF(#REF!>0,4,"херня какая то")))) -> 
AM66: =IF(#REF!>0,1,IF(#REF!>0,2,IF(#REF!>0,3,IF(#REF!>0,4,"херня какая то")))) -> 
AM67: =IF(#REF!>0,1,IF(#REF!>0,2,IF(#REF!>0,3,IF(#REF!>0,4,"херня какая то")))) -> 
AM68: =IF(#REF!>0,1,IF(#REF!>0,2,IF(#REF!>0,3,IF(#REF!>0,4,"херня какая то")))) -> 
AM69: =IF(#REF!>0,1,IF(#REF!>0,2,IF(#REF!>0,3,IF(#REF!>0,4,"херня какая то")))) -> 
AM70: =IF(#REF!>0,1,IF(#REF!>0,2,IF(#REF!>0,3,IF(#REF!>0,4,"херня какая то")))) -> 
AM71: =IF(#REF!>0,1,IF(#REF!>0,2,IF(#REF!>0,3,IF(#REF!>0,4,"херня какая то")))) -> 
AM74: =IF(#REF!>0,1,IF(#REF!>0,2,IF(#REF!>0,3,IF(#REF!>0,4,"херня какая то")))) -> 
AM76: =IF(#REF!>0,1,IF(#REF!>0,2,IF(#REF!>0,3,IF(#REF!>0,4,"херня какая то")))) -> 

Sheet 6
BL1: Приложение № 6
BL2: к приказу Минэнерго России
BL3: от «__» _____ 2016 г. №___
A4: Форма 6. Краткое описание инвестиционной программы. Постановка объектов электросетевого хозяйства под напряжение и (или) включение объектов капитального строительства для проведения пусконаладочных работ
A6: Инвестиционная программа АО "ВЭС"
A7: полное наименование субъекта электроэнергетики
A9: Год раскрытия информации: 2020 год
A11: Утвержденные плановые значения показателей приведены в соответствии с ______________________________________________________________________________
A12: реквизиты решения органа исполнительной власти, утвердившего инвестиционную программу
A14: Номер группы инвести-ционных проектов | B14: Наименование инвестиционного проекта (группы инвестиционных проектов) | C14: Идентифика-тор инвестицион-ного проекта | D14: Постановка объектов электросетевого хозяйства под напряжение и (или) включение объектов капитального строительства для проведения пусконаладочных работ в 2021 году | P14: Постановка объектов электросетевого хозяйства под напряжение и (или) включение объектов капитального строительства для проведения пусконаладочных работ | BL14: Краткое обоснование корректировки утвержденного плана
P15: 2022 | AB15: 2023 | AN15: 2024 | AZ15: 2024
D17: План | J17: Факт | P17: План | V17: Факт | AB17: План | AH17: Факт | AN17: План | AT17: Факт | AZ17: План | BF17: Факт
D18: Квартал | E18: МВ×А | F18: Мвар | G18: км ЛЭП | H18: МВт | I18: Другое | J18: Квартал | K18: МВ×А | L18: Мвар | M18: км ЛЭП | N18: МВт | O18: Другое | P18: Квартал | Q18: МВ×А | R18: Мвар | S18: км ЛЭП | T18: МВт | U18: Другое | V18: Квартал | W18: МВ×А | X18: Мвар | Y18: км ЛЭП | Z18: МВт | AA18: Другое | AB18: Квартал | AC18: МВ×А | AD18: Мвар | AE18: км ЛЭП | AF18: МВт | AG18: Другое | AH18: Квартал | AI18: МВ×А | AJ18: Мвар | AK18: км ЛЭП | AL18: МВт | AM18: Другое | AN18: Квартал | AO18: МВ×А | AP18: Мвар | AQ18: км ЛЭП | AR18: МВт | AS18: Другое | AT18: Квартал | AU18: МВ×А | AV18: Мвар | AW18: км ЛЭП | AX18: МВт | AY18: Другое | AZ18: Квартал | BA18: МВ×А | BB18: Мвар | BC18: км ЛЭП | BD18: МВт | BE18: Другое | BF18: Квартал | BG18: МВ×А | BH18: Мвар | BI18: км ЛЭП | BJ18: МВт | BK18: Другое
A19: 1 | B19: 2 | C19: 3 | D19: 4.1.1 | E19: 4.1.2 | F19: 4.1.3 | G19: 4.1.4 | H19: 4.1.5 | I19: 4.1.6 | J19: 4.2.1 | K19: 4.2.2 | L19: 4.2.3 | M19: 4.2.4 | N19: 4.2.5 | O19: 4.2.6 | P19: 5.1.1 | Q19: 5.1.2 | R19: 5.1.3 | S19: 5.1.4 | T19: 5.1.5 | U19: 5.1.6 | V19: 5.2.1 | W19: 5.2.2 | X19: 5.2.3 | Y19: 5.2.4 | Z19: 5.2.5 | AA19: 5.2.6 | AB19: 5.3.1 | AC19: 5.3.2 | AD19: 5.3.3 | AE19: 5.3.4 | AF19: 5.3.5 | AG19: 5.3.6 | AH19: 5.4.1 | AI19: 5.4.2 | AJ19: 5.4.3 | AK19: 5.4.4 | AL19: 5.4.5 | AM19: 5.4.6 | AN19: 5.5.1 | AO19: 5.5.2 | AP19: 5.5.3 | AQ19: 5.5.4 | AR19: 5.5.5 | AS19: 5.5.6 | AT19: 5.6.1 | AU19: 5.6.2 | AV19: 5.6.3 | AW19: 5.6.4 | AX19: 5.6.5 | AY19: 5.6.6 | AZ19: 5.5.1 | BA19: 5.5.2 | BB19: 5.5.3 | BC19: 5.5.4 | BD19: 5.5.5 | BE19: 5.5.6 | BF19: 5.6.1 | BG19: 5.6.2 | BH19: 5.6.3 | BI19: 5.6.4 | BJ19: 5.6.5 | BK19: 5.6.6 | BL19: 6
A20: 0 | B20: ВСЕГО по инвестиционной программе, в том числе: | E20: =E21+E22+E23 -> 1.6 | F20: 0 | G20: 0 | H20: 0 | I20: 410 | J20: =J21+J22+J23 -> 0 | K20: 0 | L20: 0 | M20: 0 | N20: 0 | O20: 0 | Q20: =Q21+Q22+Q23 -> 0 | R20: 0 | S20: 9 | T20: 0 | U20: 307 | V20: =V21+V22+V23 -> 0 | W20: 0 | X20: 0 | Y20: 0 | Z20: 0 | AA20: 0 | AB20: 0 | AC20: 0 | AD20: 0 | AE20: 0 | AF20: 0 | AG20: 304 | AH20: =AH21+AH22+AH23 -> 0 | AI20: 0 | AJ20: 0 | AK20: 0 | AL20: 0 | AM20: 0 | AN20: 0 | AO20: 0.65 | AP20: 0 | AQ20: 0 | AR20: 0 | AS20: 391 | AT20: 0 | AU20: 0 | AV20: 0 | AW20: 0 | AX20: 0 | AY20: 0 | BA20: =BA21+BA22+BA23 -> 
A21: 0.2 | B21: Реконструкция, модернизация, техническое перевооружение, всего | E21: =E25 -> 1.6 | F21: 0 | G21: 0 | H21: 0 | I21: 396 | J21: =J25 -> 0 | K21: 0 | L21: 0 | M21: 0 | N21: 0 | O21: 0 | Q21: =Q25 -> 0 | R21: 0 | S21: 9 | T21: 0 | U21: 296 | V21: =V25 -> 0 | W21: 0 | X21: 0 | Y21: 0 | Z21: 0 | AA21: 0 | AB21: 0 | AC21: 0 | AD21: 0 | AE21: 0 | AF21: 0 | AG21: 296 | AH21: =AH25 -> 0 | AI21: 0 | AJ21: 0 | AK21: 0 | AL21: 0 | AM21: 0 | AN21: 0 | AO21: 0.65 | AP21: 0 | AQ21: 0 | AR21: 0 | AS21: 391 | AT21: 0 | AU21: 0 | AV21: 0 | AW21: 0 | AX21: 0 | AY21: 0 | BA21: =BA25 -> 
A22: 0.3 | B22: Инвестиционные проекты, реализация которых обуславливается схемами и программами перспективного развития электроэнергетики, всего | AY22: 0
A23: 0.6 | B23: Прочие инвестиционные проекты, всего | E23: =SUMIF(OFFSET($B23,1,0):$B708,"Прочие инвестиционные проекты, всего, в том числе:",OFFSET(E23,1,0):E708) -> 0 | F23: =SUMIF(OFFSET($B23,1,0):$B708,"Прочие инвестиционные проекты, всего, в том числе:",OFFSET(F23,1,0):F708) -> 0 | G23: =SUMIF(OFFSET($B23,1,0):$B708,"Прочие инвестиционные проекты, всего, в том числе:",OFFSET(G23,1,0):G708) -> 0 | H23: =SUMIF(OFFSET($B23,1,0):$B708,"Прочие инвестиционные проекты, всего, в том числе:",OFFSET(H23,1,0):H708) -> 0 | I23: 14 | J23: =SUMIF(OFFSET($B23,1,0):$B708,"Прочие инвестиционные проекты, всего, в том числе:",OFFSET(J23,1,0):J708) -> 0 | K23: =SUMIF(OFFSET($B23,1,0):$B708,"Прочие инвестиционные проекты, всего, в том числе:",OFFSET(K23,1,0):K708) -> 0 | L23: =SUMIF(OFFSET($B23,1,0):$B708,"Прочие инвестиционные проекты, всего, в том числе:",OFFSET(L23,1,0):L708) -> 0 | M23: =SUMIF(OFFSET($B23,1,0):$B708,"Прочие инвестиционные проекты, всего, в том числе:",OFFSET(M23,1,0):M708) -> 0 | N23: =SUMIF(OFFSET($B23,1,0):$B708,"Прочие инвестиционные проекты, всего, в том числе:",OFFSET(N23,1,0):N708) -> 0 | O23: =SUMIF(OFFSET($B23,1,0):$B708,"Прочие инвестиционные проекты, всего, в том числе:",OFFSET(O23,1,0):O708) -> 0 | Q23: =SUMIF(OFFSET($B23,1,0):$B708,"Прочие инвестиционные проекты, всего, в том числе:",OFFSET(Q23,1,0):Q708) -> 0 | R23: =SUMIF(OFFSET($B23,1,0):$B708,"Прочие инвестиционные проекты, всего, в том числе:",OFFSET(R23,1,0):R708) -> 0 | S23: =SUMIF(OFFSET($B23,1,0):$B708,"Прочие инвестиционные проекты, всего, в том числе:",OFFSET(S23,1,0):S708) -> 0 | T23: =SUMIF(OFFSET($B23,1,0):$B708,"Прочие инвестиционные проекты, всего, в том числе:",OFFSET(T23,1,0):T708) -> 0 | U23: 11 | V23: =SUMIF(OFFSET($B23,1,0):$B708,"Прочие инвестиционные проекты, всего, в том числе:",OFFSET(V23,1,0):V708) -> 0 | W23: =SUMIF(OFFSET($B23,1,0):$B708,"Прочие инвестиционные проекты, всего, в том числе:",OFFSET(W23,1,0):W708) -> 0 | X23: =SUMIF(OFFSET($B23,1,0):$B708,"Прочие инвестиционные проекты, всего, в том числе:",OFFSET(X23,1,0):X708) -> 0 | Y23: =SUMIF(OFFSET($B23,1,0):$B708,"Прочие инвестиционные проекты, всего, в том числе:",OFFSET(Y23,1,0):Y708) -> 0 | Z23: =SUMIF(OFFSET($B23,1,0):$B708,"Прочие инвестиционные проекты, всего, в том числе:",OFFSET(Z23,1,0):Z708) -> 0 | AA23: =SUMIF(OFFSET($B23,1,0):$B708,"Прочие инвестиционные проекты, всего, в том числе:",OFFSET(AA23,1,0):AA708) -> 0 | AB23: =SUMIF(OFFSET($B23,1,0):$B708,"Прочие инвестиционные проекты, всего, в том числе:",OFFSET(AB23,1,0):AB708) -> 0 | AC23: =SUMIF(OFFSET($B23,1,0):$B708,"Прочие инвестиционные проекты, всего, в том числе:",OFFSET(AC23,1,0):AC708) -> 0 | AD23: =SUMIF(OFFSET($B23,1,0):$B708,"Прочие инвестиционные проекты, всего, в том числе:",OFFSET(AD23,1,0):AD708) -> 0 | AE23: =SUMIF(OFFSET($B23,1,0):$B708,"Прочие инвестиционные проекты, всего, в том числе:",OFFSET(AE23,1,0):AE708) -> 0 | AF23: =SUMIF(OFFSET($B23,1,0):$B708,"Прочие инвестиционные проекты, всего, в том числе:",OFFSET(AF23,1,0):AF708) -> 0 | AG23: =SUMIF(OFFSET($B23,1,0):$B708,"Прочие инвестиционные проекты, всего, в том числе:",OFFSET(AG23,1,0):AG708) -> 8 | AH23: =SUMIF(OFFSET($B23,1,0):$B708,"Прочие инвестиционные проекты, всего, в том числе:",OFFSET(AH23,1,0):AH708) -> 0 | AI23: =SUMIF(OFFSET($B23,1,0):$B708,"Прочие инвестиционные проекты, всего, в том числе:",OFFSET(AI23,1,0):AI708) -> 0 | AJ23: =SUMIF(OFFSET($B23,1,0):$B708,"Прочие инвестиционные проекты, всего, в том числе:",OFFSET(AJ23,1,0):AJ708) -> 0 | AK23: =SUMIF(OFFSET($B23,1,0):$B708,"Прочие инвестиционные проекты, всего, в том числе:",OFFSET(AK23,1,0):AK708) -> 0 | AL23: =SUMIF(OFFSET($B23,1,0):$B708,"Прочие инвестиционные проекты, всего, в том числе:",OFFSET(AL23,1,0):AL708) -> 0 | AM23: =SUMIF(OFFSET($B23,1,0):$B708,"Прочие инвестиционные проекты, всего, в том числе:",OFFSET(AM23,1,0):AM708) -> 0 | AN23: =SUMIF(OFFSET($B23,1,0):$B708,"Прочие инвестиционные проекты, всего, в том числе:",OFFSET(AN23,1,0):AN708) -> 0 | AO23: =SUMIF(OFFSET($B23,1,0):$B708,"Прочие инвестиционные проекты, всего, в том числе:",OFFSET(AO23,1,0):AO708) -> 0 | AP23: =SUMIF(OFFSET($B23,1,0):$B708,"Прочие инвестиционные проекты, всего, в том числе:",OFFSET(AP23,1,0):AP708) -> 0 | AQ23: =SUMIF(OFFSET($B23,1,0):$B708,"Прочие инвестиционные проекты, всего, в том числе:",OFFSET(AQ23,1,0):AQ708) -> 0 | AR23: =SUMIF(OFFSET($B23,1,0):$B708,"Прочие инвестиционные проекты, всего, в том числе:",OFFSET(AR23,1,0):AR708) -> 0 | AS23: =SUMIF(OFFSET($B23,1,0):$B708,"Прочие инвестиционные проекты, всего, в том числе:",OFFSET(AS23,1,0):AS708) -> 0 | AT23: =SUMIF(OFFSET($B23,1,0):$B708,"Прочие инвестиционные проекты, всего, в том числе:",OFFSET(AT23,1,0):AT708) -> 0 | AU23: =SUMIF(OFFSET($B23,1,0):$B708,"Прочие инвестиционные проекты, всего, в том числе:",OFFSET(AU23,1,0):AU708) -> 0 | AV23: =SUMIF(OFFSET($B23,1,0):$B708,"Прочие инвестиционные проекты, всего, в том числе:",OFFSET(AV23,1,0):AV708) -> 0 | AW23: =SUMIF(OFFSET($B23,1,0):$B708,"Прочие инвестиционные проекты, всего, в том числе:",OFFSET(AW23,1,0):AW708) -> 0 | AX23: =SUMIF(OFFSET($B23,1,0):$B708,"Прочие инвестиционные проекты, всего, в том числе:",OFFSET(AX23,1,0):AX708) -> 0 | AY23: 0 | BA23: =SUMIF(OFFSET($B23,1,0):$B708,"Прочие инвестиционные проекты, всего, в том числе:",OFFSET(BA23,1,0):BA708) -> 0 | BB23: =SUMIF(OFFSET($B23,1,0):$B708,"Прочие инвестиционные проекты, всего, в том числе:",OFFSET(BB23,1,0):BB708) -> 0 | BC23: =SUMIF(OFFSET($B23,1,0):$B708,"Прочие инвестиционные проекты, всего, в том числе:",OFFSET(BC23,1,0):BC708) -> 0 | BD23: =SUMIF(OFFSET($B23,1,0):$B708,"Прочие инвестиционные проекты, всего, в том числе:",OFFSET(BD23,1,0):BD708) -> 0 | BE23: =SUMIF(OFFSET($B23,1,0):$B708,"Прочие инвестиционные проекты, всего, в том числе:",OFFSET(BE23,1,0):BE708) -> 0 | BF23: =SUMIF(OFFSET($B23,1,0):$B708,"Прочие инвестиционные проекты, всего, в том числе:",OFFSET(BF23,1,0):BF708) -> 0 | BG23: =SUMIF(OFFSET($B23,1,0):$B708,"Прочие инвестиционные проекты, всего, в том числе:",OFFSET(BG23,1,0):BG708) -> 0 | BH23: =SUMIF(OFFSET($B23,1,0):$B708,"Прочие инвестиционные проекты, всего, в том числе:",OFFSET(BH23,1,0):BH708) -> 0 | BI23: =SUMIF(OFFSET($B23,1,0):$B708,"Прочие инвестиционные проекты, всего, в том числе:",OFFSET(BI23,1,0):BI708) -> 0 | BJ23: =SUMIF(OFFSET($B23,1,0):$B708,"Прочие инвестиционные проекты, всего, в том числе:",OFFSET(BJ23,1,0):BJ708) -> 0 | BK23: =SUMIF(OFFSET($B23,1,0):$B708,"Прочие инвестиционные проекты, всего, в том числе:",OFFSET(BK23,1,0):BK708) -> 0
A24: 1 | B24: Свердловская область | E24: 1.6 | F24: 0 | G24: 0 | H24: 0 | I24: 396 | J24: 0 | K24: 0 | L24: 0 | M24: 0 | N24: 0 | O24: 0 | Q24: 0 | R24: 0 | S24: 9 | T24: 0 | U24: 307 | V24: 0 | W24: 0 | X24: 0 | Y24: 0 | Z24: 0 | AA24: 0 | AB24: 0 | AC24: 0 | AD24: 0 | AE24: 0 | AF24: 0 | AG24: 0 | AH24: 0 | AI24: 0 | AJ24: 0 | AK24: 0 | AL24: 0 | AM24: 0 | AN24: 0 | AO24: 0 | AP24: 0 | AQ24: 0 | AR24: 0 | AS24: 11 | AT24: 0 | AU24: 0 | AV24: 0 | AW24: 0 | AX24: 0 | AY24: 0 | AZ24: 0 | BA24: =BA25+#REF! ->  | BB24: =BB25+#REF! ->  | BC24: =BC25+#REF! ->  | BD24: =BD25+#REF! ->  | BE24: =BE25+#REF! ->  | BF24: =BF25+#REF! ->  | BG24: =BG25+#REF! ->  | BH24: =BH25+#REF! ->  | BI24: =BI25+#REF! ->  | BJ24: =BJ25+#REF! ->  | BK24: =BK25+#REF! -> 
A25: 1.2 | B25: Реконструкция, модернизация, техническое перевооружение всего, в том числе: | E25: 1.6 | F25: 0 | G25: 0 | H25: 0 | I25: 396 | J25: 0 | K25: 0 | L25: 0 | M25: 0 | N25: 0 | O25: 0 | Q25: 0 | R25: 0 | S25: 9 | T25: 0 | U25: 296 | V25: 0 | W25: 0 | X25: 0 | Y25: 0 | Z25: 0 | AA25: 0 | AB25: 0 | AC25: 0 | AD25: 0 | AE25: 0 | AF25: 0 | AG25: 296 | AH25: 0 | AI25: 0 | AJ25: 0 | AK25: 0 | AL25: 0 | AM25: 0 | AN25: 0 | AO25: 0.65 | AP25: 0 | AQ25: 0 | AR25: 0 | AS25: 391 | AT25: 0 | AU25: 0 | AV25: 0 | AW25: 0 | AX25: 0 | AY25: 0 | BA25: =BA26+#REF!+#REF! ->  | BB25: =BB26+#REF!+#REF! ->  | BC25: =BC26+#REF!+#REF! ->  | BD25: =BD26+#REF!+#REF! ->  | BE25: =BE26+#REF!+#REF! ->  | BF25: =BF26+#REF!+#REF! ->  | BG25: =BG26+#REF!+#REF! ->  | BH25: =BH26+#REF!+#REF! ->  | BI25: =BI26+#REF!+#REF! ->  | BJ25: =BJ26+#REF!+#REF! ->  | BK25: =BK26+#REF!+#REF! -> 
A26: 1.2.1 | B26: Реконструкция, модернизация, техническое перевооружение трансформаторных и иных подстанций, распределительных пунктов, всего, в том числе: | E26: 1.6 | F26: 0 | G26: 0 | H26: 0 | I26: 396 | J26: 0 | K26: 0 | L26: 0 | M26: 0 | N26: 0 | O26: 0 | Q26: 0 | R26: 0 | S26: 0 | T26: 0 | U26: 0 | V26: 0 | W26: 0 | X26: 0 | Y26: 0 | Z26: 0 | AA26: 0 | AB26: 0 | AC26: 0 | AD26: 0 | AE26: 0 | AF26: 0 | AG26: 0 | AH26: 0 | AI26: 0 | AJ26: 0 | AK26: 0 | AL26: 0 | AM26: 0 | AN26: 0 | AO26: 0.65 | AP26: 0 | AQ26: 0 | AR26: 0 | AS26: 11 | AT26: 0 | AU26: 0 | AV26: 0 | AW26: 0 | AX26: 0 | AY26: 0 | BA26: =BA27+#REF! ->  | BB26: =BB27+#REF! ->  | BC26: =BC27+#REF! ->  | BD26: =BD27+#REF! ->  | BE26: =BE27+#REF! ->  | BF26: =BF27+#REF! ->  | BG26: =BG27+#REF! ->  | BH26: =BH27+#REF! ->  | BI26: =BI27+#REF! ->  | BJ26: =BJ27+#REF! ->  | BK26: =BK27+#REF! -> 
A27: 1.2.1.1 | B27: Реконструкция трансформаторных и иных подстанций, всего, в том числе: | E27: 1.6 | F27: =SUMIF(OFFSET($A27,1,0):$A712,$A27,OFFSET(F27,1,0):F712) -> 0 | G27: =SUMIF(OFFSET($A27,1,0):$A712,$A27,OFFSET(G27,1,0):G712) -> 0 | H27: =SUMIF(OFFSET($A27,1,0):$A712,$A27,OFFSET(H27,1,0):H712) -> 0 | I27: 0 | J27: =SUMIF(OFFSET($A27,1,0):$A712,$A27,OFFSET(J27,1,0):J712) -> 0 | K27: =SUMIF(OFFSET($A27,1,0):$A712,$A27,OFFSET(K27,1,0):K712) -> 0 | L27: =SUMIF(OFFSET($A27,1,0):$A712,$A27,OFFSET(L27,1,0):L712) -> 0 | M27: =SUMIF(OFFSET($A27,1,0):$A712,$A27,OFFSET(M27,1,0):M712) -> 0 | N27: =SUMIF(OFFSET($A27,1,0):$A712,$A27,OFFSET(N27,1,0):N712) -> 0 | O27: =SUMIF(OFFSET($A27,1,0):$A712,$A27,OFFSET(O27,1,0):O712) -> 0 | Q27: 0 | R27: =SUMIF(OFFSET($A27,1,0):$A712,$A27,OFFSET(R27,1,0):R712) -> 0 | S27: =SUMIF(OFFSET($A27,1,0):$A712,$A27,OFFSET(S27,1,0):S712) -> 0 | T27: =SUMIF(OFFSET($A27,1,0):$A712,$A27,OFFSET(T27,1,0):T712) -> 0 | U27: 0 | V27: =SUMIF(OFFSET($A27,1,0):$A712,$A27,OFFSET(V27,1,0):V712) -> 0 | W27: =SUMIF(OFFSET($A27,1,0):$A712,$A27,OFFSET(W27,1,0):W712) -> 0 | X27: =SUMIF(OFFSET($A27,1,0):$A712,$A27,OFFSET(X27,1,0):X712) -> 0 | Y27: =SUMIF(OFFSET($A27,1,0):$A712,$A27,OFFSET(Y27,1,0):Y712) -> 0 | Z27: =SUMIF(OFFSET($A27,1,0):$A712,$A27,OFFSET(Z27,1,0):Z712) -> 0 | AA27: =SUMIF(OFFSET($A27,1,0):$A712,$A27,OFFSET(AA27,1,0):AA712) -> 0 | AB27: =SUMIF(OFFSET($A27,1,0):$A712,$A27,OFFSET(AB27,1,0):AB712) -> 0 | AC27: =SUMIF(OFFSET($A27,1,0):$A712,$A27,OFFSET(AC27,1,0):AC712) -> 0 | AD27: =SUMIF(OFFSET($A27,1,0):$A712,$A27,OFFSET(AD27,1,0):AD712) -> 0 | AE27: =SUMIF(OFFSET($A27,1,0):$A712,$A27,OFFSET(AE27,1,0):AE712) -> 0 | AF27: =SUMIF(OFFSET($A27,1,0):$A712,$A27,OFFSET(AF27,1,0):AF712) -> 0 | AG27: =SUMIF(OFFSET($A27,1,0):$A712,$A27,OFFSET(AG27,1,0):AG712) -> 0 | AH27: =SUMIF(OFFSET($A27,1,0):$A712,$A27,OFFSET(AH27,1,0):AH712) -> 0 | AI27: =SUMIF(OFFSET($A27,1,0):$A712,$A27,OFFSET(AI27,1,0):AI712) -> 0 | AJ27: =SUMIF(OFFSET($A27,1,0):$A712,$A27,OFFSET(AJ27,1,0):AJ712) -> 0 | AK27: =SUMIF(OFFSET($A27,1,0):$A712,$A27,OFFSET(AK27,1,0):AK712) -> 0 | AL27: =SUMIF(OFFSET($A27,1,0):$A712,$A27,OFFSET(AL27,1,0):AL712) -> 0 | AM27: =SUMIF(OFFSET($A27,1,0):$A712,$A27,OFFSET(AM27,1,0):AM712) -> 0 | AN27: =SUMIF(OFFSET($A27,1,0):$A712,$A27,OFFSET(AN27,1,0):AN712) -> 0 | AO27: =SUMIF(OFFSET($A27,1,0):$A712,$A27,OFFSET(AO27,1,0):AO712) -> 0.65 | AP27: =SUMIF(OFFSET($A27,1,0):$A712,$A27,OFFSET(AP27,1,0):AP712) -> 0 | AQ27: =SUMIF(OFFSET($A27,1,0):$A712,$A27,OFFSET(AQ27,1,0):AQ712) -> 0 | AR27: =SUMIF(OFFSET($A27,1,0):$A712,$A27,OFFSET(AR27,1,0):AR712) -> 0 | AS27: =SUMIF(OFFSET($A27,1,0):$A712,$A27,OFFSET(AS27,1,0):AS712) -> 0 | AT27: =SUMIF(OFFSET($A27,1,0):$A712,$A27,OFFSET(AT27,1,0):AT712) -> 0 | AU27: =SUMIF(OFFSET($A27,1,0):$A712,$A27,OFFSET(AU27,1,0):AU712) -> 0 | AV27: =SUMIF(OFFSET($A27,1,0):$A712,$A27,OFFSET(AV27,1,0):AV712) -> 0 | AW27: =SUMIF(OFFSET($A27,1,0):$A712,$A27,OFFSET(AW27,1,0):AW712) -> 0 | AX27: =SUMIF(OFFSET($A27,1,0):$A712,$A27,OFFSET(AX27,1,0):AX712) -> 0 | AY27: =SUMIF(OFFSET($A27,1,0):$A712,$A27,OFFSET(AY27,1,0):AY712) -> 0 | BA27: =SUMIF(OFFSET($A27,1,0):$A712,$A27,OFFSET(BA27,1,0):BA712) -> 0 | BB27: =SUMIF(OFFSET($A27,1,0):$A712,$A27,OFFSET(BB27,1,0):BB712) -> 0 | BC27: =SUMIF(OFFSET($A27,1,0):$A712,$A27,OFFSET(BC27,1,0):BC712) -> 0 | BD27: =SUMIF(OFFSET($A27,1,0):$A712,$A27,OFFSET(BD27,1,0):BD712) -> 0 | BE27: =SUMIF(OFFSET($A27,1,0):$A712,$A27,OFFSET(BE27,1,0):BE712) -> 0 | BF27: =SUMIF(OFFSET($A27,1,0):$A712,$A27,OFFSET(BF27,1,0):BF712) -> 0 | BG27: =SUMIF(OFFSET($A27,1,0):$A712,$A27,OFFSET(BG27,1,0):BG712) -> 0 | BH27: =SUMIF(OFFSET($A27,1,0):$A712,$A27,OFFSET(BH27,1,0):BH712) -> 0 | BI27: =SUMIF(OFFSET($A27,1,0):$A712,$A27,OFFSET(BI27,1,0):BI712) -> 0 | BJ27: =SUMIF(OFFSET($A27,1,0):$A712,$A27,OFFSET(BJ27,1,0):BJ712) -> 0 | BK27: =SUMIF(OFFSET($A27,1,0):$A712,$A27,OFFSET(BK27,1,0):BK712) -> 0
A28: 1.2.1.1 | B28: Реконструкция ТП-7011, ТП-1072, ТП-1017, ТП-1078, г. Верхняя Салда | D28: =IFERROR(VLOOKUP($C28,'5.1'!$C:$AM,37,FALSE),"") -> 0 | E28: 1.6 | G28: 0 | I28: 0 | P28: =IFERROR(VLOOKUP($C28,'5.2'!$C:$AM,37,FALSE),"") ->  | Q28: 0 | S28: 0 | U28: 0 | AZ28: =IFERROR(VLOOKUP($C28,#REF!,37,FALSE),"") ->  | BA28: =IFERROR(VLOOKUP($C28,#REF!,32,FALSE),"") ->  | BC28: =IFERROR(VLOOKUP($C28,#REF!,34,FALSE),"") ->  | BE28: =IFERROR(VLOOKUP($C28,#REF!,36,FALSE),"") -> 
A29: 1.2.1.1 | B29: Установка КТПн 250кВА в п. Тагильский | D29: =IFERROR(VLOOKUP($C29,'5.1'!$C:$AM,37,FALSE),"") -> 0 | E29: 0 | G29: 0 | I29: 0 | P29: =IFERROR(VLOOKUP($C29,'5.2'!$C:$AM,37,FALSE),"") ->  | Q29: 0 | S29: 0 | U29: 0 | AO29: 0.25 | AZ29: =IFERROR(VLOOKUP($C29,#REF!,37,FALSE),"") ->  | BA29: =IFERROR(VLOOKUP($C29,#REF!,32,FALSE),"") ->  | BC29: =IFERROR(VLOOKUP($C29,#REF!,34,FALSE),"") ->  | BE29: =IFERROR(VLOOKUP($C29,#REF!,36,FALSE),"") -> 
A30: 1.2.1.1 | B30: Установка КТПн 400кВА в г. Верхняя Салда | D30: =IFERROR(VLOOKUP($C30,'5.1'!$C:$AM,37,FALSE),"") -> 0 | E30: 0 | G30: 0 | I30: 0 | P30: =IFERROR(VLOOKUP($C30,'5.2'!$C:$AM,37,FALSE),"") ->  | Q30: 0 | S30: 0 | U30: 0 | AO30: 0.4 | AZ30: =IFERROR(VLOOKUP($C30,#REF!,37,FALSE),"") ->  | BA30: =IFERROR(VLOOKUP($C30,#REF!,32,FALSE),"") ->  | BC30: =IFERROR(VLOOKUP($C30,#REF!,34,FALSE),"") ->  | BE30: =IFERROR(VLOOKUP($C30,#REF!,36,FALSE),"") -> 
A31: 1.2.1.2 | B31: Модернизация, техническое перевооружение трансформаторных и иных подстанций, распределительных пунктов, всего, в том числе: | D31: =IFERROR(VLOOKUP($C31,'5.1'!$C:$AM,37,FALSE),"") -> 0 | E31: 0 | G31: 0 | I31: 0 | P31: =IFERROR(VLOOKUP($C31,'5.2'!$C:$AM,37,FALSE),"") ->  | Q31: 0 | S31: 0 | U31: 0 | AS31: 11 | AZ31: =IFERROR(VLOOKUP($C31,#REF!,37,FALSE),"") ->  | BA31: =IFERROR(VLOOKUP($C31,#REF!,32,FALSE),"") ->  | BC31: =IFERROR(VLOOKUP($C31,#REF!,34,FALSE),"") ->  | BE31: =IFERROR(VLOOKUP($C31,#REF!,36,FALSE),"") -> 
A32: 1.2.1.2 | B32: Ретрофит ячеек 6-10 кВ в РП, ТП, г. Верхняя Салда | D32: =IFERROR(VLOOKUP($C32,'5.1'!$C:$AM,37,FALSE),"") -> 0 | E32: 0 | G32: 0 | I32: 0 | P32: =IFERROR(VLOOKUP($C32,'5.2'!$C:$AM,37,FALSE),"") ->  | Q32: 0 | S32: 0 | U32: 0 | AS32: 11 | AZ32: =IFERROR(VLOOKUP($C32,#REF!,37,FALSE),"") ->  | BA32: =IFERROR(VLOOKUP($C32,#REF!,32,FALSE),"") ->  | BC32: =IFERROR(VLOOKUP($C32,#REF!,34,FALSE),"") ->  | BE32: =IFERROR(VLOOKUP($C32,#REF!,36,FALSE),"") -> 
A33: 1.2.2 | B33: Реконструкция, модернизация, техническое перевооружение линий электропередачи, всего, в том числе: | D33: =IFERROR(VLOOKUP($C33,'5.1'!$C:$AM,37,FALSE),"") -> 0 | E33: 0 | G33: 0 | I33: 0 | P33: =IFERROR(VLOOKUP($C33,'5.2'!$C:$AM,37,FALSE),"") ->  | Q33: 0 | S33: 0 | U33: 0 | AZ33: =IFERROR(VLOOKUP($C33,#REF!,37,FALSE),"") ->  | BA33: =IFERROR(VLOOKUP($C33,#REF!,32,FALSE),"") ->  | BC33: =IFERROR(VLOOKUP($C33,#REF!,34,FALSE),"") ->  | BE33: =IFERROR(VLOOKUP($C33,#REF!,36,FALSE),"") -> 
A34: 1.2.2.1 | B34: Реконструкция линий электропередачи, всего, в том числе: | D34: =IFERROR(VLOOKUP($C34,'5.1'!$C:$AM,37,FALSE),"") -> 0 | E34: 0 | G34: 0 | I34: 0 | P34: =IFERROR(VLOOKUP($C34,'5.2'!$C:$AM,37,FALSE),"") ->  | Q34: 0 | S34: 0 | U34: 0 | AZ34: =IFERROR(VLOOKUP($C34,#REF!,37,FALSE),"") ->  | BA34: =IFERROR(VLOOKUP($C34,#REF!,32,FALSE),"") ->  | BC34: =IFERROR(VLOOKUP($C34,#REF!,34,FALSE),"") ->  | BE34: =IFERROR(VLOOKUP($C34,#REF!,36,FALSE),"") -> 
A35: 1.2.2.1 | B35: Реконструкция ВЛ-6 кВ ПС Басьяновка, г. Верхняя Салда | D35: =IFERROR(VLOOKUP($C35,'5.1'!$C:$AM,37,FALSE),"") -> 0 | E35: 0 | G35: 0 | I35: 1 | P35: =IFERROR(VLOOKUP($C35,'5.2'!$C:$AM,37,FALSE),"") ->  | Q35: 0 | S35: 0 | U35: 0 | AZ35: =IFERROR(VLOOKUP($C35,#REF!,37,FALSE),"") ->  | BA35: =IFERROR(VLOOKUP($C35,#REF!,32,FALSE),"") ->  | BC35: =IFERROR(VLOOKUP($C35,#REF!,34,FALSE),"") ->  | BE35: =IFERROR(VLOOKUP($C35,#REF!,36,FALSE),"") -> 
A36: 1.2.2.1 | B36: Реконструкция ВЛ-6 кВ ПС Басьяновка, г. Верхняя Салда | D36: =IFERROR(VLOOKUP($C36,'5.1'!$C:$AM,37,FALSE),"") -> 0 | E36: 0 | G36: 0 | I36: 0 | P36: =IFERROR(VLOOKUP($C36,'5.2'!$C:$AM,37,FALSE),"") ->  | Q36: 0 | S36: 9 | U36: 0 | AZ36: =IFERROR(VLOOKUP($C36,#REF!,37,FALSE),"") ->  | BA36: =IFERROR(VLOOKUP($C36,#REF!,32,FALSE),"") ->  | BC36: =IFERROR(VLOOKUP($C36,#REF!,34,FALSE),"") ->  | BE36: =IFERROR(VLOOKUP($C36,#REF!,36,FALSE),"") -> 
A37: 1.2.3 | B37: Развитие и модернизация учета электрической энергии (мощности), всего, в том числе: | D37: =IFERROR(VLOOKUP($C37,'5.1'!$C:$AM,37,FALSE),"") -> 0 | E37: 0 | G37: 0 | I37: 0 | P37: =IFERROR(VLOOKUP($C37,'5.2'!$C:$AM,37,FALSE),"") ->  | Q37: 0 | S37: 0 | U37: 0 | AG37: 296 | AS37: 380 | AZ37: =IFERROR(VLOOKUP($C37,#REF!,37,FALSE),"") ->  | BA37: =IFERROR(VLOOKUP($C37,#REF!,32,FALSE),"") ->  | BC37: =IFERROR(VLOOKUP($C37,#REF!,34,FALSE),"") ->  | BE37: =IFERROR(VLOOKUP($C37,#REF!,36,FALSE),"") -> 
A38: 1.2.3.1 | B38: «Установка приборов учета, класс напряжения 0,22 (0,4) кВ, всего, в том числе:» | D38: =IFERROR(VLOOKUP($C38,'5.1'!$C:$AM,37,FALSE),"") -> 0 | E38: 0 | G38: 0 | I38: 0 | P38: =IFERROR(VLOOKUP($C38,'5.2'!$C:$AM,37,FALSE),"") ->  | Q38: 0 | S38: 0 | U38: 0 | AG38: 296 | AS38: 380 | AZ38: =IFERROR(VLOOKUP($C38,#REF!,37,FALSE),"") ->  | BA38: =IFERROR(VLOOKUP($C38,#REF!,32,FALSE),"") ->  | BC38: =IFERROR(VLOOKUP($C38,#REF!,34,FALSE),"") ->  | BE38: =IFERROR(VLOOKUP($C38,#REF!,36,FALSE),"") -> 
A39: 1.2.3.1 | B39: Развитие системы АИИСКУЭ в сетях 0,4 кВ, г. Верхняя Салда | D39: =IFERROR(VLOOKUP($C39,'5.1'!$C:$AM,37,FALSE),"") -> 0 | E39: 0 | G39: 0 | I39: 395 | P39: =IFERROR(VLOOKUP($C39,'5.2'!$C:$AM,37,FALSE),"") ->  | Q39: 0 | S39: 0 | U39: 0 | AG39: 296 | AZ39: =IFERROR(VLOOKUP($C39,#REF!,37,FALSE),"") ->  | BA39: =IFERROR(VLOOKUP($C39,#REF!,32,FALSE),"") ->  | BC39: =IFERROR(VLOOKUP($C39,#REF!,34,FALSE),"") ->  | BE39: =IFERROR(VLOOKUP($C39,#REF!,36,FALSE),"") -> 
A40: 1.2.3.1 | B40: Развитие системы АИИСКУЭ в сетях 0,4 кВ, г. Верхняя Салда | D40: =IFERROR(VLOOKUP($C40,'5.1'!$C:$AM,37,FALSE),"") -> 0 | E40: 0 | G40: 0 | I40: 0 | P40: =IFERROR(VLOOKUP($C40,'5.2'!$C:$AM,37,FALSE),"") ->  | Q40: 0 | S40: 0 | U40: 296 | AZ40: =IFERROR(VLOOKUP($C40,#REF!,37,FALSE),"") ->  | BA40: =IFERROR(VLOOKUP($C40,#REF!,32,FALSE),"") ->  | BC40: =IFERROR(VLOOKUP($C40,#REF!,34,FALSE),"") ->  | BE40: =IFERROR(VLOOKUP($C40,#REF!,36,FALSE),"") -> 
A41: 1.2.3.1 | B41: Развитие системы АИИСКУЭ в сетях 0,4 кВ, г. Верхняя Салда | D41: =IFERROR(VLOOKUP($C41,'5.1'!$C:$AM,37,FALSE),"") -> 0 | E41: 0 | G41: 0 | I41: 0 | P41: =IFERROR(VLOOKUP($C41,'5.2'!$C:$AM,37,FALSE),"") ->  | Q41: 0 | S41: 0 | U41: 0 | AZ41: =IFERROR(VLOOKUP($C41,#REF!,37,FALSE),"") ->  | BA41: =IFERROR(VLOOKUP($C41,#REF!,32,FALSE),"") ->  | BC41: =IFERROR(VLOOKUP($C41,#REF!,34,FALSE),"") ->  | BE41: =IFERROR(VLOOKUP($C41,#REF!,36,FALSE),"") -> 
A42: 1.2.3.1 | B42: Развитие системы АИИСКУЭ в сетях 0,4 кВ, г. Верхняя Салда | D42: =IFERROR(VLOOKUP($C42,'5.1'!$C:$AM,37,FALSE),"") -> 0 | E42: 0 | G42: 0 | I42: 0 | P42: =IFERROR(VLOOKUP($C42,'5.2'!$C:$AM,37,FALSE),"") ->  | Q42: 0 | S42: 0 | U42: 0 | AS42: 380 | AZ42: =IFERROR(VLOOKUP($C42,#REF!,37,FALSE),"") ->  | BA42: =IFERROR(VLOOKUP($C42,#REF!,32,FALSE),"") ->  | BC42: =IFERROR(VLOOKUP($C42,#REF!,34,FALSE),"") ->  | BE42: =IFERROR(VLOOKUP($C42,#REF!,36,FALSE),"") -> 
A43: 1.6 | B43: Прочие инвестиционные проекты, всего, в том числе: | D43: =IFERROR(VLOOKUP($C43,'5.1'!$C:$AM,37,FALSE),"") -> 0 | E43: 0 | G43: 0 | I43: 0 | P43: =IFERROR(VLOOKUP($C43,'5.2'!$C:$AM,37,FALSE),"") ->  | Q43: 0 | S43: 0 | U43: 0 | AG43: 8 | AZ43: =IFERROR(VLOOKUP($C43,#REF!,37,FALSE),"") ->  | BA43: =IFERROR(VLOOKUP($C43,#REF!,32,FALSE),"") ->  | BC43: =IFERROR(VLOOKUP($C43,#REF!,34,FALSE),"") ->  | BE43: =IFERROR(VLOOKUP($C43,#REF!,36,FALSE),"") -> 
A44: 1.6 | B44: Развитие системы АИИСКУЭ в сетях 6/10 кВ, г. Верхняя Салда | D44: =IFERROR(VLOOKUP($C44,'5.1'!$C:$AM,37,FALSE),"") -> 0 | E44: 0 | G44: 0 | I44: 10 | P44: =IFERROR(VLOOKUP($C44,'5.2'!$C:$AM,37,FALSE),"") ->  | Q44: 0 | S44: 0 | U44: 0 | AG44: 6 | AZ44: =IFERROR(VLOOKUP($C44,#REF!,37,FALSE),"") ->  | BA44: =IFERROR(VLOOKUP($C44,#REF!,32,FALSE),"") ->  | BC44: =IFERROR(VLOOKUP($C44,#REF!,34,FALSE),"") ->  | BE44: =IFERROR(VLOOKUP($C44,#REF!,36,FALSE),"") -> 
A45: 1.6 | B45: Развитие системы АИИСКУЭ в сетях 6/10 кВ, г. Верхняя Салда | D45: =IFERROR(VLOOKUP($C45,'5.1'!$C:$AM,37,FALSE),"") -> 0 | E45: 0 | G45: 0 | I45: 0 | P45: =IFERROR(VLOOKUP($C45,'5.2'!$C:$AM,37,FALSE),"") ->  | Q45: 0 | S45: 0 | U45: 5 | AZ45: =IFERROR(VLOOKUP($C45,#REF!,37,FALSE),"") ->  | BA45: =IFERROR(VLOOKUP($C45,#REF!,32,FALSE),"") ->  | BC45: =IFERROR(VLOOKUP($C45,#REF!,34,FALSE),"") ->  | BE45: =IFERROR(VLOOKUP($C45,#REF!,36,FALSE),"") -> 
A46: 1.6 | B46: Развитие системы АИИСКУЭ в сетях 6/10 кВ, г. Верхняя Салда | D46: =IFERROR(VLOOKUP($C46,'5.1'!$C:$AM,37,FALSE),"") -> 0 | E46: 0 | G46: 0 | I46: 0 | P46: =IFERROR(VLOOKUP($C46,'5.2'!$C:$AM,37,FALSE),"") ->  | Q46: 0 | S46: 0 | U46: 0 | AZ46: =IFERROR(VLOOKUP($C46,#REF!,37,FALSE),"") ->  | BA46: =IFERROR(VLOOKUP($C46,#REF!,32,FALSE),"") ->  | BC46: =IFERROR(VLOOKUP($C46,#REF!,34,FALSE),"") ->  | BE46: =IFERROR(VLOOKUP($C46,#REF!,36,FALSE),"") -> 
A47: 1.6 | B47: Установка реклоузеров, г. Верхняя Салда | D47: =IFERROR(VLOOKUP($C47,'5.1'!$C:$AM,37,FALSE),"") -> 0 | E47: 0 | G47: 0 | I47: 4 | P47: =IFERROR(VLOOKUP($C47,'5.2'!$C:$AM,37,FALSE),"") ->  | Q47: 0 | S47: 0 | U47: 0 | AZ47: =IFERROR(VLOOKUP($C47,#REF!,37,FALSE),"") ->  | BA47: =IFERROR(VLOOKUP($C47,#REF!,32,FALSE),"") ->  | BC47: =IFERROR(VLOOKUP($C47,#REF!,34,FALSE),"") ->  | BE47: =IFERROR(VLOOKUP($C47,#REF!,36,FALSE),"") -> 
A48: 1.6 | B48: Установка реклоузеров, г. Верхняя Салда | D48: =IFERROR(VLOOKUP($C48,'5.1'!$C:$AM,37,FALSE),"") -> 0 | E48: 0 | G48: 0 | I48: 0 | P48: =IFERROR(VLOOKUP($C48,'5.2'!$C:$AM,37,FALSE),"") ->  | Q48: 0 | S48: 0 | U48: 6 | AZ48: =IFERROR(VLOOKUP($C48,#REF!,37,FALSE),"") ->  | BA48: =IFERROR(VLOOKUP($C48,#REF!,32,FALSE),"") ->  | BC48: =IFERROR(VLOOKUP($C48,#REF!,34,FALSE),"") ->  | BE48: =IFERROR(VLOOKUP($C48,#REF!,36,FALSE),"") -> 
A49: 1.6 | B49: Приобретение передвижной электротехнической лаборатории | D49: =IFERROR(VLOOKUP($C49,'5.1'!$C:$AM,37,FALSE),"") -> 0 | E49: 0 | G49: 0 | I49: 0 | P49: =IFERROR(VLOOKUP($C49,'5.2'!$C:$AM,37,FALSE),"") ->  | Q49: 0 | S49: 0 | U49: 0 | AG49: 1 | AZ49: =IFERROR(VLOOKUP($C49,#REF!,37,FALSE),"") ->  | BA49: =IFERROR(VLOOKUP($C49,#REF!,32,FALSE),"") ->  | BC49: =IFERROR(VLOOKUP($C49,#REF!,34,FALSE),"") ->  | BE49: =IFERROR(VLOOKUP($C49,#REF!,36,FALSE),"") -> 
A50: 1.6 | B50: Реконструкция кровли теплой автостоянки для строительно- эксплуатационной техники, г. Верхняя Салда | D50: =IFERROR(VLOOKUP($C50,'5.1'!$C:$AM,37,FALSE),"") -> 0 | E50: 0 | G50: 0 | I50: 0 | P50: =IFERROR(VLOOKUP($C50,'5.2'!$C:$AM,37,FALSE),"") ->  | Q50: 0 | S50: 0 | U50: 0 | AG50: 1 | AZ50: =IFERROR(VLOOKUP($C50,#REF!,37,FALSE),"") ->  | BA50: =IFERROR(VLOOKUP($C50,#REF!,32,FALSE),"") ->  | BC50: =IFERROR(VLOOKUP($C50,#REF!,34,FALSE),"") ->  | BE50: =IFERROR(VLOOKUP($C50,#REF!,36,FALSE),"") -> 

Sheet 7
AS1: Приложение № 7
AS2: к приказу Минэнерго России
AS3: от «__» _____ 2016 г. №___
A4: Форма 7. Краткое описание инвестиционной программы. Ввод объектов инвестиционной деятельности (мощностей) в эксплуатацию
A6: Инвестиционная программа АО "ВЭС"
A7: полное наименование субъекта электроэнергетики
A9: Год раскрытия информации: 2020 год
A11: Утвержденные плановые значения показателей приведены в соответствии с ______________________________________________________________________________
A12: реквизиты решения органа исполнительной власти, утвердившего инвестиционную программу
A14: Номер группы инвести-ционных проектов | B14: Наименование инвестиционного проекта (группы инвестиционных проектов) | C14: Идентифика-тор инвестицион-ного проекта | D14: Характеристики объекта электроэнергетики (объекта инвестиционной деятельности) | R14: Ввод объектов инвестиционной деятельности (мощностей) в эксплуатацию в 2021 год | AF14: Ввод объектов инвестиционной деятельности (мощностей) в эксплуатацию | AT14: Ввод объектов инвестиционной деятельности (мощностей) в эксплуатацию | CX14: Краткое обоснование корректировки утвержденного плана
AF15: 2022 год | AT15: 2023 год | BH15: 2024 год | BV15: 2024 год | CJ15: Итого за период реализации инвестиционной программы
D16: План | K16: Факт | R16: План | Y16: Факт | AF16: План | AM16: Факт | AT16: План | BA16: Факт | BH16: План | BO16: Факт | BV16: План | CC16: Факт | CJ16: План | CQ16: Факт
D17: МВ×А | E17: Мвар | F17: км ВЛ 1-цеп | G17: км ВЛ 2-цеп | H17: км КЛ | I17: МВт | J17: Другое | K17: МВ×А | L17: Мвар | M17: км ВЛ 1-цеп | N17: км ВЛ 2-цеп | O17: км КЛ | P17: МВт | Q17: Другое | R17: МВ×А | S17: Мвар | T17: км ВЛ 1-цеп | U17: км ВЛ 2-цеп | V17: км КЛ | W17: МВт | X17: Другое | Y17: МВ×А | Z17: Мвар | AA17: км ВЛ 1-цеп | AB17: км ВЛ 2-цеп | AC17: км КЛ | AD17: МВт | AE17: Другое | AF17: МВ×А | AG17: Мвар | AH17: км ВЛ 1-цеп | AI17: км ВЛ 2-цеп | AJ17: км КЛ | AK17: МВт | AL17: Другое | AM17: МВ×А | AN17: Мвар | AO17: км ВЛ 1-цеп | AP17: км ВЛ 2-цеп | AQ17: км КЛ | AR17: МВт | AS17: Другое | AT17: МВ×А | AU17: Мвар | AV17: км ВЛ 1-цеп | AW17: км ВЛ 2-цеп | AX17: км КЛ | AY17: МВт | AZ17: Другое | BA17: МВ×А | BB17: Мвар | BC17: км ВЛ 1-цеп | BD17: км ВЛ 2-цеп | BE17: км КЛ | BF17: МВт | BG17: Другое | BH17: МВ×А | BI17: Мвар | BJ17: км ВЛ 1-цеп | BK17: км ВЛ 2-цеп | BL17: км КЛ | BM17: МВт | BN17: Другое | BO17: МВ×А | BP17: Мвар | BQ17: км ВЛ 1-цеп | BR17: км ВЛ 2-цеп | BS17: км КЛ | BT17: МВт | BU17: Другое | BV17: МВ×А | BW17: Мвар | BX17: км ВЛ 1-цеп | BY17: км ВЛ 2-цеп | BZ17: км КЛ | CA17: МВт | CB17: Другое | CC17: МВ×А | CD17: Мвар | CE17: км ВЛ 1-цеп | CF17: км ВЛ 2-цеп | CG17: км КЛ | CH17: МВт | CI17: Другое | CJ17: МВ×А | CK17: Мвар | CL17: км ВЛ 1-цеп | CM17: км ВЛ 2-цеп | CN17: км КЛ | CO17: МВт | CP17: Другое | CQ17: МВ×А | CR17: Мвар | CS17: км ВЛ 1-цеп | CT17: км ВЛ 2-цеп | CU17: км КЛ | CV17: МВт | CW17: Другое
A18: 1 | B18: 2 | C18: 3 | D18: 4.1.1 | E18: 4.1.2 | F18: 4.1.3 | G18: 4.1.4 | H18: 4.1.5 | I18: 4.1.6 | J18: 4.1.7 | K18: 4.2.1 | L18: 4.2.2 | M18: 4.2.3 | N18: 4.2.4 | O18: 4.2.5 | P18: 4.2.6 | Q18: 4.2.7 | R18: 5.1.1 | S18: 5.1.2 | T18: 5.1.3 | U18: 5.1.4 | V18: 5.1.5 | W18: 5.1.6 | X18: 5.1.7 | Y18: 5.2.1 | Z18: 5.2.2 | AA18: 5.2.3 | AB18: 5.2.4 | AC18: 5.2.5 | AD18: 5.2.6 | AE18: 5.2.7 | AF18: 6.1.1 | AG18: 6.1.2 | AH18: 6.1.3 | AI18: 6.1.4 | AJ18: 6.1.5 | AK18: 6.1.6 | AL18: 6.1.7 | AM18: 6.2.1 | AN18: 6.2.2 | AO18: 6.2.3 | AP18: 6.2.4 | AQ18: 6.2.5 | AR18: 6.2.6 | AS18: 6.2.7 | AT18: 6.3.1 | AU18: 6.3.2 | AV18: 6.3.3 | AW18: 6.3.4 | AX18: 6.3.5 | AY18: 6.3.6 | AZ18: 6.3.7 | BA18: 6.4.1 | BB18: 6.4.2 | BC18: 6.4.3 | BD18: 6.4.4 | BE18: 6.4.5 | BF18: 6.4.6 | BG18: 6.4.7 | BH18: 6.3.1 | BI18: 6.3.2 | BJ18: 6.3.3 | BK18: 6.3.4 | BL18: 6.3.5 | BM18: 6.3.6 | BN18: 6.3.7 | BO18: 6.4.1 | BP18: 6.4.2 | BQ18: 6.4.3 | BR18: 6.4.4 | BS18: 6.4.5 | BT18: 6.4.6 | BU18: 6.4.7 | BV18: 6.5.1 | BW18: 6.5.2 | BX18: 6.5.3 | BY18: 6.5.4 | BZ18: 6.5.5 | CA18: 6.5.6 | CB18: 6.5.7 | CC18: 6.6.1 | CD18: 6.6.2 | CE18: 6.6.3 | CF18: 6.6.4 | CG18: 6.6.5 | CH18: 6.6.6 | CI18: 6.6.7 | CJ18: 7.1.1 | CK18: 7.1.2 | CL18: 7.1.3 | CM18: 7.1.4 | CN18: 7.1.5 | CO18: 7.1.6 | CP18: 7.1.7 | CQ18: 7.2.1 | CR18: 7.2.2 | CS18: 7.2.3 | CT18: 7.2.4 | CU18: 7.2.5 | CV18: 7.2.6 | CW18: 7.2.7 | CX18: 8
A19: 0 | B19: ВСЕГО по инвестиционной программе, в том числе: | D19: =D20+D21+D22 -> 2.25 | E19: 0 | F19: 9 | G19: 0 | H19: 0 | I19: 0 | J19: 1412 | K19: =K20+K21+K22 -> 0 | L19: 0 | M19: 0 | N19: 0 | O19: 0 | P19: 0 | Q19: 0 | R19: 1.6 | S19: 0 | T19: 0 | U19: 0 | V19: 0 | W19: 0 | X19: 410 | Y19: 0 | Z19: 0 | AA19: 0 | AB19: 0 | AC19: 0 | AD19: 0 | AE19: 0 | AF19: =AF20+AF21+AF22 -> 0 | AG19: 0 | AH19: 9 | AI19: 0 | AJ19: 0 | AK19: 0 | AL19: 307 | AM19: 0 | AN19: 0 | AO19: 0 | AP19: 0 | AQ19: 0 | AR19: 0 | AS19: 0 | AT19: =AT20+AT21+AT22 -> 0 | AU19: 0 | AV19: 0 | AW19: 0 | AX19: 0 | AY19: 0 | AZ19: 304 | BA19: =BA20+BA21+BA22 -> 0 | BB19: 0 | BC19: 0 | BD19: 0 | BE19: 0 | BF19: 0 | BG19: 0 | BH19: 0.65 | BI19: 0 | BJ19: 0 | BK19: 0 | BL19: 0 | BM19: 0 | BN19: 391 | BO19: 0 | BP19: 0 | BQ19: 0 | BR19: 0 | BS19: 0 | BT19: 0 | BU19: 0 | BV19: 0 | BW19: =BW20+BW21+BW22 ->  | CJ19: 2.25 | CK19: 0 | CL19: 9 | CM19: 0 | CN19: 0 | CO19: 0 | CP19: 1412 | CQ19: 0 | CR19: 0 | CS19: 0 | CT19: 0 | CU19: 0 | CV19: 0 | CW19: 0
A20: 0.2 | B20: Реконструкция, модернизация, техническое перевооружение, всего | D20: =D24 -> 2.25 | E20: 0 | F20: 9 | G20: 0 | H20: 0 | I20: 0 | J20: 1379 | K20: =K24 -> 0 | L20: 0 | M20: 0 | N20: 0 | O20: 0 | P20: 0 | Q20: 0 | R20: 1.6 | S20: 0 | T20: 0 | U20: 0 | V20: 0 | W20: 0 | X20: 396 | Y20: 0 | Z20: 0 | AA20: 0 | AB20: 0 | AC20: 0 | AD20: 0 | AE20: 0 | AF20: =AF24 -> 0 | AG20: 0 | AH20: 9 | AI20: 0 | AJ20: 0 | AK20: 0 | AL20: 296 | AM20: 0 | AN20: 0 | AO20: 0 | AP20: 0 | AQ20: 0 | AR20: 0 | AS20: 0 | AT20: =AT24 -> 0 | AU20: 0 | AV20: 0 | AW20: 0 | AX20: 0 | AY20: 0 | AZ20: 296 | BA20: =BA24 -> 0 | BB20: 0 | BC20: 0 | BD20: 0 | BE20: 0 | BF20: 0 | BG20: 0 | BH20: 0.65 | BI20: 0 | BJ20: 0 | BK20: 0 | BL20: 0 | BM20: 0 | BN20: 391 | BO20: 0 | BP20: 0 | BQ20: 0 | BR20: 0 | BS20: 0 | BT20: 0 | BU20: 0 | BV20: 0 | BW20: =BW24 ->  | CJ20: 2.25 | CK20: 0 | CL20: 9 | CM20: 0 | CN20: 0 | CO20: 0 | CP20: 1379 | CQ20: 0 | CR20: 0 | CS20: 0 | CT20: 0 | CU20: 0 | CV20: 0 | CW20: 0
A21: 0.3 | B21: Инвестиционные проекты, реализация которых обуславливается схемами и программами перспективного развития электроэнергетики, всего
A22: 0.6 | B22: Прочие инвестиционные проекты, всего | D22: =SUMIF(OFFSET($B22,1,0):$B707,"Прочие инвестиционные проекты, всего, в том числе:",OFFSET(D22,1,0):D707) -> 0 | E22: =SUMIF(OFFSET($B22,1,0):$B707,"Прочие инвестиционные проекты, всего, в том числе:",OFFSET(E22,1,0):E707) -> 0 | F22: =SUMIF(OFFSET($B22,1,0):$B707,"Прочие инвестиционные проекты, всего, в том числе:",OFFSET(F22,1,0):F707) -> 0 | G22: =SUMIF(OFFSET($B22,1,0):$B707,"Прочие инвестиционные проекты, всего, в том числе:",OFFSET(G22,1,0):G707) -> 0 | H22: =SUMIF(OFFSET($B22,1,0):$B707,"Прочие инвестиционные проекты, всего, в том числе:",OFFSET(H22,1,0):H707) -> 0 | I22: =SUMIF(OFFSET($B22,1,0):$B707,"Прочие инвестиционные проекты, всего, в том числе:",OFFSET(I22,1,0):I707) -> 0 | J22: =SUMIF(OFFSET($B22,1,0):$B707,"Прочие инвестиционные проекты, всего, в том числе:",OFFSET(J22,1,0):J707) -> 33 | K22: =SUMIF(OFFSET($B22,1,0):$B707,"Прочие инвестиционные проекты, всего, в том числе:",OFFSET(K22,1,0):K707) -> 0 | L22: =SUMIF(OFFSET($B22,1,0):$B707,"Прочие инвестиционные проекты, всего, в том числе:",OFFSET(L22,1,0):L707) -> 0 | M22: =SUMIF(OFFSET($B22,1,0):$B707,"Прочие инвестиционные проекты, всего, в том числе:",OFFSET(M22,1,0):M707) -> 0 | N22: =SUMIF(OFFSET($B22,1,0):$B707,"Прочие инвестиционные проекты, всего, в том числе:",OFFSET(N22,1,0):N707) -> 0 | O22: =SUMIF(OFFSET($B22,1,0):$B707,"Прочие инвестиционные проекты, всего, в том числе:",OFFSET(O22,1,0):O707) -> 0 | P22: =SUMIF(OFFSET($B22,1,0):$B707,"Прочие инвестиционные проекты, всего, в том числе:",OFFSET(P22,1,0):P707) -> 0 | Q22: =SUMIF(OFFSET($B22,1,0):$B707,"Прочие инвестиционные проекты, всего, в том числе:",OFFSET(Q22,1,0):Q707) -> 0 | R22: =SUMIF(OFFSET($B22,1,0):$B707,"Прочие инвестиционные проекты, всего, в том числе:",OFFSET(R22,1,0):R707) -> 0 | S22: =SUMIF(OFFSET($B22,1,0):$B707,"Прочие инвестиционные проекты, всего, в том числе:",OFFSET(S22,1,0):S707) -> 0 | T22: =SUMIF(OFFSET($B22,1,0):$B707,"Прочие инвестиционные проекты, всего, в том числе:",OFFSET(T22,1,0):T707) -> 0 | U22: =SUMIF(OFFSET($B22,1,0):$B707,"Прочие инвестиционные проекты, всего, в том числе:",OFFSET(U22,1,0):U707) -> 0 | V22: =SUMIF(OFFSET($B22,1,0):$B707,"Прочие инвестиционные проекты, всего, в том числе:",OFFSET(V22,1,0):V707) -> 0 | W22: =SUMIF(OFFSET($B22,1,0):$B707,"Прочие инвестиционные проекты, всего, в том числе:",OFFSET(W22,1,0):W707) -> 0 | X22: 14 | Y22: =SUMIF(OFFSET($B22,1,0):$B707,"Прочие инвестиционные проекты, всего, в том числе:",OFFSET(Y22,1,0):Y707) -> 0 | Z22: =SUMIF(OFFSET($B22,1,0):$B707,"Прочие инвестиционные проекты, всего, в том числе:",OFFSET(Z22,1,0):Z707) -> 0 | AA22: =SUMIF(OFFSET($B22,1,0):$B707,"Прочие инвестиционные проекты, всего, в том числе:",OFFSET(AA22,1,0):AA707) -> 0 | AB22: =SUMIF(OFFSET($B22,1,0):$B707,"Прочие инвестиционные проекты, всего, в том числе:",OFFSET(AB22,1,0):AB707) -> 0 | AC22: =SUMIF(OFFSET($B22,1,0):$B707,"Прочие инвестиционные проекты, всего, в том числе:",OFFSET(AC22,1,0):AC707) -> 0 | AD22: =SUMIF(OFFSET($B22,1,0):$B707,"Прочие инвестиционные проекты, всего, в том числе:",OFFSET(AD22,1,0):AD707) -> 0 | AE22: =SUMIF(OFFSET($B22,1,0):$B707,"Прочие инвестиционные проекты, всего, в том числе:",OFFSET(AE22,1,0):AE707) -> 0 | AF22: =SUMIF(OFFSET($B22,1,0):$B707,"Прочие инвестиционные проекты, всего, в том числе:",OFFSET(AF22,1,0):AF707) -> 0 | AG22: =SUMIF(OFFSET($B22,1,0):$B707,"Прочие инвестиционные проекты, всего, в том числе:",OFFSET(AG22,1,0):AG707) -> 0 | AH22: =SUMIF(OFFSET($B22,1,0):$B707,"Прочие инвестиционные проекты, всего, в том числе:",OFFSET(AH22,1,0):AH707) -> 0 | AI22: =SUMIF(OFFSET($B22,1,0):$B707,"Прочие инвестиционные проекты, всего, в том числе:",OFFSET(AI22,1,0):AI707) -> 0 | AJ22: =SUMIF(OFFSET($B22,1,0):$B707,"Прочие инвестиционные проекты, всего, в том числе:",OFFSET(AJ22,1,0):AJ707) -> 0 | AK22: =SUMIF(OFFSET($B22,1,0):$B707,"Прочие инвестиционные проекты, всего, в том числе:",OFFSET(AK22,1,0):AK707) -> 0 | AL22: =SUMIF(OFFSET($B22,1,0):$B707,"Прочие инвестиционные проекты, всего, в том числе:",OFFSET(AL22,1,0):AL707) -> 11 | AM22: =SUMIF(OFFSET($B22,1,0):$B707,"Прочие инвестиционные проекты, всего, в том числе:",OFFSET(AM22,1,0):AM707) -> 0 | AN22: =SUMIF(OFFSET($B22,1,0):$B707,"Прочие инвестиционные проекты, всего, в том числе:",OFFSET(AN22,1,0):AN707) -> 0 | AO22: =SUMIF(OFFSET($B22,1,0):$B707,"Прочие инвестиционные проекты, всего, в том числе:",OFFSET(AO22,1,0):AO707) -> 0 | AP22: =SUMIF(OFFSET($B22,1,0):$B707,"Прочие инвестиционные проекты, всего, в том числе:",OFFSET(AP22,1,0):AP707) -> 0 | AQ22: =SUMIF(OFFSET($B22,1,0):$B707,"Прочие инвестиционные проекты, всего, в том числе:",OFFSET(AQ22,1,0):AQ707) -> 0 | AR22: =SUMIF(OFFSET($B22,1,0):$B707,"Прочие инвестиционные проекты, всего, в том числе:",OFFSET(AR22,1,0):AR707) -> 0 | AS22: =SUMIF(OFFSET($B22,1,0):$B707,"Прочие инвестиционные проекты, всего, в том числе:",OFFSET(AS22,1,0):AS707) -> 0 | AT22: =SUMIF(OFFSET($B22,1,0):$B707,"Прочие инвестиционные проекты, всего, в том числе:",OFFSET(AT22,1,0):AT707) -> 0 | AU22: =SUMIF(OFFSET($B22,1,0):$B707,"Прочие инвестиционные проекты, всего, в том числе:",OFFSET(AU22,1,0):AU707) -> 0 | AV22: =SUMIF(OFFSET($B22,1,0):$B707,"Прочие инвестиционные проекты, всего, в том числе:",OFFSET(AV22,1,0):AV707) -> 0 | AW22: =SUMIF(OFFSET($B22,1,0):$B707,"Прочие инвестиционные проекты, всего, в том числе:",OFFSET(AW22,1,0):AW707) -> 0 | AX22: =SUMIF(OFFSET($B22,1,0):$B707,"Прочие инвестиционные проекты, всего, в том числе:",OFFSET(AX22,1,0):AX707) -> 0 | AY22: =SUMIF(OFFSET($B22,1,0):$B707,"Прочие инвестиционные проекты, всего, в том числе:",OFFSET(AY22,1,0):AY707) -> 0 | AZ22: =SUMIF(OFFSET($B22,1,0):$B707,"Прочие инвестиционные проекты, всего, в том числе:",OFFSET(AZ22,1,0):AZ707) -> 8 | BA22: =SUMIF(OFFSET($B22,1,0):$B707,"Прочие инвестиционные проекты, всего, в том числе:",OFFSET(BA22,1,0):BA707) -> 0 | BB22: =SUMIF(OFFSET($B22,1,0):$B707,"Прочие инвестиционные проекты, всего, в том числе:",OFFSET(BB22,1,0):BB707) -> 0 | BC22: =SUMIF(OFFSET($B22,1,0):$B707,"Прочие инвестиционные проекты, всего, в том числе:",OFFSET(BC22,1,0):BC707) -> 0 | BD22: =SUMIF(OFFSET($B22,1,0):$B707,"Прочие инвестиционные проекты, всего, в том числе:",OFFSET(BD22,1,0):BD707) -> 0 | BE22: =SUMIF(OFFSET($B22,1,0):$B707,"Прочие инвестиционные проекты, всего, в том числе:",OFFSET(BE22,1,0):BE707) -> 0 | BF22: =SUMIF(OFFSET($B22,1,0):$B707,"Прочие инвестиционные проекты, всего, в том числе:",OFFSET(BF22,1,0):BF707) -> 0 | BG22: =SUMIF(OFFSET($B22,1,0):$B707,"Прочие инвестиционные проекты, всего, в том числе:",OFFSET(BG22,1,0):BG707) -> 0 | BH22: =SUMIF(OFFSET($B22,1,0):$B707,"Прочие инвестиционные проекты, всего, в том числе:",OFFSET(BH22,1,0):BH707) -> 0 | BI22: =SUMIF(OFFSET($B22,1,0):$B707,"Прочие инвестиционные проекты, всего, в том числе:",OFFSET(BI22,1,0):BI707) -> 0 | BJ22: =SUMIF(OFFSET($B22,1,0):$B707,"Прочие инвестиционные проекты, всего, в том числе:",OFFSET(BJ22,1,0):BJ707) -> 0 | BK22: =SUMIF(OFFSET($B22,1,0):$B707,"Прочие инвестиционные проекты, всего, в том числе:",OFFSET(BK22,1,0):BK707) -> 0 | BL22: =SUMIF(OFFSET($B22,1,0):$B707,"Прочие инвестиционные проекты, всего, в том числе:",OFFSET(BL22,1,0):BL707) -> 0 | BM22: =SUMIF(OFFSET($B22,1,0):$B707,"Прочие инвестиционные проекты, всего, в том числе:",OFFSET(BM22,1,0):BM707) -> 0 | BN22: =SUMIF(OFFSET($B22,1,0):$B707,"Прочие инвестиционные проекты, всего, в том числе:",OFFSET(BN22,1,0):BN707) -> 0 | BO22: =SUMIF(OFFSET($B22,1,0):$B707,"Прочие инвестиционные проекты, всего, в том числе:",OFFSET(BO22,1,0):BO707) -> 0 | BP22: =SUMIF(OFFSET($B22,1,0):$B707,"Прочие инвестиционные проекты, всего, в том числе:",OFFSET(BP22,1,0):BP707) -> 0 | BQ22: =SUMIF(OFFSET($B22,1,0):$B707,"Прочие инвестиционные проекты, всего, в том числе:",OFFSET(BQ22,1,0):BQ707) -> 0 | BR22: =SUMIF(OFFSET($B22,1,0):$B707,"Прочие инвестиционные проекты, всего, в том числе:",OFFSET(BR22,1,0):BR707) -> 0 | BS22: =SUMIF(OFFSET($B22,1,0):$B707,"Прочие инвестиционные проекты, всего, в том числе:",OFFSET(BS22,1,0):BS707) -> 0 | BT22: =SUMIF(OFFSET($B22,1,0):$B707,"Прочие инвестиционные проекты, всего, в том числе:",OFFSET(BT22,1,0):BT707) -> 0 | BU22: =SUMIF(OFFSET($B22,1,0):$B707,"Прочие инвестиционные проекты, всего, в том числе:",OFFSET(BU22,1,0):BU707) -> 0 | BV22: =SUMIF(OFFSET($B22,1,0):$B707,"Прочие инвестиционные проекты, всего, в том числе:",OFFSET(BV22,1,0):BV707) -> 0 | BW22: =SUMIF(OFFSET($B22,1,0):$B707,"Прочие инвестиционные проекты, всего, в том числе:",OFFSET(BW22,1,0):BW707) -> 0 | BX22: =SUMIF(OFFSET($B22,1,0):$B707,"Прочие инвестиционные проекты, всего, в том числе:",OFFSET(BX22,1,0):BX707) -> 0 | BY22: =SUMIF(OFFSET($B22,1,0):$B707,"Прочие инвестиционные проекты, всего, в том числе:",OFFSET(BY22,1,0):BY707) -> 0 | BZ22: =SUMIF(OFFSET($B22,1,0):$B707,"Прочие инвестиционные проекты, всего, в том числе:",OFFSET(BZ22,1,0):BZ707) -> 0 | CA22: =SUMIF(OFFSET($B22,1,0):$B707,"Прочие инвестиционные проекты, всего, в том числе:",OFFSET(CA22,1,0):CA707) -> 0 | CB22: =SUMIF(OFFSET($B22,1,0):$B707,"Прочие инвестиционные проекты, всего, в том числе:",OFFSET(CB22,1,0):CB707) -> 0 | CC22: =SUMIF(OFFSET($B22,1,0):$B707,"Прочие инвестиционные проекты, всего, в том числе:",OFFSET(CC22,1,0):CC707) -> 0 | CD22: =SUMIF(OFFSET($B22,1,0):$B707,"Прочие инвестиционные проекты, всего, в том числе:",OFFSET(CD22,1,0):CD707) -> 0 | CE22: =SUMIF(OFFSET($B22,1,0):$B707,"Прочие инвестиционные проекты, всего, в том числе:",OFFSET(CE22,1,0):CE707) -> 0 | CF22: =SUMIF(OFFSET($B22,1,0):$B707,"Прочие инвестиционные проекты, всего, в том числе:",OFFSET(CF22,1,0):CF707) -> 0 | CG22: =SUMIF(OFFSET($B22,1,0):$B707,"Прочие инвестиционные проекты, всего, в том числе:",OFFSET(CG22,1,0):CG707) -> 0 | CH22: =SUMIF(OFFSET($B22,1,0):$B707,"Прочие инвестиционные проекты, всего, в том числе:",OFFSET(CH22,1,0):CH707) -> 0 | CI22: =SUMIF(OFFSET($B22,1,0):$B707,"Прочие инвестиционные проекты, всего, в том числе:",OFFSET(CI22,1,0):CI707) -> 0 | CJ22: =SUMIF(OFFSET($B22,1,0):$B707,"Прочие инвестиционные проекты, всего, в том числе:",OFFSET(CJ22,1,0):CJ707) -> 0 | CK22: =SUMIF(OFFSET($B22,1,0):$B707,"Прочие инвестиционные проекты, всего, в том числе:",OFFSET(CK22,1,0):CK707) -> 0 | CL22: =SUMIF(OFFSET($B22,1,0):$B707,"Прочие инвестиционные проекты, всего, в том числе:",OFFSET(CL22,1,0):CL707) -> 0 | CM22: =SUMIF(OFFSET($B22,1,0):$B707,"Прочие инвестиционные проекты, всего, в том числе:",OFFSET(CM22,1,0):CM707) -> 0 | CN22: =SUMIF(OFFSET($B22,1,0):$B707,"Прочие инвестиционные проекты, всего, в том числе:",OFFSET(CN22,1,0):CN707) -> 0 | CO22: =SUMIF(OFFSET($B22,1,0):$B707,"Прочие инвестиционные проекты, всего, в том числе:",OFFSET(CO22,1,0):CO707) -> 0 | CP22: =SUMIF(OFFSET($B22,1,0):$B707,"Прочие инвестиционные проекты, всего, в том числе:",OFFSET(CP22,1,0):CP707) -> 33 | CQ22: =SUMIF(OFFSET($B22,1,0):$B707,"Прочие инвестиционные проекты, всего, в том числе:",OFFSET(CQ22,1,0):CQ707) -> 0 | CR22: =SUMIF(OFFSET($B22,1,0):$B707,"Прочие инвестиционные проекты, всего, в том числе:",OFFSET(CR22,1,0):CR707) -> 0 | CS22: =SUMIF(OFFSET($B22,1,0):$B707,"Прочие инвестиционные проекты, всего, в том числе:",OFFSET(CS22,1,0):CS707) -> 0 | CT22: =SUMIF(OFFSET($B22,1,0):$B707,"Прочие инвестиционные проекты, всего, в том числе:",OFFSET(CT22,1,0):CT707) -> 0 | CU22: =SUMIF(OFFSET($B22,1,0):$B707,"Прочие инвестиционные проекты, всего, в том числе:",OFFSET(CU22,1,0):CU707) -> 0 | CV22: =SUMIF(OFFSET($B22,1,0):$B707,"Прочие инвестиционные проекты, всего, в том числе:",OFFSET(CV22,1,0):CV707) -> 0 | CW22: =SUMIF(OFFSET($B22,1,0):$B707,"Прочие инвестиционные проекты, всего, в том числе:",OFFSET(CW22,1,0):CW707) -> 0
A23: 1 | B23: Свердловская область | D23: 2.25 | E23: 0 | F23: 9 | G23: 0 | H23: 0 | I23: 0 | J23: 1412 | K23: 0 | L23: 0 | M23: 0 | N23: 0 | O23: 0 | P23: 0 | Q23: 0 | R23: 0 | S23: 0 | T23: 0 | U23: 0 | V23: 0 | W23: 0 | X23: 410 | Y23: 0 | Z23: 0 | AA23: 0 | AB23: 0 | AC23: 0 | AD23: 0 | AE23: 0 | AF23: 0 | AG23: 0 | AH23: 9 | AI23: 0 | AJ23: 0 | AK23: 0 | AL23: 0 | AM23: 0 | AN23: 0 | AO23: 0 | AP23: 0 | AQ23: 0 | AR23: 0 | AS23: 0 | AT23: 0 | AU23: 0 | AV23: 0 | AW23: 0 | AX23: 0 | AY23: 0 | AZ23: 0 | BA23: 0 | BB23: 0 | BC23: 0 | BD23: 0 | BE23: 0 | BF23: 0 | BG23: 0 | BH23: 0.65 | BI23: 0 | BJ23: 0 | BK23: 0 | BL23: 0 | BM23: 0 | BN23: 0 | BO23: 0 | BP23: 0 | BQ23: 0 | BR23: 0 | BS23: 0 | BT23: 0 | BU23: 0 | BV23: 0 | BW23: =BW24+#REF! ->  | BX23: =BX24+#REF! ->  | BY23: =BY24+#REF! ->  | BZ23: =BZ24+#REF! ->  | CA23: =CA24+#REF! ->  | CB23: =CB24+#REF! ->  | CC23: =CC24+#REF! ->  | CD23: =CD24+#REF! ->  | CE23: =CE24+#REF! ->  | CF23: =CF24+#REF! ->  | CG23: =CG24+#REF! ->  | CH23: =CH24+#REF! ->  | CI23: =CI24+#REF! ->  | CJ23: 2.25 | CK23: 0 | CL23: 9 | CM23: 0 | CN23: 0 | CO23: 0 | CP23: 1412 | CQ23: 0 | CR23: 0 | CS23: 0 | CT23: 0 | CU23: 0 | CV23: 0 | CW23: 0
A24: 1.2 | B24: Реконструкция, модернизация, техническое перевооружение всего, в том числе: | D24: 2.25 | E24: 0 | F24: 9 | G24: 0 | H24: 0 | I24: 0 | J24: =SUM(J25,J32,J36) -> 1379 | K24: 0 | L24: 0 | M24: 0 | N24: 0 | O24: 0 | P24: 0 | Q24: 0 | R24: 1.6 | S24: 0 | T24: 0 | U24: 0 | V24: 0 | W24: 0 | X24: 396 | Y24: 0 | Z24: 0 | AA24: 0 | AB24: 0 | AC24: 0 | AD24: 0 | AE24: 0 | AF24: 0 | AG24: 0 | AH24: 9 | AI24: 0 | AJ24: 0 | AK24: 0 | AL24: 296 | AM24: 0 | AN24: 0 | AO24: 0 | AP24: 0 | AQ24: 0 | AR24: 0 | AS24: 0 | AT24: 0 | AU24: 0 | AV24: 0 | AW24: 0 | AX24: 0 | AY24: 0 | AZ24: 296 | BA24: 0 | BB24: 0 | BC24: 0 | BD24: 0 | BE24: 0 | BF24: 0 | BG24: 0 | BH24: 0.65 | BI24: 0 | BJ24: 0 | BK24: 0 | BL24: 0 | BM24: 0 | BN24: 391 | BO24: 0 | BP24: 0 | BQ24: 0 | BR24: 0 | BS24: 0 | BT24: 0 | BU24: 0 | BV24: 0 | BW24: =BW25+#REF!+#REF! ->  | BX24: =BX25+#REF!+#REF! ->  | BY24: =BY25+#REF!+#REF! ->  | BZ24: =BZ25+#REF!+#REF! ->  | CA24: =CA25+#REF!+#REF! ->  | CB24: =CB25+#REF!+#REF! ->  | CC24: =CC25+#REF!+#REF! ->  | CD24: =CD25+#REF!+#REF! ->  | CE24: =CE25+#REF!+#REF! ->  | CF24: =CF25+#REF!+#REF! ->  | CG24: =CG25+#REF!+#REF! ->  | CH24: =CH25+#REF!+#REF! ->  | CI24: =CI25+#REF!+#REF! ->  | CJ24: 2.25 | CK24: 0 | CL24: 9 | CM24: 0 | CN24: 0 | CO24: 0 | CP24: =SUM(CP25,CP32,CP36) -> 1379 | CQ24: 0 | CR24: 0 | CS24: 0 | CT24: 0 | CU24: 0 | CV24: 0 | CW24: 0
A25: 1.2.1 | B25: Реконструкция, модернизация, техническое перевооружение трансформаторных и иных подстанций, распределительных пунктов, всего, в том числе: | D25: 2.25 | E25: 0 | F25: 0 | G25: 0 | H25: 0 | I25: 0 | J25: 11 | K25: 0 | L25: 0 | M25: 0 | N25: 0 | O25: 0 | P25: 0 | Q25: 0 | R25: 1.6 | S25: 0 | T25: 0 | U25: 0 | V25: 0 | W25: 0 | X25: 0 | Y25: 0 | Z25: 0 | AA25: 0 | AB25: 0 | AC25: 0 | AD25: 0 | AE25: 0 | AF25: 0 | AG25: 0 | AH25: 0 | AI25: 0 | AJ25: 0 | AK25: 0 | AM25: 0 | AN25: 0 | AO25: 0 | AP25: 0 | AQ25: 0 | AR25: 0 | AS25: 0 | AT25: 0 | AU25: 0 | AV25: 0 | AW25: 0 | AX25: 0 | AY25: 0 | AZ25: 0 | BA25: 0 | BB25: 0 | BC25: 0 | BD25: 0 | BE25: 0 | BF25: 0 | BG25: 0 | BH25: 0.65 | BI25: 0 | BJ25: 0 | BK25: 0 | BL25: 0 | BM25: 0 | BN25: 11 | BO25: 0 | BP25: 0 | BQ25: 0 | BR25: 0 | BS25: 0 | BT25: 0 | BU25: 0 | BV25: 0 | BW25: =BW26+#REF! ->  | BX25: =BX26+#REF! ->  | BY25: =BY26+#REF! ->  | BZ25: =BZ26+#REF! ->  | CA25: =CA26+#REF! ->  | CB25: =CB26+#REF! ->  | CC25: =CC26+#REF! ->  | CD25: =CD26+#REF! ->  | CE25: =CE26+#REF! ->  | CF25: =CF26+#REF! ->  | CG25: =CG26+#REF! ->  | CH25: =CH26+#REF! ->  | CI25: =CI26+#REF! ->  | CJ25: 2.25 | CK25: 0 | CL25: 0 | CM25: 0 | CN25: 0 | CO25: 0 | CP25: 11 | CQ25: 0 | CR25: 0 | CS25: 0 | CT25: 0 | CU25: 0 | CV25: 0 | CW25: 0
A26: 1.2.1.1 | B26: Реконструкция трансформаторных и иных подстанций, всего, в том числе: | D26: =SUM(D27,D28,D29) -> 2.25 | E26: =SUMIF(OFFSET($A26,1,0):$A711,$A26,OFFSET(E26,1,0):E711) -> 0 | F26: =SUMIF(OFFSET($A26,1,0):$A711,$A26,OFFSET(F26,1,0):F711) -> 0 | G26: =SUMIF(OFFSET($A26,1,0):$A711,$A26,OFFSET(G26,1,0):G711) -> 0 | H26: =SUMIF(OFFSET($A26,1,0):$A711,$A26,OFFSET(H26,1,0):H711) -> 0 | I26: =SUMIF(OFFSET($A26,1,0):$A711,$A26,OFFSET(I26,1,0):I711) -> 0 | J26: 0 | K26: =SUMIF(OFFSET($A26,1,0):$A711,$A26,OFFSET(K26,1,0):K711) -> 0 | L26: =SUMIF(OFFSET($A26,1,0):$A711,$A26,OFFSET(L26,1,0):L711) -> 0 | M26: =SUMIF(OFFSET($A26,1,0):$A711,$A26,OFFSET(M26,1,0):M711) -> 0 | N26: =SUMIF(OFFSET($A26,1,0):$A711,$A26,OFFSET(N26,1,0):N711) -> 0 | O26: =SUMIF(OFFSET($A26,1,0):$A711,$A26,OFFSET(O26,1,0):O711) -> 0 | P26: =SUMIF(OFFSET($A26,1,0):$A711,$A26,OFFSET(P26,1,0):P711) -> 0 | Q26: =SUMIF(OFFSET($A26,1,0):$A711,$A26,OFFSET(Q26,1,0):Q711) -> 0 | R26: 1.6 | S26: =SUMIF(OFFSET($A26,1,0):$A711,$A26,OFFSET(S26,1,0):S711) -> 0 | T26: =SUMIF(OFFSET($A26,1,0):$A711,$A26,OFFSET(T26,1,0):T711) -> 0 | U26: =SUMIF(OFFSET($A26,1,0):$A711,$A26,OFFSET(U26,1,0):U711) -> 0 | V26: =SUMIF(OFFSET($A26,1,0):$A711,$A26,OFFSET(V26,1,0):V711) -> 0 | W26: =SUMIF(OFFSET($A26,1,0):$A711,$A26,OFFSET(W26,1,0):W711) -> 0 | X26: =SUMIF(OFFSET($A26,1,0):$A711,$A26,OFFSET(X26,1,0):X711) -> 0 | Y26: =SUMIF(OFFSET($A26,1,0):$A711,$A26,OFFSET(Y26,1,0):Y711) -> 0 | Z26: =SUMIF(OFFSET($A26,1,0):$A711,$A26,OFFSET(Z26,1,0):Z711) -> 0 | AA26: =SUMIF(OFFSET($A26,1,0):$A711,$A26,OFFSET(AA26,1,0):AA711) -> 0 | AB26: =SUMIF(OFFSET($A26,1,0):$A711,$A26,OFFSET(AB26,1,0):AB711) -> 0 | AC26: =SUMIF(OFFSET($A26,1,0):$A711,$A26,OFFSET(AC26,1,0):AC711) -> 0 | AD26: =SUMIF(OFFSET($A26,1,0):$A711,$A26,OFFSET(AD26,1,0):AD711) -> 0 | AE26: =SUMIF(OFFSET($A26,1,0):$A711,$A26,OFFSET(AE26,1,0):AE711) -> 0 | AF26: =SUMIF(OFFSET($A26,1,0):$A711,$A26,OFFSET(AF26,1,0):AF711) -> 0 | AG26: =SUMIF(OFFSET($A26,1,0):$A711,$A26,OFFSET(AG26,1,0):AG711) -> 0 | AH26: =SUMIF(OFFSET($A26,1,0):$A711,$A26,OFFSET(AH26,1,0):AH711) -> 0 | AI26: =SUMIF(OFFSET($A26,1,0):$A711,$A26,OFFSET(AI26,1,0):AI711) -> 0 | AJ26: =SUMIF(OFFSET($A26,1,0):$A711,$A26,OFFSET(AJ26,1,0):AJ711) -> 0 | AK26: =SUMIF(OFFSET($A26,1,0):$A711,$A26,OFFSET(AK26,1,0):AK711) -> 0 | AL26: =SUMIF(OFFSET($A26,1,0):$A711,$A26,OFFSET(AL26,1,0):AL711) -> 0 | AM26: =SUMIF(OFFSET($A26,1,0):$A711,$A26,OFFSET(AM26,1,0):AM711) -> 0 | AN26: =SUMIF(OFFSET($A26,1,0):$A711,$A26,OFFSET(AN26,1,0):AN711) -> 0 | AO26: =SUMIF(OFFSET($A26,1,0):$A711,$A26,OFFSET(AO26,1,0):AO711) -> 0 | AP26: =SUMIF(OFFSET($A26,1,0):$A711,$A26,OFFSET(AP26,1,0):AP711) -> 0 | AQ26: =SUMIF(OFFSET($A26,1,0):$A711,$A26,OFFSET(AQ26,1,0):AQ711) -> 0 | AR26: =SUMIF(OFFSET($A26,1,0):$A711,$A26,OFFSET(AR26,1,0):AR711) -> 0 | AS26: =SUMIF(OFFSET($A26,1,0):$A711,$A26,OFFSET(AS26,1,0):AS711) -> 0 | AT26: =SUMIF(OFFSET($A26,1,0):$A711,$A26,OFFSET(AT26,1,0):AT711) -> 0 | AU26: =SUMIF(OFFSET($A26,1,0):$A711,$A26,OFFSET(AU26,1,0):AU711) -> 0 | AV26: =SUMIF(OFFSET($A26,1,0):$A711,$A26,OFFSET(AV26,1,0):AV711) -> 0 | AW26: =SUMIF(OFFSET($A26,1,0):$A711,$A26,OFFSET(AW26,1,0):AW711) -> 0 | AX26: =SUMIF(OFFSET($A26,1,0):$A711,$A26,OFFSET(AX26,1,0):AX711) -> 0 | AY26: =SUMIF(OFFSET($A26,1,0):$A711,$A26,OFFSET(AY26,1,0):AY711) -> 0 | AZ26: =SUMIF(OFFSET($A26,1,0):$A711,$A26,OFFSET(AZ26,1,0):AZ711) -> 0 | BA26: =SUMIF(OFFSET($A26,1,0):$A711,$A26,OFFSET(BA26,1,0):BA711) -> 0 | BB26: =SUMIF(OFFSET($A26,1,0):$A711,$A26,OFFSET(BB26,1,0):BB711) -> 0 | BC26: =SUMIF(OFFSET($A26,1,0):$A711,$A26,OFFSET(BC26,1,0):BC711) -> 0 | BD26: =SUMIF(OFFSET($A26,1,0):$A711,$A26,OFFSET(BD26,1,0):BD711) -> 0 | BE26: =SUMIF(OFFSET($A26,1,0):$A711,$A26,OFFSET(BE26,1,0):BE711) -> 0 | BF26: =SUMIF(OFFSET($A26,1,0):$A711,$A26,OFFSET(BF26,1,0):BF711) -> 0 | BG26: =SUMIF(OFFSET($A26,1,0):$A711,$A26,OFFSET(BG26,1,0):BG711) -> 0 | BH26: =SUMIF(OFFSET($A26,1,0):$A711,$A26,OFFSET(BH26,1,0):BH711) -> 0.65 | BI26: =SUMIF(OFFSET($A26,1,0):$A711,$A26,OFFSET(BI26,1,0):BI711) -> 0 | BJ26: =SUMIF(OFFSET($A26,1,0):$A711,$A26,OFFSET(BJ26,1,0):BJ711) -> 0 | BK26: =SUMIF(OFFSET($A26,1,0):$A711,$A26,OFFSET(BK26,1,0):BK711) -> 0 | BL26: =SUMIF(OFFSET($A26,1,0):$A711,$A26,OFFSET(BL26,1,0):BL711) -> 0 | BM26: =SUMIF(OFFSET($A26,1,0):$A711,$A26,OFFSET(BM26,1,0):BM711) -> 0 | BN26: =SUMIF(OFFSET($A26,1,0):$A711,$A26,OFFSET(BN26,1,0):BN711) -> 0 | BO26: =SUMIF(OFFSET($A26,1,0):$A711,$A26,OFFSET(BO26,1,0):BO711) -> 0 | BP26: =SUMIF(OFFSET($A26,1,0):$A711,$A26,OFFSET(BP26,1,0):BP711) -> 0 | BQ26: =SUMIF(OFFSET($A26,1,0):$A711,$A26,OFFSET(BQ26,1,0):BQ711) -> 0 | BR26: =SUMIF(OFFSET($A26,1,0):$A711,$A26,OFFSET(BR26,1,0):BR711) -> 0 | BS26: =SUMIF(OFFSET($A26,1,0):$A711,$A26,OFFSET(BS26,1,0):BS711) -> 0 | BT26: =SUMIF(OFFSET($A26,1,0):$A711,$A26,OFFSET(BT26,1,0):BT711) -> 0 | BU26: =SUMIF(OFFSET($A26,1,0):$A711,$A26,OFFSET(BU26,1,0):BU711) -> 0 | BV26: =SUMIF(OFFSET($A26,1,0):$A711,$A26,OFFSET(BV26,1,0):BV711) -> 0 | BW26: =SUMIF(OFFSET($A26,1,0):$A711,$A26,OFFSET(BW26,1,0):BW711) -> 0 | BX26: =SUMIF(OFFSET($A26,1,0):$A711,$A26,OFFSET(BX26,1,0):BX711) -> 0 | BY26: =SUMIF(OFFSET($A26,1,0):$A711,$A26,OFFSET(BY26,1,0):BY711) -> 0 | BZ26: =SUMIF(OFFSET($A26,1,0):$A711,$A26,OFFSET(BZ26,1,0):BZ711) -> 0 | CA26: =SUMIF(OFFSET($A26,1,0):$A711,$A26,OFFSET(CA26,1,0):CA711) -> 0 | CB26: =SUMIF(OFFSET($A26,1,0):$A711,$A26,OFFSET(CB26,1,0):CB711) -> 0 | CC26: =SUMIF(OFFSET($A26,1,0):$A711,$A26,OFFSET(CC26,1,0):CC711) -> 0 | CD26: =SUMIF(OFFSET($A26,1,0):$A711,$A26,OFFSET(CD26,1,0):CD711) -> 0 | CE26: =SUMIF(OFFSET($A26,1,0):$A711,$A26,OFFSET(CE26,1,0):CE711) -> 0 | CF26: =SUMIF(OFFSET($A26,1,0):$A711,$A26,OFFSET(CF26,1,0):CF711) -> 0 | CG26: =SUMIF(OFFSET($A26,1,0):$A711,$A26,OFFSET(CG26,1,0):CG711) -> 0 | CH26: =SUMIF(OFFSET($A26,1,0):$A711,$A26,OFFSET(CH26,1,0):CH711) -> 0 | CI26: =SUMIF(OFFSET($A26,1,0):$A711,$A26,OFFSET(CI26,1,0):CI711) -> 0 | CJ26: =SUM(CJ27,CJ28,CJ29) -> 2.25 | CK26: =SUMIF(OFFSET($A26,1,0):$A711,$A26,OFFSET(CK26,1,0):CK711) -> 0 | CL26: =SUMIF(OFFSET($A26,1,0):$A711,$A26,OFFSET(CL26,1,0):CL711) -> 0 | CM26: =SUMIF(OFFSET($A26,1,0):$A711,$A26,OFFSET(CM26,1,0):CM711) -> 0 | CN26: =SUMIF(OFFSET($A26,1,0):$A711,$A26,OFFSET(CN26,1,0):CN711) -> 0 | CO26: =SUMIF(OFFSET($A26,1,0):$A711,$A26,OFFSET(CO26,1,0):CO711) -> 0 | CP26: 0 | CQ26: =SUMIF(OFFSET($A26,1,0):$A711,$A26,OFFSET(CQ26,1,0):CQ711) -> 0 | CR26: =SUMIF(OFFSET($A26,1,0):$A711,$A26,OFFSET(CR26,1,0):CR711) -> 0 | CS26: =SUMIF(OFFSET($A26,1,0):$A711,$A26,OFFSET(CS26,1,0):CS711) -> 0 | CT26: =SUMIF(OFFSET($A26,1,0):$A711,$A26,OFFSET(CT26,1,0):CT711) -> 0 | CU26: =SUMIF(OFFSET($A26,1,0):$A711,$A26,OFFSET(CU26,1,0):CU711) -> 0 | CV26: =SUMIF(OFFSET($A26,1,0):$A711,$A26,OFFSET(CV26,1,0):CV711) -> 0 | CW26: =SUMIF(OFFSET($A26,1,0):$A711,$A26,OFFSET(CW26,1,0):CW711) -> 0
A27: 1.2.1.1 | B27: Реконструкция ТП-7011, ТП-1072, ТП-1017, ТП-1078, г. Верхняя Салда | D27: 1.6 | E27: =CK27 -> 0 | F27: 0 | G27: 0 | H27: 0 | I27: 0 | J27: 0 | K27: =CQ27 -> 0 | L27: =CR27 -> 0 | M27: =CS27 -> 0 | N27: =CT27 -> 0 | O27: =CU27 -> 0 | P27: =CV27 -> 0 | Q27: =CW27 -> 0 | R27: 1.6 | S27: =CY27 -> 0 | T27: =CZ27 -> 0 | U27: =DA27 -> 0 | V27: =DB27 -> 0 | W27: =DC27 -> 0 | X27: =DD27 -> 0 | Y27: =DE27 -> 0 | Z27: =DF27 -> 0 | AA27: =DG27 -> 0 | AB27: =DH27 -> 0 | AC27: =DI27 -> 0 | AD27: =DJ27 -> 0 | AE27: =DK27 -> 0 | AF27: =DL27 -> 0 | AG27: =DM27 -> 0 | AH27: =DN27 -> 0 | AI27: =DO27 -> 0 | AJ27: =DP27 -> 0 | AK27: =DQ27 -> 0 | AL27: =DR27 -> 0 | AM27: =DS27 -> 0 | AN27: =DT27 -> 0 | AO27: =DU27 -> 0 | AP27: =DV27 -> 0 | AQ27: =DW27 -> 0 | AR27: =DX27 -> 0 | AS27: =DY27 -> 0 | AT27: =DZ27 -> 0 | AU27: =EA27 -> 0 | AV27: =EB27 -> 0 | AW27: =EC27 -> 0 | AX27: =ED27 -> 0 | AY27: =EE27 -> 0 | AZ27: 0 | BA27: =EG27 -> 0 | BB27: =EH27 -> 0 | BC27: =EI27 -> 0 | BD27: =EJ27 -> 0 | BE27: =EK27 -> 0 | BF27: =EL27 -> 0 | BG27: =EM27 -> 0 | BH27: =EN27 -> 0 | BI27: =EO27 -> 0 | BJ27: =EP27 -> 0 | BK27: =EQ27 -> 0 | BL27: =ER27 -> 0 | BM27: =ES27 -> 0 | BN27: =ET27 -> 0 | BO27: =EU27 -> 0 | BP27: =EV27 -> 0 | BQ27: =EW27 -> 0 | BR27: =EX27 -> 0 | BS27: =EY27 -> 0 | BT27: =EZ27 -> 0 | BU27: =FA27 -> 0 | BV27: =FB27 -> 0 | BZ27: =IFERROR(VLOOKUP($C27,#REF!,34,FALSE),"") ->  | CB27: =IFERROR(VLOOKUP($C27,#REF!,36,FALSE),"") ->  | CJ27: 1.6 | CK27: =FQ27 -> 0 | CL27: =FR27 -> 0 | CM27: =FS27 -> 0 | CN27: =FT27 -> 0 | CO27: =FU27 -> 0 | CP27: 0 | CQ27: =FW27 -> 0 | CR27: =FX27 -> 0 | CS27: =FY27 -> 0 | CT27: =FZ27 -> 0 | CU27: =GA27 -> 0 | CV27: =GB27 -> 0 | CW27: =GC27 -> 0
A28: 1.2.1.1 | B28: Установка КТПн 250кВА в п. Тагильский | D28: 0.25 | E28: 0 | F28: 0 | G28: 0 | H28: 0 | I28: 0 | J28: 0 | K28: 0 | L28: 0 | M28: 0 | N28: 0 | O28: 0 | P28: 0 | Q28: 0 | R28: =CX28 -> 0 | S28: 0 | T28: 0 | U28: 0 | V28: 0 | W28: 0 | X28: 0 | Y28: 0 | Z28: 0 | AA28: 0 | AB28: 0 | AC28: 0 | AD28: 0 | AE28: 0 | AF28: 0 | AG28: 0 | AH28: 0 | AI28: 0 | AJ28: 0 | AK28: 0 | AL28: 0 | AM28: 0 | AN28: 0 | AO28: 0 | AP28: 0 | AQ28: 0 | AR28: 0 | AS28: 0 | AT28: 0 | AU28: 0 | AV28: 0 | AW28: 0 | AX28: 0 | AY28: 0 | AZ28: 0 | BA28: 0 | BB28: 0 | BC28: 0 | BD28: 0 | BE28: 0 | BF28: 0 | BG28: 0 | BH28: 0.25 | BI28: 0 | BJ28: 0 | BK28: 0 | BL28: 0 | BM28: 0 | BN28: 0 | BO28: 0 | BP28: 0 | BQ28: 0 | BR28: 0 | BS28: 0 | BT28: 0 | BU28: 0 | BV28: 0 | BZ28: =IFERROR(VLOOKUP($C28,#REF!,34,FALSE),"") ->  | CB28: =IFERROR(VLOOKUP($C28,#REF!,36,FALSE),"") ->  | CJ28: 0.25 | CK28: 0 | CL28: 0 | CM28: 0 | CN28: 0 | CO28: 0 | CP28: 0 | CQ28: 0 | CR28: 0 | CS28: 0 | CT28: 0 | CU28: 0 | CV28: 0 | CW28: 0
A29: 1.2.1.1 | B29: Установка КТПн 400кВА в г. Верхняя Салда | D29: 0.4 | E29: =CK29 -> 0 | F29: 0 | G29: 0 | H29: 0 | I29: 0 | J29: 0 | K29: 0 | L29: 0 | M29: 0 | N29: 0 | O29: 0 | P29: 0 | Q29: 0 | R29: 0 | S29: 0 | T29: 0 | U29: 0 | V29: 0 | W29: 0 | X29: 0 | Y29: 0 | Z29: 0 | AA29: 0 | AB29: 0 | AC29: 0 | AD29: 0 | AE29: 0 | AF29: 0 | AG29: 0 | AH29: 0 | AI29: 0 | AJ29: 0 | AK29: 0 | AL29: 0 | AM29: 0 | AN29: 0 | AO29: 0 | AP29: 0 | AQ29: 0 | AR29: 0 | AS29: 0 | AT29: 0 | AU29: 0 | AV29: 0 | AW29: 0 | AX29: 0 | AY29: 0 | AZ29: 0 | BA29: 0 | BB29: 0 | BC29: 0 | BD29: 0 | BE29: 0 | BF29: 0 | BG29: 0 | BH29: 0.4 | BI29: 0 | BJ29: 0 | BK29: 0 | BL29: 0 | BM29: 0 | BO29: 0 | BP29: 0 | BQ29: 0 | BR29: 0 | BS29: 0 | BT29: 0 | BU29: 0 | BV29: 0 | BZ29: =IFERROR(VLOOKUP($C29,#REF!,34,FALSE),"") ->  | CB29: =IFERROR(VLOOKUP($C29,#REF!,36,FALSE),"") ->  | CJ29: 0.4 | CK29: 0 | CL29: 0 | CM29: 0 | CN29: 0 | CO29: 0 | CP29: 0 | CQ29: 0 | CR29: 0 | CS29: 0 | CT29: 0 | CU29: 0 | CV29: 0 | CW29: 0
A30: 1.2.1.2 | B30: Модернизация, техническое перевооружение трансформаторных и иных подстанций, распределительных пунктов, всего, в том числе: | D30: 0 | E30: =CK30 -> 0 | F30: =CL30 -> 0 | G30: =CM30 -> 0 | H30: =CN30 -> 0 | I30: =CO30 -> 0 | J30: 11 | K30: 0 | L30: 0 | M30: 0 | N30: 0 | O30: 0 | P30: 0 | Q30: 0 | R30: 0 | S30: 0 | T30: 0 | U30: 0 | V30: 0 | W30: 0 | X30: 0 | Y30: 0 | Z30: 0 | AA30: 0 | AB30: 0 | AC30: 0 | AD30: 0 | AE30: 0 | AF30: 0 | AG30: 0 | AH30: 0 | AI30: 0 | AJ30: 0 | AK30: 0 | AL30: 0 | AM30: 0 | AN30: 0 | AO30: 0 | AP30: 0 | AQ30: 0 | AR30: 0 | AS30: 0 | AT30: 0 | AU30: 0 | AV30: 0 | AW30: 0 | AX30: 0 | AY30: 0 | AZ30: 0 | BA30: 0 | BB30: 0 | BC30: 0 | BD30: 0 | BE30: 0 | BF30: 0 | BG30: 0 | BH30: 0 | BI30: 0 | BJ30: 0 | BK30: 0 | BL30: 0 | BM30: 0 | BN30: 11 | BO30: 0 | BP30: 0 | BQ30: 0 | BR30: 0 | BS30: 0 | BT30: 0 | BU30: 0 | BV30: 0 | BZ30: =IFERROR(VLOOKUP($C30,#REF!,34,FALSE),"") ->  | CB30: =IFERROR(VLOOKUP($C30,#REF!,36,FALSE),"") ->  | CJ30: 0 | CK30: 0 | CL30: 0 | CM30: 0 | CN30: 0 | CO30: 0 | CP30: 11 | CQ30: 0 | CR30: 0 | CS30: 0 | CT30: 0 | CU30: 0 | CV30: 0 | CW30: 0
A31: 1.2.1.2 | B31: Ретрофит ячеек 6-10 кВ в РП, ТП, г. Верхняя Салда | D31: 0 | E31: 0 | F31: 0 | G31: 0 | H31: 0 | I31: 0 | J31: 11 | K31: 0 | L31: 0 | M31: 0 | N31: 0 | O31: 0 | P31: 0 | Q31: 0 | R31: 0 | S31: 0 | T31: 0 | U31: 0 | V31: 0 | W31: 0 | X31: 0 | Y31: 0 | Z31: 0 | AA31: 0 | AB31: 0 | AC31: 0 | AD31: 0 | AE31: 0 | AF31: 0 | AG31: 0 | AH31: 0 | AI31: 0 | AJ31: 0 | AK31: 0 | AL31: 0 | AM31: 0 | AN31: 0 | AO31: 0 | AP31: 0 | AQ31: 0 | AR31: 0 | AS31: 0 | AT31: 0 | AU31: 0 | AV31: 0 | AW31: 0 | AX31: 0 | AY31: 0 | AZ31: 0 | BA31: 0 | BB31: 0 | BC31: 0 | BD31: 0 | BE31: 0 | BF31: 0 | BG31: 0 | BH31: 0 | BI31: 0 | BJ31: 0 | BK31: 0 | BL31: 0 | BM31: 0 | BN31: 11 | BO31: 0 | BP31: 0 | BQ31: 0 | BR31: 0 | BS31: 0 | BT31: 0 | BU31: 0 | BV31: 0 | BZ31: =IFERROR(VLOOKUP($C31,#REF!,34,FALSE),"") ->  | CB31: =IFERROR(VLOOKUP($C31,#REF!,36,FALSE),"") ->  | CJ31: 0 | CK31: 0 | CL31: 0 | CM31: 0 | CN31: 0 | CO31: 0 | CP31: 11 | CQ31: 0 | CR31: 0 | CS31: 0 | CT31: 0 | CU31: 0 | CV31: 0 | CW31: 0
A32: 1.2.2 | B32: Реконструкция, модернизация, техническое перевооружение линий электропередачи, всего, в том числе: | D32: 0 | E32: 0 | F32: 9 | G32: 0 | H32: 0 | I32: 0 | J32: 1 | K32: 0 | L32: 0 | M32: 0 | N32: 0 | O32: 0 | P32: 0 | Q32: 0 | R32: 0 | S32: 0 | T32: 0 | U32: 0 | V32: 0 | W32: 0 | X32: 0 | Y32: 0 | Z32: 0 | AA32: 0 | AB32: 0 | AC32: 0 | AD32: 0 | AE32: 0 | AF32: 0 | AG32: 0 | AH32: 9 | AI32: 0 | AJ32: 0 | AK32: 0 | AL32: 0 | AM32: 0 | AN32: 0 | AO32: 0 | AP32: 0 | AQ32: 0 | AR32: 0 | AS32: 0 | AT32: 0 | AU32: 0 | AV32: 0 | AW32: 0 | AX32: 0 | AY32: 0 | AZ32: 0 | BA32: 0 | BB32: 0 | BC32: 0 | BD32: 0 | BE32: 0 | BF32: 0 | BG32: 0 | BH32: 0 | BI32: 0 | BJ32: 0 | BK32: 0 | BL32: 0 | BM32: 0 | BN32: 0 | BO32: 0 | BP32: 0 | BQ32: 0 | BR32: 0 | BS32: 0 | BT32: 0 | BU32: 0 | BV32: 0 | BZ32: =IFERROR(VLOOKUP($C32,#REF!,34,FALSE),"") ->  | CB32: =IFERROR(VLOOKUP($C32,#REF!,36,FALSE),"") ->  | CJ32: 0 | CK32: 0 | CL32: 9 | CM32: 0 | CN32: 0 | CO32: 0 | CP32: 1 | CQ32: 0 | CR32: 0 | CS32: 0 | CT32: 0 | CU32: 0 | CV32: 0 | CW32: 0
A33: 1.2.2.1 | B33: Реконструкция линий электропередачи, всего, в том числе: | D33: 0 | E33: 0 | F33: 9 | G33: 0 | H33: 0 | I33: 0 | J33: 1 | K33: 0 | L33: 0 | M33: 0 | N33: 0 | O33: 0 | P33: 0 | Q33: 0 | R33: 0 | S33: 0 | T33: 0 | U33: 0 | V33: 0 | W33: 0 | X33: 0 | Y33: 0 | Z33: 0 | AA33: 0 | AB33: 0 | AC33: 0 | AD33: 0 | AE33: 0 | AF33: 0 | AG33: 0 | AH33: 9 | AI33: 0 | AJ33: 0 | AK33: 0 | AL33: 0 | AM33: 0 | AN33: 0 | AO33: 0 | AP33: 0 | AQ33: 0 | AR33: 0 | AS33: 0 | AT33: 0 | AU33: 0 | AV33: 0 | AW33: 0 | AX33: 0 | AY33: 0 | AZ33: 0 | BA33: 0 | BB33: 0 | BC33: 0 | BD33: 0 | BE33: 0 | BF33: 0 | BG33: 0 | BH33: 0 | BI33: 0 | BJ33: 0 | BK33: 0 | BL33: 0 | BM33: 0 | BN33: 0 | BO33: 0 | BP33: 0 | BQ33: 0 | BR33: 0 | BS33: 0 | BT33: 0 | BU33: 0 | BV33: 0 | BZ33: =IFERROR(VLOOKUP($C33,#REF!,34,FALSE),"") ->  | CB33: =IFERROR(VLOOKUP($C33,#REF!,36,FALSE),"") ->  | CJ33: 0 | CK33: 0 | CL33: 9 | CM33: 0 | CN33: 0 | CO33: 0 | CP33: 1 | CQ33: 0 | CR33: 0 | CS33: 0 | CT33: 0 | CU33: 0 | CV33: 0 | CW33: 0
A34: 1.2.2.1 | B34: Реконструкция ВЛ-6 кВ ПС Басьяновка, г. Верхняя Салда | D34: 0 | E34: 0 | F34: 0 | G34: 0 | H34: 0 | I34: 0 | J34: 1 | K34: 0 | L34: 0 | M34: 0 | N34: 0 | O34: 0 | P34: 0 | Q34: 0 | R34: 0 | S34: 0 | T34: 0 | U34: 0 | V34: 0 | W34: 0 | X34: 1 | Y34: 0 | Z34: 0 | AA34: 0 | AB34: 0 | AC34: 0 | AD34: 0 | AE34: 0 | AF34: 0 | AG34: 0 | AH34: 0 | AI34: 0 | AJ34: 0 | AK34: 0 | AL34: 0 | AM34: 0 | AN34: 0 | AO34: 0 | AP34: 0 | AQ34: 0 | AR34: 0 | AS34: 0 | AT34: 0 | AU34: 0 | AV34: 0 | AW34: 0 | AX34: 0 | AY34: 0 | AZ34: 0 | BA34: 0 | BB34: 0 | BC34: 0 | BD34: 0 | BE34: 0 | BF34: 0 | BG34: 0 | BH34: 0 | BI34: 0 | BJ34: 0 | BK34: 0 | BL34: 0 | BM34: 0 | BN34: 0 | BO34: 0 | BP34: 0 | BQ34: 0 | BR34: 0 | BS34: 0 | BT34: 0 | BU34: 0 | BV34: 0 | BZ34: =IFERROR(VLOOKUP($C34,#REF!,34,FALSE),"") ->  | CB34: =IFERROR(VLOOKUP($C34,#REF!,36,FALSE),"") ->  | CJ34: 0 | CK34: 0 | CL34: =FR34 -> 0 | CM34: 0 | CN34: 0 | CO34: 0 | CP34: 1 | CQ34: 0 | CR34: 0 | CS34: 0 | CT34: 0 | CU34: 0 | CV34: 0 | CW34: 0
A35: 1.2.2.1 | B35: Реконструкция ВЛ-6 кВ ПС Басьяновка, г. Верхняя Салда | D35: 0 | E35: 0 | F35: 9 | G35: 0 | H35: 0 | I35: 0 | J35: 0 | K35: 0 | L35: 0 | M35: 0 | N35: 0 | O35: 0 | P35: 0 | Q35: 0 | R35: 0 | S35: 0 | T35: 0 | U35: 0 | V35: 0 | W35: 0 | X35: 0 | Y35: 0 | Z35: 0 | AA35: 0 | AB35: 0 | AC35: 0 | AD35: 0 | AE35: 0 | AF35: 0 | AG35: 0 | AH35: 9 | AI35: 0 | AJ35: 0 | AK35: 0 | AL35: 0 | AM35: 0 | AN35: 0 | AO35: 0 | AP35: 0 | AQ35: 0 | AR35: 0 | AS35: 0 | AT35: 0 | AU35: 0 | AV35: 0 | AW35: 0 | AX35: 0 | AY35: 0 | AZ35: 0 | BA35: 0 | BB35: 0 | BC35: 0 | BD35: 0 | BE35: 0 | BF35: 0 | BG35: 0 | BH35: 0 | BI35: 0 | BJ35: 0 | BK35: 0 | BL35: 0 | BM35: 0 | BN35: 0 | BO35: 0 | BP35: 0 | BQ35: 0 | BR35: 0 | BS35: 0 | BT35: 0 | BU35: 0 | BV35: 0 | BZ35: =IFERROR(VLOOKUP($C35,#REF!,34,FALSE),"") ->  | CB35: =IFERROR(VLOOKUP($C35,#REF!,36,FALSE),"") ->  | CJ35: 0 | CK35: 0 | CL35: 9 | CM35: 0 | CN35: 0 | CO35: 0 | CP35: 0 | CQ35: 0 | CR35: 0 | CS35: 0 | CT35: 0 | CU35: 0 | CV35: 0 | CW35: 0
A36: 1.2.3 | B36: Развитие и модернизация учета электрической энергии (мощности), всего, в том числе: | D36: 0 | E36: 0 | F36: 0 | G36: 0 | H36: 0 | I36: 0 | J36: =SUM(J38,J39,J40,J41) -> 1367 | K36: 0 | L36: 0 | M36: 0 | N36: 0 | O36: 0 | P36: 0 | Q36: 0 | R36: 0 | S36: 0 | T36: 0 | U36: 0 | V36: 0 | W36: 0 | X36: 0 | Y36: 0 | Z36: 0 | AA36: 0 | AB36: 0 | AC36: 0 | AD36: 0 | AE36: 0 | AF36: 0 | AG36: 0 | AH36: 0 | AI36: 0 | AJ36: 0 | AK36: 0 | AL36: 0 | AM36: 0 | AN36: 0 | AO36: 0 | AP36: 0 | AQ36: 0 | AR36: 0 | AS36: 0 | AT36: 0 | AU36: 0 | AV36: 0 | AW36: 0 | AX36: 0 | AY36: 0 | AZ36: 0 | BA36: 0 | BB36: 0 | BC36: 0 | BD36: 0 | BE36: 0 | BF36: 0 | BG36: 0 | BH36: 0 | BI36: 0 | BJ36: 0 | BK36: 0 | BL36: 0 | BM36: 0 | BN36: 0 | BO36: 0 | BP36: 0 | BQ36: 0 | BR36: 0 | BS36: 0 | BT36: 0 | BU36: 0 | BV36: 0 | BZ36: =IFERROR(VLOOKUP($C36,#REF!,34,FALSE),"") ->  | CB36: =IFERROR(VLOOKUP($C36,#REF!,36,FALSE),"") ->  | CJ36: 0 | CK36: 0 | CL36: =FR36 -> 0 | CM36: 0 | CN36: 0 | CO36: 0 | CP36: =SUM(CP38,CP39,CP40,CP41) -> 1367 | CQ36: 0 | CR36: 0 | CS36: 0 | CT36: 0 | CU36: 0 | CV36: 0 | CW36: 0
A37: 1.2.3.1 | B37: «Установка приборов учета, класс напряжения 0,22 (0,4) кВ, всего, в том числе:» | D37: 0 | E37: 0 | F37: 0 | G37: 0 | H37: 0 | I37: 0 | J37: 1367 | K37: 0 | L37: 0 | M37: 0 | N37: 0 | O37: 0 | P37: 0 | Q37: 0 | R37: 0 | S37: 0 | T37: 0 | U37: 0 | V37: 0 | W37: 0 | X37: 0 | Y37: 0 | Z37: 0 | AA37: 0 | AB37: 0 | AC37: 0 | AD37: 0 | AE37: 0 | AF37: 0 | AG37: 0 | AH37: 0 | AI37: 0 | AJ37: 0 | AK37: 0 | AL37: 0 | AM37: 0 | AN37: 0 | AO37: 0 | AP37: 0 | AQ37: 0 | AR37: 0 | AS37: 0 | AT37: 0 | AU37: 0 | AV37: 0 | AW37: 0 | AX37: 0 | AY37: 0 | AZ37: 0 | BA37: 0 | BB37: 0 | BC37: 0 | BD37: 0 | BE37: 0 | BF37: 0 | BG37: 0 | BH37: 0 | BI37: 0 | BJ37: 0 | BK37: 0 | BL37: 0 | BM37: 0 | BN37: 0 | BO37: 0 | BP37: 0 | BQ37: 0 | BR37: 0 | BS37: 0 | BT37: 0 | BU37: 0 | BV37: 0 | BZ37: =IFERROR(VLOOKUP($C37,#REF!,34,FALSE),"") ->  | CB37: =IFERROR(VLOOKUP($C37,#REF!,36,FALSE),"") ->  | CJ37: 0 | CK37: 0 | CL37: 0 | CM37: 0 | CN37: 0 | CO37: 0 | CP37: 1367 | CQ37: 0 | CR37: 0 | CS37: 0 | CT37: 0 | CU37: 0 | CV37: 0 | CW37: 0
A38: 1.2.3.1 | B38: Развитие системы АИИСКУЭ в сетях 0,4 кВ, г. Верхняя Салда | D38: 0 | E38: 0 | F38: 0 | G38: 0 | H38: 0 | I38: 0 | J38: 395 | K38: 0 | L38: 0 | M38: 0 | N38: 0 | O38: 0 | P38: 0 | Q38: 0 | R38: 0 | S38: 0 | T38: 0 | U38: 0 | V38: 0 | W38: 0 | X38: 395 | Y38: 0 | Z38: 0 | AA38: 0 | AB38: 0 | AC38: 0 | AD38: 0 | AE38: 0 | AF38: 0 | AG38: 0 | AH38: 0 | AI38: 0 | AJ38: 0 | AK38: 0 | AL38: 0 | AM38: 0 | AN38: 0 | AO38: 0 | AP38: 0 | AQ38: 0 | AR38: 0 | AS38: 0 | AT38: 0 | AU38: 0 | AV38: 0 | AW38: 0 | AX38: 0 | AY38: 0 | AZ38: 0 | BA38: 0 | BB38: 0 | BC38: 0 | BD38: 0 | BE38: 0 | BF38: 0 | BG38: 0 | BH38: 0 | BI38: 0 | BJ38: 0 | BK38: 0 | BL38: 0 | BM38: 0 | BN38: 0 | BO38: 0 | BP38: 0 | BQ38: 0 | BR38: 0 | BS38: 0 | BT38: 0 | BU38: 0 | BV38: 0 | BZ38: =IFERROR(VLOOKUP($C38,#REF!,34,FALSE),"") ->  | CB38: =IFERROR(VLOOKUP($C38,#REF!,36,FALSE),"") ->  | CJ38: 0 | CK38: 0 | CL38: 0 | CM38: 0 | CN38: 0 | CO38: 0 | CP38: 395 | CQ38: 0 | CR38: 0 | CS38: 0 | CT38: 0 | CU38: 0 | CV38: 0 | CW38: 0
A39: 1.2.3.1 | B39: Развитие системы АИИСКУЭ в сетях 0,4 кВ, г. Верхняя Салда | D39: 0 | E39: 0 | F39: 0 | G39: 0 | H39: 0 | I39: 0 | J39: 296 | K39: 0 | L39: 0 | M39: 0 | N39: 0 | O39: 0 | P39: 0 | Q39: 0 | R39: 0 | S39: 0 | T39: 0 | U39: 0 | V39: 0 | W39: 0 | X39: 0 | Y39: 0 | Z39: 0 | AA39: 0 | AB39: 0 | AC39: 0 | AD39: 0 | AE39: 0 | AF39: 0 | AG39: 0 | AH39: 0 | AI39: 0 | AJ39: 0 | AK39: 0 | AL39: 296 | AM39: 0 | AN39: 0 | AO39: 0 | AP39: 0 | AQ39: 0 | AR39: 0 | AS39: 0 | AT39: 0 | AU39: 0 | AV39: 0 | AW39: 0 | AX39: 0 | AY39: 0 | AZ39: 0 | BA39: 0 | BB39: 0 | BC39: 0 | BD39: 0 | BE39: 0 | BF39: 0 | BG39: 0 | BH39: 0 | BI39: 0 | BJ39: 0 | BK39: 0 | BL39: 0 | BM39: 0 | BN39: 0 | BO39: 0 | BP39: 0 | BQ39: 0 | BR39: 0 | BS39: 0 | BT39: 0 | BU39: 0 | BV39: 0 | BZ39: =IFERROR(VLOOKUP($C39,#REF!,34,FALSE),"") ->  | CB39: =IFERROR(VLOOKUP($C39,#REF!,36,FALSE),"") ->  | CJ39: 0 | CK39: 0 | CL39: 0 | CM39: 0 | CN39: 0 | CO39: 0 | CP39: 296 | CQ39: 0 | CR39: 0 | CS39: 0 | CT39: 0 | CU39: 0 | CV39: 0 | CW39: 0
A40: 1.2.3.1 | B40: Развитие системы АИИСКУЭ в сетях 0,4 кВ, г. Верхняя Салда | D40: 0 | E40: 0 | F40: 0 | G40: 0 | H40: 0 | I40: 0 | J40: 296 | K40: 0 | L40: 0 | M40: 0 | N40: 0 | O40: 0 | P40: 0 | Q40: 0 | R40: 0 | S40: 0 | T40: 0 | U40: 0 | V40: 0 | W40: 0 | X40: 0 | Y40: 0 | Z40: 0 | AA40: 0 | AB40: 0 | AC40: 0 | AD40: 0 | AE40: 0 | AF40: 0 | AG40: 0 | AH40: 0 | AI40: 0 | AJ40: 0 | AK40: 0 | AL40: 0 | AM40: 0 | AN40: 0 | AO40: 0 | AP40: 0 | AQ40: 0 | AR40: 0 | AS40: 0 | AT40: =IFERROR(VLOOKUP($C40,'5.3'!$C:$AM,32,FALSE),"") ->  | AX40: =IFERROR(VLOOKUP($C40,'5.3'!$C:$AM,34,FALSE),"") ->  | AZ40: 296 | BZ40: =IFERROR(VLOOKUP($C40,#REF!,34,FALSE),"") ->  | CB40: =IFERROR(VLOOKUP($C40,#REF!,36,FALSE),"") ->  | CJ40: 0 | CK40: 0 | CL40: 0 | CM40: 0 | CN40: 0 | CO40: 0 | CP40: 296 | CQ40: 0 | CR40: 0 | CS40: 0 | CT40: 0 | CU40: 0 | CV40: 0 | CW40: 0
A41: 1.2.3.1 | B41: Развитие системы АИИСКУЭ в сетях 0,4 кВ, г. Верхняя Салда | D41: 0 | E41: 0 | F41: 0 | G41: 0 | H41: 0 | I41: 0 | J41: 380 | K41: 0 | L41: 0 | M41: 0 | N41: 0 | O41: 0 | P41: 0 | Q41: 0 | R41: 0 | S41: 0 | T41: 0 | U41: 0 | V41: 0 | W41: 0 | X41: 0 | Y41: 0 | Z41: 0 | AA41: 0 | AB41: 0 | AC41: 0 | AD41: 0 | AE41: 0 | AF41: 0 | AG41: 0 | AH41: 0 | AI41: 0 | AJ41: 0 | AK41: 0 | AL41: 0 | AM41: 0 | AN41: 0 | AO41: 0 | AP41: 0 | AQ41: 0 | AR41: 0 | AS41: 0 | AT41: =IFERROR(VLOOKUP($C41,'5.3'!$C:$AM,32,FALSE),"") ->  | AX41: =IFERROR(VLOOKUP($C41,'5.3'!$C:$AM,34,FALSE),"") ->  | AZ41: =IFERROR(VLOOKUP($C41,'5.3'!$C:$AM,36,FALSE),"") ->  | BN41: 380 | BZ41: =IFERROR(VLOOKUP($C41,#REF!,34,FALSE),"") ->  | CB41: =IFERROR(VLOOKUP($C41,#REF!,36,FALSE),"") ->  | CJ41: 0 | CK41: 0 | CL41: 0 | CM41: 0 | CN41: 0 | CO41: 0 | CP41: 380 | CQ41: 0 | CR41: 0 | CS41: 0 | CT41: 0 | CU41: 0 | CV41: 0 | CW41: 0
A42: 1.6 | B42: Прочие инвестиционные проекты, всего, в том числе: | D42: 0 | E42: 0 | F42: 0 | G42: 0 | H42: 0 | I42: 0 | J42: =SUM(D42:I42,J43:J49) -> 33 | K42: 0 | L42: 0 | M42: 0 | N42: 0 | O42: 0 | P42: 0 | Q42: 0 | R42: 0 | S42: 0 | T42: 0 | U42: 0 | V42: 0 | W42: 0 | X42: 0 | Y42: 0 | Z42: 0 | AA42: 0 | AB42: 0 | AC42: 0 | AD42: 0 | AE42: 0 | AF42: 0 | AG42: 0 | AH42: 0 | AI42: 0 | AJ42: 0 | AK42: 0 | AL42: 11 | AM42: 0 | AN42: 0 | AO42: 0 | AP42: 0 | AQ42: 0 | AR42: 0 | AS42: 0 | AT42: =IFERROR(VLOOKUP($C42,'5.3'!$C:$AM,32,FALSE),"") ->  | AX42: =IFERROR(VLOOKUP($C42,'5.3'!$C:$AM,34,FALSE),"") ->  | AZ42: 8 | BZ42: =IFERROR(VLOOKUP($C42,#REF!,34,FALSE),"") ->  | CB42: =IFERROR(VLOOKUP($C42,#REF!,36,FALSE),"") ->  | CJ42: 0 | CK42: 0 | CL42: 0 | CM42: 0 | CN42: 0 | CO42: 0 | CP42: =SUM(CJ42:CO42,CP43:CP49) -> 33 | CQ42: 0 | CR42: 0 | CS42: 0 | CT42: 0 | CU42: 0 | CV42: 0 | CW42: 0
A43: 1.6 | B43: Развитие системы АИИСКУЭ в сетях 6/10 кВ, г. Верхняя Салда | D43: 0 | E43: 0 | F43: 0 | G43: 0 | H43: 0 | I43: 0 | J43: 10 | K43: 0 | L43: 0 | M43: 0 | N43: 0 | O43: 0 | P43: 0 | Q43: 0 | R43: 0 | S43: 0 | T43: 0 | U43: 0 | V43: 0 | W43: 0 | X43: 10 | Y43: 0 | Z43: 0 | AA43: 0 | AB43: 0 | AC43: 0 | AD43: 0 | AE43: 0 | AF43: 0 | AG43: 0 | AH43: 0 | AI43: 0 | AJ43: 0 | AK43: 0 | AM43: 0 | AN43: 0 | AO43: 0 | AP43: 0 | AQ43: 0 | AR43: 0 | AS43: 0 | AT43: =IFERROR(VLOOKUP($C43,'5.3'!$C:$AM,32,FALSE),"") ->  | AX43: =IFERROR(VLOOKUP($C43,'5.3'!$C:$AM,34,FALSE),"") ->  | AZ43: =IFERROR(VLOOKUP($C43,'5.3'!$C:$AM,36,FALSE),"") ->  | BZ43: =IFERROR(VLOOKUP($C43,#REF!,34,FALSE),"") ->  | CB43: =IFERROR(VLOOKUP($C43,#REF!,36,FALSE),"") ->  | CJ43: 0 | CK43: 0 | CL43: 0 | CM43: 0 | CN43: 0 | CO43: 0 | CP43: 10 | CQ43: 0 | CR43: 0 | CS43: 0 | CT43: 0 | CU43: 0 | CV43: 0 | CW43: 0
A44: 1.6 | B44: Развитие системы АИИСКУЭ в сетях 6/10 кВ, г. Верхняя Салда | D44: 0 | E44: 0 | F44: 0 | G44: 0 | H44: 0 | I44: 0 | J44: 5 | K44: 0 | L44: 0 | M44: 0 | N44: 0 | O44: 0 | P44: 0 | Q44: 0 | R44: 0 | S44: 0 | T44: 0 | U44: 0 | V44: 0 | W44: 0 | X44: 0 | Y44: 0 | Z44: 0 | AA44: 0 | AB44: 0 | AC44: 0 | AD44: 0 | AE44: 0 | AF44: 0 | AG44: 0 | AH44: 0 | AI44: 0 | AJ44: 0 | AK44: 0 | AL44: 5 | AM44: 0 | AN44: 0 | AO44: 0 | AP44: 0 | AQ44: 0 | AR44: 0 | AS44: 0 | AT44: =IFERROR(VLOOKUP($C44,'5.3'!$C:$AM,32,FALSE),"") ->  | AX44: =IFERROR(VLOOKUP($C44,'5.3'!$C:$AM,34,FALSE),"") ->  | AZ44: =IFERROR(VLOOKUP($C44,'5.3'!$C:$AM,36,FALSE),"") ->  | BZ44: =IFERROR(VLOOKUP($C44,#REF!,34,FALSE),"") ->  | CB44: =IFERROR(VLOOKUP($C44,#REF!,36,FALSE),"") ->  | CJ44: 0 | CK44: 0 | CL44: 0 | CM44: 0 | CN44: 0 | CO44: 0 | CP44: 5 | CQ44: 0 | CR44: 0 | CS44: 0 | CT44: 0 | CU44: 0 | CV44: 0 | CW44: 0
A45: 1.6 | B45: Развитие системы АИИСКУЭ в сетях 6/10 кВ, г. Верхняя Салда | D45: 0 | E45: 0 | F45: 0 | G45: 0 | H45: 0 | I45: 0 | J45: 6 | K45: 0 | L45: 0 | M45: 0 | N45: 0 | O45: 0 | P45: 0 | Q45: 0 | R45: 0 | S45: 0 | T45: 0 | U45: 0 | V45: 0 | W45: 0 | X45: 0 | Y45: 0 | Z45: 0 | AA45: 0 | AB45: 0 | AC45: 0 | AD45: 0 | AE45: 0 | AF45: 0 | AG45: 0 | AH45: 0 | AI45: 0 | AJ45: 0 | AK45: 0 | AL45: 0 | AM45: 0 | AN45: 0 | AO45: 0 | AP45: 0 | AQ45: 0 | AR45: 0 | AS45: 0 | AT45: =IFERROR(VLOOKUP($C45,'5.3'!$C:$AM,32,FALSE),"") ->  | AX45: =IFERROR(VLOOKUP($C45,'5.3'!$C:$AM,34,FALSE),"") ->  | AZ45: 6 | BZ45: =IFERROR(VLOOKUP($C45,#REF!,34,FALSE),"") ->  | CB45: =IFERROR(VLOOKUP($C45,#REF!,36,FALSE),"") ->  | CJ45: 0 | CK45: 0 | CL45: 0 | CM45: 0 | CN45: 0 | CO45: 0 | CP45: 6 | CQ45: 0 | CR45: 0 | CS45: 0 | CT45: 0 | CU45: 0 | CV45: 0 | CW45: 0
A46: 1.6 | B46: Установка реклоузеров, г. Верхняя Салда | D46: 0 | E46: 0 | F46: 0 | G46: 0 | H46: 0 | I46: 0 | J46: 4 | K46: 0 | L46: 0 | M46: 0 | N46: 0 | O46: 0 | P46: 0 | Q46: 0 | R46: 0 | S46: 0 | T46: 0 | U46: 0 | V46: 0 | W46: 0 | X46: 4 | Y46: 0 | Z46: 0 | AA46: 0 | AB46: 0 | AC46: 0 | AD46: 0 | AE46: 0 | AF46: 0 | AG46: 0 | AH46: 0 | AI46: 0 | AJ46: 0 | AK46: 0 | AM46: 0 | AN46: 0 | AO46: 0 | AP46: 0 | AQ46: 0 | AR46: 0 | AS46: 0 | AT46: =IFERROR(VLOOKUP($C46,'5.3'!$C:$AM,32,FALSE),"") ->  | AX46: =IFERROR(VLOOKUP($C46,'5.3'!$C:$AM,34,FALSE),"") ->  | AZ46: =IFERROR(VLOOKUP($C46,'5.3'!$C:$AM,36,FALSE),"") ->  | BZ46: =IFERROR(VLOOKUP($C46,#REF!,34,FALSE),"") ->  | CB46: =IFERROR(VLOOKUP($C46,#REF!,36,FALSE),"") ->  | CJ46: 0 | CK46: 0 | CL46: 0 | CM46: 0 | CN46: 0 | CO46: 0 | CP46: 4 | CQ46: 0 | CR46: 0 | CS46: 0 | CT46: 0 | CU46: 0 | CV46: 0 | CW46: 0
A47: 1.6 | B47: Установка реклоузеров, г. Верхняя Салда | D47: 0 | E47: 0 | F47: 0 | G47: 0 | H47: 0 | I47: 0 | J47: 6 | K47: 0 | L47: 0 | M47: 0 | N47: 0 | O47: 0 | P47: 0 | Q47: 0 | R47: 0 | S47: 0 | T47: 0 | U47: 0 | V47: 0 | W47: 0 | X47: 0 | Y47: 0 | Z47: 0 | AA47: 0 | AB47: 0 | AC47: 0 | AD47: 0 | AE47: 0 | AF47: 0 | AG47: 0 | AH47: 0 | AI47: 0 | AJ47: 0 | AK47: 0 | AL47: 6 | AM47: 0 | AN47: 0 | AO47: 0 | AP47: 0 | AQ47: 0 | AR47: 0 | AS47: 0 | AT47: =IFERROR(VLOOKUP($C47,'5.3'!$C:$AM,32,FALSE),"") ->  | AX47: =IFERROR(VLOOKUP($C47,'5.3'!$C:$AM,34,FALSE),"") ->  | AZ47: =IFERROR(VLOOKUP($C47,'5.3'!$C:$AM,36,FALSE),"") ->  | BZ47: =IFERROR(VLOOKUP($C47,#REF!,34,FALSE),"") ->  | CB47: =IFERROR(VLOOKUP($C47,#REF!,36,FALSE),"") ->  | CJ47: 0 | CK47: 0 | CL47: 0 | CM47: 0 | CN47: 0 | CO47: 0 | CP47: 6 | CQ47: 0 | CR47: 0 | CS47: 0 | CT47: 0 | CU47: 0 | CV47: 0 | CW47: 0
A48: 1.6 | B48: Приобретение передвижной электротехнической лаборатории | D48: 0 | E48: 0 | F48: 0 | G48: 0 | H48: 0 | I48: 0 | J48: 1 | K48: 0 | L48: 0 | M48: 0 | N48: 0 | O48: 0 | P48: 0 | Q48: 0 | R48: 0 | S48: 0 | T48: 0 | U48: 0 | V48: 0 | W48: 0 | X48: 0 | Y48: 0 | Z48: 0 | AA48: 0 | AB48: 0 | AC48: 0 | AD48: 0 | AE48: 0 | AF48: 0 | AG48: 0 | AH48: 0 | AI48: 0 | AJ48: 0 | AK48: 0 | AL48: 0 | AM48: 0 | AN48: 0 | AO48: 0 | AP48: 0 | AQ48: 0 | AR48: 0 | AS48: 0 | AT48: =IFERROR(VLOOKUP($C48,'5.3'!$C:$AM,32,FALSE),"") ->  | AX48: =IFERROR(VLOOKUP($C48,'5.3'!$C:$AM,34,FALSE),"") ->  | AZ48: 1 | BZ48: =IFERROR(VLOOKUP($C48,#REF!,34,FALSE),"") ->  | CB48: =IFERROR(VLOOKUP($C48,#REF!,36,FALSE),"") ->  | CJ48: 0 | CK48: 0 | CL48: 0 | CM48: 0 | CN48: 0 | CO48: 0 | CP48: 1 | CQ48: 0 | CR48: 0 | CS48: 0 | CT48: 0 | CU48: 0 | CV48: 0 | CW48: 0
A49: 1.6 | B49: Реконструкция кровли теплой автостоянки для строительно- эксплуатационной техники, г. Верхняя Салда | D49: 0 | E49: 0 | F49: 0 | G49: 0 | H49: 0 | I49: 0 | J49: 1 | K49: 0 | L49: 0 | M49: 0 | N49: 0 | O49: 0 | P49: 0 | Q49: 0 | R49: 0 | S49: 0 | T49: 0 | U49: 0 | V49: 0 | W49: 0 | X49: 0 | Y49: 0 | Z49: 0 | AA49: 0 | AB49: 0 | AC49: 0 | AD49: 0 | AE49: 0 | AF49: 0 | AG49: 0 | AH49: 0 | AI49: 0 | AJ49: 0 | AK49: 0 | AL49: 0 | AM49: 0 | AN49: 0 | AO49: 0 | AP49: 0 | AQ49: 0 | AR49: 0 | AS49: 0 | AT49: =IFERROR(VLOOKUP($C49,'5.3'!$C:$AM,32,FALSE),"") ->  | AX49: =IFERROR(VLOOKUP($C49,'5.3'!$C:$AM,34,FALSE),"") ->  | AZ49: 1 | BZ49: =IFERROR(VLOOKUP($C49,#REF!,34,FALSE),"") ->  | CB49: =IFERROR(VLOOKUP($C49,#REF!,36,FALSE),"") ->  | CJ49: 0 | CK49: 0 | CL49: 0 | CM49: 0 | CN49: 0 | CO49: 0 | CP49: 1 | CQ49: 0 | CR49: 0 | CS49: 0 | CT49: 0 | CU49: 0 | CV49: 0 | CW49: 0

Sheet 8
AC1: Приложение № 8
AC2: к приказу Минэнерго России
AC3: от «__» _____ 2016 г. №___
A4: Форма 8. Краткое описание инвестиционной программы. Вывод объектов инвестиционной деятельности (мощностей) из эксплуатации
A6: Инвестиционная программа АО "ВЭС"
A7: полное наименование субъекта электроэнергетики
A9: Год раскрытия информации: 2020 год
A11: Номер группы инвести-ционных проектов | B11: Наименование инвестиционного проекта (группы инвестиционных проектов) | C11: Идентифика-тор инвестицион-ного проекта | D11: Наименование объекта, выводимого из эксплуатации | E11: Вывод объектов инвестиционной деятельности (мощностей) из эксплуатации в год (N-1) | J11: Вывод объектов инвестиционной деятельности (мощностей) из эксплуатации
J12: Год N | O12: Год N+1 | T12: Год N+2 | Y12: Итого за период реализации инвестиционной программы
E13: План (Факт) | J13: План (Факт) | O13: План (Факт) | T13: План (Факт) | Y13: План
E14: МВ×А | F14: Мвар | G14: км ЛЭП | H14: МВт | I14: Другое | J14: МВ×А | K14: Мвар | L14: км ЛЭП | M14: МВт | N14: Другое | O14: МВ×А | P14: Мвар | Q14: км ЛЭП | R14: МВт | S14: Другое | T14: МВ×А | U14: Мвар | V14: км ЛЭП | W14: МВт | X14: Другое | Y14: МВ×А | Z14: Мвар | AA14: км ЛЭП | AB14: МВт | AC14: Другое
A15: 1 | B15: 2 | C15: 3 | D15: 4 | E15: 5.1.1 | F15: 5.1.2 | G15: 5.1.3 | H15: 5.1.4 | I15: 5.1.5 | J15: 6.1.1 | K15: 6.1.2 | L15: 6.1.3 | M15: 6.1.4 | N15: 6.1.5 | O15: 6.2.1 | P15: 6.2.2 | Q15: 6.2.3 | R15: 6.2.4 | S15: 6.2.5 | T15: 6.3.1 | U15: 6.3.2 | V15: 6.3.3 | W15: 6.3.4 | X15: 6.3.5 | Y15: 7.1.1 | Z15: 7.1.2 | AA15: 7.1.3 | AB15: 7.1.4 | AC15: 7.1.5

Sheet 9
K1: Приложение № 9
K2: к приказу Минэнерго России
K3: от «__» _____ 2016 г. №___
A4: Форма 9. Краткое описание инвестиционной программы. Показатели энергетической эффективности
A6: Инвестиционная программа АО "ВЭС"
A7: полное наименование субъекта электроэнергетики
A9: Год раскрытия информации: 2020 год
A11: Перечень показателей энергетической эффективности объектов приведен в соответствии с _____________________________________________________________________________________________________________________________
A12: ______________________________________________________________________________________________________________________________________________________________________________________________________________
A13: реквизиты решения уполномоченного органа исполнительной власти, утвердившего требования к программам в области энергосбережения и повышения энергетической эффективности организаций, осуществляющих регулируемые виды деятельности
A15: Номер группы инвести-ционных проектов | B15: Наименование инвестиционного проекта (группы инвестиционных проектов) | C15: Идентификатор инвестиционного проекта | D15: Плановые значения показателей энергетической эффективности строящихся (реконструируемых, приобретаемых) объектов (показатели энергетической эффективности объектов, предусмотренные требованиями к программам в области энергосбережения и повышения энергетической эффективности, установленными уполномоченным органом исполнительной власти) | K15: Примечание
D17: Наименование показателя энергетической эффективности, единицы измерения | G17: Наименование показателя энергетической эффективности, единицы измерения | J17: …
D18: Наименование вида объекта (оборудования, группы оборудования) | E18: Наименование вида объекта (оборудования, группы оборудования) | F18: … | G18: Наименование вида объекта (оборудования, группы оборудования) | H18: Наименование вида объекта (оборудования, группы оборудования) | I18: … | J18: …
A19: 1 | B19: 2 | C19: 3 | D19: 4.1.1 | E19: 4.1.2 | F19: 4.1. … | G19: 4.2.1 | H19: 4.2.2 | I19: 4.2. … | J19: 4. … | K19: 5

Sheet 10
R1: Приложение № 10
R2: к приказу Минэнерго России
R3: от «__» _____ 2016 г. №___
A4: Форма 10. Краткое описание инвестиционной программы. Места расположения объектов инвестиционной деятельности и другие показатели инвестиционных проектов
A6: Инвестиционная программа АО "ВЭС"
A7: полное наименование субъекта электроэнергетики
A9: Год раскрытия информации: 2020 год
A11: Номер группы инвести-ционных проектов | B11: Наименование инвестиционного проекта (группы инвестиционных проектов) | C11: Идентифика-тор инвестицион-ного проекта | D11: Федеральные округа, на территории которых реализуется инвестиционный проект | E11: Субъекты Российской Федерации, на территории которых реализуется инвестиционный проект | F11: Территории муниципальных образований, на территории которых реализуется инвестиционный проект | G11: Наименование обособленного подразделения субъекта электроэнергетики, реализующего инвестиционный проект (если применимо) | H11: Наличие решения о резервировании земель (+; -; не требуется) | I11: Наличие решения об изъятии земельных участков для государственных или муниципальных нужд (+; -; не требуется) | J11: Наличие решения о переводе земель или земельных участков из одной категории в другую (+; -; не требуется) | K11: Наличие правоустанав-ливающих документов на земельный участок (+; -; не требуется) | L11: Наличие утвержденной документации по планировке территории (+; -; не требуется) | M11: Объект капитального строительства относится к видам объектов федерального, регионального, местного значения, подлежащим отображению в соответствующем документе территориального планирования (федеральный; региональный; местный; не относится) | N11: Объект капитального строительства (федерального, регионального, местного значения) отображен в соответствующем документе территориального планирования (Российской Федерации, субъекта Российской Федерации, муниципального образования) (+; -; не требуется) | O11: Наличие заключения по результатам технологического и ценового аудита инвестиционного проекта (+; -; не требуется) | P11: Наличие положительного заключения экспертизы проектной документации (+; -; не требуется) | Q11: Наличие утвержденной проектной документации (+; -; не требуется) | R11: Наличие разрешения на строи- тельство (+; -; не требуется)
A12: 1 | B12: 2 | C12: 3 | D12: 4 | E12: 5 | F12: 6 | G12: 7 | H12: 8 | I12: 9 | J12: 10 | K12: 11 | L12: 12 | M12: 13 | N12: 14 | O12: 15 | P12: 16 | Q12: 17 | R12: 18
A13: 0 | B13: ВСЕГО по инвестиционной программе, в том числе:
A14: 0.2 | B14: Реконструкция, модернизация, техническое перевооружение, всего
A15: 0.3 | B15: Инвестиционные проекты, реализация которых обуславливается схемами и программами перспективного развития электроэнергетики, всего
A16: 0.6 | B16: Прочие инвестиционные проекты, всего
A17: 1 | B17: Свердловская область
A18: 1.2 | B18: Реконструкция, модернизация, техническое перевооружение всего, в том числе:
A19: 1.2.1 | B19: Реконструкция, модернизация, техническое перевооружение трансформаторных и иных подстанций, распределительных пунктов, всего, в том числе:
A20: 1.2.1.1 | B20: Реконструкция трансформаторных и иных подстанций, всего, в том числе:
A21: 1.2.1.1 | B21: Реконструкция ТП-7011, ТП-1072, ТП-1017, ТП-1078, г. Верхняя Салда | D21: УРФО | E21: Свердловская область | F21: г. Верхняя Салда | G21: Кушвинский | H21: не требуется | I21: не требуется | J21: не требуется | K21: не требуется | L21: не требуется | M21: не требуется | N21: не требуется | O21: не требуется | P21: не требуется | Q21: не требуется | R21: не требуется
A22: 1.2.1.1 | B22: Установка КТПн 250кВА в п. Тагильский | D22: УРФО | E22: Свердловская область | F22: п. Тагильский | G22: Асбестовский | H22: не требуется | I22: не требуется | J22: не требуется | K22: не требуется | L22: не требуется | M22: не требуется | N22: не требуется | O22: не требуется | P22: не требуется | Q22: не требуется | R22: не требуется
A23: 1.2.1.1 | B23: Установка КТПн 400кВА в г. Верхняя Салда | D23: УРФО | E23: Свердловская область | F23: г. Верхняя Салда | G23: Артемовский | H23: не требуется | I23: не требуется | J23: не требуется | K23: не требуется | L23: не требуется | M23: не требуется | N23: не требуется | O23: не требуется | P23: не требуется | Q23: не требуется | R23: не требуется
A24: 1.2.1.2 | B24: Модернизация, техническое перевооружение трансформаторных и иных подстанций, распределительных пунктов, всего, в том числе: | D24: УРФО | F24: г. Верхняя Салда | G24: Артемовский | H24: не требуется | I24: не требуется | J24: не требуется | K24: не требуется | L24: не требуется | M24: не требуется | N24: не требуется | O24: не требуется | P24: не требуется | Q24: не требуется | R24: не требуется
A25: 1.2.1.2 | B25: Ретрофит ячеек 6-10 кВ в РП, ТП, г. Верхняя Салда | D25: УРФО | E25: Свердловская область | F25: г. Верхняя Салда | G25: Верхнетагильский | H25: не требуется | I25: не требуется | J25: не требуется | K25: не требуется | L25: не требуется | M25: не требуется | N25: не требуется | O25: не требуется | P25: не требуется | Q25: не требуется | R25: не требуется
A26: 1.2.2 | B26: Реконструкция, модернизация, техническое перевооружение линий электропередачи, всего, в том числе: | D26: УРФО | G26: Верхнетагильский | H26: не требуется | I26: не требуется | J26: не требуется | K26: не требуется | L26: не требуется | M26: не требуется | N26: не требуется | O26: не требуется | P26: не требуется | Q26: не требуется | R26: не требуется
A27: 1.2.2.1 | B27: Реконструкция линий электропередачи, всего, в том числе: | D27: УРФО | G27: Ирбитский | H27: не требуется | I27: не требуется | J27: не требуется | K27: не требуется | L27: не требуется | M27: не требуется | N27: не требуется | O27: не требуется | P27: не требуется | Q27: не требуется | R27: не требуется
A28: 1.2.2.1 | B28: Реконструкция ВЛ-6 кВ ПС Басьяновка, г. Верхняя Салда | D28: УРФО | E28: Свердловская область | F28: п. Тагильский | G28: Ирбитский | H28: не требуется | I28: не требуется | J28: не требуется | K28: не требуется | L28: не требуется | M28: не требуется | N28: не требуется | O28: не требуется | P28: не требуется | Q28: не требуется | R28: не требуется
A29: 1.2.2.1 | B29: Реконструкция ВЛ-6 кВ ПС Басьяновка, г. Верхняя Салда | D29: УРФО | E29: Свердловская область | F29: п. Тагильский | G29: Ирбитский | H29: не требуется | I29: не требуется | J29: не требуется | K29: не требуется | L29: не требуется | M29: не требуется | N29: не требуется | O29: не требуется | P29: не требуется | Q29: не требуется | R29: не требуется
A30: 1.2.3 | B30: Развитие и модернизация учета электрической энергии (мощности), всего, в том числе: | D30: УРФО | G30: Камышловский | H30: не требуется | I30: не требуется | J30: не требуется | K30: не требуется | L30: не требуется | M30: не требуется | N30: не требуется | O30: не требуется | P30: не требуется | Q30: не требуется | R30: не требуется
A31: 1.2.3.1 | B31: «Установка приборов учета, класс напряжения 0,22 (0,4) кВ, всего, в том числе:» | D31: УРФО | G31: Камышловский | H31: не требуется | I31: не требуется | J31: не требуется | K31: не требуется | L31: не требуется | M31: не требуется | N31: не требуется | O31: не требуется | P31: не требуется | Q31: не требуется | R31: не требуется
A32: 1.2.3.1 | B32: Развитие системы АИИСКУЭ в сетях 0,4 кВ, г. Верхняя Салда | D32: УРФО | E32: Свердловская область | F32: г. Верхняя Салда | G32: Камышловский | H32: не требуется | I32: не требуется | J32: не требуется | K32: не требуется | L32: не требуется | M32: не требуется | N32: не требуется | O32: не требуется | P32: не требуется | Q32: не требуется | R32: не требуется
A33: 1.2.3.1 | B33: Развитие системы АИИСКУЭ в сетях 0,4 кВ, г. Верхняя Салда | D33: УРФО | E33: Свердловская область | F33: г. Верхняя Салда | G33: Камышловский | H33: не требуется | I33: не требуется | J33: не требуется | K33: не требуется | L33: не требуется | M33: не требуется | N33: не требуется | O33: не требуется | P33: не требуется | Q33: не требуется | R33: не требуется
A34: 1.2.3.1 | B34: Развитие системы АИИСКУЭ в сетях 0,4 кВ, г. Верхняя Салда | D34: УРФО | E34: Свердловская область | F34: г. Верхняя Салда | G34: Кушвинский | H34: не требуется | I34: не требуется | J34: не требуется | K34: не требуется | L34: не требуется | M34: не требуется | N34: не требуется | O34: не требуется | P34: не требуется | Q34: не требуется | R34: не требуется
A35: 1.2.3.1 | B35: Развитие системы АИИСКУЭ в сетях 0,4 кВ, г. Верхняя Салда | D35: УРФО | E35: Свердловская область | F35: г. Верхняя Салда | G35: Нижнесалдинский | H35: не требуется | I35: не требуется | J35: не требуется | K35: не требуется | L35: не требуется | M35: не требуется | N35: не требуется | O35: не требуется | P35: не требуется | Q35: не требуется | R35: не требуется
A36: 1.6 | B36: Прочие инвестиционные проекты, всего, в том числе: | D36: УРФО | G36: Пелымский | H36: не требуется | I36: не требуется | J36: не требуется | K36: не требуется | L36: не требуется | M36: не требуется | N36: не требуется | O36: не требуется | P36: не требуется | Q36: не требуется | R36: не требуется
A37: 1.6 | B37: Развитие системы АИИСКУЭ в сетях 6/10 кВ, г. Верхняя Салда | D37: УРФО | E37: Свердловская область | F37: г. Верхняя Салда | G37: Кушвинский | H37: не требуется | I37: не требуется | J37: не требуется | K37: не требуется | L37: не требуется | M37: не требуется | N37: не требуется | O37: не требуется | P37: не требуется | Q37: не требуется | R37: не требуется
A38: 1.6 | B38: Развитие системы АИИСКУЭ в сетях 6/10 кВ, г. Верхняя Салда | D38: УРФО | E38: Свердловская область | F38: г. Верхняя Салда | G38: Первоуральский | H38: не требуется | I38: не требуется | J38: не требуется | K38: не требуется | L38: не требуется | M38: не требуется | N38: не требуется | O38: не требуется | P38: не требуется | Q38: не требуется | R38: не требуется
A39: 1.6 | B39: Развитие системы АИИСКУЭ в сетях 6/10 кВ, г. Верхняя Салда | D39: УРФО | E39: Свердловская область | F39: г. Верхняя Салда | G39: Полевской | H39: не требуется | I39: не требуется | J39: не требуется | K39: не требуется | L39: не требуется | M39: не требуется | N39: не требуется | O39: не требуется | P39: не требуется | Q39: не требуется | R39: не требуется
A40: 1.6 | B40: Установка реклоузеров, г. Верхняя Салда | D40: УРФО | E40: Свердловская область | F40: г. Верхняя Салда | G40: Полевской | H40: не требуется | I40: не требуется | J40: не требуется | K40: не требуется | L40: не требуется | M40: не требуется | N40: не требуется | O40: не требуется | P40: не требуется | Q40: не требуется | R40: не требуется
A41: 1.6 | B41: Установка реклоузеров, г. Верхняя Салда | D41: УРФО | E41: Свердловская область | F41: г. Верхняя Салда | G41: Среднеуральский | H41: не требуется | I41: не требуется | J41: не требуется | K41: не требуется | L41: не требуется | M41: не требуется | N41: не требуется | O41: не требуется | P41: не требуется | Q41: не требуется | R41: не требуется
A42: 1.6 | B42: Приобретение передвижной электротехнической лаборатории | D42: УРФО | E42: Свердловская область | F42: г. Верхняя Салда | G42: Среднеуральский | H42: не требуется | I42: не требуется | J42: не требуется | K42: не требуется | L42: не требуется | M42: не требуется | N42: не требуется | O42: не требуется | P42: не требуется | Q42: не требуется | R42: не требуется
A43: 1.6 | B43: Реконструкция кровли теплой автостоянки для строительно- эксплуатационной техники, г. Верхняя Салда | D43: УРФО | E43: Свердловская область | F43: г. Верхняя Салда | G43: Среднеуральский | H43: не требуется | I43: не требуется | J43: не требуется | K43: не требуется | L43: не требуется | M43: не требуется | N43: не требуется | O43: не требуется | P43: не требуется | Q43: не требуется | R43: не требуется

Sheet 11.1
P1: Приложение № 11
P2: к приказу Минэнерго России
P3: от «__» _____ 2016 г. №___
A4: Форма 11. Краткое описание инвестиционной программы. Обоснование необходимости реализации инвестиционных проектов
A6: Раздел 1. Технологическое присоединение к электрическим сетям энергопринимающих устройств потребителей максимальной мощностью свыше 150 кВт
A8: Инвестиционная программа АО "ВЭС"
A9: полное наименование субъекта электроэнергетики
A11: Год раскрытия информации: 2020 год
A13: Номер группы инвести-ционных проектов | B13: Наименование инвестиционного проекта (группы инвестиционных проектов) | C13: Идентификатор инвестиционного проекта | D13: Наличие заключенного договора об осуществлении технологического присоединения | G13: Размер платы за технологическое присоединение (в соответствии с договором об осуществлении технологического присоединения), млн рублей | H13: Сроки осуществления мероприятий по технологическому присоединению | M13: Технологическое присоединение объектов по производству электрической энергии | Q13: Технологическое присоединение объектов электросетевого хозяйства | U13: Наименование трансформаторной или иной подстанции (распределительного устройства объекта по производству электрической энергии), реконструкция (модернизация или техническое перевооружение) которой осуществляется в рамках инвестиционного проекта | V13: Нагрузка трансформаторной или иной подстанции (распределительного устройства объекта по производству электрической энергии) по результатам контрольных замеров | X13: Аварийная нагрузка, % | Y13: Максимальная мощность энергопринимающих устройств потребителей услуг по документам о технологическом присоединении, МВт | AA13: Мощность трансформаторной или иной подстанции (распределительного устройства объекта по производству электрической энергии), строительство (реконструкция) которой осуществляется в рамках инвестиционного проекта, МВА | AE13: Срок ввода объектов электросетевого хозяйства в соответствиии со схемой и программой развития Единой энергетической системы России, утвержденными в год (X-1) | AF13: Схема и программа развития электроэнергетики субъекта Российской Федерации, утвержденные в год (X-1) | AH13: Идентификаторы инвестиционных проектов, предусматривающих выполнение мероприятий по технологическому присоединению, которые содержатся в качестве обязательства сетевой организации по выполнению требований к усилению существующей электрической сети в договоре об осуществлении технологического присоединения к электрическим сетям, указанном в столбцах 4 и 5
D14: Реквизиты договоров об осуществлении технологического присоединения, предусматривающих в технических условиях обязанности сетевой организации по выполнению мероприятий инвестиционного проекта в качестве мероприятий по технологическому присоединению от существующих объектов электросетевого хозяйства до границы участка, на котором расположены энергопринимающие устройства и (или) объекты электроэнергетики (объекты по производству электрической энергии, объекты электросетевого хозяйства) заявителя (за исключением выполнения требований к усилению существующей электрической сети) | F14: Количество заключенных договоров об осуществлении технологического присоединения, предусматривающих в технических условиях обязанности сетевой организации по выполнению мероприятий инвестиционного проекта в качестве выполнения требований к усилению существующей электрической сети (распределительного устройства объекта по производству электрической энергии) | H14: Срок осуществления мероприятий по технологическому присоединению, выполняемых в рамках инвестиционного проекта (в соответствии с договором об осуществлении технологического присоединения) | I14: Планируемый в инвестиционной программе срок постановки объектов электросетевого хозяйства под напряжение | K14: Планируемый в инвестиционной программе срок ввода объектов электросетевого хозяйства в эксплуатацию, год | L14: Планируемый в инвестиционной программе срок принятия объектов электросетевого хозяйства к бухгалтерскому учету, год | M14: Наименование присоединяемых объектов по производству электрической энергии | N14: Наименование заявителя по договору об осуществлении технологического присоединения объекта по производству электрической энергии | O14: Мощность присоединенных объектов по производству электрической энергии по документам о технологическом присоединении, МВт | Q14: Наименование присоединяемых объектов электросетевого хозяйства | R14: Наименование заявителя по договору об осуществлении технологического присоединения объекта электросетевого хозяйства | S14: Максимальная мощность энергопринимающих устройств по документам о технологическом присоединении, МВт | AA14: всего | AC14: всего за вычетом мощности наиболее крупного (авто-) трансформатора | AF14: Срок ввода объекта в эксплуатацию, предусмотренный схемой и программой развития электроэнергетики субъекта Российской Федерации | AG14: Реквизиты решения высшего должностного лица (руководителя высшего исполнительного органа государственной власти) субъекта Российской Федерации и указание на структурные единицы схемы и программы
D15: Дата | E15: Номер | I15: год | J15: квартал | O15: до | P15: после | S15: до | T15: после | V15: МВхА | W15: Дата контрольного замерного дня | Y15: до | Z15: после | AA15: До | AB15: После | AC15: До | AD15: После
A16: 1 | B16: 2 | C16: 3 | D16: 4 | E16: 5 | F16: 6 | G16: 7 | H16: 8 | I16: 9 | J16: 10 | K16: 11 | L16: 12 | M16: 13 | N16: 14 | O16: 15 | P16: 16 | Q16: 17 | R16: 18 | S16: 19 | T16: 20 | U16: 21 | V16: 22 | W16: 23 | X16: 24 | Y16: 25 | Z16: 26 | AA16: 27 | AB16: 28 | AC16: 29 | AD16: 30 | AE16: 31 | AF16: 32 | AG16: 33 | AH16: 34

Sheet 11.2
A5: Раздел 2. Технологическое присоединение к электрическим сетям энергопринимающих устройств потребителей максимальной мощностью до 150 кВт включительно
A7: Инвестиционная программа АО "ВЭС"
A8: полное наименование субъекта электроэнергетики
A10: Год раскрытия информации: 2020 год
A12: Утвержденные плановые значения показателей приведены в соответствии с ______________________________________________________________________________
A13: реквизиты решения органа исполнительной власти, утвердившего инвестиционную программу
A15: № п/п | B15: Наименование показателя | C15: Единица измерения | D15: Фактические данные о реализации мероприятий по технологическому присоединению | G15: Среднее за 3 года значение фактических данных о реализации мероприятий по технологическому присоединению | H15: год (N-1) | J15: год N | L15: год (N+1) | N15: год (N+2)
D16: год (N-4) | E16: год (N-3) | F16: год (N-2) | H16: План (Утвержденный план) | I16: Факт (Предложение по корректировке утвержденного плана) | J16: План (Утвержденный план) | K16: Факт (Предложение по корректировке утвержденного плана) | L16: План (Утвержденный план) | M16: Факт (Предложение по корректировке плана) | N16: План (Утвержденный план) | O16: Факт (Предложение по корректировке плана)
A17: 1 | B17: 2 | C17: 3 | D17: 4 | E17: 5 | F17: 6 | G17: 7 | H17: 8 | I17: 9 | J17: 10 | K17: 11 | L17: 12 | M17: 13 | N17: 14 | O17: 15
A18: 1 | B18: Наименование субъекта Российской Федерации | C18: нд3) | D18: нд | E18: нд | F18: нд | G18: нд | H18: нд | I18: нд | J18: нд | K18: нд | L18: нд | M18: нд | N18: нд | O18: нд
A19: 1.1 | B19: Группа инвестиционных проектов "Технологическое присоединение энергопринимающих устройств потребителей максимальной мощностью до 15 кВт включительно, всего" | C19: нд | D19: нд | E19: нд | F19: нд | G19: нд | H19: нд | I19: нд | J19: нд | K19: нд | L19: нд | M19: нд | N19: нд | O19: нд
A20: 1.1.1 | B20: Наличие обязательств по исполнению договоров об осуществлении технологического присоединения к электрическим сетям по состоянию на 1 января соответствующего года | C20: шт.1)
C21: МВт2)
A22: 1.1.1.1 | B22: в том числе не предусматривающие выполнение работ со стороны сетевой организации | C22: шт.1)
C23: МВт2)
A24: 1.1.1.2 | B24: в том числе только с реконструкцией объектов электросетевого хозяйства | C24: шт.1)
C25: МВт2)
A26: 1.1.1.3 | B26: в том числе с реконструкцией и новым строительством объектов электросетевого хозяйства | C26: шт.1)
C27: МВт2)
A28: 1.1.1.4 | B28: в том числе только с новым строительством объектов электросетевого хозяйства | C28: шт.1)
C29: МВт2)
A30: 1.1.2 | B30: Принято обязательств по исполнению договоров об осуществлении технологического присоединения к электрическим сетям за планируемый (истекший) год | C30: шт.1)
C31: МВт2)
A32: 1.1.2.1 | B32: в том числе не предусматривающие выполнение работ со стороны сетевой организации | C32: шт.1)
C33: МВт2)
A34: 1.1.2.2 | B34: в том числе только с реконструкцией объектов электросетевого хозяйства | C34: шт.1)
C35: МВт2)
A36: 1.1.2.3 | B36: в том числе с реконструкцией и новым строительством объектов электросетевого хозяйства | C36: шт.1)
C37: МВт2)
A38: 1.1.2.4 | B38: в том числе только с новым строительством объектов электросетевого хозяйства | C38: шт.1)
C39: МВт2)
A40: 1.1.3 | B40: Исполнено обязательств по договорам об осуществлении технологического присоединения к электрическим сетям за планируемый (истекший) год | C40: шт.1)
C41: МВт2)
A42: 1.1.3.1 | B42: в том числе не предусматривающие выполнение работ со стороны сетевой организации | C42: шт.1)
C43: МВт2)
A44: 1.1.3.2 | B44: в том числе только с реконструкцией объектов электросетевого хозяйства | C44: шт.1)
C45: МВт2)
A46: 1.1.3.3 | B46: в том числе с реконструкцией и новым строительством объектов электросетевого хозяйства | C46: шт.1)
C47: МВт2)
A48: 1.1.3.4 | B48: в том числе только с новым строительством объектов электросетевого хозяйства | C48: шт.1)
C49: МВт2)
A50: 1.1.4 | B50: Освоение капитальных вложений по мероприятиям, реализуемым в рамках исполнения договоров об осуществлении технологического присоединения к электрическим сетям | C50: млн рублей без НДС
A51: 1.1.4.1 | B51: в том числе затраты на проектно изыскательские работы | C51: млн рублей без НДС
A52: 1.1.4.2 | B52: в том числе затраты на реконструкцию объектов электросетевого хозяйства | C52: млн рублей без НДС
A53: 1.1.4.3 | B53: в том числе затраты на новое строительство объектов электросетевого хозяйства | C53: млн рублей без НДС
A54: 1.1.4.4 | B54: в том числе затраты не включаемые в плату за технологическое присоединение | C54: млн рублей без НДС
A55: 1.1.5 | B55: Постановка объектов электросетевого хозяйства под напряжение в рамках исполнения договоров об осуществлении технологического присоединения к электрическим сетям | C55: МВт
C56: МВА
C57: км
C58: Другое5)
A59: 1.1.5.1 | B59: в том числе только с реконструкцией объектов электросетевого хозяйства | C59: МВт
C60: МВА
C61: км
C62: Другое5)
A63: 1.1.5.2 | B63: в том числе с реконструкцией и новым строительством объектов электросетевого хозяйства | C63: МВт
C64: МВА
C65: км
C66: Другое5)
A67: 1.1.5.3 | B67: в том числе только с новым строительством объектов электросетевого хозяйства | C67: МВт
C68: МВА
C69: км
C70: Другое5)
A71: 1.1.6 | B71: Ввод объектов инвестиционной деятельности (мощностей) в эксплуатацию в рамках исполнения договоров об осуществлении технологического присоединения к электрическим сетям | C71: МВт
C72: МВА
C73: км
C74: Другое5)
A75: 1.1.6.1 | B75: в том числе только с реконструкцией объектов электросетевого хозяйства | C75: МВт
C76: МВА
C77: км
C78: Другое
A79: 1.1.6.2 | B79: в том числе с реконструкцией и новым строительством объектов электросетевого хозяйства | C79: МВт
C80: МВА
C81: км
C82: Другое5)
A83: 1.1.6.3 | B83: в том числе только с новым строительством объектов электросетевого хозяйства | C83: МВт
C84: МВА
C85: км
C86: Другое5)
A87: 1.2 | B87: Группа инвестиционных проектов "Технологическое присоединение энергопринимающих устройств потребителей максимальной мощностью до 150 кВт включительно, всего" | C87: нд | D87: нд | E87: нд | F87: нд | G87: нд | H87: нд | I87: нд | J87: нд | K87: нд | L87: нд | M87: нд | N87: нд | O87: нд
A88: 1.2.1 | B88: Наличие обязательств по исполнению договоров об осуществлении технологического присоединения к электрическим сетям по состоянию на 1 января соответствующего года | C88: шт.1)
C89: МВт2)
A90: 1.2.1.1 | B90: в том числе не предусматривающие выполнение работ со стороны сетевой организации | C90: шт.1)
C91: МВт2)
A92: 1.2.1.2 | B92: в том числе только с реконструкцией объектов электросетевого хозяйства | C92: шт.1)
C93: МВт2)
A94: 1.2.1.3 | B94: в том числе с реконструкцией и новым строительством объектов электросетевого хозяйства | C94: шт.1)
C95: МВт2)
A96: 1.2.1.4 | B96: в том числе только с новым строительством объектов электросетевого хозяйства | C96: шт.1)
C97: МВт2)
A98: 1.2.2 | B98: Принято обязательств по исполнению договоров об осуществлении технологического присоединения к электрическим сетям за планируемый (истекший) год | C98: шт.1)
C99: МВт2)
A100: 1.2.2.1 | B100: в том числе не предусматривающие выполнение работ со стороны сетевой организации | C100: шт.1)
C101: МВт2)
A102: 1.2.2.2 | B102: в том числе только с реконструкцией объектов электросетевого хозяйства | C102: шт.1)
C103: МВт2)
A104: 1.2.2.3 | B104: в том числе с реконструкцией и новым строительством объектов электросетевого хозяйства | C104: шт.1)
C105: МВт2)
A106: 1.2.2.4 | B106: в том числе только с новым строительством объектов электросетевого хозяйства | C106: шт.1)
C107: МВт2)
A108: 1.2.3 | B108: Исполнено обязательств по договорам об осуществлении технологического присоединения к электрическим сетям за планируемый (истекший) год | C108: шт.1)
C109: МВт2)
A110: 1.2.3.1 | B110: в том числе не предусматривающие выполнение работ со стороны сетевой организации | C110: шт.1)
C111: МВт2)
A112: 1.2.3.2 | B112: в том числе только с реконструкцией объектов электросетевого хозяйства | C112: шт.1)
C113: МВт2)
A114: 1.2.3.3 | B114: в том числе с реконструкцией и новым строительством объектов электросетевого хозяйства | C114: шт.1)
C115: МВт2)
A116: 1.2.3.4 | B116: в том числе только с новым строительством объектов электросетевого хозяйства | C116: шт.1)
C117: МВт2)
A118: 1.2.4 | B118: Освоение капитальных вложений по мероприятиям, реализуемым в рамках исполнения договоров об осуществлении технологического присоединения к электрическим сетям | C118: млн рублей без НДС
A119: 1.2.4.1 | B119: в том числе затраты на проектно изыскательские работы | C119: млн рублей без НДС
A120: 1.2.4.2 | B120: в том числе затраты на реконструкцию объектов электросетевого хозяйства | C120: млн рублей без НДС
A121: 1.2.4.3 | B121: в том числе затраты на новое строительство объектов электросетевого хозяйства | C121: млн рублей без НДС
A122: 1.2.4.4 | B122: в том числе затраты не включаемые в плату за технологическое присоединение | C122: млн рублей без НДС
A123: 1.2.5 | B123: Постановка объектов электросетевого хозяйства под напряжение в рамках исполнения договоров об осуществлении технологического присоединения к электрическим сетям | C123: МВт
C124: МВА
C125: км
C126: Другое5)
A127: 1.2.5.1 | B127: в том числе только с реконструкцией объектов электросетевого хозяйства | C127: МВт
C128: МВА
C129: км
C130: Другое5)
A131: 1.2.5.2 | B131: в том числе с реконструкцией и новым строительством объектов электросетевого хозяйства | C131: МВт
C132: МВА
C133: км
C134: Другое5)
A135: 1.2.5.3 | B135: в том числе только с новым строительством объектов электросетевого хозяйства | C135: МВт
C136: МВА
C137: км
C138: Другое5)
A139: 1.2.6 | B139: Ввод объектов инвестиционной деятельности (мощностей) в эксплуатацию в рамках исполнения договоров об осуществлении технологического присоединения к электрическим сетям | C139: МВт
C140: МВА
C141: км
C142: Другое5)
A143: 1.2.6.1 | B143: в том числе только с реконструкцией объектов электросетевого хозяйства | C143: МВт
C144: МВА
C145: км
C146: Другое5)
A147: 1.2.6.2 | B147: в том числе с реконструкцией и новым строительством объектов электросетевого хозяйства | C147: МВт
C148: МВА
C149: км
C150: Другое5)
A151: 1.2.6.3 | B151: в том числе только с новым строительством объектов электросетевого хозяйства | C151: МВт
C152: МВА
C153: км
C154: Другое5)
A155: 2 | B155: Наименование субъекта Российской Федерации | C155: нд | D155: нд | E155: нд | F155: нд | G155: нд | H155: нд | I155: нд | J155: нд | K155: нд | L155: нд | M155: нд | N155: нд | O155: нд
A156: …4) | B156: …4)
B158: 1) шт. договоров об осуществлении технологического присоединения к электрическим сетям
B159: 2) МВт максимальной мощности энергопринимающих устройств потребителей
B160: 3) Ячейки, в которых указано слово "нд", заполнению не подлежат
B161: 4) Перечень наименований показателей и их нумерация формируются по аналогии с такой структурой, указанной в пунктах, номера которых начинаются с цифры 1
B162: 5) При необходимости указания единиц измерения отличных от МВт, МВА и км вместо слова "Другое" указывается наименование иной единицы измерения

Sheet 11.3
A5: Раздел 3. Оценка расходов на технологическое присоединение к электрическим сетям энергопринимающих устройств потребителей максимальной мощностью до 150 кВт включительно
A7: Инвестиционная программа АО "ВЭС"
A8: полное наименование субъекта электроэнергетики
A10: Год раскрытия информации: 2020 год
A12: № п/п | B12: Наименование показателя | C12: Фактические значения показателей мощности, протяженности, кВт (км) | F12: Среднее за 3 года значение фактических показателей мощности, протяженности, кВт (км)1) | G12: Значения стандартизированных ставок за год (X-1), тыс. рублей | H12: Индекс сметной стоимости | I12: Плановые значения стоимости на год X6), тыс. рублей2)
C13: Год (X-3)6) | D13: Год (X-2)6) | E13: Год (X-1)6)
A14: 1 | B14: 2 | C14: 3 | D14: 4 | E14: 5 | F14: 6 | G14: 7 | H14: 8 | I14: 9
A15: 1 | B15: Наименование субъекта Российской Федерации | C15: нд3) | D15: нд | E15: нд | F15: нд | G15: нд | H15: нд | I15: нд
A16: 1.1 | B16: Группа инвестиционных проектов "Технологическое присоединение энергопринимающих устройств потребителей максимальной мощностью до 15 кВт включительно, всего"4) [п.1.1.1+п.1.1.2+п.1.1.3+ п.1.1.4+п.1.1.5]: | F16: (ст.3+ст.4+ст.5)/3 | G16: нд | H16: нд
A17: 1.1.1 | B17: строительство воздушных линий, на уровне напряжения i | F17: (ст.3+ст.4+ст.5)/3 | G17: С2 | I17: ст.6*ст.7*ст.8/1000
A18: 1.1.2 | B18: строительство кабельных линий, на уровне напряжения i | F18: (ст.3+ст.4+ст.5)/3 | G18: С3 | I18: ст.6*ст.7*ст.8/1000
A19: 1.1.3 | B19: строительство пунктов секционирования, на уровне напряжения i и (или) диапазоне мощности j | F19: (ст.3+ст.4+ст.5)/3 | G19: С4 | I19: ст.6*ст.7*ст.8/1000
A20: 1.1.4 | B20: строительство комплектных трансформаторных подстанций (КТП), распределительных трансформаторных подстанций (РТП) с уровнем напряжения до 35 кВ, на уровне напряжения i и (или) диапазоне мощности j | F20: (ст.3+ст.4+ст.5)/3 | G20: С4 | I20: ст.6*ст.7*ст.8/1000
A21: 1.1.5 | B21: строительство центров питания, подстанций уровнем напряжения 35 кВ и выше (ПС), на уровне напряжения i и (или) диапазоне мощности j | F21: (ст.3+ст.4+ст.5)/3 | G21: С4 | I21: ст.6*ст.7*ст.8/1000
A22: 1.2 | B22: Группа инвестиционных проектов "Технологическое присоединение энергопринимающих устройств потребителей максимальной мощностью до 150 кВт включительно, всего"5) [п.1.2.1+п.1.2.2+п.1.2.3+ п.1.2.4+п.1.2.5] | F22: (ст.3+ст.4+ст.5)/3 | G22: нд | H22: нд
A23: 1.2.1 | B23: строительство воздушных линий, на уровне напряжения i | F23: (ст.3+ст.4+ст.5)/3 | G23: С2 | I23: ст.6*ст.7*ст.8/1000
A24: 1.2.2 | B24: строительство кабельных линий, на уровне напряжения i | F24: (ст.3+ст.4+ст.5)/3 | G24: С3 | I24: ст.6*ст.7*ст.8/1000
A25: 1.2.3 | B25: строительство пунктов секционирования, на уровне напряжения i и (или) диапазоне мощности j | F25: (ст.3+ст.4+ст.5)/3 | G25: С4 | I25: ст.6*ст.7*ст.8/1000
A26: 1.2.4 | B26: строительство комплектных трансформаторных подстанций (КТП), распределительных трансформаторных подстанций (РТП) с уровнем напряжения до 35 кВ, на уровне напряжения i и (или) диапазоне мощности j | F26: (ст.3+ст.4+ст.5)/3 | G26: С4 | I26: ст.6*ст.7*ст.8/1000
A27: 1.2.5 | B27: строительство центров питания, подстанций уровнем напряжения 35 кВ и выше (ПС), на уровне напряжения i и (или) диапазоне мощности j | F27: (ст.3+ст.4+ст.5)/3 | G27: С4 | I27: ст.6*ст.7*ст.8/1000
A28: 2 | B28: Наименование субъекта Российской Федерации | C28: нд | D28: нд | E28: нд | F28: нд | G28: нд | H28: нд | I28: нд
A29: …7) | B29: …7)
B31: 1) Определяется как (столбец (ст.)3+ст.4+ст.5)/3
B32: 2) Определяется как ст.6*ст.7*ст.8/1000, за исключением пункта (п.) 1.1 и п.1.2 (Группа инвестиционных проектов "Технологическое присоединение энергопринимающих устройств потребителей максимальной мощностью до 15 кВт включительно, всего" и Группа инвестиционных проектов "Технологическое присоединение энергопринимающих устройств потребителей максимальной мощностью от 15 до 150 кВт включительно, всего")
B33: 3) Ячейки, в которых указано слово "нд", заполнению не подлежат
B34: 4) В п.1.1 в столбцах 3, 4, 5 и 9 указывются значения, определяюемые как сумма значений, указанных в пунктах 1.1.1 - 1.1.5 соответствующих столбцов
B35: 5) В п.1.2 в столбцах 3, 4, 5 и 9 указывются значения, определяюемые как сумма значений, указанных в пунктах 1.2.1 - 1.2.5 соответствующих столбцов
B36: 6) Словосочетания вида «год X», «год (X-1)» заменя.тся указанием года (четыре цифры и слово «год» в соответствующем падеже), который определяется как год, в котором сетевой организацией раскрывается информация об инвестиционной программе (о проекте инвестиционной программе и (или) изменений, вносимых в инвестиционную программу) минус количество лет, равных числу указанному в словосочетании после знака «-».
B37: 7) Перечень наименований показателей и их нумерация формируются по аналогии с такой структурой, указанной в пунктах, номера которых начинаются с цифры 1.

Sheet 12
N1: Приложение № 12
N2: к приказу Минэнерго России
N3: от «__» _____ 2016 г. №___
A4: Форма 12. Краткое описание инвестиционной программы. Обоснование необходимости реализации инвестиционных проектов
A6: Инвестиционная программа АО "ВЭС"
A7: полное наименование субъекта электроэнергетики
A9: Год раскрытия информации: 2020 год
A11: Номер группы инвести-ционных проектов | B11: Наименование инвестиционного проекта (группы инвестиционных проектов) | C11: Идентифика- тор инвестицион-ного проекта | D11: Год ввода в эксплуатацию трансформаторной или иной подстанции, линии электропередачи (до реализации инвестиционного проекта) | E11: Показатель оценки технического состояния | F11: Показатель оценки последствий отказа | G11: Год определения показателей оценки технического состояния и последствий отказа | H11: Инвестиционным проектом предусматривается выполнение: | L11: Реализация инвестиционного проекта обсулавливается необходимостью выполнения требований: | N11: Инвестиционным проектом осуществляются мероприятия по энергосбережению и повышению энергетической эффективности, предусмотренные утвержденной программой в области энергосбережения и повышения энергетической эффективности и обеспечивающие достижение утвержденных целевых показателей энергосбережения и повышения энергетической эффективности (+;-) | O11: Инвестиционным проектом осуществляются обязательные мероприятия по энергосбережению и повышению энергетической эффективности, предусмотренные утвержденной программой в области энергосбережения и повышения энергетической эффективности (+;-) | P11: Наименование трансформаторной или иной подстанции, линии электропередачи (участка линии электропередачи), реконструкция (модернизация или техническое перевооружение) которой осуществляется в рамках инвестиционного проекта | Q11: Нагрузка по результатам контрольных замеров трансформаторной или иной подстанции, реконструкция (модернизация, техническое перевооружение, которой предусматривается инвестиционным проектом | S11: Аварийная нагрузка, % | T11: Максимальная мощность энергопринимающих устройств потребителей услуг по документам о технологическом присоединении | U11: Мощность трансформаторной или иной подстанции, реконструкция (модернизация или техническое перевооружение) которой осуществляется в рамках инвестиционного проекта | AA11: Проектный высший класс напряжения (рабочее высшее напряжение), кВ | AC11: Задачи, решаемые в рамках реализации инвестиционного проекта | AD11: Неудовлетворительное техническое состояние подтверждается результатами:
H12: противоаварийных мероприятий, предусмотренных актами о расследовании причин аварии (реквизиты актов) | I12: предписаний федерального органа исполнительной власти, уполномоченного на осуществление федерального государственного энергетического надзора вынесенных по результатам расследования причин аварий (реквизиты предписаний) | J12: иных предписаний федерального органа исполнительной власти, уполномоченного на осуществление федерального государственного энергетического надзора (реквизиты предписаний) | K12: предписаний иных органов государственной власти (указать наименования органов исполнительной власти) | U12: всего, МВхА | W12: всего за вычетом мощности наиболее крупного (авто-) трансформатора, МВхА | Y12: всего, Мвар
L13: законодательства Российской Федерации (+;-) | M13: регламентов рынков электрической энергии (+;-) | Q13: МВт | R13: Дата контрольного замерного дня | U13: До | V13: После | W13: До | X13: После | Y13: До | Z13: После | AA13: До | AB13: После | AD13: технического освидетельст-вования (+;-) | AE13: технического обследования (+;-)
A14: 1 | B14: 2 | C14: 3 | D14: 4 | E14: 5 | F14: 6 | G14: 7 | H14: 8 | I14: 9 | J14: 10 | K14: 11 | L14: 12 | M14: 13 | N14: 14 | O14: 15 | P14: 16 | Q14: 17 | R14: 18 | S14: 19 | T14: 20 | U14: 21 | V14: 22 | W14: 23 | X14: 24 | Y14: 25 | Z14: 26 | AA14: 27 | AB14: 28 | AC14: 29 | AD14: 30 | AE14: 31

Sheet 13
K1: Приложение № 13
K2: к приказу Минэнерго России
K3: от «__» _____ 2016 г. №___
A4: Форма 13. Краткое описание инвестиционной программы. Обоснование необходимости реализации инвестиционных проектов
A6: Инвестиционная программа АО "ВЭС"
A7: полное наименование субъекта электроэнергетики
A9: Год раскрытия информации: 2020 год
A11: Номер группы инвести-ционных проектов | B11: Наименование инвестиционного проекта (группы инвестиционных проектов) | C11: Идентифика-тор инвестицион-ного проекта | D11: Планируемый в инвестиционной программе срок постановки объектов электросетевого хозяйства под напряжение (включения объектов капитального строительства для проведения пусконаладочных работ), год | E11: Планируемый в инвестиционной программе срок ввода объектов электросетевого хозяйства (объектов теплоснабжения) в эксплуатацию, год | F11: Срок ввода объектов электросетевого хозяйства в соответствиии со схемой и программой развития Единой энергетической системы России, утвержденными в год (X-1)1) (срок ввода объекта теплоснабжения в соответствии со схемой теплоснабжения поселения, городского округа с численностью населения пятьсот тысяч человек и более или города федерального значения, утвержденной федеральным органом исполнительной власти), год | G11: Схема и программа развития электроэнергетики субъекта Российской Федерации, утвержденные в год (X-1)1) (схема теплоснабжения поселения (городского округа), утвержденная органом местного самоуправления) | I11: Реализация инвестиционного проекта предусматривается решением Правительства Российской Федерации (федерального органа исполнительной власти, органа государственной власти субъекта Российской Федерации, органа местного самоуправления) (+;-) | J11: Инвестиционным проектом предусматривается выполнение:
